Workbook

Sheet ISTRUZIONI
B6: Il foglio di calcolo definisce i parametri meccanici per la muratura esistente e
B7: consente di eseguire le verifiche a flessione e taglio di un pannello murarario
B8: In accordo al DM 17/01/2018 e alla circolare n.7 del 21/01/2019
B9: Il nuovo foglio di calcolo introduce le verifiche ex-ante ed ex-post attraverso la
B10: definizione dei domini di capacità N-M e N-V
B12: Versione 2.03
B13: 2025-03-02
B14: www.davidecicchini.it | H14: Ing. Davide Cicchini
H17: www.davidecicchini.it

Sheet INPUT
B2: Rinforzo di strutture in muratura portante
D4: Developed by Ing. Davide Cicchini
B5: =ISTRUZIONI!B12 -> Versione 2.03 | E5: Data: | F5: =NOW() -> 2025-03-02T20:19:24.680
B7: RIFERIMENTO CANTIERE
B9: Oggetto dei lavori: | D9: Oggetto dei lavori
B10: Committente: | D10: Committente
B11: Progettista: | D11: Progettista
B12: Direttore dei Lavori: | D12: Direttore dei lavori
B13: Impresa: | D13: Impresa
B14: Indirizzo Cantiere: | D14: Indirizzo cantiere
B16: INPUT DATI MURATURA ESISTENTE
B18: CARATTERISTICHE GEOMETRICHE
H37: =IF(F38>50,"la lunghezza del pannello deve essere minore di 50m","") -> 
B38: Lunghezza del pannello murario | E38: l | F38: 2.3 | G38: =IF(INPUT!F38<0,H38,"") ->  | H38: =IF(F38<F39,"La lunghezza del pannello deve essere maggiore dello spessore!","") -> 
B39: Spessore del pannello murario | E39: t | F39: 0.42 | H39: =IF(F39<0.1,"Lo spessore del pannello murario deve essere maggiore di 10cm!","") -> 
B40: Altezza del pannello murario | E40: H | F40: 3.3 | H40: =IF(F39>2,"Lo spessore del pannello murario deve essere minore di 200cm","") -> 
H41: =IF(F40>10,"L'altezza del pannello murario è eccessiva!","") -> 
B42: TIPOLOGIA MURARIA Tab. C8.5.I Circolare 21/01/2019 n.7
B44: Muratura in mattoni pieni e malta di calce
H46: INSERIRE VALORI DERIVANTI DA INDAGINI SPERIMENTALI IN LC3
B47: Livello di conoscenza §8.5.4 NTC18 | E47: LC | F47: LC1 | H47: fm (N/mm2) | I47: t0 (N/mm2) | J47: fv0 (N/mm2) | K47: E (N/mm2) | L47: G (N/mm2) | M47: w (kN/m3)
B48: Fattore di confidenza §8.5.4 NTC18 | E48: FC | F48: =VLOOKUP(INPUT!F47,'FOGLIO DEPOSITO'!B43:C45,2,FALSE) -> 1.35 | H48: 1 | I48: 0.018 | J48: 0.1 | K48: 690 | L48: 230 | M48: 19
B50: Nota: Per il livello LC3 si considerano esclusivamente i valori derivanti dalle indagini sperimentali gli incrementi dovuti ai coefficienti correttivi/peggiorativi sono disabilitati
B53: COEFFICIENTI CORRETTIVI Tab. C8.5.II Circolare 21/01/2019 n.7
B55: Rigidezza fessurata ex-ante (100% = "non fessurato") | F55: 0.85
B57: Murature allo stato ex-ante | C57: Malta buona (solo se è >2MPa, validata da prove in situ) / scadente | F57: scadente
C58: Giunto di malta >13mm | F58: si
C59: Ricorsi o listature | F59: no
C60: Connessione trasversale (ovvero apparecchiata secondo la regola dell'arte) | F60: no
B62: Rigidezza fessurata ex-post (100% = "non fessurato") | F62: 1
B64: Rinforzo Murature allo stato ex-post | C64: Iniezioni di miscele leganti (rinforzo consigliato per murature fortemente incoerenti con cavità e/o con nucleo scadente) | F64: no | H64: =IF(SUM('FOGLIO DEPOSITO'!D88)>=3,"Condizione non ammessa da circ. n.7 del 21 gen. 2019; non si possono applicare più di due interventi migliorativi! §C8.5.3.1","") -> 
C65: Ristilatura armata con connessione dei paramenti | F65: no
C66: Diatoni artificiali o tirantini antiespulsivi | F66: no
C67: Intonaco Armato | E67: CRM doppia faccia + connettori
B69: Spessore del rinforzo (per incremento sezione resistente solo CRM) | F69: 3
B71: TIPO DI ANALISI CONDOTTA PER LA DEFINIZIONE DELLE SOLLECITAZIONI
B73: Tipo di analisi utilizzata per il calcolo delle sollecitazioni | E73: lineare
B75: Coefficiente di sicurezza materiale muratura γm | E75: =VLOOKUP('FOGLIO DEPOSITO'!B422,'FOGLIO DEPOSITO'!G33:H36,2,FALSE) -> 2
B76: (C8.5 e C8.7.1.3.1.1 C. 21/01/2019 n.7)
B78: coefficiente definito da utente | F78: 2.8
B80: SOLLECITAZIONI
B82: ='FOGLIO DEPOSITO'!B533 -> Sforzo normale agente (SOLO COMPRESSIONE) | E82: Ned | F82: 220
D84: Selezionare per considerare il peso della muratura in automatico
B86: Momento flettente agente nel piano | E86: Med,pl | F86: 165
B87: Momento flettente agente fuori del piano | E87: Med,out-pl | F87: 32
B89: Sforzo di taglio agente nel piano del pannello | E89: Ved,pl | F89: 48
B90: Sforzo di taglio agente fuori del piano del pannello | E90: Ved,out-pl | F90: 25
B92: ULTERIORI COMBINAZIONI A SCELTA DELL'UTENTE
C94: NED | D94: VED | E94: MED-PL | F94: MED-OUT-PL
B95: COMBINAZIONE PRINCIPALE PER LA VERIFICA ANALITICA | C95: ='FOGLIO DEPOSITO'!D542 -> 220 | D95: ='FOGLIO DEPOSITO'!E563 -> 48 | E95: ='FOGLIO DEPOSITO'!E542 -> 165 | F95: ='FOGLIO DEPOSITO'!E552 -> 32
B96: COMBINAZIONI A SCELTA DELL'UTENTE:2 | C96: 210 | D96: 45 | E96: 115 | F96: 21.5
B97: COMBINAZIONI A SCELTA DELL'UTENTE:3 | C97: 215 | D97: 48 | E97: 132 | F97: 18
B98: COMBINAZIONI A SCELTA DELL'UTENTE:4 | C98: 230 | D98: 41 | E98: 161 | F98: 17
B99: COMBINAZIONI A SCELTA DELL'UTENTE:5 | C99: 285 | D99: 34 | E99: 155 | F99: 23
B100: *Cancellare i valori per eliminarli dal grafico

Sheet MATERIALI
B2: CARATTERISTICHE MECCANICHE DELLA MURATURA
K3: Developed by Ing. Davide Cicchini
B4: =INPUT!B5 -> Versione 2.03
B6: CARATTERISTICHE MECCANICHE DELLA MURATURA CORRETTA DAI COEFFICIENTI: EX ANTE
B7: =B51 -> Muratura in mattoni pieni e malta di calce | G7: fm (N/cm2) | H7: τ0 (N/cm2) | I7: fv0 (N/cm2) | J7: E (N/mm2) | K7: G (N/mm2) | L7: w (kN/m3)
G9: =G53 -> 260 | H9: =H53 -> 5 | I9: 13 | J9: 1500 | K9: 500 | L9: 18
B10: Coefficienti correttivi per la muratura allo stato di fatto | C10: Malta | G10: =G54 -> 0.7 | H10: 0.7 | I10: 0.7 | J10: 0.8 | K10: 0.8 | L10: 1
C11: Spessori giunti >13mm | G11: =G55 -> 0.7 | H11: 0.7 | I11: 0.7 | J11: 0.8 | K11: 0.8 | L11: 1
C12: Ricorsi o listature | G12: =G56 -> 1 | H12: 1 | I12: 1 | J12: 1 | K12: 1 | L12: 1
C13: Connessione trasversale | G13: =G57 -> 1 | H13: 1 | I13: 1 | J13: 1 | K13: 1 | L13: 1
C14: Coef. Di riduzione rigidezza per fessurazione ex-ante | G14: =G62 -> 1 | H14: =H62 -> 1 | I14: =I62 -> 1 | J14: ='FOGLIO DEPOSITO'!M82 -> 0.85 | K14: ='FOGLIO DEPOSITO'!M82 -> 0.85 | L14: =L62 -> 1
C15: Coefficiente risultante dello stato della muratura | G15: =G10*G11*G12*G13*G14 -> 0.49 | H15: =H10*H11*H12*H13*H14 -> 0.49 | I15: 0.49 | J15: 0.544 | K15: =K10*K11*K12*K13*K14 -> 0.544 | L15: =L10*L11*L12*L13*L14 -> 1
C16: Coefficiente massimo applicabile | F16: =VLOOKUP('FOGLIO DEPOSITO'!B430,'FOGLIO DEPOSITO'!C5:Q14,15,FALSE) -> 1.8 | G16: =(MINA(G15,$F$16)) -> 0.49 | H16: =(MINA(H15,$F$16)) -> 0.49 | I16: 0.49 | J16: =(MINA(J15,$F$16)) -> 0.544 | K16: 0.544 | L16: 1
F17: =IF(INPUT!F47="LC3"," Valori derivanti dalle indagini sperimentali:","") ->  | G17: =IF(INPUT!$F$47='FOGLIO DEPOSITO'!$B$45,INPUT!H48*100,G9*G15) -> 127.4 | H17: =IF(INPUT!$F$47='FOGLIO DEPOSITO'!$B$45,INPUT!I48*100,H9*H15) -> 2.45 | I17: =IF(INPUT!$F$47='FOGLIO DEPOSITO'!$B$45,INPUT!J48*100,IFERROR(I9*I16,0)) -> 6.37 | J17: =IF(INPUT!$F$47='FOGLIO DEPOSITO'!$B$45,INPUT!K48,J9*J15) -> 816 | K17: =IF(INPUT!$F$47='FOGLIO DEPOSITO'!$B$45,INPUT!L48,K9*K15) -> 272 | L17: =IF(INPUT!$F$47='FOGLIO DEPOSITO'!$B$45,INPUT!M48,L9*L15) -> 18
G18: =G17/9.806 -> 12.99204569 | H18: =H17/9.806 -> 0.2498470324 | I18: 0.6496022843 | J18: =J17*9.806 -> 8001.696 | K18: =K17*9.806 -> 2667.232 | L18: =L17/9.806*1000 -> 1835.61085
G19: =G17/100 -> 1.274 | H19: =H17/100 -> 0.0245 | I19: 0.0637 | L19: =L17/9.806 -> 1.83561085
B21: Peso specifico della muratura | I21: w | J21: =L17 -> 18 | K21: =J21/9.806 -> 1.83561085
B23: VALORI MEDI EX-ANTE | C23: Resistenza a compressione della muratura | I23: fm | J23: =G17*10 -> 1274 | K23: =J23/1000 -> 1.274
C24: Resistenza a taglio della muratura | I24: τ0 | J24: =H17*10 -> 24.5 | K24: 0.0245
C25: Resistenza a taglio in assenza di tensioni normali | I25: fv0 | J25: =I17*10 -> 63.7 | K25: 0.0637
B27: VALORI DI CALCOLO EX-ANTE | C27: Resistenza di calcolo, a compressione della muratura | I27: fmd | J27: =J23/(J34*J35) -> 471.8518519 | K27: =J27/1000 -> 0.4718518519
C28: Resistenza di calcolo, a taglio della muratura | I28: τ0d | J28: =H17*10/(J34*J35) -> 9.074074074 | K28: 0.009074074074
C29: Resistenza di calcolo a taglio in assenza di tensioni normali | I29: fv0,d | J29: =I17*10/(J34*J35) -> 23.59259259 | K29: 0.02359259259
C30: Valore medio del modulo di elasticità normale | I30: Ed | J30: =J17 -> 816 | K30: =J30*1000 -> 816000
C31: Valore medio del modulo di elasticità tangenziale | I31: Gd | J31: =K17 -> 272 | K31: =J31*1000 -> 272000
C32: Caratteristiche tessitura muratura: | H32: =H82 -> regolare | J32: =IF('FOGLIO DEPOSITO'!B434="regolare",'FOGLIO DEPOSITO'!Q33,"") -> 0.2
C33: Stima resistenza di calcolo a compressione blocco muratura regolare | I33: fbd | J33: =IF('FOGLIO DEPOSITO'!B434="regolare",'FOGLIO DEPOSITO'!Q34*10,"") -> 10000 | K33: =IF(H32="regolare",J33/1000,"") -> 10
C34: Fattore di confidenza | I34: FC | J34: =INPUT!F48 -> 1.35 | K34: -
C35: Coefficiente di sicurezza del materale muratura | I35: γm | J35: =INPUT!E75 -> 2 | K35: -
B37: Deformazione al limite elastico della muratura | I37: εm1 | J37: =IF(-MATERIALI!K27/MATERIALI!J30<-0.0018,-0.0018,-MATERIALI!K27/MATERIALI!J30) -> -0.0005782498184
B38: Deformazione ultima della muratura | I38: εmu | J38: -0.0035
B39: Legame costitutivo di calcolo
B50: CARATTERISTICHE MECCANICHE DELLA MURATURA CORRETTA DAI COEFFICIENTI: EX POST
B51: =INPUT!B44 -> Muratura in mattoni pieni e malta di calce | G51: fm (N/cm2) | H51: τ0 (N/cm2) | I51: fv0 (N/cm2) | J51: E (N/mm2) | K51: G (N/mm2) | L51: w (kN/m3)
G53: ='FOGLIO DEPOSITO'!G72 -> 260 | H53: ='FOGLIO DEPOSITO'!H72 -> 5 | I53: ='FOGLIO DEPOSITO'!I72 -> 13 | J53: ='FOGLIO DEPOSITO'!J72 -> 1500 | K53: ='FOGLIO DEPOSITO'!K72 -> 500 | L53: ='FOGLIO DEPOSITO'!L72 -> 18
B54: Coefficienti correttivi per la muratura allo stato di fatto | C54: Malta | G54: =IF('FOGLIO DEPOSITO'!$F$98="SI",'FOGLIO DEPOSITO'!F102,'FOGLIO DEPOSITO'!G73) -> 0.7 | H54: =IF('FOGLIO DEPOSITO'!$F$98="SI",'FOGLIO DEPOSITO'!F114,'FOGLIO DEPOSITO'!H73) -> 0.7 | I54: =IF('FOGLIO DEPOSITO'!$F$98="SI",'FOGLIO DEPOSITO'!F126,'FOGLIO DEPOSITO'!I73) -> 0.7 | J54: =IF('FOGLIO DEPOSITO'!$F$98="SI",'FOGLIO DEPOSITO'!F138,'FOGLIO DEPOSITO'!J73) -> 0.8 | K54: =IF('FOGLIO DEPOSITO'!$F$98="SI",'FOGLIO DEPOSITO'!F150,'FOGLIO DEPOSITO'!K73) -> 0.8 | L54: =IF('FOGLIO DEPOSITO'!$F$98="SI",'FOGLIO DEPOSITO'!F162,'FOGLIO DEPOSITO'!L73) -> 1
C55: Spessori giunti >13mm | G55: =IF('FOGLIO DEPOSITO'!$B$448="si",'FOGLIO DEPOSITO'!$J$30,1) -> 0.7 | H55: =IF('FOGLIO DEPOSITO'!$B$448="si",'FOGLIO DEPOSITO'!$J$30,1) -> 0.7 | I55: =IF('FOGLIO DEPOSITO'!$B$448="si",'FOGLIO DEPOSITO'!$J$30,1) -> 0.7 | J55: =IF('FOGLIO DEPOSITO'!$B$448="si",'FOGLIO DEPOSITO'!$J$29,1) -> 0.8 | K55: =IF('FOGLIO DEPOSITO'!$B$448="si",'FOGLIO DEPOSITO'!$J$29,1) -> 0.8 | L55: =IF('FOGLIO DEPOSITO'!$F$98="SI",'FOGLIO DEPOSITO'!F163,'FOGLIO DEPOSITO'!L74) -> 1
C56: Ricorsi o listature | G56: =IF('FOGLIO DEPOSITO'!$F$98="SI",'FOGLIO DEPOSITO'!F103,'FOGLIO DEPOSITO'!G75) -> 1 | H56: =IF('FOGLIO DEPOSITO'!$F$98="SI",'FOGLIO DEPOSITO'!F115,'FOGLIO DEPOSITO'!H75) -> 1 | I56: =IF('FOGLIO DEPOSITO'!$F$98="SI",'FOGLIO DEPOSITO'!F127,'FOGLIO DEPOSITO'!I75) -> 1 | J56: =IF('FOGLIO DEPOSITO'!$F$98="SI",'FOGLIO DEPOSITO'!F139,'FOGLIO DEPOSITO'!J75) -> 1 | K56: =IF('FOGLIO DEPOSITO'!$F$98="SI",'FOGLIO DEPOSITO'!F151,'FOGLIO DEPOSITO'!K75) -> 1 | L56: =IF('FOGLIO DEPOSITO'!$F$98="SI",'FOGLIO DEPOSITO'!F163,'FOGLIO DEPOSITO'!L75) -> 1
C57: Connessione trasversale | G57: =IF('FOGLIO DEPOSITO'!$F$98="SI",'FOGLIO DEPOSITO'!F104,'FOGLIO DEPOSITO'!G76) -> 1 | H57: =IF('FOGLIO DEPOSITO'!$F$98="SI",'FOGLIO DEPOSITO'!F116,'FOGLIO DEPOSITO'!H76) -> 1 | I57: =IF('FOGLIO DEPOSITO'!$F$98="SI",'FOGLIO DEPOSITO'!F128,'FOGLIO DEPOSITO'!I76) -> 1 | J57: =IF('FOGLIO DEPOSITO'!$F$98="SI",'FOGLIO DEPOSITO'!F140,'FOGLIO DEPOSITO'!J76) -> 1 | K57: =IF('FOGLIO DEPOSITO'!$F$98="SI",'FOGLIO DEPOSITO'!F152,'FOGLIO DEPOSITO'!K76) -> 1 | L57: =IF('FOGLIO DEPOSITO'!$F$98="SI",'FOGLIO DEPOSITO'!F164,'FOGLIO DEPOSITO'!L76) -> 1
B58: Coefficienti correttivi per la murattura rinforzata | C58: Intonaco Armato: | E58: =INPUT!E67 -> CRM doppia faccia + connettori | G58: =IF('FOGLIO DEPOSITO'!$F$98="SI",'FOGLIO DEPOSITO'!F107,'FOGLIO DEPOSITO'!G79) -> 1.5 | H58: =IF('FOGLIO DEPOSITO'!$F$98="SI",'FOGLIO DEPOSITO'!F119,'FOGLIO DEPOSITO'!H79) -> 1.5 | I58: =IF('FOGLIO DEPOSITO'!$F$98="SI",'FOGLIO DEPOSITO'!F131,'FOGLIO DEPOSITO'!I79) -> 1.5 | J58: =IF('FOGLIO DEPOSITO'!$F$98="SI",'FOGLIO DEPOSITO'!F143,'FOGLIO DEPOSITO'!J79) -> 1.5 | K58: =IF('FOGLIO DEPOSITO'!$F$98="SI",'FOGLIO DEPOSITO'!F155,'FOGLIO DEPOSITO'!K79) -> 1.5 | L58: =IF('FOGLIO DEPOSITO'!$F$98="SI",'FOGLIO DEPOSITO'!F167,'FOGLIO DEPOSITO'!L79) -> 1
C59: Ristilatura armata con connessione dei paramenti | G59: =IF('FOGLIO DEPOSITO'!$F$98="SI",'FOGLIO DEPOSITO'!F108,'FOGLIO DEPOSITO'!G74) -> 1 | H59: =IF('FOGLIO DEPOSITO'!$F$98="SI",'FOGLIO DEPOSITO'!F120,'FOGLIO DEPOSITO'!H74) -> 1 | I59: =IF('FOGLIO DEPOSITO'!$F$98="SI",'FOGLIO DEPOSITO'!F132,'FOGLIO DEPOSITO'!I74) -> 1 | J59: =IF('FOGLIO DEPOSITO'!$F$98="SI",'FOGLIO DEPOSITO'!F144,'FOGLIO DEPOSITO'!J74) -> 1 | K59: =IF('FOGLIO DEPOSITO'!$F$98="SI",'FOGLIO DEPOSITO'!F156,'FOGLIO DEPOSITO'!K74) -> 1 | L59: =IF('FOGLIO DEPOSITO'!$F$98="SI",'FOGLIO DEPOSITO'!F168,'FOGLIO DEPOSITO'!L74) -> 1
C60: Diatoni artificiali o tirantini antiespulsivi | G60: =IF('FOGLIO DEPOSITO'!$F$98="SI",'FOGLIO DEPOSITO'!F109,'FOGLIO DEPOSITO'!G78) -> 1 | H60: =IF('FOGLIO DEPOSITO'!$F$98="SI",'FOGLIO DEPOSITO'!F121,'FOGLIO DEPOSITO'!H78) -> 1 | I60: =IF('FOGLIO DEPOSITO'!$F$98="SI",'FOGLIO DEPOSITO'!F133,'FOGLIO DEPOSITO'!I78) -> 1 | J60: =IF('FOGLIO DEPOSITO'!$F$98="SI",'FOGLIO DEPOSITO'!F145,'FOGLIO DEPOSITO'!J78) -> 1 | K60: =IF('FOGLIO DEPOSITO'!$F$98="SI",'FOGLIO DEPOSITO'!F157,'FOGLIO DEPOSITO'!K78) -> 1 | L60: =IF('FOGLIO DEPOSITO'!$F$98="SI",'FOGLIO DEPOSITO'!F169,'FOGLIO DEPOSITO'!L78) -> 1
C61: Iniezioni di miscele leganti | G61: =IF('FOGLIO DEPOSITO'!$F$98="SI",'FOGLIO DEPOSITO'!F106,'FOGLIO DEPOSITO'!G77) -> 1 | H61: =IF('FOGLIO DEPOSITO'!$F$98="SI",'FOGLIO DEPOSITO'!F118,'FOGLIO DEPOSITO'!H77) -> 1 | I61: =IF('FOGLIO DEPOSITO'!$F$98="SI",'FOGLIO DEPOSITO'!F130,'FOGLIO DEPOSITO'!I77) -> 1 | J61: =IF('FOGLIO DEPOSITO'!$F$98="SI",'FOGLIO DEPOSITO'!F142,'FOGLIO DEPOSITO'!J77) -> 1 | K61: =IF('FOGLIO DEPOSITO'!$F$98="SI",'FOGLIO DEPOSITO'!F154,'FOGLIO DEPOSITO'!K77) -> 1 | L61: =IF('FOGLIO DEPOSITO'!$F$98="SI",'FOGLIO DEPOSITO'!F166,'FOGLIO DEPOSITO'!L77) -> 1
C62: Coef. Di riduzione rigidezza per fessurazione ex-post | G62: 1 | H62: 1 | I62: 1 | J62: ='FOGLIO DEPOSITO'!N82 -> 1 | K62: ='FOGLIO DEPOSITO'!N82 -> 1 | L62: 1
C63: Coefficiente risultante dello stato della muratura | G63: =G54*G55*G56*G57 -> 0.49 | H63: =H54*H55*H56*H57 -> 0.49 | I63: 0.49 | J63: 0.64 | K63: 0.64 | L63: 1
C64: Coefficiente derivante dal rinforzo della muratura | G64: =G58*G59*G60*G61*G62 -> 1.5 | H64: =H58*H59*H60*H61*H62 -> 1.5 | I64: 1.5 | J64: 1.5 | K64: 1.5 | L64: 1
C65: Coefficiente Risultante | G65: =PRODUCT(G54:G61) -> 0.735 | H65: 0.735 | I65: 0.735 | J65: 0.96 | K65: 0.96 | L65: 1
C66: Coefficiente massimo applicabile | F66: =VLOOKUP('FOGLIO DEPOSITO'!B430,'FOGLIO DEPOSITO'!C5:Q14,15,FALSE) -> 1.8 | G66: =IF(G65<=$F$66,G65,F66) -> 0.735 | H66: =IF(H65<=$F$66,H65,G66) -> 0.735 | I66: 0.735 | J66: 0.96 | K66: 0.96 | L66: 1
F67: =IF(INPUT!F47="LC3"," Valori derivanti dalle indagini sperimentali:","") ->  | G67: =IF(INPUT!$F$47='FOGLIO DEPOSITO'!$B$45,'FOGLIO DEPOSITO'!B419,G53*G66) -> 191.1 | H67: =IF(INPUT!$F$47='FOGLIO DEPOSITO'!$B$45,'FOGLIO DEPOSITO'!C419,H53*H66) -> 3.675 | I67: =IF(INPUT!$F$47='FOGLIO DEPOSITO'!$B$45,'FOGLIO DEPOSITO'!D419,IFERROR(I53*I66,0)) -> 9.555 | J67: =IF(INPUT!$F$47='FOGLIO DEPOSITO'!$B$45,'FOGLIO DEPOSITO'!E419,J53*J66) -> 1440 | K67: =IF(INPUT!$F$47='FOGLIO DEPOSITO'!$B$45,'FOGLIO DEPOSITO'!F419,K53*K66) -> 480 | L67: =IF(INPUT!$F$47='FOGLIO DEPOSITO'!$B$45,'FOGLIO DEPOSITO'!G419,L53*L66) -> 18
G68: =G67/9.806 -> 19.48806853 | H68: =H67/9.806 -> 0.3747705486 | I68: 0.9744034265 | J68: =J67*9.806 -> 14120.64 | K68: =K67*9.806 -> 4706.88 | L68: =L67/9.806*1000 -> 1835.61085
G69: =G67/100 -> 1.911 | H69: =H67/100 -> 0.03675 | I69: 0.09555 | L69: =L67/9.806 -> 1.83561085
B71: Peso specifico della muratura | I71: w | J71: =L67 -> 18 | K71: =J71/9.806 -> 1.83561085
B73: VALORI MEDI EX-POST | C73: Resistenza a compressione della muratura | I73: fm | J73: =G67*10 -> 1911 | K73: =J73/1000 -> 1.911
C74: Resistenza a taglio della muratura | I74: τ0 | J74: =H67*10 -> 36.75 | K74: 0.03675
C75: Resistenza a taglio in assenza di tensioni normali | I75: fv0 | J75: =I67*10 -> 95.55 | K75: 0.09555
B77: VALORI DI CALCOLO EX-POST | C77: Resistenza di calcolo, a compressione della muratura | I77: fmd | J77: =J73/(J84*J85) -> 707.7777778 | K77: 0.7077777778
C78: Resistenza di calcolo, a taglio della muratura | I78: τ0d | J78: =H67*10/(J84*J85) -> 13.61111111 | K78: 0.01361111111
C79: Resistenza di calcolo a taglio in assenza di tensioni normali | I79: fv0,d | J79: =I67*10/(J84*J85) -> 35.38888889 | K79: 0.03538888889
C80: Valore medio del modulo di elasticità normale | I80: Ed | J80: =J67 -> 1440 | K80: =J80*1000 -> 1440000
C81: Valore medio del modulo di elasticità tangenziale | I81: Gd | J81: =K67 -> 480 | K81: =J81*1000 -> 480000
C82: Caratteristiche tessitura muratura: | H82: =IF('FOGLIO DEPOSITO'!B434="irregolare",'FOGLIO DEPOSITO'!B437,'FOGLIO DEPOSITO'!B438) -> regolare | J82: =IF('FOGLIO DEPOSITO'!B434="regolare",'FOGLIO DEPOSITO'!R33,"") -> 0.4
C83: Stima resistenza di calcolo a compressione blocco muratura regolare | I83: fbd | J83: =IF('FOGLIO DEPOSITO'!B434="regolare",'FOGLIO DEPOSITO'!Q34*10,"") -> 10000 | K83: =IF(H82="regolare",J83/1000,"") -> 10
C84: Fattore di confidenza | I84: FC | J84: =INPUT!F48 -> 1.35 | K84: -
C85: Coefficiente di sicurezza del materale muratura | I85: γm | J85: =INPUT!E75 -> 2 | K85: -
B87: Deformazione al limite elastico della muratura | I87: εm1 | J87: =IF(-MATERIALI!K77/MATERIALI!J80<-0.0018,-0.0018,-MATERIALI!K77/MATERIALI!J80) -> -0.0004915123457
B88: Deformazione ultima della muratura | I88: εmu | J88: -0.0035
B89: Legame costitutivo di calcolo

Sheet FOGLIO DEPOSITO (hidden)
B1: Valori di riferimento dei parametri meccanici medi e peso specifico per diverse tipologie di muratura.
C3: 1 | D3: 2 | E3: 3 | F3: 4 | G3: 5 | H3: 6 | I3: 7 | J3: 8 | K3: 9 | L3: 10 | M3: 11 | N3: 12 | O3: 13 | P3: 14 | Q3: 15 | R3: 16 | S3: 17 | T3: 18 | U3: 19 | V3: 20 | W3: 21 | X3: 22 | Y3: 23
D4: fm (N/cm2) | E4: τ0 (N/cm2) | F4: fv0 (N/cm2) | G4: E (N/mm2) | H4: G (N/mm2) | I4: w (kN/m3) | J4: Malta buona | K4: RISTILATURA | L4: ricorsi o listature | M4: connessione | N4: DIATONI ART | O4: Iniezioni | P4: Intonaco arm | Q4: max | S4: mu tilde | T4: fb | U4: coef corr CNR DT 215/2018 | V4: qU,F [N/mm] | W4: coef.correttivo | X4: ='FOGLIO DEPOSITO'!G73 -> 0.7 | VR4: 3
B5: 1 | C5: Muratura in pietrame disordinata (ciottoli, pietre erratiche e irregolari) | D5: =(100+200)/2 -> 150 | E5: =(1.8+3.2)/2 -> 2.5 | F5: ="--" -> -- | G5: =(690+1050)/2 -> 870 | H5: =(230+350)/2 -> 290 | I5: 19 | J5: 1.5 | K5: 1.6 | L5: 1.3 | M5: 1.5 | N5: 1.5 | O5: 2 | P5: 2.5 | Q5: 3.5 | R5: irregolare | U5: 1.5 | V5: 44.6 | Y5: 2
B6: 2 | C6: Muratura a conci sbozzati, con paramenti di limitato spessore disomogeneo | D6: 200 | E6: =(3.5+5.1)/2 -> 4.3 | F6: ="--" -> -- | G6: =(1020+1440)/2 -> 1230 | H6: =(340+480)/2 -> 410 | I6: 20 | J6: 1.4 | K6: 1.5 | L6: 1.2 | M6: 1.5 | N6: 1.4 | O6: 1.7 | P6: 2 | Q6: 3 | R6: irregolare | U6: 1.5 | V6: 44.6 | W6: coef.correttivo | X6: ='FOGLIO DEPOSITO'!G74 -> 1 | Y6: 2
B7: 3 | C7: Muratura in pietre a spacco con buona tessitura | D7: =(260+380)/2 -> 320 | E7: =(5.6+7.4)/2 -> 6.5 | F7: ="--" -> -- | G7: =(1500+1980)/2 -> 1740 | H7: =(500+660)/2 -> 580 | I7: 21 | J7: 1.3 | K7: 1.4 | L7: 1.1 | M7: 1.3 | N7: 1.3 | O7: 1.5 | P7: 1.5 | Q7: 2.4 | R7: irregolare | U7: 2 | V7: 32.2 | Y7: 2
B8: 4 | C8: Muratura irregolare di pietra tenera | D8: =(140+220)/2 -> 180 | E8: =(2.8+4.2)/2 -> 3.5 | F8: ="--" -> -- | G8: =(900+1260)/2 -> 1080 | H8: =(300+420)/2 -> 360 | I8: 16 | J8: 1.5 | K8: 1.1 | L8: 1.2 | M8: 1.3 | N8: 1.5 | O8: 1.4 | P8: 1.7 | Q8: 2 | R8: irregolare | U8: 2 | V8: 44.6 | W8: coef.correttivo | X8: ='FOGLIO DEPOSITO'!G75 -> 1 | Y8: 2
B9: 5 | C9: Muratura a conci regolari di pietra tenera | D9: =(200+320)/2 -> 260 | E9: =(4+8)/2 -> 6 | F9: =(10+19)/2 -> 14.5 | G9: =(1200+1620)/2 -> 1410 | H9: =(400+500)/2 -> 450 | I9: 16 | J9: 1.6 | K9: 1.2 | L9: 1 | M9: 1.2 | N9: 1.6 | O9: 1.2 | P9: 1.5 | Q9: 1.8 | R9: regolare | S9: =$Q$33 -> 0.2 | T9: 570 | U9: 2 | V9: 44.6 | Y9: 3
B10: 6 | C10: Muratura a blocchi lapidei squadrati | D10: =(580+820)/2 -> 700 | E10: =(9+12)/2 -> 10.5 | F10: =(18+28)/2 -> 23 | G10: =(2400+3300)/2 -> 2850 | H10: =(800+1100)/2 -> 950 | I10: 22 | J10: 1.2 | K10: 1 | L10: 1 | M10: 1.2 | N10: 1.2 | O10: 1.2 | P10: 1.2 | Q10: 1.4 | R10: regolare | S10: 0.2 | T10: 1300 | U10: 1.2 | V10: 44.6 | W10: coef.correttivo | X10: ='FOGLIO DEPOSITO'!G76 -> 1 | Y10: 2
B11: 7 | C11: Muratura in mattoni pieni e malta di calce | D11: =(260+430)/2 -> 345 | E11: =(5+13)/2 -> 9 | F11: =(13+27)/2 -> 20 | G11: =(1200+1800)/2 -> 1500 | H11: =(400+600)/2 -> 500 | I11: 18 | J11: =(D11/100/INPUT!E75)^0.35 -> 1.210253047 | K11: 1.2 | L11: 1 | M11: 1.3 | N11: 1 | O11: 1.2 | P11: 1.5 | Q11: 1.8 | R11: regolare | S11: 0.2 | T11: 1000 | U11: 1.7 | V11: 24.5 | Y11: 1
B12: 8 | C12: Muratura in mattoni semipieni con malta cementizia (doppio UNI foratura<40%) | D12: =(500+800)/2 -> 650 | E12: =(8+17)/2 -> 12.5 | F12: =(20+36)/2 -> 28 | G12: =(3500+5600)/2 -> 4550 | H12: =(875+1400)/2 -> 1137.5 | I12: 15 | J12: 1.2 | K12: 1 | L12: 1 | M12: 1 | N12: 1.2 | O12: 1 | P12: 1.3 | Q12: 1.3 | R12: regolare | S12: 0.2 | T12: 800 | U12: 1.3 | V12: 44.6 | W12: coef.correttivo | X12: ='FOGLIO DEPOSITO'!G77 -> 1 | Y12: 1
B13: 9 | C13: Muratura in blocchi di calcestruzzo o argilla espansa (% foratura tra 45% e 60%) | D13: =(150+200)/2 -> 175 | E13: =(9.5+12.5)/2 -> 11 | F13: 10 | G13: =(1200+1600)/2 -> 1400 | H13: =(300+400)/2 -> 350 | I13: 12 | J13: 1.2 | K13: 1 | L13: 1 | M13: 1 | N13: 1.2 | O13: 1 | P13: 1.1 | Q13: 1.3 | R13: regolare | S13: 0.2 | T13: 600 | U13: 1.3 | V13: 44.6 | W13: coef.correttivo | X13: =X14 -> 1 | Y13: 1
B14: 10 | C14: Muratura in blocchi di calcestruzzo semipieni (% foratura < 45%) | D14: =(300+440)/2 -> 370 | E14: =(18+24)/2 -> 21 | F14: 20 | G14: =(2400+3520)/2 -> 2960 | H14: =(600+880)/2 -> 740 | I14: 14 | J14: 1.2 | K14: 1 | L14: 1 | M14: 1 | N14: 1.2 | O14: 1 | P14: 1.3 | Q14: 1.3 | R14: regolare | S14: 0.2 | T14: 800 | U14: 1.3 | V14: 44.6 | W14: coef.correttivo | X14: ='FOGLIO DEPOSITO'!G78 -> 1 | Y14: 1
B15: 11 | C15: Muratura in pietrame disordinata (ciottoli, pietre erratiche e irregolari) | D15: 100 | E15: 1.8 | G15: =(690+1050)/2 -> 870 | H15: =(230+350)/2 -> 290 | I15: 19 | J15: 1.5 | K15: 1.6 | L15: 1.3 | M15: 1.5 | N15: 1.5 | O15: 2 | P15: 2.5 | Q15: 3.5 | R15: irregolare | U15: 1.5 | W15: coef.correttivo | X15: ='FOGLIO DEPOSITO'!G79 -> 1.5
B16: 12 | C16: Muratura a conci sbozzati, con paramenti di limitato spessore disomogeneo | D16: 200 | E16: 3.5 | G16: =(1020+1440)/2 -> 1230 | H16: =(340+480)/2 -> 410 | I16: 20 | J16: 1.4 | K16: 1.5 | L16: 1.2 | M16: 1.5 | N16: 1.4 | O16: 1.7 | P16: 2 | Q16: 3 | R16: irregolare | U16: 1.5
B17: 13 | C17: Muratura in pietre a spacco con buona tessitura | D17: 260 | E17: 5.6 | G17: =(1500+1980)/2 -> 1740 | H17: =(500+660)/2 -> 580 | I17: 21 | J17: 1.3 | K17: 1.4 | L17: 1.1 | M17: 1.3 | N17: 1.3 | O17: 1.5 | P17: 1.5 | Q17: 2.4 | R17: irregolare | U17: 2
B18: 14 | C18: Muratura irregolare di pietra tenera | D18: 140 | E18: 2.8 | G18: =(900+1260)/2 -> 1080 | H18: =(300+420)/2 -> 360 | I18: =(13+16)/2 -> 14.5 | J18: 1.5 | K18: 1.1 | L18: 1.2 | M18: 1.3 | N18: 1.5 | O18: 1.4 | P18: 1.7 | Q18: 2 | R18: irregolare | U18: 2
B19: 15 | C19: Muratura a conci regolari di pietra tenera | D19: 200 | E19: 4 | F19: 10 | G19: =(1200+1620)/2 -> 1410 | H19: =(400+500)/2 -> 450 | I19: =(13+16)/2 -> 14.5 | J19: 1.6 | K19: 1.2 | L19: 1 | M19: 1.2 | N19: 1.6 | O19: 1.2 | P19: 1.5 | Q19: 1.8 | R19: regolare | S19: =$Q$33 -> 0.2 | T19: 570 | U19: 2
B20: 16 | C20: Muratura a blocchi lapidei squadrati | D20: 580 | E20: 9 | F20: 18 | G20: =(2400+3300)/2 -> 2850 | H20: =(800+1100)/2 -> 950 | I20: 22 | J20: 1.2 | K20: 1 | L20: 1 | M20: 1.2 | N20: 1.2 | O20: 1.2 | P20: 1.2 | Q20: 1.4 | R20: regolare | S20: =$Q$33 -> 0.2 | T20: 1300 | U20: 1.2
B21: 17 | C21: Muratura in mattoni pieni e malta di calce | D21: 260 | E21: 5 | F21: 13 | G21: =(1200+1800)/2 -> 1500 | H21: =(400+600)/2 -> 500 | I21: 18 | J21: =(D21/100/INPUT!E75)^0.35 -> 1.096175707 | K21: 1.2 | L21: 1 | M21: 1.3 | N21: 1 | O21: 1.2 | P21: 1.5 | Q21: 1.8 | R21: regolare | S21: =$Q$33 -> 0.2 | T21: 1000 | U21: 1.7
B22: 18 | C22: Muratura in mattoni semipieni con malta cementizia (doppio UNI foratura<40%) | D22: 500 | E22: 8 | F22: 20 | G22: =(3500+5600)/2 -> 4550 | H22: =(875+1400)/2 -> 1137.5 | I22: 15 | J22: 1.2 | K22: 1 | L22: 1 | M22: 1 | N22: 1.2 | O22: 1 | P22: 1.3 | Q22: 1.3 | R22: regolare | S22: =$Q$33 -> 0.2 | T22: 800 | U22: 1.3
B23: 19 | C23: Muratura in blocchi di calcestruzzo o argilla espansa (% foratura tra 45% e 60%) | D23: 150 | E23: 9.5 | F23: 8.5 | G23: =(1200+1600)/2 -> 1400 | H23: =(300+400)/2 -> 350 | I23: 12 | J23: 1.2 | K23: 1 | L23: 1 | M23: 1 | N23: 1.2 | O23: 1 | P23: 1.1 | Q23: 1.3 | R23: regolare | S23: =$Q$33 -> 0.2 | T23: 600 | U23: 1.3
B24: 20 | C24: Muratura in blocchi di calcestruzzo semipieni (% foratura < 45%) | D24: 300 | E24: 18 | F24: 13 | G24: =(2400+3520)/2 -> 2960 | H24: =(600+880)/2 -> 740 | I24: 14 | J24: 1.2 | K24: 1 | L24: 1 | M24: 1 | N24: 1.2 | O24: 1 | P24: 1.3 | Q24: 1.3 | R24: regolare | S24: 0.2 | T24: 800 | U24: 1.3
J29: 0.8 | K29: giunti ampi | L29: (peggiora tutti i moduli elastici) | Q29: mu tilde
B30: =C5 -> Muratura in pietrame disordinata (ciottoli, pietre erratiche e irregolari) | C30: 1 | D30: 2 | G30: si | J30: 0.7 | K30: giunti ampi | L30: (peggiora tutte le resistenze) | P30: malta buona e o normale | Q30: 0.4
B31: Muratura a conci sbozzati, con paramenti di limitato spessore disomogeneo | C31: 1 | D31: 2 | G31: no | J31: =IF('FOGLIO DEPOSITO'!$D$43=1,VLOOKUP('FOGLIO DEPOSITO'!$B$70,'FOGLIO DEPOSITO'!$C$5:$P$14,'FOGLIO DEPOSITO'!J3,FALSE),VLOOKUP('FOGLIO DEPOSITO'!$B$70,'FOGLIO DEPOSITO'!$C$15:$P$24,'FOGLIO DEPOSITO'!J3,FALSE)) -> 1.096175707 | K31: Malta buona | P31: giunti ampi e o malta scadente | Q31: 0.2
B32: Muratura in pietre a spacco con buona tessitura | C32: 1 | D32: 2 | J32: 0.7 | K32: malta scadente | L32: (peggiora tutte le resistenze) | R32: ex-post
B33: Muratura irregolare di pietra tenera | C33: 1 | D33: 2 | G33: lineare | H33: 2 | J33: =IF('FOGLIO DEPOSITO'!$D$43=1,VLOOKUP('FOGLIO DEPOSITO'!$B$70,'FOGLIO DEPOSITO'!$C$5:$P$14,'FOGLIO DEPOSITO'!K3,FALSE),VLOOKUP('FOGLIO DEPOSITO'!$B$70,'FOGLIO DEPOSITO'!$C$15:$P$24,'FOGLIO DEPOSITO'!K3,FALSE)) -> 1.2 | K33: RISTILATURA | P33: =VLOOKUP(INPUT!B44,'FOGLIO DEPOSITO'!C5:S24,16,FALSE) -> regolare | Q33: =IF('FOGLIO DEPOSITO'!B441='FOGLIO DEPOSITO'!B66,0.2,IF('FOGLIO DEPOSITO'!B448="si",0.2,0.4)) -> 0.2 | R33: =IF(D88>0,0.4,Q33) -> 0.4
B34: Muratura a conci regolari di pietra tenera | C34: 1 | D34: 2 | G34: non lineare | H34: 1 | P34: fb | Q34: =VLOOKUP(INPUT!B44,'FOGLIO DEPOSITO'!C5:T24,18,FALSE) -> 1000
B35: Muratura a blocchi lapidei squadrati | C35: 1 | D35: 2 | G35: statica (tab. 4.5.II. NTC18) | H35: 3 | J35: =IF('FOGLIO DEPOSITO'!$D$43=1,VLOOKUP('FOGLIO DEPOSITO'!$B$70,'FOGLIO DEPOSITO'!$C$5:$P$14,'FOGLIO DEPOSITO'!L3,FALSE),VLOOKUP('FOGLIO DEPOSITO'!$B$70,'FOGLIO DEPOSITO'!$C$15:$P$24,'FOGLIO DEPOSITO'!L3,FALSE)) -> 1 | K35: Ricorsi o listature
B36: Muratura in mattoni pieni e malta di calce | C36: 1 | D36: 2 | G36: utente | H36: =INPUT!F78 -> 2.8
B37: =C14 -> Muratura in blocchi di calcestruzzo semipieni (% foratura < 45%) | C37: 1 | D37: 2 | J37: =IF('FOGLIO DEPOSITO'!$D$43=1,VLOOKUP('FOGLIO DEPOSITO'!$B$70,'FOGLIO DEPOSITO'!$C$5:$P$14,'FOGLIO DEPOSITO'!M3,FALSE),VLOOKUP('FOGLIO DEPOSITO'!$B$70,'FOGLIO DEPOSITO'!$C$15:$P$24,'FOGLIO DEPOSITO'!M3,FALSE)) -> 1.3 | K37: Connessione trasversale
J39: =IF('FOGLIO DEPOSITO'!$D$43=1,VLOOKUP('FOGLIO DEPOSITO'!$B$70,'FOGLIO DEPOSITO'!$C$5:$P$14,'FOGLIO DEPOSITO'!N3,FALSE),VLOOKUP('FOGLIO DEPOSITO'!$B$70,'FOGLIO DEPOSITO'!$C$15:$P$24,'FOGLIO DEPOSITO'!N3,FALSE)) -> 1 | K39: diatoni artificiali
J41: =IF('FOGLIO DEPOSITO'!$D$43=1,VLOOKUP('FOGLIO DEPOSITO'!$B$70,'FOGLIO DEPOSITO'!$C$5:$P$14,'FOGLIO DEPOSITO'!O3,FALSE),VLOOKUP('FOGLIO DEPOSITO'!$B$70,'FOGLIO DEPOSITO'!$C$15:$P$24,'FOGLIO DEPOSITO'!O3,FALSE)) -> 1.2 | K41: Iniezioni di miscele leganti
J42: =IF('FOGLIO DEPOSITO'!$D$43=1,VLOOKUP('FOGLIO DEPOSITO'!$B$70,'FOGLIO DEPOSITO'!$C$5:$U$14,'FOGLIO DEPOSITO'!U3,FALSE),VLOOKUP('FOGLIO DEPOSITO'!$B$70,'FOGLIO DEPOSITO'!$C$15:$U$24,'FOGLIO DEPOSITO'!U3,FALSE)) -> 1.7 | K42: FRCM doppia faccia senza connettori
B43: LC1 | C43: 1.35 | D43: =IF(INPUT!F47="LC1",2,1) -> 2 | E43: Resistenze:i valori minimi degli intervalli riportati in Tabella C8.5.I; Moduli elastici: I valori medi degli intervalli riportati nella tabella suddetta. | J43: =IF('FOGLIO DEPOSITO'!$D$43=1,VLOOKUP('FOGLIO DEPOSITO'!$B$70,'FOGLIO DEPOSITO'!$C$5:$P$14,'FOGLIO DEPOSITO'!P3,FALSE),VLOOKUP('FOGLIO DEPOSITO'!$B$70,'FOGLIO DEPOSITO'!$C$15:$P$24,'FOGLIO DEPOSITO'!P3,FALSE)) -> 1.5 | K43: Muratura armata
B44: LC2 | C44: 1.2 | E44: Resistenze:i valori medi degli intervalli riportati in Tabella C8.5.I; Moduli elastici: I valori medi degli intervalli riportati nella tabella suddetta.
B45: LC3 | C45: 1 | E45: I valori delle resistenze e dei moduli riportati in tabella C.8.5.I possono essere aggiornati sulla base dei risultati ottenuti da prove distruttive.
B47: rigidezze fessurate
B48: 1 | C48: 1
B49: 0.95 | C49: 0.95
B50: 0.9 | C50: 0.9
B51: 0.85 | C51: 0.85
B52: 0.8 | C52: 0.8
B53: 0.75 | C53: 0.75
B54: 0.7 | C54: 0.7 | E54: w | G54: =MATERIALI!J71 -> 18 | H54: kN/m³
B55: 0.65 | C55: 0.65 | E55: fm | G55: =MATERIALI!J73 -> 1911 | H55: kN/m²
B56: 0.6 | C56: 0.6 | E56: fmd | G56: =MATERIALI!J77 -> 707.7777778 | H56: kN/m²
B57: 0.55 | C57: 0.55 | E57: τ0d | G57: =MATERIALI!J74 -> 36.75 | H57: kN/m²
B58: 0.5 | C58: 0.5
B59: 0.45 | C59: 0.45 | E59: FC | G59: =INPUT!F48 -> 1.35 | H59: [-]
B60: 0.4 | C60: 0.4 | E60: γm | G60: =INPUT!E75 -> 2 | H60: [-]
B61: 0.35 | C61: 0.35
B64: si
B65: no
B66: scadente
B70: =INPUT!B44 -> Muratura in mattoni pieni e malta di calce | G70: fm (N/cm2) | H70: τ0 (N/cm2) | I70: fv0 (N/cm2) | J70: E (N/mm2) | K70: G (N/mm2) | L70: w (kN/m3) | O70: =IF('FOGLIO DEPOSITO'!B451="SI",1,0) -> 0
G72: =IF('FOGLIO DEPOSITO'!$D$43=1,VLOOKUP('FOGLIO DEPOSITO'!$B$70,'FOGLIO DEPOSITO'!$C$5:$P$14,'FOGLIO DEPOSITO'!D3,FALSE),VLOOKUP('FOGLIO DEPOSITO'!$B$70,'FOGLIO DEPOSITO'!$C$15:$P$24,'FOGLIO DEPOSITO'!D3,FALSE)) -> 260 | H72: =IF('FOGLIO DEPOSITO'!$D$43=1,VLOOKUP('FOGLIO DEPOSITO'!$B$70,'FOGLIO DEPOSITO'!$C$5:$P$14,'FOGLIO DEPOSITO'!E3,FALSE),VLOOKUP('FOGLIO DEPOSITO'!$B$70,'FOGLIO DEPOSITO'!$C$15:$P$24,'FOGLIO DEPOSITO'!E3,FALSE)) -> 5 | I72: =IF('FOGLIO DEPOSITO'!$D$43=1,VLOOKUP('FOGLIO DEPOSITO'!$B$70,'FOGLIO DEPOSITO'!$C$5:$P$14,'FOGLIO DEPOSITO'!F3,FALSE),VLOOKUP('FOGLIO DEPOSITO'!$B$70,'FOGLIO DEPOSITO'!$C$15:$P$24,'FOGLIO DEPOSITO'!F3,FALSE)) -> 13 | J72: =IF('FOGLIO DEPOSITO'!$D$43=1,VLOOKUP('FOGLIO DEPOSITO'!$B$70,'FOGLIO DEPOSITO'!$C$5:$P$14,'FOGLIO DEPOSITO'!G3,FALSE),VLOOKUP('FOGLIO DEPOSITO'!$B$70,'FOGLIO DEPOSITO'!$C$15:$P$24,'FOGLIO DEPOSITO'!G3,FALSE)) -> 1500 | K72: =IF('FOGLIO DEPOSITO'!$D$43=1,VLOOKUP('FOGLIO DEPOSITO'!$B$70,'FOGLIO DEPOSITO'!$C$5:$P$14,'FOGLIO DEPOSITO'!H3,FALSE),VLOOKUP('FOGLIO DEPOSITO'!$B$70,'FOGLIO DEPOSITO'!$C$15:$P$24,'FOGLIO DEPOSITO'!H3,FALSE)) -> 500 | L72: =IF('FOGLIO DEPOSITO'!$D$43=1,VLOOKUP('FOGLIO DEPOSITO'!$B$70,'FOGLIO DEPOSITO'!$C$5:$P$14,'FOGLIO DEPOSITO'!I3,FALSE),VLOOKUP('FOGLIO DEPOSITO'!$B$70,'FOGLIO DEPOSITO'!$C$15:$P$24,'FOGLIO DEPOSITO'!I3,FALSE)) -> 18 | O72: =IF(INPUT!E67="SI",1,0) -> 0
B73: Malta buona | G73: =IF('FOGLIO DEPOSITO'!G77>1,1,IF('FOGLIO DEPOSITO'!B441="si",'FOGLIO DEPOSITO'!J31,IF('FOGLIO DEPOSITO'!B441="scadente",J32,1))) -> 0.7 | H73: =G73 -> 0.7 | I73: =G73 -> 0.7 | J73: =IF('FOGLIO DEPOSITO'!G77>1,1,IF('FOGLIO DEPOSITO'!B441="si",'FOGLIO DEPOSITO'!J31,IF('FOGLIO DEPOSITO'!B441="scadente",J29,1))) -> 0.8 | K73: =J73 -> 0.8 | L73: 1
B74: ristilatura armata | G74: =IF(INPUT!F65="si",'FOGLIO DEPOSITO'!J33,1) -> 1 | H74: =IF(G74>1,(G74-1)/2+1,1) -> 1 | I74: 1 | J74: =G74 -> 1 | K74: =G74 -> 1 | L74: 1 | O74: =IF(INPUT!F65="SI",1,0) -> 0
B75: Ricorsi o listature | G75: =IF('FOGLIO DEPOSITO'!B449="si",'FOGLIO DEPOSITO'!J35,1) -> 1 | H75: =G75 -> 1 | I75: 1 | J75: 1 | K75: 1 | L75: 1
B76: Connessione trasversale | G76: =IF('FOGLIO DEPOSITO'!B450="si",'FOGLIO DEPOSITO'!J37,1) -> 1 | H76: =G76 -> 1 | I76: 1 | J76: 1 | K76: 1 | L76: 1 | O76: =IF(INPUT!F66="SI",1,0) -> 0
B77: Iniezioni di miscele leganti | G77: =IF('FOGLIO DEPOSITO'!B451="si",'FOGLIO DEPOSITO'!J41,1) -> 1 | H77: =G77 -> 1 | I77: 1 | J77: =G77 -> 1 | K77: =G77 -> 1 | L77: 1
B78: Diatoni Artificiali | G78: =IF(INPUT!F66="si",'FOGLIO DEPOSITO'!J39,1) -> 1 | H78: =G78 -> 1 | I78: 1 | J78: 1 | K78: 1 | L78: 1
B79: Muratura armata | G79: =VLOOKUP(INPUT!$E$67,'FOGLIO DEPOSITO'!$G$87:$M$92,'FOGLIO DEPOSITO'!H84,FALSE) -> 1.5 | H79: =VLOOKUP(INPUT!$E$67,'FOGLIO DEPOSITO'!$G$87:$M$92,'FOGLIO DEPOSITO'!I84,FALSE) -> 1.5 | I79: =VLOOKUP(INPUT!$E$67,'FOGLIO DEPOSITO'!$G$87:$M$92,'FOGLIO DEPOSITO'!J84,FALSE) -> 1.5 | J79: =VLOOKUP(INPUT!$E$67,'FOGLIO DEPOSITO'!$G$87:$M$92,'FOGLIO DEPOSITO'!K84,FALSE) -> 1.5 | K79: =VLOOKUP(INPUT!$E$67,'FOGLIO DEPOSITO'!$G$87:$M$92,'FOGLIO DEPOSITO'!L84,FALSE) -> 1.5 | L79: =VLOOKUP(INPUT!$E$67,'FOGLIO DEPOSITO'!$G$87:$M$92,'FOGLIO DEPOSITO'!M84,FALSE) -> 1
G80: =MATERIALI!G53*MATERIALI!G54*MATERIALI!G59*MATERIALI!G56*MATERIALI!G57*MATERIALI!G60*MATERIALI!G61*MATERIALI!G58 -> 273 | H80: =MATERIALI!H53*MATERIALI!H54*MATERIALI!H59*MATERIALI!H56*MATERIALI!H57*MATERIALI!H60*MATERIALI!H61*MATERIALI!H58 -> 5.25 | I80: =I72*I73*I74*I75*I76*'FOGLIO DEPOSITO'!I78*'FOGLIO DEPOSITO'!I77*'FOGLIO DEPOSITO'!I79 -> 13.65 | J80: =MATERIALI!J53*MATERIALI!J54*MATERIALI!J59*MATERIALI!J56*MATERIALI!J57*MATERIALI!J60*MATERIALI!J61*MATERIALI!J58 -> 1800 | K80: =MATERIALI!K53*MATERIALI!K54*MATERIALI!K59*MATERIALI!K56*MATERIALI!K57*MATERIALI!K60*MATERIALI!K61*MATERIALI!K58 -> 600 | L80: =MATERIALI!L53*MATERIALI!L54*MATERIALI!L59*MATERIALI!L56*MATERIALI!L57*MATERIALI!L60*MATERIALI!L61*MATERIALI!L58 -> 18
M81: fess ante | N81: fess post
C82: check numero di rinforzi | M82: =VLOOKUP(INPUT!F55,'FOGLIO DEPOSITO'!B48:C61,2,FALSE) -> 0.85 | N82: =VLOOKUP(INPUT!F62,'FOGLIO DEPOSITO'!B48:C61,2,FALSE) -> 1
C84: =IF(INPUT!F64="no",1,0) -> 1 | D84: =1-C84 -> 0 | H84: 2 | I84: =+H84+1 -> 3 | J84: =+I84+1 -> 4 | K84: 5 | L84: 6 | M84: 7
C85: =IF(INPUT!F65="no",1,0) -> 1 | D85: =1-C85 -> 0 | G85: scelta intonaco armato | H85: fm (N/cm2) | I85: τ0 (N/cm2) | J85: fv0 (N/cm2) | K85: E (N/mm2) | L85: G (N/mm2) | M85: w (kN/m3)
C86: =IF(INPUT!F66="no",1,0) -> 1 | D86: =1-C86 -> 0
C87: =IF(INPUT!E67="no",1,0) -> 0 | D87: =1-C87 -> 1 | G87: no | H87: 1 | I87: 1 | J87: 1 | K87: 1 | L87: 1 | M87: 1
D88: =SUM(D84:D87) -> 1 | G88: CRM doppia faccia + connettori | H88: ='FOGLIO DEPOSITO'!J43 -> 1.5 | I88: ='FOGLIO DEPOSITO'!J43 -> 1.5 | J88: ='FOGLIO DEPOSITO'!J43 -> 1.5 | K88: ='FOGLIO DEPOSITO'!J43 -> 1.5 | L88: ='FOGLIO DEPOSITO'!J43 -> 1.5 | M88: 1
G89: CRM una faccia | H89: =(H88-1)*0.5+1 -> 1.25 | I89: =(I88-1)*0.5+1 -> 1.25 | J89: 1.25 | K89: 1.25 | L89: 1.25 | M89: 1
G90: FRCM doppia faccia + connettori | H90: =H88 -> 1.5 | I90: =I88 -> 1.5 | J90: =J88 -> 1.5 | K90: 1 | L90: 1 | M90: 1
G91: FRCM doppia faccia NO connettori | H91: ='FOGLIO DEPOSITO'!J42 -> 1.7 | I91: ='FOGLIO DEPOSITO'!J42 -> 1.7 | J91: ='FOGLIO DEPOSITO'!J42 -> 1.7 | K91: 1 | L91: 1 | M91: 1
G92: FRCM una faccia | H92: =(H90-1)*0.5+1 -> 1.25 | I92: 1.25 | J92: 1.25 | K92: 1 | L92: 1 | M92: 1
M94: =IF(INPUT!E67='FOGLIO DEPOSITO'!G88,1,IF(INPUT!E67='FOGLIO DEPOSITO'!G89,0,0)) -> 1
B96: COEFFICIENTE DA UTENTE
B98: Inserire i coefficienti correttivi manualmente? | F98: no
B99: (Opzione da usare con cautela)
F100: fm (N/cm2)
C102: stato di fatto | D102: Malta buona | F102: 1 | K102: =IF('FOGLIO DEPOSITO'!F98="si","ATTENZIONE COEFFICIENTI CORRETTIVI INSERITI MANUALMENTE! LA SELEZIONE IN QUESTO CASO NON PRODUCE NESSUN CAMBIAMENTO! SI CONSIDERANO SOLO I VALORI INSERITI DA UTENTE","") -> 
D103: Ricorsi o listature | F103: 1
D104: Connessione trasversale | F104: 1
C106: interventi di consolidamento | D106: Iniezioni di miscele leganti | F106: 1
D107: Muratura armata | F107: 1
D108: Ristilatura armata con connessione dei paramenti | F108: 1
D109: Diatoni artificiali o tirantini antiespulsivi | F109: 1
F112: τ0 (N/cm2)
C114: stato di fatto | D114: Malta buona | F114: 1
D115: Ricorsi o listature | F115: 1
D116: Connessione trasversale | F116: 1
C118: interventi di consolidamento | D118: Iniezioni di miscele leganti | F118: 1
D119: Muratura armata | F119: 1
D120: Ristilatura armata con connessione dei paramenti | F120: 1
D121: Diatoni artificiali o tirantini antiespulsivi | F121: 1
F124: fv0 (N/cm2)
C126: stato di fatto | D126: Malta buona | F126: 1
D127: Ricorsi o listature | F127: 1
D128: Connessione trasversale | F128: 1
C130: interventi di consolidamento | D130: Iniezioni di miscele leganti | F130: 1
D131: Muratura armata | F131: 1
D132: Ristilatura armata con connessione dei paramenti | F132: 1
D133: Diatoni artificiali o tirantini antiespulsivi | F133: 1
F136: E (N/mm2)
C138: stato di fatto | D138: Malta buona | F138: 1
D139: Ricorsi o listature | F139: 1
D140: Connessione trasversale | F140: 1
C142: interventi di consolidamento | D142: Iniezioni di miscele leganti | F142: 1
D143: Muratura armata | F143: 1
D144: Ristilatura armata con connessione dei paramenti | F144: 1
D145: Diatoni artificiali o tirantini antiespulsivi | F145: 1
F148: G (N/mm2)
C150: stato di fatto | D150: Malta buona | F150: 1
D151: Ricorsi o listature | F151: 1
D152: Connessione trasversale | F152: 1
C154: interventi di consolidamento | D154: Iniezioni di miscele leganti | F154: 1
D155: Muratura armata | F155: 1
D156: Ristilatura armata con connessione dei paramenti | F156: 1
D157: Diatoni artificiali o tirantini antiespulsivi | F157: 1
F160: w (kN/m3)
C162: stato di fatto | D162: Malta buona | F162: 1
D163: Ricorsi o listature | F163: 1
D164: Connessione trasversale | F164: 1
C166: interventi di consolidamento | D166: Iniezioni di miscele leganti | F166: 1
D167: Muratura armata | F167: 1
D168: Ristilatura armata con connessione dei paramenti | F168: 1
D169: Diatoni artificiali o tirantini antiespulsivi | F169: 1
B172: coppia di punti nel piano
B173: Ned [kN] | C173: MRd [kNm]
B174: =MNP!Z10 -> 217.0819714 | C174: =MNP!AA10 -> 130.4282079
E175: si
B176: copiia di punti nel piano rinf | E176: no
B177: Ned [kN] | C177: MRd [kNm]
B178: =MNPR!Z10 -> 183.5644423 | C178: =MNPR!AA10 -> 155.0247585
B180: coppia di punti fuori piano
B181: Ned [kN] | C181: MRd [kNm]
B182: =MNFP!Z10 -> 217.0819715 | C182: =MNFP!AA10 -> 23.81732491
B184: copiia di punti fuori piano rinf
B185: Ned [kN] | C185: MRd [kNm]
B186: =MNFPR!Z10 -> 183.5644422 | C186: =MNFPR!AA10 -> 32.35299309
B189: RIEPILOGO DATI
B191: h | C191: =INPUT!F40 -> 3.3 | D191: N | E191: =-ABS('FOGLIO DEPOSITO'!F304) -> -220
B192: l | C192: =INPUT!F38 -> 2.3 | D192: T | E192: =INPUT!F89 -> 48
B193: t | C193: =INPUT!F39 -> 0.42 | D193: Mt | E193: =INPUT!F86 -> 165
D194: Ml | E194: =INPUT!F87 -> 32
B197: RIEPILOGO DATI
B199: h | C199: =INPUT!F40 -> 3.3 | D199: N | E199: =-ABS('FOGLIO DEPOSITO'!F304) -> -220
B200: l | C200: =INPUT!F38 -> 2.3 | D200: T | E200: =INPUT!F89 -> 48
B201: t | C201: =INPUT!F39 -> 0.42 | D201: Mt | E201: =INPUT!F86 -> 165
D202: Ml | E202: =INPUT!F87 -> 32
B205: NEL PIANO NON RINFORZATO | E205: Ned | F205: Med
B206: NED | C206: MED-PL | E206: =-ABS('FOGLIO DEPOSITO'!F304) -> -220 | F206: =ABS(INPUT!F86) -> 165
B207: =-ABS('FOGLIO DEPOSITO'!K208) -> -210 | C207: ='FOGLIO DEPOSITO'!L208 -> 115 | K207: NED | L207: MED-PL
B208: =-ABS('FOGLIO DEPOSITO'!K209) -> -215 | C208: ='FOGLIO DEPOSITO'!L209 -> 132 | I208: COMB A SCELTA DELL'UTENTE | J208: 1 | K208: ='FOGLIO DEPOSITO'!D543 -> 210 | L208: ='FOGLIO DEPOSITO'!E543 -> 115
B209: =-ABS('FOGLIO DEPOSITO'!K210) -> -230 | C209: ='FOGLIO DEPOSITO'!L210 -> 161 | I209: COMB A SCELTA DELL'UTENTE | J209: 2 | K209: ='FOGLIO DEPOSITO'!D544 -> 215 | L209: ='FOGLIO DEPOSITO'!E544 -> 132
B210: =-ABS('FOGLIO DEPOSITO'!K211) -> -285 | C210: ='FOGLIO DEPOSITO'!L211 -> 155 | I210: COMB A SCELTA DELL'UTENTE | J210: 3 | K210: ='FOGLIO DEPOSITO'!D545 -> 230 | L210: ='FOGLIO DEPOSITO'!E545 -> 161
I211: COMB A SCELTA DELL'UTENTE | J211: 4 | K211: ='FOGLIO DEPOSITO'!D546 -> 285 | L211: ='FOGLIO DEPOSITO'!E546 -> 155
B212: NEL PIANO RINFORZATO
B213: NED | C213: MED-PL
B214: =-ABS('FOGLIO DEPOSITO'!D543) -> -210 | C214: ='FOGLIO DEPOSITO'!E543 -> 115
B215: =-ABS('FOGLIO DEPOSITO'!D544) -> -215 | C215: ='FOGLIO DEPOSITO'!E544 -> 132
B216: =-ABS('FOGLIO DEPOSITO'!D545) -> -230 | C216: ='FOGLIO DEPOSITO'!E545 -> 161
B217: =-ABS('FOGLIO DEPOSITO'!D546) -> -285 | C217: ='FOGLIO DEPOSITO'!E546 -> 155
B219: fuori dEL PIANO NON RINFORZATO
B220: NED | C220: MED-PL | E220: Ned | F220: Med
B221: =-ABS('FOGLIO DEPOSITO'!K224) -> -210 | C221: ='FOGLIO DEPOSITO'!L224 -> 21.5 | E221: =-ABS('FOGLIO DEPOSITO'!F304) -> -220 | F221: =ABS(INPUT!F87) -> 32
B222: =-ABS('FOGLIO DEPOSITO'!K225) -> -215 | C222: ='FOGLIO DEPOSITO'!L225 -> 18
B223: =-ABS('FOGLIO DEPOSITO'!K226) -> -230 | C223: ='FOGLIO DEPOSITO'!L226 -> 17 | K223: NED | L223: MED-OUT-PL
B224: =-ABS('FOGLIO DEPOSITO'!K227) -> -285 | C224: ='FOGLIO DEPOSITO'!L227 -> 23 | I224: COMB A SCELTA DELL'UTENTE | J224: 1 | K224: ='FOGLIO DEPOSITO'!D339 -> 210 | L224: ='FOGLIO DEPOSITO'!E339 -> 21.5
I225: COMB A SCELTA DELL'UTENTE | J225: 2 | K225: ='FOGLIO DEPOSITO'!D340 -> 215 | L225: ='FOGLIO DEPOSITO'!E340 -> 18
B226: fuori deL PIANO RINFORZATO | I226: COMB A SCELTA DELL'UTENTE | J226: 3 | K226: ='FOGLIO DEPOSITO'!D341 -> 230 | L226: ='FOGLIO DEPOSITO'!E341 -> 17
B227: NED | C227: MED-PL | I227: COMB A SCELTA DELL'UTENTE | J227: 4 | K227: ='FOGLIO DEPOSITO'!D342 -> 285 | L227: ='FOGLIO DEPOSITO'!E342 -> 23
B228: =-ABS('FOGLIO DEPOSITO'!D339) -> -210 | C228: ='FOGLIO DEPOSITO'!E339 -> 21.5
B229: =-ABS('FOGLIO DEPOSITO'!D340) -> -215 | C229: ='FOGLIO DEPOSITO'!E340 -> 18
B230: =-ABS('FOGLIO DEPOSITO'!D341) -> -230 | C230: ='FOGLIO DEPOSITO'!E341 -> 17
B231: =-ABS('FOGLIO DEPOSITO'!D342) -> -285 | C231: ='FOGLIO DEPOSITO'!E342 -> 23
B234: GRAFICI
B236: NEL PIANO NON RINFORZATO | G236: SUPERFICI | H236: 0.0001 | J236: verifica a compressione semplice ante | M236: ='NEL PIANO'!E133 -> 2.071858586
J237: verifica a compressione semplice post | M237: ='NEL PIANO'!J133 -> 3.551757576
B239: sezione | E239: rinforzo dx | H239: rinforzo sx | K239: asse neutro | N239: deformazione | P239: =IF('FOGLIO DEPOSITO'!E288="",0,'FOGLIO DEPOSITO'!E288) -> 0 | R239: tensione | T239: =IF('FOGLIO DEPOSITO'!E288="",0,'FOGLIO DEPOSITO'!E288) -> 0
B240: x | C240: y | E240: x | F240: y | H240: x | I240: y | K240: x | L240: y | N240: x | O240: y | R240: x | S240: y
B241: 0 | C241: 0 | E241: =B242 -> 210 | F241: 0 | H241: =IF($H$236=1,E241,-E241) -> -210 | I241: 0 | K241: =-2*B242 -> -420 | L241: =IF($M$236<1,0,IF('FOGLIO DEPOSITO'!F298="","",F243-'FOGLIO DEPOSITO'!F298)) -> 1089.938963 | N241: =IF($M$236<1,0,+E242+220) -> 430 | O241: =IF($M$236<1,0,IF('FOGLIO DEPOSITO'!F298="","",I243)) -> 2300 | R241: =IF($M$236<1,0,N242+200) -> 770 | S241: =O241 -> 2300
B242: =INPUT!$F$39*1000/2 -> 210 | C242: 0 | E242: =+E241 -> 210 | F242: 0 | H242: =IF($H$236=1,E242,-E242) -> -210 | I242: 0 | K242: =-K241+N241*1.35 -> 1000.5 | L242: =L241 -> 1089.938963 | N242: =IF($M$236<1,0,N241+ABS('NEL PIANO'!E61)*40000) -> 570 | O242: =O241 -> 2300 | R242: =IF($M$236<1,0,R241+ABS('NEL PIANO'!E61)*40000) -> 910 | S242: =S241 -> 2300
B243: =B242 -> 210 | C243: =INPUT!$F$38*1000 -> 2300 | E243: =E242 -> 210 | F243: =C243 -> 2300 | H243: =IF($H$236=1,E243,-E243) -> -210 | I243: =F243 -> 2300 | N243: =N241 -> 430 | O243: =IF($M$236<1,0,IF('FOGLIO DEPOSITO'!F298="","",O242-'FOGLIO DEPOSITO'!F298)) -> 1089.938963 | R243: =R242 -> 910 | S243: =IF($M$236<1,0,IF(ABS('NEL PIANO'!E61)>=0.002,O241-'FOGLIO DEPOSITO'!F298*0.002/ABS('NEL PIANO'!E61-0.002),O241)) -> 1859.977805
B244: =-B243 -> -210 | C244: =C243 -> 2300 | E244: =E241 -> 210 | F244: =F243 -> 2300 | H244: =IF($H$236=1,E244,-E244) -> -210 | I244: =I243 -> 2300 | N244: =N243 -> 430 | O244: =O241 -> 2300 | R244: =R241 -> 770 | S244: =IF($M$236<1,0,S242-'FOGLIO DEPOSITO'!F298) -> 1089.938963
B245: =B244 -> -210 | C245: =C241 -> 0 | E245: =E241 -> 210 | F245: =F241 -> 0 | H245: =IF($H$236=1,E245,-E245) -> -210 | I245: =I241 -> 0 | R245: =R244 -> 770 | S245: =O244 -> 2300
B246: 0 | C246: 0
B247: NEL PIANO RINFORZATO
B249: sezione | E249: rinforzo dx | H249: rinforzo sx | K249: asse neutro | N249: deformazione | P249: =IF('FOGLIO DEPOSITO'!E289="",0,'FOGLIO DEPOSITO'!E289) -> 0 | R249: tensione | T249: =IF('FOGLIO DEPOSITO'!E289="",0,'FOGLIO DEPOSITO'!E289) -> 0
B250: x | C250: y | E250: x | F250: y | H250: x | I250: y | K250: x | L250: y | N250: x | O250: y | R250: x | S250: y | T250: =IF('FOGLIO DEPOSITO'!E287="",0,'FOGLIO DEPOSITO'!E287) -> 0.00768
B251: 0 | C251: 0 | E251: =B252 -> 240 | F251: 0 | H251: =IF($H$236=1,E251,-E251) -> -240 | I251: 0 | K251: =-2*B252 -> -480 | L251: =IF($M$237<1,0,IF('FOGLIO DEPOSITO'!F299="","",F253-'FOGLIO DEPOSITO'!F299)) -> 1589.053158 | N251: =IF($M$237<1,0,+E252+220) -> 475 | O251: =IF($M$237<1,0,IF('FOGLIO DEPOSITO'!F299="","",I253)) -> 2300 | R251: =IF($M$237<1,0,N252+200) -> 812.4421419 | S251: =O251 -> 2300
B252: =MNPR!D3/2 -> 240 | C252: 0 | E252: =+E251+15 -> 255 | F252: 0 | H252: =IF($H$236=1,E252,-E252) -> -255 | I252: 0 | K252: =-K251+N251*1.35 -> 1121.25 | L252: =L251 -> 1589.053158 | N252: =IF($M$237<1,0,N251+ABS('NEL PIANO'!J61)*40000) -> 612.4421419 | O252: =O251 -> 2300 | R252: =IF($M$237<1,0,R251+ABS('NEL PIANO'!J61)*40000) -> 949.8842839 | S252: =S251 -> 2300
B253: =B252 -> 240 | C253: =INPUT!$F$38*1000 -> 2300 | E253: =E252 -> 255 | F253: =C253 -> 2300 | H253: =IF($H$236=1,E253,-E253) -> -255 | I253: =F253 -> 2300 | N253: =N251 -> 475 | O253: =IF($M$237<1,0,IF('FOGLIO DEPOSITO'!F299="","",O252-'FOGLIO DEPOSITO'!F299)) -> 1589.053158 | R253: =R252 -> 949.8842839 | S253: =IF($M$237<1,0,IF(ABS('NEL PIANO'!J61)>=0.002,O251-'FOGLIO DEPOSITO'!F299*0.002/ABS('NEL PIANO'!J61-0.002),O251)) -> 2038.432731
B254: =-B253 -> -240 | C254: =C253 -> 2300 | E254: =E251 -> 240 | F254: =F253 -> 2300 | H254: =IF($H$236=1,E254,-E254) -> -240 | I254: =I253 -> 2300 | N254: =N251 -> 475 | O254: =O251 -> 2300 | R254: =R251 -> 812.4421419 | S254: =IF($M$237<1,0,S252-'FOGLIO DEPOSITO'!F299) -> 1589.053158
B255: =B254 -> -240 | C255: =C251 -> 0 | E255: =E251 -> 240 | F255: =F251 -> 0 | H255: =IF($H$236=1,E255,-E255) -> -240 | I255: =I251 -> 0 | R255: =R254 -> 812.4421419 | S255: =O254 -> 2300
B256: 0 | C256: 0
B260: fuori dEL PIANO NON RINFORZATO
B262: sezione | E262: rinforzo dx | H262: rinforzo sx | K262: asse neutro | N262: deformazione | P262: =IF('FOGLIO DEPOSITO'!E292="",0,'FOGLIO DEPOSITO'!E292) -> 0 | R262: tensione | T262: =IF('FOGLIO DEPOSITO'!E292="",0,'FOGLIO DEPOSITO'!E292) -> 0
... 223 more rows

Sheet andamento taglio (hidden)
B1: EX-ANTE | K1: EX-POST
C2: muratura regolare | E2: muratura irregolare | L2: muratura regolare | N2: muratura irregolare
A3: y | B3: N(MNP_V) | C3: Vrd diagonale | D3: Y | E3: Vrd scorrimento | F3: Vrd blocchi | G3: Vrd min | H3: vrd ante | J3: y | K3: N(MNP_VR) | L3: Vrd diagonale | M3: Y | N3: Vrd scorrimento | O3: Vrd blocchi | P3: Vrd min | Q3: vrd POST
A4: =IF(MNP_V!C29<INPUT!$F$38*1000,MNP_V!C29,INPUT!$F$38*1000) -> 0 | B4: =MNP_V!Z29 -> 0 | C4: =(1.5/'FOGLIO DEPOSITO'!$E$391*MATERIALI!$J$28*(1+(ABS(B4)/(INPUT!$F$38*INPUT!$F$39))/(1.5*MATERIALI!$J$28))^0.5)*INPUT!$F$38*INPUT!$F$39 -> 9.163989899 | D4: =IF(MNP_V!C29>INPUT!$F$38*1000,INPUT!$F$38*1000,MNP_V!C29) -> 0 | E4: =IFERROR(('FOGLIO DEPOSITO'!$E$401+'FOGLIO DEPOSITO'!$E$399*'andamento taglio'!B4/('andamento taglio'!D4/1000*INPUT!$F$39)/MATERIALI!$J$35)/'FOGLIO DEPOSITO'!$E$404*(D4/1000*INPUT!$F$39),"") ->  | F4: =IFERROR((1/'FOGLIO DEPOSITO'!$E$391*MATERIALI!$J$33*0.1/2.3*(1+(ABS(B4)/(INPUT!$F$38*INPUT!$F$39))/(1*MATERIALI!$J$33*0.1))^0.5)*INPUT!$F$38*INPUT!$F$39,"") -> 292.7272727 | G4: =IF(E4="",C4,MINA(C4,E4,F4)) -> 9.163989899 | H4: 0 | J4: =IF(MNP_VR!C29<INPUT!$F$38*1000,MNP_VR!C29,INPUT!$F$38*1000) -> 0 | K4: =MNP_VR!Z29 -> 0 | L4: =(1.5/'FOGLIO DEPOSITO'!$F$391*MATERIALI!$J$78*(1+(ABS(K4)/(MNP_VR!$D$3*MNP_VR!$D$4*10^-6))/(1.5*MATERIALI!$J$78))^0.5)*(MNP_VR!$D$3*MNP_VR!$D$4*10^-6) -> 15.70969697 | M4: =IF(MNP_VR!C29>INPUT!$F$38*1000,INPUT!$F$38*1000,MNP_VR!C29) -> 0 | N4: =IFERROR(('FOGLIO DEPOSITO'!$F$401+'FOGLIO DEPOSITO'!$F$399*'andamento taglio'!K4/('andamento taglio'!M4/1000*MNP_VR!$D$3*10^-3)/MATERIALI!$J$85)/'FOGLIO DEPOSITO'!$F$404*(M4/1000*MNP_VR!$D$3*10^-3),"") ->  | O4: =IFERROR((1/'FOGLIO DEPOSITO'!$F$391*MATERIALI!$J$83*0.1/2.3*(1+(ABS(K4)/(INPUT!$F$38*INPUT!$F$39))/(1*MATERIALI!$J$83*0.1))^0.5)*INPUT!$F$38*INPUT!$F$39,"") -> 292.7272727 | P4: =IF(N4="",L4,MINA(L4,N4,O4)) -> 15.70969697 | Q4: 0
A5: =IF(MNP_V!C30<INPUT!$F$38*1000,MNP_V!C30,INPUT!$F$38*1000) -> 16.10479958 | B5: =MNP_V!Z30 -> 0.002312448575 | C5: =(1.5/'FOGLIO DEPOSITO'!$E$391*MATERIALI!$J$28*(1+(ABS(B5)/(INPUT!$F$38*INPUT!$F$39))/(1.5*MATERIALI!$J$28))^0.5)*INPUT!$F$38*INPUT!$F$39 -> 9.164795717 | D5: =IF(MNP_V!C30>INPUT!$F$38*1000,INPUT!$F$38*1000,MNP_V!C30) -> 16.10479958 | E5: =IFERROR(('FOGLIO DEPOSITO'!$E$401+'FOGLIO DEPOSITO'!$E$399*'andamento taglio'!B5/('andamento taglio'!D5/1000*INPUT!$F$39)/MATERIALI!$J$35)/'FOGLIO DEPOSITO'!$E$404*(D5/1000*INPUT!$F$39),"") -> 0.05554516848 | F5: =IFERROR((1/'FOGLIO DEPOSITO'!$E$391*MATERIALI!$J$33*0.1/2.3*(1+(ABS(B5)/(INPUT!$F$38*INPUT!$F$39))/(1*MATERIALI!$J$33*0.1))^0.5)*INPUT!$F$38*INPUT!$F$39,"") -> 292.7276231 | G5: =IF(E5="",C5,MINA(C5,E5,F5)) -> 0.05554516848 | H5: =G5 -> 0.05554516848 | J5: =IF(MNP_VR!C30<INPUT!$F$38*1000,MNP_VR!C30,INPUT!$F$38*1000) -> 13.83438398 | K5: =MNP_VR!Z30 -> 0.00295044821 | L5: =(1.5/'FOGLIO DEPOSITO'!$F$391*MATERIALI!$J$78*(1+(ABS(K5)/(MNP_VR!$D$3*MNP_VR!$D$4*10^-6))/(1.5*MATERIALI!$J$78))^0.5)*(MNP_VR!$D$3*MNP_VR!$D$4*10^-6) -> 15.71072512 | M5: =IF(MNP_VR!C30>INPUT!$F$38*1000,INPUT!$F$38*1000,MNP_VR!C30) -> 13.83438398 | N5: =IFERROR(('FOGLIO DEPOSITO'!$F$401+'FOGLIO DEPOSITO'!$F$399*'andamento taglio'!K5/('andamento taglio'!M5/1000*MNP_VR!$D$3*10^-3)/MATERIALI!$J$85)/'FOGLIO DEPOSITO'!$F$404*(M5/1000*MNP_VR!$D$3*10^-3),"") -> 0.1635017494 | O5: =IFERROR((1/'FOGLIO DEPOSITO'!$F$391*MATERIALI!$J$83*0.1/2.3*(1+(ABS(K5)/(INPUT!$F$38*INPUT!$F$39))/(1*MATERIALI!$J$83*0.1))^0.5)*INPUT!$F$38*INPUT!$F$39,"") -> 292.7277198 | P5: =IF(N5="",L5,MINA(L5,N5,O5)) -> 0.1635017494 | Q5: =P5 -> 0.1635017494
A6: =IF(MNP_V!C31<INPUT!$F$38*1000,MNP_V!C31,INPUT!$F$38*1000) -> 32.20959917 | B6: =MNP_V!Z31 -> 0.01876347722 | C6: =(1.5/'FOGLIO DEPOSITO'!$E$391*MATERIALI!$J$28*(1+(ABS(B6)/(INPUT!$F$38*INPUT!$F$39))/(1.5*MATERIALI!$J$28))^0.5)*INPUT!$F$38*INPUT!$F$39 -> 9.170526355 | D6: =IF(MNP_V!C31>INPUT!$F$38*1000,INPUT!$F$38*1000,MNP_V!C31) -> 32.20959917 | E6: =IFERROR(('FOGLIO DEPOSITO'!$E$401+'FOGLIO DEPOSITO'!$E$399*'andamento taglio'!B6/('andamento taglio'!D6/1000*INPUT!$F$39)/MATERIALI!$J$35)/'FOGLIO DEPOSITO'!$E$404*(D6/1000*INPUT!$F$39),"") -> 0.112504195 | F6: =IFERROR((1/'FOGLIO DEPOSITO'!$E$391*MATERIALI!$J$33*0.1/2.3*(1+(ABS(B6)/(INPUT!$F$38*INPUT!$F$39))/(1*MATERIALI!$J$33*0.1))^0.5)*INPUT!$F$38*INPUT!$F$39,"") -> 292.7301157 | G6: =IF(E6="",C6,MINA(C6,E6,F6)) -> 0.112504195 | H6: 0.112504195 | J6: =IF(MNP_VR!C31<INPUT!$F$38*1000,MNP_VR!C31,INPUT!$F$38*1000) -> 27.66876796 | K6: =MNP_VR!Z31 -> 0.0238920711 | L6: =(1.5/'FOGLIO DEPOSITO'!$F$391*MATERIALI!$J$78*(1+(ABS(K6)/(MNP_VR!$D$3*MNP_VR!$D$4*10^-6))/(1.5*MATERIALI!$J$78))^0.5)*(MNP_VR!$D$3*MNP_VR!$D$4*10^-6) -> 15.71802079 | M6: =IF(MNP_VR!C31>INPUT!$F$38*1000,INPUT!$F$38*1000,MNP_VR!C31) -> 27.66876796 | N6: =IFERROR(('FOGLIO DEPOSITO'!$F$401+'FOGLIO DEPOSITO'!$F$399*'andamento taglio'!K6/('andamento taglio'!M6/1000*MNP_VR!$D$3*10^-3)/MATERIALI!$J$85)/'FOGLIO DEPOSITO'!$F$404*(M6/1000*MNP_VR!$D$3*10^-3),"") -> 0.3306017338 | O6: =IFERROR((1/'FOGLIO DEPOSITO'!$F$391*MATERIALI!$J$83*0.1/2.3*(1+(ABS(K6)/(INPUT!$F$38*INPUT!$F$39))/(1*MATERIALI!$J$83*0.1))^0.5)*INPUT!$F$38*INPUT!$F$39,"") -> 292.7308927 | P6: =IF(N6="",L6,MINA(L6,N6,O6)) -> 0.3306017338 | Q6: 0.3306017338
A7: =IF(MNP_V!C32<INPUT!$F$38*1000,MNP_V!C32,INPUT!$F$38*1000) -> 48.31439875 | B7: =MNP_V!Z32 -> 0.06423591199 | C7: =(1.5/'FOGLIO DEPOSITO'!$E$391*MATERIALI!$J$28*(1+(ABS(B7)/(INPUT!$F$38*INPUT!$F$39))/(1.5*MATERIALI!$J$28))^0.5)*INPUT!$F$38*INPUT!$F$39 -> 9.186347867 | D7: =IF(MNP_V!C32>INPUT!$F$38*1000,INPUT!$F$38*1000,MNP_V!C32) -> 48.31439875 | E7: =IFERROR(('FOGLIO DEPOSITO'!$E$401+'FOGLIO DEPOSITO'!$E$399*'andamento taglio'!B7/('andamento taglio'!D7/1000*INPUT!$F$39)/MATERIALI!$J$35)/'FOGLIO DEPOSITO'!$E$404*(D7/1000*INPUT!$F$39),"") -> 0.1723653621 | F7: =IFERROR((1/'FOGLIO DEPOSITO'!$E$391*MATERIALI!$J$33*0.1/2.3*(1+(ABS(B7)/(INPUT!$F$38*INPUT!$F$39))/(1*MATERIALI!$J$33*0.1))^0.5)*INPUT!$F$38*INPUT!$F$39,"") -> 292.7370053 | G7: =IF(E7="",C7,MINA(C7,E7,F7)) -> 0.1723653621 | H7: 0.1723653621 | J7: =IF(MNP_VR!C32<INPUT!$F$38*1000,MNP_VR!C32,INPUT!$F$38*1000) -> 41.50315195 | K7: =MNP_VR!Z32 -> 0.08162670049 | L7: =(1.5/'FOGLIO DEPOSITO'!$F$391*MATERIALI!$J$78*(1+(ABS(K7)/(MNP_VR!$D$3*MNP_VR!$D$4*10^-6))/(1.5*MATERIALI!$J$78))^0.5)*(MNP_VR!$D$3*MNP_VR!$D$4*10^-6) -> 15.73811693 | M7: =IF(MNP_VR!C32>INPUT!$F$38*1000,INPUT!$F$38*1000,MNP_VR!C32) -> 41.50315195 | N7: =IFERROR(('FOGLIO DEPOSITO'!$F$401+'FOGLIO DEPOSITO'!$F$399*'andamento taglio'!K7/('andamento taglio'!M7/1000*MNP_VR!$D$3*10^-3)/MATERIALI!$J$85)/'FOGLIO DEPOSITO'!$F$404*(M7/1000*MNP_VR!$D$3*10^-3),"") -> 0.5050603195 | O7: =IFERROR((1/'FOGLIO DEPOSITO'!$F$391*MATERIALI!$J$83*0.1/2.3*(1+(ABS(K7)/(INPUT!$F$38*INPUT!$F$39))/(1*MATERIALI!$J$83*0.1))^0.5)*INPUT!$F$38*INPUT!$F$39,"") -> 292.7396401 | P7: 0.5050603195 | Q7: 0.5050603195
A8: =IF(MNP_V!C33<INPUT!$F$38*1000,MNP_V!C33,INPUT!$F$38*1000) -> 64.41919834 | B8: =MNP_V!Z33 -> 0.1544646039 | C8: =(1.5/'FOGLIO DEPOSITO'!$E$391*MATERIALI!$J$28*(1+(ABS(B8)/(INPUT!$F$38*INPUT!$F$39))/(1.5*MATERIALI!$J$28))^0.5)*INPUT!$F$38*INPUT!$F$39 -> 9.217661302 | D8: =IF(MNP_V!C33>INPUT!$F$38*1000,INPUT!$F$38*1000,MNP_V!C33) -> 64.41919834 | E8: =IFERROR(('FOGLIO DEPOSITO'!$E$401+'FOGLIO DEPOSITO'!$E$399*'andamento taglio'!B8/('andamento taglio'!D8/1000*INPUT!$F$39)/MATERIALI!$J$35)/'FOGLIO DEPOSITO'!$E$404*(D8/1000*INPUT!$F$39),"") -> 0.2367021549 | F8: =IFERROR((1/'FOGLIO DEPOSITO'!$E$391*MATERIALI!$J$33*0.1/2.3*(1+(ABS(B8)/(INPUT!$F$38*INPUT!$F$39))/(1*MATERIALI!$J$33*0.1))^0.5)*INPUT!$F$38*INPUT!$F$39,"") -> 292.7506755 | G8: 0.2367021549 | H8: 0.2367021549 | J8: =IF(MNP_VR!C33<INPUT!$F$38*1000,MNP_VR!C33,INPUT!$F$38*1000) -> 55.33753593 | K8: =MNP_VR!Z33 -> 0.1958778955 | L8: =(1.5/'FOGLIO DEPOSITO'!$F$391*MATERIALI!$J$78*(1+(ABS(K8)/(MNP_VR!$D$3*MNP_VR!$D$4*10^-6))/(1.5*MATERIALI!$J$78))^0.5)*(MNP_VR!$D$3*MNP_VR!$D$4*10^-6) -> 15.77780979 | M8: =IF(MNP_VR!C33>INPUT!$F$38*1000,INPUT!$F$38*1000,MNP_VR!C33) -> 55.33753593 | N8: =IFERROR(('FOGLIO DEPOSITO'!$F$401+'FOGLIO DEPOSITO'!$F$399*'andamento taglio'!K8/('andamento taglio'!M8/1000*MNP_VR!$D$3*10^-3)/MATERIALI!$J$85)/'FOGLIO DEPOSITO'!$F$404*(M8/1000*MNP_VR!$D$3*10^-3),"") -> 0.6908222183 | O8: =IFERROR((1/'FOGLIO DEPOSITO'!$F$391*MATERIALI!$J$83*0.1/2.3*(1+(ABS(K8)/(INPUT!$F$38*INPUT!$F$39))/(1*MATERIALI!$J$83*0.1))^0.5)*INPUT!$F$38*INPUT!$F$39,"") -> 292.7569497 | P8: 0.6908222183 | Q8: 0.6908222183
A9: =IF(MNP_V!C34<INPUT!$F$38*1000,MNP_V!C34,INPUT!$F$38*1000) -> 80.52399792 | B9: =MNP_V!Z34 -> 0.3060827744 | C9: =(1.5/'FOGLIO DEPOSITO'!$E$391*MATERIALI!$J$28*(1+(ABS(B9)/(INPUT!$F$38*INPUT!$F$39))/(1.5*MATERIALI!$J$28))^0.5)*INPUT!$F$38*INPUT!$F$39 -> 9.27004146 | D9: =IF(MNP_V!C34>INPUT!$F$38*1000,INPUT!$F$38*1000,MNP_V!C34) -> 80.52399792 | E9: =IFERROR(('FOGLIO DEPOSITO'!$E$401+'FOGLIO DEPOSITO'!$E$399*'andamento taglio'!B9/('andamento taglio'!D9/1000*INPUT!$F$39)/MATERIALI!$J$35)/'FOGLIO DEPOSITO'!$E$404*(D9/1000*INPUT!$F$39),"") -> 0.3071778956 | F9: =IFERROR((1/'FOGLIO DEPOSITO'!$E$391*MATERIALI!$J$33*0.1/2.3*(1+(ABS(B9)/(INPUT!$F$38*INPUT!$F$39))/(1*MATERIALI!$J$33*0.1))^0.5)*INPUT!$F$38*INPUT!$F$39,"") -> 292.7736452 | G9: 0.3071778956 | H9: =G9 -> 0.3071778956 | J9: =IF(MNP_VR!C34<INPUT!$F$38*1000,MNP_VR!C34,INPUT!$F$38*1000) -> 69.17191991 | K9: =MNP_VR!Z34 -> 0.387333788 | L9: =(1.5/'FOGLIO DEPOSITO'!$F$391*MATERIALI!$J$78*(1+(ABS(K9)/(MNP_VR!$D$3*MNP_VR!$D$4*10^-6))/(1.5*MATERIALI!$J$78))^0.5)*(MNP_VR!$D$3*MNP_VR!$D$4*10^-6) -> 15.84410197 | M9: =IF(MNP_VR!C34>INPUT!$F$38*1000,INPUT!$F$38*1000,MNP_VR!C34) -> 69.17191991 | N9: =IFERROR(('FOGLIO DEPOSITO'!$F$401+'FOGLIO DEPOSITO'!$F$399*'andamento taglio'!K9/('andamento taglio'!M9/1000*MNP_VR!$D$3*10^-3)/MATERIALI!$J$85)/'FOGLIO DEPOSITO'!$F$404*(M9/1000*MNP_VR!$D$3*10^-3),"") -> 0.8920250565 | O9: =IFERROR((1/'FOGLIO DEPOSITO'!$F$391*MATERIALI!$J$83*0.1/2.3*(1+(ABS(K9)/(INPUT!$F$38*INPUT!$F$39))/(1*MATERIALI!$J$83*0.1))^0.5)*INPUT!$F$38*INPUT!$F$39,"") -> 292.7859538 | P9: 0.8920250565 | Q9: =P9 -> 0.8920250565
A10: =IF(MNP_V!C35<INPUT!$F$38*1000,MNP_V!C35,INPUT!$F$38*1000) -> 96.62879751 | B10: =MNP_V!Z35 -> 0.5366711059 | C10: =(1.5/'FOGLIO DEPOSITO'!$E$391*MATERIALI!$J$28*(1+(ABS(B10)/(INPUT!$F$38*INPUT!$F$39))/(1.5*MATERIALI!$J$28))^0.5)*INPUT!$F$38*INPUT!$F$39 -> 9.349141228 | D10: =IF(MNP_V!C35>INPUT!$F$38*1000,INPUT!$F$38*1000,MNP_V!C35) -> 96.62879751 | E10: =IFERROR(('FOGLIO DEPOSITO'!$E$401+'FOGLIO DEPOSITO'!$E$399*'andamento taglio'!B10/('andamento taglio'!D10/1000*INPUT!$F$39)/MATERIALI!$J$35)/'FOGLIO DEPOSITO'!$E$404*(D10/1000*INPUT!$F$39),"") -> 0.3855506523 | F10: =IFERROR((1/'FOGLIO DEPOSITO'!$E$391*MATERIALI!$J$33*0.1/2.3*(1+(ABS(B10)/(INPUT!$F$38*INPUT!$F$39))/(1*MATERIALI!$J$33*0.1))^0.5)*INPUT!$F$38*INPUT!$F$39,"") -> 292.8085752 | G10: 0.3855506523 | H10: 0.3855506523 | J10: =IF(MNP_VR!C35<INPUT!$F$38*1000,MNP_VR!C35,INPUT!$F$38*1000) -> 83.00630389 | K10: =MNP_VR!Z35 -> 0.6776921004 | L10: =(1.5/'FOGLIO DEPOSITO'!$F$391*MATERIALI!$J$78*(1+(ABS(K10)/(MNP_VR!$D$3*MNP_VR!$D$4*10^-6))/(1.5*MATERIALI!$J$78))^0.5)*(MNP_VR!$D$3*MNP_VR!$D$4*10^-6) -> 15.94411344 | M10: =IF(MNP_VR!C35>INPUT!$F$38*1000,INPUT!$F$38*1000,MNP_VR!C35) -> 83.00630389 | N10: =IFERROR(('FOGLIO DEPOSITO'!$F$401+'FOGLIO DEPOSITO'!$F$399*'andamento taglio'!K10/('andamento taglio'!M10/1000*MNP_VR!$D$3*10^-3)/MATERIALI!$J$85)/'FOGLIO DEPOSITO'!$F$404*(M10/1000*MNP_VR!$D$3*10^-3),"") -> 1.113008379 | O10: =IFERROR((1/'FOGLIO DEPOSITO'!$F$391*MATERIALI!$J$83*0.1/2.3*(1+(ABS(K10)/(INPUT!$F$38*INPUT!$F$39))/(1*MATERIALI!$J$83*0.1))^0.5)*INPUT!$F$38*INPUT!$F$39,"") -> 292.8299353 | P10: 1.113008379 | Q10: =P10 -> 1.113008379
A11: =IF(MNP_V!C36<INPUT!$F$38*1000,MNP_V!C36,INPUT!$F$38*1000) -> 112.7335971 | B11: =MNP_V!Z36 -> 0.8648097257 | C11: =(1.5/'FOGLIO DEPOSITO'!$E$391*MATERIALI!$J$28*(1+(ABS(B11)/(INPUT!$F$38*INPUT!$F$39))/(1.5*MATERIALI!$J$28))^0.5)*INPUT!$F$38*INPUT!$F$39 -> 9.460563974 | D11: =IF(MNP_V!C36>INPUT!$F$38*1000,INPUT!$F$38*1000,MNP_V!C36) -> 112.7335971 | E11: =IFERROR(('FOGLIO DEPOSITO'!$E$401+'FOGLIO DEPOSITO'!$E$399*'andamento taglio'!B11/('andamento taglio'!D11/1000*INPUT!$F$39)/MATERIALI!$J$35)/'FOGLIO DEPOSITO'!$E$404*(D11/1000*INPUT!$F$39),"") -> 0.4736784379 | F11: =IFERROR((1/'FOGLIO DEPOSITO'!$E$391*MATERIALI!$J$33*0.1/2.3*(1+(ABS(B11)/(INPUT!$F$38*INPUT!$F$39))/(1*MATERIALI!$J$33*0.1))^0.5)*INPUT!$F$38*INPUT!$F$39,"") -> 292.8582752 | G11: 0.4736784379 | H11: 0.4736784379 | J11: =IF(MNP_VR!C36<INPUT!$F$38*1000,MNP_VR!C36,INPUT!$F$38*1000) -> 96.84068788 | K11: =MNP_VR!Z36 -> 1.089707426 | L11: =(1.5/'FOGLIO DEPOSITO'!$F$391*MATERIALI!$J$78*(1+(ABS(K11)/(MNP_VR!$D$3*MNP_VR!$D$4*10^-6))/(1.5*MATERIALI!$J$78))^0.5)*(MNP_VR!$D$3*MNP_VR!$D$4*10^-6) -> 16.08496144 | M11: =IF(MNP_VR!C36>INPUT!$F$38*1000,INPUT!$F$38*1000,MNP_VR!C36) -> 96.84068788 | N11: =IFERROR(('FOGLIO DEPOSITO'!$F$401+'FOGLIO DEPOSITO'!$F$399*'andamento taglio'!K11/('andamento taglio'!M11/1000*MNP_VR!$D$3*10^-3)/MATERIALI!$J$85)/'FOGLIO DEPOSITO'!$F$404*(M11/1000*MNP_VR!$D$3*10^-3),"") -> 1.358323104 | O11: =IFERROR((1/'FOGLIO DEPOSITO'!$F$391*MATERIALI!$J$83*0.1/2.3*(1+(ABS(K11)/(INPUT!$F$38*INPUT!$F$39))/(1*MATERIALI!$J$83*0.1))^0.5)*INPUT!$F$38*INPUT!$F$39,"") -> 292.8923334 | P11: 1.358323104 | Q11: 1.358323104
A12: =IF(MNP_V!C37<INPUT!$F$38*1000,MNP_V!C37,INPUT!$F$38*1000) -> 128.8383967 | B12: =MNP_V!Z37 -> 1.310133269 | C12: =(1.5/'FOGLIO DEPOSITO'!$E$391*MATERIALI!$J$28*(1+(ABS(B12)/(INPUT!$F$38*INPUT!$F$39))/(1.5*MATERIALI!$J$28))^0.5)*INPUT!$F$38*INPUT!$F$39 -> 9.609711886 | D12: =IF(MNP_V!C37>INPUT!$F$38*1000,INPUT!$F$38*1000,MNP_V!C37) -> 128.8383967 | E12: =IFERROR(('FOGLIO DEPOSITO'!$E$401+'FOGLIO DEPOSITO'!$E$399*'andamento taglio'!B12/('andamento taglio'!D12/1000*INPUT!$F$39)/MATERIALI!$J$35)/'FOGLIO DEPOSITO'!$E$404*(D12/1000*INPUT!$F$39),"") -> 0.5735247159 | F12: =IFERROR((1/'FOGLIO DEPOSITO'!$E$391*MATERIALI!$J$33*0.1/2.3*(1+(ABS(B12)/(INPUT!$F$38*INPUT!$F$39))/(1*MATERIALI!$J$33*0.1))^0.5)*INPUT!$F$38*INPUT!$F$39,"") -> 292.9257105 | G12: 0.5735247159 | H12: 0.5735247159 | J12: =IF(MNP_VR!C37<INPUT!$F$38*1000,MNP_VR!C37,INPUT!$F$38*1000) -> 110.6750719 | K12: =MNP_VR!Z37 -> 1.647240896 | L12: =(1.5/'FOGLIO DEPOSITO'!$F$391*MATERIALI!$J$78*(1+(ABS(K12)/(MNP_VR!$D$3*MNP_VR!$D$4*10^-6))/(1.5*MATERIALI!$J$78))^0.5)*(MNP_VR!$D$3*MNP_VR!$D$4*10^-6) -> 16.27361424 | M12: =IF(MNP_VR!C37>INPUT!$F$38*1000,INPUT!$F$38*1000,MNP_VR!C37) -> 110.6750719 | N12: =IFERROR(('FOGLIO DEPOSITO'!$F$401+'FOGLIO DEPOSITO'!$F$399*'andamento taglio'!K12/('andamento taglio'!M12/1000*MNP_VR!$D$3*10^-3)/MATERIALI!$J$85)/'FOGLIO DEPOSITO'!$F$404*(M12/1000*MNP_VR!$D$3*10^-3),"") -> 1.632741458 | O12: =IFERROR((1/'FOGLIO DEPOSITO'!$F$391*MATERIALI!$J$83*0.1/2.3*(1+(ABS(K12)/(INPUT!$F$38*INPUT!$F$39))/(1*MATERIALI!$J$83*0.1))^0.5)*INPUT!$F$38*INPUT!$F$39,"") -> 292.9767484 | P12: 1.632741458 | Q12: 1.632741458
A13: =IF(MNP_V!C38<INPUT!$F$38*1000,MNP_V!C38,INPUT!$F$38*1000) -> 144.9431963 | B13: =MNP_V!Z38 -> 1.893389225 | C13: =(1.5/'FOGLIO DEPOSITO'!$E$391*MATERIALI!$J$28*(1+(ABS(B13)/(INPUT!$F$38*INPUT!$F$39))/(1.5*MATERIALI!$J$28))^0.5)*INPUT!$F$38*INPUT!$F$39 -> 9.801623942 | D13: =IF(MNP_V!C38>INPUT!$F$38*1000,INPUT!$F$38*1000,MNP_V!C38) -> 144.9431963 | E13: =IFERROR(('FOGLIO DEPOSITO'!$E$401+'FOGLIO DEPOSITO'!$E$399*'andamento taglio'!B13/('andamento taglio'!D13/1000*INPUT!$F$39)/MATERIALI!$J$35)/'FOGLIO DEPOSITO'!$E$404*(D13/1000*INPUT!$F$39),"") -> 0.6871642351 | F13: =IFERROR((1/'FOGLIO DEPOSITO'!$E$391*MATERIALI!$J$33*0.1/2.3*(1+(ABS(B13)/(INPUT!$F$38*INPUT!$F$39))/(1*MATERIALI!$J$33*0.1))^0.5)*INPUT!$F$38*INPUT!$F$39,"") -> 293.0140094 | G13: 0.6871642351 | H13: 0.6871642351 | J13: =IF(MNP_VR!C38<INPUT!$F$38*1000,MNP_VR!C38,INPUT!$F$38*1000) -> 124.5094558 | K13: =MNP_VR!Z38 -> 2.375312367 | L13: =(1.5/'FOGLIO DEPOSITO'!$F$391*MATERIALI!$J$78*(1+(ABS(K13)/(MNP_VR!$D$3*MNP_VR!$D$4*10^-6))/(1.5*MATERIALI!$J$78))^0.5)*(MNP_VR!$D$3*MNP_VR!$D$4*10^-6) -> 16.51672813 | M13: =IF(MNP_VR!C38>INPUT!$F$38*1000,INPUT!$F$38*1000,MNP_VR!C38) -> 124.5094558 | N13: =IFERROR(('FOGLIO DEPOSITO'!$F$401+'FOGLIO DEPOSITO'!$F$399*'andamento taglio'!K13/('andamento taglio'!M13/1000*MNP_VR!$D$3*10^-3)/MATERIALI!$J$85)/'FOGLIO DEPOSITO'!$F$404*(M13/1000*MNP_VR!$D$3*10^-3),"") -> 1.941267411 | O13: =IFERROR((1/'FOGLIO DEPOSITO'!$F$391*MATERIALI!$J$83*0.1/2.3*(1+(ABS(K13)/(INPUT!$F$38*INPUT!$F$39))/(1*MATERIALI!$J$83*0.1))^0.5)*INPUT!$F$38*INPUT!$F$39,"") -> 293.0869476 | P13: 1.941267411 | Q13: 1.941267411
A14: =IF(MNP_V!C39<INPUT!$F$38*1000,MNP_V!C39,INPUT!$F$38*1000) -> 161.0479958 | B14: =MNP_V!Z39 -> 2.63649978 | C14: =(1.5/'FOGLIO DEPOSITO'!$E$391*MATERIALI!$J$28*(1+(ABS(B14)/(INPUT!$F$38*INPUT!$F$39))/(1.5*MATERIALI!$J$28))^0.5)*INPUT!$F$38*INPUT!$F$39 -> 10.0408215 | D14: =IF(MNP_V!C39>INPUT!$F$38*1000,INPUT!$F$38*1000,MNP_V!C39) -> 161.0479958 | E14: =IFERROR(('FOGLIO DEPOSITO'!$E$401+'FOGLIO DEPOSITO'!$E$399*'andamento taglio'!B14/('andamento taglio'!D14/1000*INPUT!$F$39)/MATERIALI!$J$35)/'FOGLIO DEPOSITO'!$E$404*(D14/1000*INPUT!$F$39),"") -> 0.8167892143 | F14: =IFERROR((1/'FOGLIO DEPOSITO'!$E$391*MATERIALI!$J$33*0.1/2.3*(1+(ABS(B14)/(INPUT!$F$38*INPUT!$F$39))/(1*MATERIALI!$J$33*0.1))^0.5)*INPUT!$F$38*INPUT!$F$39,"") -> 293.1264702 | G14: 0.8167892143 | H14: 0.8167892143 | J14: =IF(MNP_VR!C39<INPUT!$F$38*1000,MNP_VR!C39,INPUT!$F$38*1000) -> 138.3438398 | K14: =MNP_VR!Z39 -> 3.300155266 | L14: =(1.5/'FOGLIO DEPOSITO'!$F$391*MATERIALI!$J$78*(1+(ABS(K14)/(MNP_VR!$D$3*MNP_VR!$D$4*10^-6))/(1.5*MATERIALI!$J$78))^0.5)*(MNP_VR!$D$3*MNP_VR!$D$4*10^-6) -> 16.82048103 | M14: =IF(MNP_VR!C39>INPUT!$F$38*1000,INPUT!$F$38*1000,MNP_VR!C39) -> 138.3438398 | N14: =IFERROR(('FOGLIO DEPOSITO'!$F$401+'FOGLIO DEPOSITO'!$F$399*'andamento taglio'!K14/('andamento taglio'!M14/1000*MNP_VR!$D$3*10^-3)/MATERIALI!$J$85)/'FOGLIO DEPOSITO'!$F$404*(M14/1000*MNP_VR!$D$3*10^-3),"") -> 2.289147651 | O14: =IFERROR((1/'FOGLIO DEPOSITO'!$F$391*MATERIALI!$J$83*0.1/2.3*(1+(ABS(K14)/(INPUT!$F$38*INPUT!$F$39))/(1*MATERIALI!$J$83*0.1))^0.5)*INPUT!$F$38*INPUT!$F$39,"") -> 293.2268699 | P14: 2.289147651 | Q14: 2.289147651
A15: =IF(MNP_V!C40<INPUT!$F$38*1000,MNP_V!C40,INPUT!$F$38*1000) -> 161.0479958 | B15: =MNP_V!Z40 -> 2.63649978 | C15: =(1.5/'FOGLIO DEPOSITO'!$E$391*MATERIALI!$J$28*(1+(ABS(B15)/(INPUT!$F$38*INPUT!$F$39))/(1.5*MATERIALI!$J$28))^0.5)*INPUT!$F$38*INPUT!$F$39 -> 10.0408215 | D15: =IF(MNP_V!C40>INPUT!$F$38*1000,INPUT!$F$38*1000,MNP_V!C40) -> 161.0479958 | E15: =IFERROR(('FOGLIO DEPOSITO'!$E$401+'FOGLIO DEPOSITO'!$E$399*'andamento taglio'!B15/('andamento taglio'!D15/1000*INPUT!$F$39)/MATERIALI!$J$35)/'FOGLIO DEPOSITO'!$E$404*(D15/1000*INPUT!$F$39),"") -> 0.8167892143 | F15: =IFERROR((1/'FOGLIO DEPOSITO'!$E$391*MATERIALI!$J$33*0.1/2.3*(1+(ABS(B15)/(INPUT!$F$38*INPUT!$F$39))/(1*MATERIALI!$J$33*0.1))^0.5)*INPUT!$F$38*INPUT!$F$39,"") -> 293.1264702 | G15: 0.8167892143 | H15: 0.8167892143 | J15: =IF(MNP_VR!C40<INPUT!$F$38*1000,MNP_VR!C40,INPUT!$F$38*1000) -> 138.3438398 | K15: =MNP_VR!Z40 -> 3.300155266 | L15: =(1.5/'FOGLIO DEPOSITO'!$F$391*MATERIALI!$J$78*(1+(ABS(K15)/(MNP_VR!$D$3*MNP_VR!$D$4*10^-6))/(1.5*MATERIALI!$J$78))^0.5)*(MNP_VR!$D$3*MNP_VR!$D$4*10^-6) -> 16.82048103 | M15: =IF(MNP_VR!C40>INPUT!$F$38*1000,INPUT!$F$38*1000,MNP_VR!C40) -> 138.3438398 | N15: =IFERROR(('FOGLIO DEPOSITO'!$F$401+'FOGLIO DEPOSITO'!$F$399*'andamento taglio'!K15/('andamento taglio'!M15/1000*MNP_VR!$D$3*10^-3)/MATERIALI!$J$85)/'FOGLIO DEPOSITO'!$F$404*(M15/1000*MNP_VR!$D$3*10^-3),"") -> 2.289147651 | O15: =IFERROR((1/'FOGLIO DEPOSITO'!$F$391*MATERIALI!$J$83*0.1/2.3*(1+(ABS(K15)/(INPUT!$F$38*INPUT!$F$39))/(1*MATERIALI!$J$83*0.1))^0.5)*INPUT!$F$38*INPUT!$F$39,"") -> 293.2268699 | P15: 2.289147651 | Q15: 2.289147651
A16: =IF(MNP_V!C41<INPUT!$F$38*1000,MNP_V!C41,INPUT!$F$38*1000) -> 216.9467741 | B16: =MNP_V!Z41 -> 6.273875747 | C16: =(1.5/'FOGLIO DEPOSITO'!$E$391*MATERIALI!$J$28*(1+(ABS(B16)/(INPUT!$F$38*INPUT!$F$39))/(1.5*MATERIALI!$J$28))^0.5)*INPUT!$F$38*INPUT!$F$39 -> 11.13777811 | D16: =IF(MNP_V!C41>INPUT!$F$38*1000,INPUT!$F$38*1000,MNP_V!C41) -> 216.9467741 | E16: =IFERROR(('FOGLIO DEPOSITO'!$E$401+'FOGLIO DEPOSITO'!$E$399*'andamento taglio'!B16/('andamento taglio'!D16/1000*INPUT!$F$39)/MATERIALI!$J$35)/'FOGLIO DEPOSITO'!$E$404*(D16/1000*INPUT!$F$39),"") -> 1.37251807 | F16: =IFERROR((1/'FOGLIO DEPOSITO'!$E$391*MATERIALI!$J$33*0.1/2.3*(1+(ABS(B16)/(INPUT!$F$38*INPUT!$F$39))/(1*MATERIALI!$J$33*0.1))^0.5)*INPUT!$F$38*INPUT!$F$39,"") -> 293.6763215 | G16: 1.37251807 | H16: 1.37251807 | J16: =IF(MNP_VR!C41<INPUT!$F$38*1000,MNP_VR!C41,INPUT!$F$38*1000) -> 196.5130337 | K16: =MNP_VR!Z41 -> 8.998161486 | L16: =(1.5/'FOGLIO DEPOSITO'!$F$391*MATERIALI!$J$78*(1+(ABS(K16)/(MNP_VR!$D$3*MNP_VR!$D$4*10^-6))/(1.5*MATERIALI!$J$78))^0.5)*(MNP_VR!$D$3*MNP_VR!$D$4*10^-6) -> 18.58270952 | M16: =IF(MNP_VR!C41>INPUT!$F$38*1000,INPUT!$F$38*1000,MNP_VR!C41) -> 196.5130337 | N16: =IFERROR(('FOGLIO DEPOSITO'!$F$401+'FOGLIO DEPOSITO'!$F$399*'andamento taglio'!K16/('andamento taglio'!M16/1000*MNP_VR!$D$3*10^-3)/MATERIALI!$J$85)/'FOGLIO DEPOSITO'!$F$404*(M16/1000*MNP_VR!$D$3*10^-3),"") -> 4.113740719 | O16: =IFERROR((1/'FOGLIO DEPOSITO'!$F$391*MATERIALI!$J$83*0.1/2.3*(1+(ABS(K16)/(INPUT!$F$38*INPUT!$F$39))/(1*MATERIALI!$J$83*0.1))^0.5)*INPUT!$F$38*INPUT!$F$39,"") -> 294.0874704 | P16: 4.113740719 | Q16: 4.113740719
A17: =IF(MNP_V!C42<INPUT!$F$38*1000,MNP_V!C42,INPUT!$F$38*1000) -> 272.8455523 | B17: =MNP_V!Z42 -> 11.50291128 | C17: =(1.5/'FOGLIO DEPOSITO'!$E$391*MATERIALI!$J$28*(1+(ABS(B17)/(INPUT!$F$38*INPUT!$F$39))/(1.5*MATERIALI!$J$28))^0.5)*INPUT!$F$38*INPUT!$F$39 -> 12.5478314 | D17: =IF(MNP_V!C42>INPUT!$F$38*1000,INPUT!$F$38*1000,MNP_V!C42) -> 272.8455523 | E17: =IFERROR(('FOGLIO DEPOSITO'!$E$401+'FOGLIO DEPOSITO'!$E$399*'andamento taglio'!B17/('andamento taglio'!D17/1000*INPUT!$F$39)/MATERIALI!$J$35)/'FOGLIO DEPOSITO'!$E$404*(D17/1000*INPUT!$F$39),"") -> 2.087412883 | F17: =IFERROR((1/'FOGLIO DEPOSITO'!$E$391*MATERIALI!$J$33*0.1/2.3*(1+(ABS(B17)/(INPUT!$F$38*INPUT!$F$39))/(1*MATERIALI!$J$33*0.1))^0.5)*INPUT!$F$38*INPUT!$F$39,"") -> 294.4649803 | G17: 2.087412883 | H17: 2.087412883 | J17: =IF(MNP_VR!C42<INPUT!$F$38*1000,MNP_VR!C42,INPUT!$F$38*1000) -> 254.6822275 | K17: =MNP_VR!Z42 -> 17.56573135 | L17: =(1.5/'FOGLIO DEPOSITO'!$F$391*MATERIALI!$J$78*(1+(ABS(K17)/(MNP_VR!$D$3*MNP_VR!$D$4*10^-6))/(1.5*MATERIALI!$J$78))^0.5)*(MNP_VR!$D$3*MNP_VR!$D$4*10^-6) -> 20.95530914 | M17: =IF(MNP_VR!C42>INPUT!$F$38*1000,INPUT!$F$38*1000,MNP_VR!C42) -> 254.6822275 | N17: =IFERROR(('FOGLIO DEPOSITO'!$F$401+'FOGLIO DEPOSITO'!$F$399*'andamento taglio'!K17/('andamento taglio'!M17/1000*MNP_VR!$D$3*10^-3)/MATERIALI!$J$85)/'FOGLIO DEPOSITO'!$F$404*(M17/1000*MNP_VR!$D$3*10^-3),"") -> 6.512246516 | O17: =IFERROR((1/'FOGLIO DEPOSITO'!$F$391*MATERIALI!$J$83*0.1/2.3*(1+(ABS(K17)/(INPUT!$F$38*INPUT!$F$39))/(1*MATERIALI!$J$83*0.1))^0.5)*INPUT!$F$38*INPUT!$F$39,"") -> 295.3767569 | P17: 6.512246516 | Q17: 6.512246516
A18: =IF(MNP_V!C43<INPUT!$F$38*1000,MNP_V!C43,INPUT!$F$38*1000) -> 328.7443305 | B18: =MNP_V!Z43 -> 18.45901016 | C18: =(1.5/'FOGLIO DEPOSITO'!$E$391*MATERIALI!$J$28*(1+(ABS(B18)/(INPUT!$F$38*INPUT!$F$39))/(1.5*MATERIALI!$J$28))^0.5)*INPUT!$F$38*INPUT!$F$39 -> 14.20833693 | D18: =IF(MNP_V!C43>INPUT!$F$38*1000,INPUT!$F$38*1000,MNP_V!C43) -> 328.7443305 | E18: =IFERROR(('FOGLIO DEPOSITO'!$E$401+'FOGLIO DEPOSITO'!$E$399*'andamento taglio'!B18/('andamento taglio'!D18/1000*INPUT!$F$39)/MATERIALI!$J$35)/'FOGLIO DEPOSITO'!$E$404*(D18/1000*INPUT!$F$39),"") -> 2.97501403 | F18: =IFERROR((1/'FOGLIO DEPOSITO'!$E$391*MATERIALI!$J$33*0.1/2.3*(1+(ABS(B18)/(INPUT!$F$38*INPUT!$F$39))/(1*MATERIALI!$J$33*0.1))^0.5)*INPUT!$F$38*INPUT!$F$39,"") -> 295.5108577 | G18: 2.97501403 | H18: 2.97501403 | J18: =IF(MNP_VR!C43<INPUT!$F$38*1000,MNP_VR!C43,INPUT!$F$38*1000) -> 312.8514213 | K18: =MNP_VR!Z43 -> 29.25486444 | L18: =(1.5/'FOGLIO DEPOSITO'!$F$391*MATERIALI!$J$78*(1+(ABS(K18)/(MNP_VR!$D$3*MNP_VR!$D$4*10^-6))/(1.5*MATERIALI!$J$78))^0.5)*(MNP_VR!$D$3*MNP_VR!$D$4*10^-6) -> 23.81410161 | M18: =IF(MNP_VR!C43>INPUT!$F$38*1000,INPUT!$F$38*1000,MNP_VR!C43) -> 312.8514213 | N18: =IFERROR(('FOGLIO DEPOSITO'!$F$401+'FOGLIO DEPOSITO'!$F$399*'andamento taglio'!K18/('andamento taglio'!M18/1000*MNP_VR!$D$3*10^-3)/MATERIALI!$J$85)/'FOGLIO DEPOSITO'!$F$404*(M18/1000*MNP_VR!$D$3*10^-3),"") -> 9.535064957 | O18: =IFERROR((1/'FOGLIO DEPOSITO'!$F$391*MATERIALI!$J$83*0.1/2.3*(1+(ABS(K18)/(INPUT!$F$38*INPUT!$F$39))/(1*MATERIALI!$J$83*0.1))^0.5)*INPUT!$F$38*INPUT!$F$39,"") -> 297.1267672 | P18: 9.535064957 | Q18: 9.535064957
A19: =IF(MNP_V!C44<INPUT!$F$38*1000,MNP_V!C44,INPUT!$F$38*1000) -> 384.6431088 | B19: =MNP_V!Z44 -> 27.29338296 | C19: =(1.5/'FOGLIO DEPOSITO'!$E$391*MATERIALI!$J$28*(1+(ABS(B19)/(INPUT!$F$38*INPUT!$F$39))/(1.5*MATERIALI!$J$28))^0.5)*INPUT!$F$38*INPUT!$F$39 -> 16.07178219 | D19: =IF(MNP_V!C44>INPUT!$F$38*1000,INPUT!$F$38*1000,MNP_V!C44) -> 384.6431088 | E19: =IFERROR(('FOGLIO DEPOSITO'!$E$401+'FOGLIO DEPOSITO'!$E$399*'andamento taglio'!B19/('andamento taglio'!D19/1000*INPUT!$F$39)/MATERIALI!$J$35)/'FOGLIO DEPOSITO'!$E$404*(D19/1000*INPUT!$F$39),"") -> 4.050442568 | F19: =IFERROR((1/'FOGLIO DEPOSITO'!$E$391*MATERIALI!$J$33*0.1/2.3*(1+(ABS(B19)/(INPUT!$F$38*INPUT!$F$39))/(1*MATERIALI!$J$33*0.1))^0.5)*INPUT!$F$38*INPUT!$F$39,"") -> 296.8338291 | G19: 4.050442568 | H19: 4.050442568 | J19: =IF(MNP_VR!C44<INPUT!$F$38*1000,MNP_VR!C44,INPUT!$F$38*1000) -> 371.0206152 | K19: =MNP_VR!Z44 -> 44.34795695 | L19: =(1.5/'FOGLIO DEPOSITO'!$F$391*MATERIALI!$J$78*(1+(ABS(K19)/(MNP_VR!$D$3*MNP_VR!$D$4*10^-6))/(1.5*MATERIALI!$J$78))^0.5)*(MNP_VR!$D$3*MNP_VR!$D$4*10^-6) -> 27.06230706 | M19: =IF(MNP_VR!C44>INPUT!$F$38*1000,INPUT!$F$38*1000,MNP_VR!C44) -> 371.0206152 | N19: =IFERROR(('FOGLIO DEPOSITO'!$F$401+'FOGLIO DEPOSITO'!$F$399*'andamento taglio'!K19/('andamento taglio'!M19/1000*MNP_VR!$D$3*10^-3)/MATERIALI!$J$85)/'FOGLIO DEPOSITO'!$F$404*(M19/1000*MNP_VR!$D$3*10^-3),"") -> 13.23867528 | O19: =IFERROR((1/'FOGLIO DEPOSITO'!$F$391*MATERIALI!$J$83*0.1/2.3*(1+(ABS(K19)/(INPUT!$F$38*INPUT!$F$39))/(1*MATERIALI!$J$83*0.1))^0.5)*INPUT!$F$38*INPUT!$F$39,"") -> 299.3712613 | P19: 13.23867528 | Q19: 13.23867528
A20: =IF(MNP_V!C45<INPUT!$F$38*1000,MNP_V!C45,INPUT!$F$38*1000) -> 440.541887 | B20: =MNP_V!Z45 -> 38.17542291 | C20: =(1.5/'FOGLIO DEPOSITO'!$E$391*MATERIALI!$J$28*(1+(ABS(B20)/(INPUT!$F$38*INPUT!$F$39))/(1.5*MATERIALI!$J$28))^0.5)*INPUT!$F$38*INPUT!$F$39 -> 18.10541425 | D20: =IF(MNP_V!C45>INPUT!$F$38*1000,INPUT!$F$38*1000,MNP_V!C45) -> 440.541887 | E20: =IFERROR(('FOGLIO DEPOSITO'!$E$401+'FOGLIO DEPOSITO'!$E$399*'andamento taglio'!B20/('andamento taglio'!D20/1000*INPUT!$F$39)/MATERIALI!$J$35)/'FOGLIO DEPOSITO'!$E$404*(D20/1000*INPUT!$F$39),"") -> 5.330637823 | F20: =IFERROR((1/'FOGLIO DEPOSITO'!$E$391*MATERIALI!$J$33*0.1/2.3*(1+(ABS(B20)/(INPUT!$F$38*INPUT!$F$39))/(1*MATERIALI!$J$33*0.1))^0.5)*INPUT!$F$38*INPUT!$F$39,"") -> 298.4553836 | G20: 5.330637823 | H20: 5.330637823 | J20: =IF(MNP_VR!C45<INPUT!$F$38*1000,MNP_VR!C45,INPUT!$F$38*1000) -> 429.189809 | K20: =MNP_VR!Z45 -> 63.16252733 | L20: =(1.5/'FOGLIO DEPOSITO'!$F$391*MATERIALI!$J$78*(1+(ABS(K20)/(MNP_VR!$D$3*MNP_VR!$D$4*10^-6))/(1.5*MATERIALI!$J$78))^0.5)*(MNP_VR!$D$3*MNP_VR!$D$4*10^-6) -> 30.6328685 | M20: =IF(MNP_VR!C45>INPUT!$F$38*1000,INPUT!$F$38*1000,MNP_VR!C45) -> 429.189809 | N20: =IFERROR(('FOGLIO DEPOSITO'!$F$401+'FOGLIO DEPOSITO'!$F$399*'andamento taglio'!K20/('andamento taglio'!M20/1000*MNP_VR!$D$3*10^-3)/MATERIALI!$J$85)/'FOGLIO DEPOSITO'!$F$404*(M20/1000*MNP_VR!$D$3*10^-3),"") -> 17.68658118 | O20: =IFERROR((1/'FOGLIO DEPOSITO'!$F$391*MATERIALI!$J$83*0.1/2.3*(1+(ABS(K20)/(INPUT!$F$38*INPUT!$F$39))/(1*MATERIALI!$J$83*0.1))^0.5)*INPUT!$F$38*INPUT!$F$39,"") -> 302.1458306 | P20: 17.68658118 | Q20: 17.68658118
A21: =IF(MNP_V!C46<INPUT!$F$38*1000,MNP_V!C46,INPUT!$F$38*1000) -> 496.4406652 | B21: =MNP_V!Z46 -> 51.2955237 | C21: =(1.5/'FOGLIO DEPOSITO'!$E$391*MATERIALI!$J$28*(1+(ABS(B21)/(INPUT!$F$38*INPUT!$F$39))/(1.5*MATERIALI!$J$28))^0.5)*INPUT!$F$38*INPUT!$F$39 -> 20.28803623 | D21: =IF(MNP_V!C46>INPUT!$F$38*1000,INPUT!$F$38*1000,MNP_V!C46) -> 496.4406652 | E21: =IFERROR(('FOGLIO DEPOSITO'!$E$401+'FOGLIO DEPOSITO'!$E$399*'andamento taglio'!B21/('andamento taglio'!D21/1000*INPUT!$F$39)/MATERIALI!$J$35)/'FOGLIO DEPOSITO'!$E$404*(D21/1000*INPUT!$F$39),"") -> 6.834639161 | F21: =IFERROR((1/'FOGLIO DEPOSITO'!$E$391*MATERIALI!$J$33*0.1/2.3*(1+(ABS(B21)/(INPUT!$F$38*INPUT!$F$39))/(1*MATERIALI!$J$33*0.1))^0.5)*INPUT!$F$38*INPUT!$F$39,"") -> 300.3987977 | G21: 6.834639161 | H21: 6.834639161 | J21: =IF(MNP_VR!C46<INPUT!$F$38*1000,MNP_VR!C46,INPUT!$F$38*1000) -> 487.3590028 | K21: =MNP_VR!Z46 -> 86.05685175 | L21: =(1.5/'FOGLIO DEPOSITO'!$F$391*MATERIALI!$J$78*(1+(ABS(K21)/(MNP_VR!$D$3*MNP_VR!$D$4*10^-6))/(1.5*MATERIALI!$J$78))^0.5)*(MNP_VR!$D$3*MNP_VR!$D$4*10^-6) -> 34.48255754 | M21: =IF(MNP_VR!C46>INPUT!$F$38*1000,INPUT!$F$38*1000,MNP_VR!C46) -> 487.3590028 | N21: =IFERROR(('FOGLIO DEPOSITO'!$F$401+'FOGLIO DEPOSITO'!$F$399*'andamento taglio'!K21/('andamento taglio'!M21/1000*MNP_VR!$D$3*10^-3)/MATERIALI!$J$85)/'FOGLIO DEPOSITO'!$F$404*(M21/1000*MNP_VR!$D$3*10^-3),"") -> 22.95043789 | O21: =IFERROR((1/'FOGLIO DEPOSITO'!$F$391*MATERIALI!$J$83*0.1/2.3*(1+(ABS(K21)/(INPUT!$F$38*INPUT!$F$39))/(1*MATERIALI!$J$83*0.1))^0.5)*INPUT!$F$38*INPUT!$F$39,"") -> 305.4880511 | P21: 22.95043789 | Q21: 22.95043789
A22: =IF(MNP_V!C47<INPUT!$F$38*1000,MNP_V!C47,INPUT!$F$38*1000) -> 552.3394435 | B22: =MNP_V!Z47 -> 66.86843788 | C22: =(1.5/'FOGLIO DEPOSITO'!$E$391*MATERIALI!$J$28*(1+(ABS(B22)/(INPUT!$F$38*INPUT!$F$39))/(1.5*MATERIALI!$J$28))^0.5)*INPUT!$F$38*INPUT!$F$39 -> 22.60683479 | D22: =IF(MNP_V!C47>INPUT!$F$38*1000,INPUT!$F$38*1000,MNP_V!C47) -> 552.3394435 | E22: =IFERROR(('FOGLIO DEPOSITO'!$E$401+'FOGLIO DEPOSITO'!$E$399*'andamento taglio'!B22/('andamento taglio'!D22/1000*INPUT!$F$39)/MATERIALI!$J$35)/'FOGLIO DEPOSITO'!$E$404*(D22/1000*INPUT!$F$39),"") -> 8.583921838 | F22: =IFERROR((1/'FOGLIO DEPOSITO'!$E$391*MATERIALI!$J$33*0.1/2.3*(1+(ABS(B22)/(INPUT!$F$38*INPUT!$F$39))/(1*MATERIALI!$J$33*0.1))^0.5)*INPUT!$F$38*INPUT!$F$39,"") -> 302.6893401 | G22: 8.583921838 | H22: 8.583921838 | J22: =IF(MNP_VR!C47<INPUT!$F$38*1000,MNP_VR!C47,INPUT!$F$38*1000) -> 545.5281967 | K22: =MNP_VR!Z47 -> 113.4367207 | L22: =(1.5/'FOGLIO DEPOSITO'!$F$391*MATERIALI!$J$78*(1+(ABS(K22)/(MNP_VR!$D$3*MNP_VR!$D$4*10^-6))/(1.5*MATERIALI!$J$78))^0.5)*(MNP_VR!$D$3*MNP_VR!$D$4*10^-6) -> 38.58541127 | M22: =IF(MNP_VR!C47>INPUT!$F$38*1000,INPUT!$F$38*1000,MNP_VR!C47) -> 545.5281967 | N22: =IFERROR(('FOGLIO DEPOSITO'!$F$401+'FOGLIO DEPOSITO'!$F$399*'andamento taglio'!K22/('andamento taglio'!M22/1000*MNP_VR!$D$3*10^-3)/MATERIALI!$J$85)/'FOGLIO DEPOSITO'!$F$404*(M22/1000*MNP_VR!$D$3*10^-3),"") -> 29.11140351 | O22: =IFERROR((1/'FOGLIO DEPOSITO'!$F$391*MATERIALI!$J$83*0.1/2.3*(1+(ABS(K22)/(INPUT!$F$38*INPUT!$F$39))/(1*MATERIALI!$J$83*0.1))^0.5)*INPUT!$F$38*INPUT!$F$39,"") -> 309.437695 | P22: 29.11140351 | Q22: 29.11140351
A23: =IF(MNP_V!C48<INPUT!$F$38*1000,MNP_V!C48,INPUT!$F$38*1000) -> 608.2382217 | B23: =MNP_V!Z48 -> 85.13730124 | C23: =(1.5/'FOGLIO DEPOSITO'!$E$391*MATERIALI!$J$28*(1+(ABS(B23)/(INPUT!$F$38*INPUT!$F$39))/(1.5*MATERIALI!$J$28))^0.5)*INPUT!$F$38*INPUT!$F$39 -> 25.05499221 | D23: =IF(MNP_V!C48>INPUT!$F$38*1000,INPUT!$F$38*1000,MNP_V!C48) -> 608.2382217 | E23: =IFERROR(('FOGLIO DEPOSITO'!$E$401+'FOGLIO DEPOSITO'!$E$399*'andamento taglio'!B23/('andamento taglio'!D23/1000*INPUT!$F$39)/MATERIALI!$J$35)/'FOGLIO DEPOSITO'!$E$404*(D23/1000*INPUT!$F$39),"") -> 10.60279943 | F23: =IFERROR((1/'FOGLIO DEPOSITO'!$E$391*MATERIALI!$J$33*0.1/2.3*(1+(ABS(B23)/(INPUT!$F$38*INPUT!$F$39))/(1*MATERIALI!$J$33*0.1))^0.5)*INPUT!$F$38*INPUT!$F$39,"") -> 305.354516 | G23: 10.60279943 | H23: 10.60279943 | J23: =IF(MNP_VR!C48<INPUT!$F$38*1000,MNP_VR!C48,INPUT!$F$38*1000) -> 603.6973905 | K23: =MNP_VR!Z48 -> 145.7635859 | L23: =(1.5/'FOGLIO DEPOSITO'!$F$391*MATERIALI!$J$78*(1+(ABS(K23)/(MNP_VR!$D$3*MNP_VR!$D$4*10^-6))/(1.5*MATERIALI!$J$78))^0.5)*(MNP_VR!$D$3*MNP_VR!$D$4*10^-6) -> 42.92769172 | M23: =IF(MNP_VR!C48>INPUT!$F$38*1000,INPUT!$F$38*1000,MNP_VR!C48) -> 603.6973905 | N23: =IFERROR(('FOGLIO DEPOSITO'!$F$401+'FOGLIO DEPOSITO'!$F$399*'andamento taglio'!K23/('andamento taglio'!M23/1000*MNP_VR!$D$3*10^-3)/MATERIALI!$J$85)/'FOGLIO DEPOSITO'!$F$404*(M23/1000*MNP_VR!$D$3*10^-3),"") -> 36.26176836 | O23: =IFERROR((1/'FOGLIO DEPOSITO'!$F$391*MATERIALI!$J$83*0.1/2.3*(1+(ABS(K23)/(INPUT!$F$38*INPUT!$F$39))/(1*MATERIALI!$J$83*0.1))^0.5)*INPUT!$F$38*INPUT!$F$39,"") -> 314.0370189 | P23: 36.26176836 | Q23: 36.26176836
A24: =IF(MNP_V!C49<INPUT!$F$38*1000,MNP_V!C49,INPUT!$F$38*1000) -> 664.1369999 | B24: =MNP_V!Z49 -> 106.3784822 | C24: =(1.5/'FOGLIO DEPOSITO'!$E$391*MATERIALI!$J$28*(1+(ABS(B24)/(INPUT!$F$38*INPUT!$F$39))/(1.5*MATERIALI!$J$28))^0.5)*INPUT!$F$38*INPUT!$F$39 -> 27.63006607 | D24: =IF(MNP_V!C49>INPUT!$F$38*1000,INPUT!$F$38*1000,MNP_V!C49) -> 664.1369999 | E24: =IFERROR(('FOGLIO DEPOSITO'!$E$401+'FOGLIO DEPOSITO'!$E$399*'andamento taglio'!B24/('andamento taglio'!D24/1000*INPUT!$F$39)/MATERIALI!$J$35)/'FOGLIO DEPOSITO'!$E$404*(D24/1000*INPUT!$F$39),"") -> 12.91890878 | F24: =IFERROR((1/'FOGLIO DEPOSITO'!$E$391*MATERIALI!$J$33*0.1/2.3*(1+(ABS(B24)/(INPUT!$F$38*INPUT!$F$39))/(1*MATERIALI!$J$33*0.1))^0.5)*INPUT!$F$38*INPUT!$F$39,"") -> 308.4243576 | G24: 12.91890878 | H24: 12.91890878 | J24: =IF(MNP_VR!C49<INPUT!$F$38*1000,MNP_VR!C49,INPUT!$F$38*1000) -> 661.8665843 | K24: =MNP_VR!Z49 -> 183.5644423 | L24: =(1.5/'FOGLIO DEPOSITO'!$F$391*MATERIALI!$J$78*(1+(ABS(K24)/(MNP_VR!$D$3*MNP_VR!$D$4*10^-6))/(1.5*MATERIALI!$J$78))^0.5)*(MNP_VR!$D$3*MNP_VR!$D$4*10^-6) -> 47.50447559 | M24: =IF(MNP_VR!C49>INPUT!$F$38*1000,INPUT!$F$38*1000,MNP_VR!C49) -> 661.8665843 | N24: =IFERROR(('FOGLIO DEPOSITO'!$F$401+'FOGLIO DEPOSITO'!$F$399*'andamento taglio'!K24/('andamento taglio'!M24/1000*MNP_VR!$D$3*10^-3)/MATERIALI!$J$85)/'FOGLIO DEPOSITO'!$F$404*(M24/1000*MNP_VR!$D$3*10^-3),"") -> 44.50693147 | O24: =IFERROR((1/'FOGLIO DEPOSITO'!$F$391*MATERIALI!$J$83*0.1/2.3*(1+(ABS(K24)/(INPUT!$F$38*INPUT!$F$39))/(1*MATERIALI!$J$83*0.1))^0.5)*INPUT!$F$38*INPUT!$F$39,"") -> 319.3311495 | P24: 44.50693147 | Q24: 44.50693147
A25: =IF(MNP_V!C50<INPUT!$F$38*1000,MNP_V!C50,INPUT!$F$38*1000) -> 720.0357782 | B25: =MNP_V!Z50 -> 130.9074604 | C25: =(1.5/'FOGLIO DEPOSITO'!$E$391*MATERIALI!$J$28*(1+(ABS(B25)/(INPUT!$F$38*INPUT!$F$39))/(1.5*MATERIALI!$J$28))^0.5)*INPUT!$F$38*INPUT!$F$39 -> 30.33294753 | D25: =IF(MNP_V!C50>INPUT!$F$38*1000,INPUT!$F$38*1000,MNP_V!C50) -> 720.0357782 | E25: =IFERROR(('FOGLIO DEPOSITO'!$E$401+'FOGLIO DEPOSITO'!$E$399*'andamento taglio'!B25/('andamento taglio'!D25/1000*INPUT!$F$39)/MATERIALI!$J$35)/'FOGLIO DEPOSITO'!$E$404*(D25/1000*INPUT!$F$39),"") -> 15.56379787 | F25: =IFERROR((1/'FOGLIO DEPOSITO'!$E$391*MATERIALI!$J$33*0.1/2.3*(1+(ABS(B25)/(INPUT!$F$38*INPUT!$F$39))/(1*MATERIALI!$J$33*0.1))^0.5)*INPUT!$F$38*INPUT!$F$39,"") -> 311.9317764 | G25: 15.56379787 | H25: 15.56379787 | J25: =IF(MNP_VR!C50<INPUT!$F$38*1000,MNP_VR!C50,INPUT!$F$38*1000) -> 720.0357782 | K25: =MNP_VR!Z50 -> 227.4438941 | L25: =(1.5/'FOGLIO DEPOSITO'!$F$391*MATERIALI!$J$78*(1+(ABS(K25)/(MNP_VR!$D$3*MNP_VR!$D$4*10^-6))/(1.5*MATERIALI!$J$78))^0.5)*(MNP_VR!$D$3*MNP_VR!$D$4*10^-6) -> 52.31748597 | M25: =IF(MNP_VR!C50>INPUT!$F$38*1000,INPUT!$F$38*1000,MNP_VR!C50) -> 720.0357782 | N25: =IFERROR(('FOGLIO DEPOSITO'!$F$401+'FOGLIO DEPOSITO'!$F$399*'andamento taglio'!K25/('andamento taglio'!M25/1000*MNP_VR!$D$3*10^-3)/MATERIALI!$J$85)/'FOGLIO DEPOSITO'!$F$404*(M25/1000*MNP_VR!$D$3*10^-3),"") -> 53.96781366 | O25: =IFERROR((1/'FOGLIO DEPOSITO'!$F$391*MATERIALI!$J$83*0.1/2.3*(1+(ABS(K25)/(INPUT!$F$38*INPUT!$F$39))/(1*MATERIALI!$J$83*0.1))^0.5)*INPUT!$F$38*INPUT!$F$39,"") -> 325.3685911 | P25: 52.31748597 | Q25: 52.31748597
A26: =IF(MNP_V!C51<INPUT!$F$38*1000,MNP_V!C51,INPUT!$F$38*1000) -> 720.0357782 | B26: =MNP_V!Z51 -> 130.9074604 | C26: =(1.5/'FOGLIO DEPOSITO'!$E$391*MATERIALI!$J$28*(1+(ABS(B26)/(INPUT!$F$38*INPUT!$F$39))/(1.5*MATERIALI!$J$28))^0.5)*INPUT!$F$38*INPUT!$F$39 -> 30.33294753 | D26: =IF(MNP_V!C51>INPUT!$F$38*1000,INPUT!$F$38*1000,MNP_V!C51) -> 720.0357782 | E26: =IFERROR(('FOGLIO DEPOSITO'!$E$401+'FOGLIO DEPOSITO'!$E$399*'andamento taglio'!B26/('andamento taglio'!D26/1000*INPUT!$F$39)/MATERIALI!$J$35)/'FOGLIO DEPOSITO'!$E$404*(D26/1000*INPUT!$F$39),"") -> 15.56379787 | F26: =IFERROR((1/'FOGLIO DEPOSITO'!$E$391*MATERIALI!$J$33*0.1/2.3*(1+(ABS(B26)/(INPUT!$F$38*INPUT!$F$39))/(1*MATERIALI!$J$33*0.1))^0.5)*INPUT!$F$38*INPUT!$F$39,"") -> 311.9317764 | G26: 15.56379787 | H26: 15.56379787 | J26: =IF(MNP_VR!C51<INPUT!$F$38*1000,MNP_VR!C51,INPUT!$F$38*1000) -> 720.0357782 | K26: =MNP_VR!Z51 -> 227.4438941 | L26: =(1.5/'FOGLIO DEPOSITO'!$F$391*MATERIALI!$J$78*(1+(ABS(K26)/(MNP_VR!$D$3*MNP_VR!$D$4*10^-6))/(1.5*MATERIALI!$J$78))^0.5)*(MNP_VR!$D$3*MNP_VR!$D$4*10^-6) -> 52.31748597 | M26: =IF(MNP_VR!C51>INPUT!$F$38*1000,INPUT!$F$38*1000,MNP_VR!C51) -> 720.0357782 | N26: =IFERROR(('FOGLIO DEPOSITO'!$F$401+'FOGLIO DEPOSITO'!$F$399*'andamento taglio'!K26/('andamento taglio'!M26/1000*MNP_VR!$D$3*10^-3)/MATERIALI!$J$85)/'FOGLIO DEPOSITO'!$F$404*(M26/1000*MNP_VR!$D$3*10^-3),"") -> 53.96781366 | O26: =IFERROR((1/'FOGLIO DEPOSITO'!$F$391*MATERIALI!$J$83*0.1/2.3*(1+(ABS(K26)/(INPUT!$F$38*INPUT!$F$39))/(1*MATERIALI!$J$83*0.1))^0.5)*INPUT!$F$38*INPUT!$F$39,"") -> 325.3685911 | P26: 52.31748597 | Q26: 52.31748597
A27: =IF(MNP_V!C52<INPUT!$F$38*1000,MNP_V!C52,INPUT!$F$38*1000) -> 878.0322004 | B27: =MNP_V!Z52 -> 159.6322974 | C27: =(1.5/'FOGLIO DEPOSITO'!$E$391*MATERIALI!$J$28*(1+(ABS(B27)/(INPUT!$F$38*INPUT!$F$39))/(1.5*MATERIALI!$J$28))^0.5)*INPUT!$F$38*INPUT!$F$39 -> 33.21978188 | D27: =IF(MNP_V!C52>INPUT!$F$38*1000,INPUT!$F$38*1000,MNP_V!C52) -> 878.0322004 | E27: =IFERROR(('FOGLIO DEPOSITO'!$E$401+'FOGLIO DEPOSITO'!$E$399*'andamento taglio'!B27/('andamento taglio'!D27/1000*INPUT!$F$39)/MATERIALI!$J$35)/'FOGLIO DEPOSITO'!$E$404*(D27/1000*INPUT!$F$39),"") -> 18.9789398 | F27: =IFERROR((1/'FOGLIO DEPOSITO'!$E$391*MATERIALI!$J$33*0.1/2.3*(1+(ABS(B27)/(INPUT!$F$38*INPUT!$F$39))/(1*MATERIALI!$J$33*0.1))^0.5)*INPUT!$F$38*INPUT!$F$39,"") -> 315.9896779 | G27: 18.9789398 | H27: 18.9789398 | J27: =IF(MNP_VR!C52<INPUT!$F$38*1000,MNP_VR!C52,INPUT!$F$38*1000) -> 878.0322004 | K27: =MNP_VR!Z52 -> 277.3515829 | L27: =(1.5/'FOGLIO DEPOSITO'!$F$391*MATERIALI!$J$78*(1+(ABS(K27)/(MNP_VR!$D$3*MNP_VR!$D$4*10^-6))/(1.5*MATERIALI!$J$78))^0.5)*(MNP_VR!$D$3*MNP_VR!$D$4*10^-6) -> 57.30242353 | M27: =IF(MNP_VR!C52>INPUT!$F$38*1000,INPUT!$F$38*1000,MNP_VR!C52) -> 878.0322004 | N27: =IFERROR(('FOGLIO DEPOSITO'!$F$401+'FOGLIO DEPOSITO'!$F$399*'andamento taglio'!K27/('andamento taglio'!M27/1000*MNP_VR!$D$3*10^-3)/MATERIALI!$J$85)/'FOGLIO DEPOSITO'!$F$404*(M27/1000*MNP_VR!$D$3*10^-3),"") -> 65.80989392 | O27: =IFERROR((1/'FOGLIO DEPOSITO'!$F$391*MATERIALI!$J$83*0.1/2.3*(1+(ABS(K27)/(INPUT!$F$38*INPUT!$F$39))/(1*MATERIALI!$J$83*0.1))^0.5)*INPUT!$F$38*INPUT!$F$39,"") -> 332.1020827 | P27: 57.30242353 | Q27: 57.30242353
A28: =IF(MNP_V!C53<INPUT!$F$38*1000,MNP_V!C53,INPUT!$F$38*1000) -> 1036.028623 | B28: =MNP_V!Z53 -> 188.3571345 | C28: =(1.5/'FOGLIO DEPOSITO'!$E$391*MATERIALI!$J$28*(1+(ABS(B28)/(INPUT!$F$38*INPUT!$F$39))/(1.5*MATERIALI!$J$28))^0.5)*INPUT!$F$38*INPUT!$F$39 -> 35.87506252 | D28: =IF(MNP_V!C53>INPUT!$F$38*1000,INPUT!$F$38*1000,MNP_V!C53) -> 1036.028623 | E28: =IFERROR(('FOGLIO DEPOSITO'!$E$401+'FOGLIO DEPOSITO'!$E$399*'andamento taglio'!B28/('andamento taglio'!D28/1000*INPUT!$F$39)/MATERIALI!$J$35)/'FOGLIO DEPOSITO'!$E$404*(D28/1000*INPUT!$F$39),"") -> 22.39408173 | F28: =IFERROR((1/'FOGLIO DEPOSITO'!$E$391*MATERIALI!$J$33*0.1/2.3*(1+(ABS(B28)/(INPUT!$F$38*INPUT!$F$39))/(1*MATERIALI!$J$33*0.1))^0.5)*INPUT!$F$38*INPUT!$F$39,"") -> 319.9961248 | G28: 22.39408173 | H28: 22.39408173 | J28: =IF(MNP_VR!C53<INPUT!$F$38*1000,MNP_VR!C53,INPUT!$F$38*1000) -> 1036.028623 | K28: =MNP_VR!Z53 -> 327.2592717 | L28: =(1.5/'FOGLIO DEPOSITO'!$F$391*MATERIALI!$J$78*(1+(ABS(K28)/(MNP_VR!$D$3*MNP_VR!$D$4*10^-6))/(1.5*MATERIALI!$J$78))^0.5)*(MNP_VR!$D$3*MNP_VR!$D$4*10^-6) -> 61.88712424 | M28: =IF(MNP_VR!C53>INPUT!$F$38*1000,INPUT!$F$38*1000,MNP_VR!C53) -> 1036.028623 | N28: =IFERROR(('FOGLIO DEPOSITO'!$F$401+'FOGLIO DEPOSITO'!$F$399*'andamento taglio'!K28/('andamento taglio'!M28/1000*MNP_VR!$D$3*10^-3)/MATERIALI!$J$85)/'FOGLIO DEPOSITO'!$F$404*(M28/1000*MNP_VR!$D$3*10^-3),"") -> 77.65197418 | O28: =IFERROR((1/'FOGLIO DEPOSITO'!$F$391*MATERIALI!$J$83*0.1/2.3*(1+(ABS(K28)/(INPUT!$F$38*INPUT!$F$39))/(1*MATERIALI!$J$83*0.1))^0.5)*INPUT!$F$38*INPUT!$F$39,"") -> 338.7017368 | P28: 61.88712424 | Q28: 61.88712424
A29: =IF(MNP_V!C54<INPUT!$F$38*1000,MNP_V!C54,INPUT!$F$38*1000) -> 1194.025045 | B29: =MNP_V!Z54 -> 217.0819715 | C29: =(1.5/'FOGLIO DEPOSITO'!$E$391*MATERIALI!$J$28*(1+(ABS(B29)/(INPUT!$F$38*INPUT!$F$39))/(1.5*MATERIALI!$J$28))^0.5)*INPUT!$F$38*INPUT!$F$39 -> 38.34692051 | D29: =IF(MNP_V!C54>INPUT!$F$38*1000,INPUT!$F$38*1000,MNP_V!C54) -> 1194.025045 | E29: =IFERROR(('FOGLIO DEPOSITO'!$E$401+'FOGLIO DEPOSITO'!$E$399*'andamento taglio'!B29/('andamento taglio'!D29/1000*INPUT!$F$39)/MATERIALI!$J$35)/'FOGLIO DEPOSITO'!$E$404*(D29/1000*INPUT!$F$39),"") -> 25.80922367 | F29: =IFERROR((1/'FOGLIO DEPOSITO'!$E$391*MATERIALI!$J$33*0.1/2.3*(1+(ABS(B29)/(INPUT!$F$38*INPUT!$F$39))/(1*MATERIALI!$J$33*0.1))^0.5)*INPUT!$F$38*INPUT!$F$39,"") -> 323.9530264 | G29: 25.80922367 | H29: 25.80922367 | J29: =IF(MNP_VR!C54<INPUT!$F$38*1000,MNP_VR!C54,INPUT!$F$38*1000) -> 1194.025045 | K29: =MNP_VR!Z54 -> 377.1669605 | L29: =(1.5/'FOGLIO DEPOSITO'!$F$391*MATERIALI!$J$78*(1+(ABS(K29)/(MNP_VR!$D$3*MNP_VR!$D$4*10^-6))/(1.5*MATERIALI!$J$78))^0.5)*(MNP_VR!$D$3*MNP_VR!$D$4*10^-6) -> 66.15485282 | M29: =IF(MNP_VR!C54>INPUT!$F$38*1000,INPUT!$F$38*1000,MNP_VR!C54) -> 1194.025045 | N29: =IFERROR(('FOGLIO DEPOSITO'!$F$401+'FOGLIO DEPOSITO'!$F$399*'andamento taglio'!K29/('andamento taglio'!M29/1000*MNP_VR!$D$3*10^-3)/MATERIALI!$J$85)/'FOGLIO DEPOSITO'!$F$404*(M29/1000*MNP_VR!$D$3*10^-3),"") -> 89.49405443 | O29: =IFERROR((1/'FOGLIO DEPOSITO'!$F$391*MATERIALI!$J$83*0.1/2.3*(1+(ABS(K29)/(INPUT!$F$38*INPUT!$F$39))/(1*MATERIALI!$J$83*0.1))^0.5)*INPUT!$F$38*INPUT!$F$39,"") -> 345.1752305 | P29: 66.15485282 | Q29: 66.15485282
A30: =IF(MNP_V!C55<INPUT!$F$38*1000,MNP_V!C55,INPUT!$F$38*1000) -> 1352.021467 | B30: =MNP_V!Z55 -> 245.8068085 | C30: =(1.5/'FOGLIO DEPOSITO'!$E$391*MATERIALI!$J$28*(1+(ABS(B30)/(INPUT!$F$38*INPUT!$F$39))/(1.5*MATERIALI!$J$28))^0.5)*INPUT!$F$38*INPUT!$F$39 -> 40.66881502 | D30: =IF(MNP_V!C55>INPUT!$F$38*1000,INPUT!$F$38*1000,MNP_V!C55) -> 1352.021467 | E30: =IFERROR(('FOGLIO DEPOSITO'!$E$401+'FOGLIO DEPOSITO'!$E$399*'andamento taglio'!B30/('andamento taglio'!D30/1000*INPUT!$F$39)/MATERIALI!$J$35)/'FOGLIO DEPOSITO'!$E$404*(D30/1000*INPUT!$F$39),"") -> 29.2243656 | F30: =IFERROR((1/'FOGLIO DEPOSITO'!$E$391*MATERIALI!$J$33*0.1/2.3*(1+(ABS(B30)/(INPUT!$F$38*INPUT!$F$39))/(1*MATERIALI!$J$33*0.1))^0.5)*INPUT!$F$38*INPUT!$F$39,"") -> 327.8621764 | G30: 29.2243656 | H30: 29.2243656 | J30: =IF(MNP_VR!C55<INPUT!$F$38*1000,MNP_VR!C55,INPUT!$F$38*1000) -> 1352.021467 | K30: =MNP_VR!Z55 -> 427.0746492 | L30: =(1.5/'FOGLIO DEPOSITO'!$F$391*MATERIALI!$J$78*(1+(ABS(K30)/(MNP_VR!$D$3*MNP_VR!$D$4*10^-6))/(1.5*MATERIALI!$J$78))^0.5)*(MNP_VR!$D$3*MNP_VR!$D$4*10^-6) -> 70.16347309 | M30: =IF(MNP_VR!C55>INPUT!$F$38*1000,INPUT!$F$38*1000,MNP_VR!C55) -> 1352.021467 | N30: =IFERROR(('FOGLIO DEPOSITO'!$F$401+'FOGLIO DEPOSITO'!$F$399*'andamento taglio'!K30/('andamento taglio'!M30/1000*MNP_VR!$D$3*10^-3)/MATERIALI!$J$85)/'FOGLIO DEPOSITO'!$F$404*(M30/1000*MNP_VR!$D$3*10^-3),"") -> 101.3361347 | O30: =IFERROR((1/'FOGLIO DEPOSITO'!$F$391*MATERIALI!$J$83*0.1/2.3*(1+(ABS(K30)/(INPUT!$F$38*INPUT!$F$39))/(1*MATERIALI!$J$83*0.1))^0.5)*INPUT!$F$38*INPUT!$F$39,"") -> 351.5295336 | P30: 70.16347309 | Q30: 70.16347309
A31: =IF(MNP_V!C56<INPUT!$F$38*1000,MNP_V!C56,INPUT!$F$38*1000) -> 1510.017889 | B31: =MNP_V!Z56 -> 274.5316456 | C31: =(1.5/'FOGLIO DEPOSITO'!$E$391*MATERIALI!$J$28*(1+(ABS(B31)/(INPUT!$F$38*INPUT!$F$39))/(1.5*MATERIALI!$J$28))^0.5)*INPUT!$F$38*INPUT!$F$39 -> 42.86512239 | D31: =IF(MNP_V!C56>INPUT!$F$38*1000,INPUT!$F$38*1000,MNP_V!C56) -> 1510.017889 | E31: =IFERROR(('FOGLIO DEPOSITO'!$E$401+'FOGLIO DEPOSITO'!$E$399*'andamento taglio'!B31/('andamento taglio'!D31/1000*INPUT!$F$39)/MATERIALI!$J$35)/'FOGLIO DEPOSITO'!$E$404*(D31/1000*INPUT!$F$39),"") -> 32.63950753 | F31: =IFERROR((1/'FOGLIO DEPOSITO'!$E$391*MATERIALI!$J$33*0.1/2.3*(1+(ABS(B31)/(INPUT!$F$38*INPUT!$F$39))/(1*MATERIALI!$J$33*0.1))^0.5)*INPUT!$F$38*INPUT!$F$39,"") -> 331.725263 | G31: 32.63950753 | H31: 32.63950753 | J31: =IF(MNP_VR!C56<INPUT!$F$38*1000,MNP_VR!C56,INPUT!$F$38*1000) -> 1510.017889 | K31: =MNP_VR!Z56 -> 476.982338 | L31: =(1.5/'FOGLIO DEPOSITO'!$F$391*MATERIALI!$J$78*(1+(ABS(K31)/(MNP_VR!$D$3*MNP_VR!$D$4*10^-6))/(1.5*MATERIALI!$J$78))^0.5)*(MNP_VR!$D$3*MNP_VR!$D$4*10^-6) -> 73.95513072 | M31: =IF(MNP_VR!C56>INPUT!$F$38*1000,INPUT!$F$38*1000,MNP_VR!C56) -> 1510.017889 | N31: =IFERROR(('FOGLIO DEPOSITO'!$F$401+'FOGLIO DEPOSITO'!$F$399*'andamento taglio'!K31/('andamento taglio'!M31/1000*MNP_VR!$D$3*10^-3)/MATERIALI!$J$85)/'FOGLIO DEPOSITO'!$F$404*(M31/1000*MNP_VR!$D$3*10^-3),"") -> 113.1782149 | O31: =IFERROR((1/'FOGLIO DEPOSITO'!$F$391*MATERIALI!$J$83*0.1/2.3*(1+(ABS(K31)/(INPUT!$F$38*INPUT!$F$39))/(1*MATERIALI!$J$83*0.1))^0.5)*INPUT!$F$38*INPUT!$F$39,"") -> 357.7709968 | P31: 73.95513072 | Q31: 73.95513072
A32: =IF(MNP_V!C57<INPUT!$F$38*1000,MNP_V!C57,INPUT!$F$38*1000) -> 1668.014311 | B32: =MNP_V!Z57 -> 303.2564826 | C32: =(1.5/'FOGLIO DEPOSITO'!$E$391*MATERIALI!$J$28*(1+(ABS(B32)/(INPUT!$F$38*INPUT!$F$39))/(1.5*MATERIALI!$J$28))^0.5)*INPUT!$F$38*INPUT!$F$39 -> 44.95425363 | D32: =IF(MNP_V!C57>INPUT!$F$38*1000,INPUT!$F$38*1000,MNP_V!C57) -> 1668.014311 | E32: =IFERROR(('FOGLIO DEPOSITO'!$E$401+'FOGLIO DEPOSITO'!$E$399*'andamento taglio'!B32/('andamento taglio'!D32/1000*INPUT!$F$39)/MATERIALI!$J$35)/'FOGLIO DEPOSITO'!$E$404*(D32/1000*INPUT!$F$39),"") -> 36.05464946 | F32: =IFERROR((1/'FOGLIO DEPOSITO'!$E$391*MATERIALI!$J$33*0.1/2.3*(1+(ABS(B32)/(INPUT!$F$38*INPUT!$F$39))/(1*MATERIALI!$J$33*0.1))^0.5)*INPUT!$F$38*INPUT!$F$39,"") -> 335.5438772 | G32: 36.05464946 | H32: 36.05464946 | J32: =IF(MNP_VR!C57<INPUT!$F$38*1000,MNP_VR!C57,INPUT!$F$38*1000) -> 1668.014311 | K32: =MNP_VR!Z57 -> 526.8900268 | L32: =(1.5/'FOGLIO DEPOSITO'!$F$391*MATERIALI!$J$78*(1+(ABS(K32)/(MNP_VR!$D$3*MNP_VR!$D$4*10^-6))/(1.5*MATERIALI!$J$78))^0.5)*(MNP_VR!$D$3*MNP_VR!$D$4*10^-6) -> 77.56165138 | M32: =IF(MNP_VR!C57>INPUT!$F$38*1000,INPUT!$F$38*1000,MNP_VR!C57) -> 1668.014311 | N32: =IFERROR(('FOGLIO DEPOSITO'!$F$401+'FOGLIO DEPOSITO'!$F$399*'andamento taglio'!K32/('andamento taglio'!M32/1000*MNP_VR!$D$3*10^-3)/MATERIALI!$J$85)/'FOGLIO DEPOSITO'!$F$404*(M32/1000*MNP_VR!$D$3*10^-3),"") -> 125.0202952 | O32: =IFERROR((1/'FOGLIO DEPOSITO'!$F$391*MATERIALI!$J$83*0.1/2.3*(1+(ABS(K32)/(INPUT!$F$38*INPUT!$F$39))/(1*MATERIALI!$J$83*0.1))^0.5)*INPUT!$F$38*INPUT!$F$39,"") -> 363.9054265 | P32: 77.56165138 | Q32: 77.56165138
A33: =IF(MNP_V!C58<INPUT!$F$38*1000,MNP_V!C58,INPUT!$F$38*1000) -> 1826.010733 | B33: =MNP_V!Z58 -> 331.9813196 | C33: =(1.5/'FOGLIO DEPOSITO'!$E$391*MATERIALI!$J$28*(1+(ABS(B33)/(INPUT!$F$38*INPUT!$F$39))/(1.5*MATERIALI!$J$28))^0.5)*INPUT!$F$38*INPUT!$F$39 -> 46.95051781 | D33: =IF(MNP_V!C58>INPUT!$F$38*1000,INPUT!$F$38*1000,MNP_V!C58) -> 1826.010733 | E33: =IFERROR(('FOGLIO DEPOSITO'!$E$401+'FOGLIO DEPOSITO'!$E$399*'andamento taglio'!B33/('andamento taglio'!D33/1000*INPUT!$F$39)/MATERIALI!$J$35)/'FOGLIO DEPOSITO'!$E$404*(D33/1000*INPUT!$F$39),"") -> 39.4697914 | F33: =IFERROR((1/'FOGLIO DEPOSITO'!$E$391*MATERIALI!$J$33*0.1/2.3*(1+(ABS(B33)/(INPUT!$F$38*INPUT!$F$39))/(1*MATERIALI!$J$33*0.1))^0.5)*INPUT!$F$38*INPUT!$F$39,"") -> 339.3195204 | G33: 39.4697914 | H33: 39.4697914 | J33: =IF(MNP_VR!C58<INPUT!$F$38*1000,MNP_VR!C58,INPUT!$F$38*1000) -> 1826.010733 | K33: =MNP_VR!Z58 -> 576.7977156 | L33: =(1.5/'FOGLIO DEPOSITO'!$F$391*MATERIALI!$J$78*(1+(ABS(K33)/(MNP_VR!$D$3*MNP_VR!$D$4*10^-6))/(1.5*MATERIALI!$J$78))^0.5)*(MNP_VR!$D$3*MNP_VR!$D$4*10^-6) -> 81.0077661 | M33: =IF(MNP_VR!C58>INPUT!$F$38*1000,INPUT!$F$38*1000,MNP_VR!C58) -> 1826.010733 | N33: =IFERROR(('FOGLIO DEPOSITO'!$F$401+'FOGLIO DEPOSITO'!$F$399*'andamento taglio'!K33/('andamento taglio'!M33/1000*MNP_VR!$D$3*10^-3)/MATERIALI!$J$85)/'FOGLIO DEPOSITO'!$F$404*(M33/1000*MNP_VR!$D$3*10^-3),"") -> 136.8623755 | O33: =IFERROR((1/'FOGLIO DEPOSITO'!$F$391*MATERIALI!$J$83*0.1/2.3*(1+(ABS(K33)/(INPUT!$F$38*INPUT!$F$39))/(1*MATERIALI!$J$83*0.1))^0.5)*INPUT!$F$38*INPUT!$F$39,"") -> 369.938147 | P33: 81.0077661 | Q33: 81.0077661
A34: =IF(MNP_V!C59<INPUT!$F$38*1000,MNP_V!C59,INPUT!$F$38*1000) -> 1984.007156 | B34: =MNP_V!Z59 -> 360.7061567 | C34: =(1.5/'FOGLIO DEPOSITO'!$E$391*MATERIALI!$J$28*(1+(ABS(B34)/(INPUT!$F$38*INPUT!$F$39))/(1.5*MATERIALI!$J$28))^0.5)*INPUT!$F$38*INPUT!$F$39 -> 48.86529775 | D34: =IF(MNP_V!C59>INPUT!$F$38*1000,INPUT!$F$38*1000,MNP_V!C59) -> 1984.007156 | E34: =IFERROR(('FOGLIO DEPOSITO'!$E$401+'FOGLIO DEPOSITO'!$E$399*'andamento taglio'!B34/('andamento taglio'!D34/1000*INPUT!$F$39)/MATERIALI!$J$35)/'FOGLIO DEPOSITO'!$E$404*(D34/1000*INPUT!$F$39),"") -> 42.88493333 | F34: =IFERROR((1/'FOGLIO DEPOSITO'!$E$391*MATERIALI!$J$33*0.1/2.3*(1+(ABS(B34)/(INPUT!$F$38*INPUT!$F$39))/(1*MATERIALI!$J$33*0.1))^0.5)*INPUT!$F$38*INPUT!$F$39,"") -> 343.0536114 | G34: 42.88493333 | H34: 42.88493333 | J34: =IF(MNP_VR!C59<INPUT!$F$38*1000,MNP_VR!C59,INPUT!$F$38*1000) -> 1984.007156 | K34: =MNP_VR!Z59 -> 626.7054043 | L34: =(1.5/'FOGLIO DEPOSITO'!$F$391*MATERIALI!$J$78*(1+(ABS(K34)/(MNP_VR!$D$3*MNP_VR!$D$4*10^-6))/(1.5*MATERIALI!$J$78))^0.5)*(MNP_VR!$D$3*MNP_VR!$D$4*10^-6) -> 84.31314591 | M34: =IF(MNP_VR!C59>INPUT!$F$38*1000,INPUT!$F$38*1000,MNP_VR!C59) -> 1984.007156 | N34: =IFERROR(('FOGLIO DEPOSITO'!$F$401+'FOGLIO DEPOSITO'!$F$399*'andamento taglio'!K34/('andamento taglio'!M34/1000*MNP_VR!$D$3*10^-3)/MATERIALI!$J$85)/'FOGLIO DEPOSITO'!$F$404*(M34/1000*MNP_VR!$D$3*10^-3),"") -> 148.7044557 | O34: =IFERROR((1/'FOGLIO DEPOSITO'!$F$391*MATERIALI!$J$83*0.1/2.3*(1+(ABS(K34)/(INPUT!$F$38*INPUT!$F$39))/(1*MATERIALI!$J$83*0.1))^0.5)*INPUT!$F$38*INPUT!$F$39,"") -> 375.8740558 | P34: 84.31314591 | Q34: 84.31314591
A35: =IF(MNP_V!C60<INPUT!$F$38*1000,MNP_V!C60,INPUT!$F$38*1000) -> 2142.003578 | B35: =MNP_V!Z60 -> 389.4309937 | C35: =(1.5/'FOGLIO DEPOSITO'!$E$391*MATERIALI!$J$28*(1+(ABS(B35)/(INPUT!$F$38*INPUT!$F$39))/(1.5*MATERIALI!$J$28))^0.5)*INPUT!$F$38*INPUT!$F$39 -> 50.7078251 | D35: =IF(MNP_V!C60>INPUT!$F$38*1000,INPUT!$F$38*1000,MNP_V!C60) -> 2142.003578 | E35: =IFERROR(('FOGLIO DEPOSITO'!$E$401+'FOGLIO DEPOSITO'!$E$399*'andamento taglio'!B35/('andamento taglio'!D35/1000*INPUT!$F$39)/MATERIALI!$J$35)/'FOGLIO DEPOSITO'!$E$404*(D35/1000*INPUT!$F$39),"") -> 46.30007526 | F35: =IFERROR((1/'FOGLIO DEPOSITO'!$E$391*MATERIALI!$J$33*0.1/2.3*(1+(ABS(B35)/(INPUT!$F$38*INPUT!$F$39))/(1*MATERIALI!$J$33*0.1))^0.5)*INPUT!$F$38*INPUT!$F$39,"") -> 346.7474927 | G35: 46.30007526 | H35: 46.30007526 | J35: =IF(MNP_VR!C60<INPUT!$F$38*1000,MNP_VR!C60,INPUT!$F$38*1000) -> 2142.003578 | K35: =MNP_VR!Z60 -> 676.6130931 | L35: =(1.5/'FOGLIO DEPOSITO'!$F$391*MATERIALI!$J$78*(1+(ABS(K35)/(MNP_VR!$D$3*MNP_VR!$D$4*10^-6))/(1.5*MATERIALI!$J$78))^0.5)*(MNP_VR!$D$3*MNP_VR!$D$4*10^-6) -> 87.4937425 | M35: =IF(MNP_VR!C60>INPUT!$F$38*1000,INPUT!$F$38*1000,MNP_VR!C60) -> 2142.003578 | N35: =IFERROR(('FOGLIO DEPOSITO'!$F$401+'FOGLIO DEPOSITO'!$F$399*'andamento taglio'!K35/('andamento taglio'!M35/1000*MNP_VR!$D$3*10^-3)/MATERIALI!$J$85)/'FOGLIO DEPOSITO'!$F$404*(M35/1000*MNP_VR!$D$3*10^-3),"") -> 160.546536 | O35: =IFERROR((1/'FOGLIO DEPOSITO'!$F$391*MATERIALI!$J$83*0.1/2.3*(1+(ABS(K35)/(INPUT!$F$38*INPUT!$F$39))/(1*MATERIALI!$J$83*0.1))^0.5)*INPUT!$F$38*INPUT!$F$39,"") -> 381.7176693 | P35: 87.4937425 | Q35: 87.4937425
A36: =IF(MNP_V!C61<INPUT!$F$38*1000,MNP_V!C61,INPUT!$F$38*1000) -> 2300 | B36: =MNP_V!Z61 -> 418.1558307 | C36: =(1.5/'FOGLIO DEPOSITO'!$E$391*MATERIALI!$J$28*(1+(ABS(B36)/(INPUT!$F$38*INPUT!$F$39))/(1.5*MATERIALI!$J$28))^0.5)*INPUT!$F$38*INPUT!$F$39 -> 52.48570976 | D36: =IF(MNP_V!C61>INPUT!$F$38*1000,INPUT!$F$38*1000,MNP_V!C61) -> 2300 | E36: =IFERROR(('FOGLIO DEPOSITO'!$E$401+'FOGLIO DEPOSITO'!$E$399*'andamento taglio'!B36/('andamento taglio'!D36/1000*INPUT!$F$39)/MATERIALI!$J$35)/'FOGLIO DEPOSITO'!$E$404*(D36/1000*INPUT!$F$39),"") -> 49.71521719 | F36: =IFERROR((1/'FOGLIO DEPOSITO'!$E$391*MATERIALI!$J$33*0.1/2.3*(1+(ABS(B36)/(INPUT!$F$38*INPUT!$F$39))/(1*MATERIALI!$J$33*0.1))^0.5)*INPUT!$F$38*INPUT!$F$39,"") -> 350.4024359 | G36: 49.71521719 | H36: 49.71521719 | J36: =IF(MNP_VR!C61<INPUT!$F$38*1000,MNP_VR!C61,INPUT!$F$38*1000) -> 2300 | K36: =MNP_VR!Z61 -> 726.5207819 | L36: =(1.5/'FOGLIO DEPOSITO'!$F$391*MATERIALI!$J$78*(1+(ABS(K36)/(MNP_VR!$D$3*MNP_VR!$D$4*10^-6))/(1.5*MATERIALI!$J$78))^0.5)*(MNP_VR!$D$3*MNP_VR!$D$4*10^-6) -> 90.56270414 | M36: =IF(MNP_VR!C61>INPUT!$F$38*1000,INPUT!$F$38*1000,MNP_VR!C61) -> 2300 | N36: =IFERROR(('FOGLIO DEPOSITO'!$F$401+'FOGLIO DEPOSITO'!$F$399*'andamento taglio'!K36/('andamento taglio'!M36/1000*MNP_VR!$D$3*10^-3)/MATERIALI!$J$85)/'FOGLIO DEPOSITO'!$F$404*(M36/1000*MNP_VR!$D$3*10^-3),"") -> 172.3886162 | O36: =IFERROR((1/'FOGLIO DEPOSITO'!$F$391*MATERIALI!$J$83*0.1/2.3*(1+(ABS(K36)/(INPUT!$F$38*INPUT!$F$39))/(1*MATERIALI!$J$83*0.1))^0.5)*INPUT!$F$38*INPUT!$F$39,"") -> 387.4731633 | P36: 90.56270414 | Q36: 90.56270414
A37: =IF(MNP_V!C62<INPUT!$F$38*1000,MNP_V!C62,INPUT!$F$38*1000) -> 2300 | B37: =MNP_V!Z62 -> 418.1558307 | C37: =(1.5/'FOGLIO DEPOSITO'!$E$391*MATERIALI!$J$28*(1+(ABS(B37)/(INPUT!$F$38*INPUT!$F$39))/(1.5*MATERIALI!$J$28))^0.5)*INPUT!$F$38*INPUT!$F$39 -> 52.48570976 | D37: =IF(MNP_V!C62>INPUT!$F$38*1000,INPUT!$F$38*1000,MNP_V!C62) -> 2300 | E37: =IFERROR(('FOGLIO DEPOSITO'!$E$401+'FOGLIO DEPOSITO'!$E$399*'andamento taglio'!B37/('andamento taglio'!D37/1000*INPUT!$F$39)/MATERIALI!$J$35)/'FOGLIO DEPOSITO'!$E$404*(D37/1000*INPUT!$F$39),"") -> 49.71521719 | F37: =IFERROR((1/'FOGLIO DEPOSITO'!$E$391*MATERIALI!$J$33*0.1/2.3*(1+(ABS(B37)/(INPUT!$F$38*INPUT!$F$39))/(1*MATERIALI!$J$33*0.1))^0.5)*INPUT!$F$38*INPUT!$F$39,"") -> 350.4024359 | G37: 49.71521719 | H37: 49.71521719 | J37: =IF(MNP_VR!C62<INPUT!$F$38*1000,MNP_VR!C62,INPUT!$F$38*1000) -> 2300 | K37: =MNP_VR!Z62 -> 726.5207819 | L37: =(1.5/'FOGLIO DEPOSITO'!$F$391*MATERIALI!$J$78*(1+(ABS(K37)/(MNP_VR!$D$3*MNP_VR!$D$4*10^-6))/(1.5*MATERIALI!$J$78))^0.5)*(MNP_VR!$D$3*MNP_VR!$D$4*10^-6) -> 90.56270414 | M37: =IF(MNP_VR!C62>INPUT!$F$38*1000,INPUT!$F$38*1000,MNP_VR!C62) -> 2300 | N37: =IFERROR(('FOGLIO DEPOSITO'!$F$401+'FOGLIO DEPOSITO'!$F$399*'andamento taglio'!K37/('andamento taglio'!M37/1000*MNP_VR!$D$3*10^-3)/MATERIALI!$J$85)/'FOGLIO DEPOSITO'!$F$404*(M37/1000*MNP_VR!$D$3*10^-3),"") -> 172.3886162 | O37: =IFERROR((1/'FOGLIO DEPOSITO'!$F$391*MATERIALI!$J$83*0.1/2.3*(1+(ABS(K37)/(INPUT!$F$38*INPUT!$F$39))/(1*MATERIALI!$J$83*0.1))^0.5)*INPUT!$F$38*INPUT!$F$39,"") -> 387.4731633 | P37: 90.56270414 | Q37: 90.56270414
A38: =IF(MNP_V!C63<INPUT!$F$38*1000,MNP_V!C63,INPUT!$F$38*1000) -> 2300 | B38: =MNP_V!Z63 -> 432.4275439 | C38: =(1.5/'FOGLIO DEPOSITO'!$E$391*MATERIALI!$J$28*(1+(ABS(B38)/(INPUT!$F$38*INPUT!$F$39))/(1.5*MATERIALI!$J$28))^0.5)*INPUT!$F$38*INPUT!$F$39 -> 53.34701016 | D38: =IF(MNP_V!C63>INPUT!$F$38*1000,INPUT!$F$38*1000,MNP_V!C63) -> 2300 | E38: =IFERROR(('FOGLIO DEPOSITO'!$E$401+'FOGLIO DEPOSITO'!$E$399*'andamento taglio'!B38/('andamento taglio'!D38/1000*INPUT!$F$39)/MATERIALI!$J$35)/'FOGLIO DEPOSITO'!$E$404*(D38/1000*INPUT!$F$39),"") -> 51.14238851 | F38: =IFERROR((1/'FOGLIO DEPOSITO'!$E$391*MATERIALI!$J$33*0.1/2.3*(1+(ABS(B38)/(INPUT!$F$38*INPUT!$F$39))/(1*MATERIALI!$J$33*0.1))^0.5)*INPUT!$F$38*INPUT!$F$39,"") -> 352.2042628 | G38: 51.14238851 | H38: 51.14238851 | J38: =IF(MNP_VR!C63<INPUT!$F$38*1000,MNP_VR!C63,INPUT!$F$38*1000) -> 2300 | K38: =MNP_VR!Z63 -> 749.729537 | L38: =(1.5/'FOGLIO DEPOSITO'!$F$391*MATERIALI!$J$78*(1+(ABS(K38)/(MNP_VR!$D$3*MNP_VR!$D$4*10^-6))/(1.5*MATERIALI!$J$78))^0.5)*(MNP_VR!$D$3*MNP_VR!$D$4*10^-6) -> 91.95499052 | M38: =IF(MNP_VR!C63>INPUT!$F$38*1000,INPUT!$F$38*1000,MNP_VR!C63) -> 2300 | N38: =IFERROR(('FOGLIO DEPOSITO'!$F$401+'FOGLIO DEPOSITO'!$F$399*'andamento taglio'!K38/('andamento taglio'!M38/1000*MNP_VR!$D$3*10^-3)/MATERIALI!$J$85)/'FOGLIO DEPOSITO'!$F$404*(M38/1000*MNP_VR!$D$3*10^-3),"") -> 177.0303672 | O38: =IFERROR((1/'FOGLIO DEPOSITO'!$F$391*MATERIALI!$J$83*0.1/2.3*(1+(ABS(K38)/(INPUT!$F$38*INPUT!$F$39))/(1*MATERIALI!$J$83*0.1))^0.5)*INPUT!$F$38*INPUT!$F$39,"") -> 390.1207381 | P38: 91.95499052 | Q38: 91.95499052
A39: =IF(MNP_V!C64<INPUT!$F$38*1000,MNP_V!C64,INPUT!$F$38*1000) -> 2300 | B39: =MNP_V!Z64 -> 439.8913774 | C39: =(1.5/'FOGLIO DEPOSITO'!$E$391*MATERIALI!$J$28*(1+(ABS(B39)/(INPUT!$F$38*INPUT!$F$39))/(1.5*MATERIALI!$J$28))^0.5)*INPUT!$F$38*INPUT!$F$39 -> 53.79196196 | D39: =IF(MNP_V!C64>INPUT!$F$38*1000,INPUT!$F$38*1000,MNP_V!C64) -> 2300 | E39: =IFERROR(('FOGLIO DEPOSITO'!$E$401+'FOGLIO DEPOSITO'!$E$399*'andamento taglio'!B39/('andamento taglio'!D39/1000*INPUT!$F$39)/MATERIALI!$J$35)/'FOGLIO DEPOSITO'!$E$404*(D39/1000*INPUT!$F$39),"") -> 51.88877186 | F39: =IFERROR((1/'FOGLIO DEPOSITO'!$E$391*MATERIALI!$J$33*0.1/2.3*(1+(ABS(B39)/(INPUT!$F$38*INPUT!$F$39))/(1*MATERIALI!$J$33*0.1))^0.5)*INPUT!$F$38*INPUT!$F$39,"") -> 353.1429227 | G39: 51.88877186 | H39: 51.88877186 | J39: =IF(MNP_VR!C64<INPUT!$F$38*1000,MNP_VR!C64,INPUT!$F$38*1000) -> 2300 | K39: =MNP_VR!Z64 -> 760.8113014 | L39: =(1.5/'FOGLIO DEPOSITO'!$F$391*MATERIALI!$J$78*(1+(ABS(K39)/(MNP_VR!$D$3*MNP_VR!$D$4*10^-6))/(1.5*MATERIALI!$J$78))^0.5)*(MNP_VR!$D$3*MNP_VR!$D$4*10^-6) -> 92.61239953 | M39: =IF(MNP_VR!C64>INPUT!$F$38*1000,INPUT!$F$38*1000,MNP_VR!C64) -> 2300 | N39: =IFERROR(('FOGLIO DEPOSITO'!$F$401+'FOGLIO DEPOSITO'!$F$399*'andamento taglio'!K39/('andamento taglio'!M39/1000*MNP_VR!$D$3*10^-3)/MATERIALI!$J$85)/'FOGLIO DEPOSITO'!$F$404*(M39/1000*MNP_VR!$D$3*10^-3),"") -> 179.2467201 | O39: =IFERROR((1/'FOGLIO DEPOSITO'!$F$391*MATERIALI!$J$83*0.1/2.3*(1+(ABS(K39)/(INPUT!$F$38*INPUT!$F$39))/(1*MATERIALI!$J$83*0.1))^0.5)*INPUT!$F$38*INPUT!$F$39,"") -> 391.3785902 | P39: 92.61239953 | Q39: 92.61239953
A40: =IF(MNP_V!C65<INPUT!$F$38*1000,MNP_V!C65,INPUT!$F$38*1000) -> 2300 | B40: =MNP_V!Z65 -> 444.2778588 | C40: =(1.5/'FOGLIO DEPOSITO'!$E$391*MATERIALI!$J$28*(1+(ABS(B40)/(INPUT!$F$38*INPUT!$F$39))/(1.5*MATERIALI!$J$28))^0.5)*INPUT!$F$38*INPUT!$F$39 -> 54.05175049 | D40: =IF(MNP_V!C65>INPUT!$F$38*1000,INPUT!$F$38*1000,MNP_V!C65) -> 2300 | E40: =IFERROR(('FOGLIO DEPOSITO'!$E$401+'FOGLIO DEPOSITO'!$E$399*'andamento taglio'!B40/('andamento taglio'!D40/1000*INPUT!$F$39)/MATERIALI!$J$35)/'FOGLIO DEPOSITO'!$E$404*(D40/1000*INPUT!$F$39),"") -> 52.32742001 | F40: =IFERROR((1/'FOGLIO DEPOSITO'!$E$391*MATERIALI!$J$33*0.1/2.3*(1+(ABS(B40)/(INPUT!$F$38*INPUT!$F$39))/(1*MATERIALI!$J$33*0.1))^0.5)*INPUT!$F$38*INPUT!$F$39,"") -> 353.6934092 | G40: 52.32742001 | H40: 52.32742001 | J40: =IF(MNP_VR!C65<INPUT!$F$38*1000,MNP_VR!C65,INPUT!$F$38*1000) -> 2300 | K40: =MNP_VR!Z65 -> 766.9496339 | L40: =(1.5/'FOGLIO DEPOSITO'!$F$391*MATERIALI!$J$78*(1+(ABS(K40)/(MNP_VR!$D$3*MNP_VR!$D$4*10^-6))/(1.5*MATERIALI!$J$78))^0.5)*(MNP_VR!$D$3*MNP_VR!$D$4*10^-6) -> 92.97454636 | M40: =IF(MNP_VR!C65>INPUT!$F$38*1000,INPUT!$F$38*1000,MNP_VR!C65) -> 2300 | N40: =IFERROR(('FOGLIO DEPOSITO'!$F$401+'FOGLIO DEPOSITO'!$F$399*'andamento taglio'!K40/('andamento taglio'!M40/1000*MNP_VR!$D$3*10^-3)/MATERIALI!$J$85)/'FOGLIO DEPOSITO'!$F$404*(M40/1000*MNP_VR!$D$3*10^-3),"") -> 180.4743866 | O40: =IFERROR((1/'FOGLIO DEPOSITO'!$F$391*MATERIALI!$J$83*0.1/2.3*(1+(ABS(K40)/(INPUT!$F$38*INPUT!$F$39))/(1*MATERIALI!$J$83*0.1))^0.5)*INPUT!$F$38*INPUT!$F$39,"") -> 392.0735939 | P40: 92.97454636 | Q40: 92.97454636
A41: =IF(MNP_V!C66<INPUT!$F$38*1000,MNP_V!C66,INPUT!$F$38*1000) -> 2300 | B41: =MNP_V!Z66 -> 447.0725964 | C41: =(1.5/'FOGLIO DEPOSITO'!$E$391*MATERIALI!$J$28*(1+(ABS(B41)/(INPUT!$F$38*INPUT!$F$39))/(1.5*MATERIALI!$J$28))^0.5)*INPUT!$F$38*INPUT!$F$39 -> 54.21661908 | D41: =IF(MNP_V!C66>INPUT!$F$38*1000,INPUT!$F$38*1000,MNP_V!C66) -> 2300 | E41: =IFERROR(('FOGLIO DEPOSITO'!$E$401+'FOGLIO DEPOSITO'!$E$399*'andamento taglio'!B41/('andamento taglio'!D41/1000*INPUT!$F$39)/MATERIALI!$J$35)/'FOGLIO DEPOSITO'!$E$404*(D41/1000*INPUT!$F$39),"") -> 52.60689376 | F41: =IFERROR((1/'FOGLIO DEPOSITO'!$E$391*MATERIALI!$J$33*0.1/2.3*(1+(ABS(B41)/(INPUT!$F$38*INPUT!$F$39))/(1*MATERIALI!$J$33*0.1))^0.5)*INPUT!$F$38*INPUT!$F$39,"") -> 354.0436916 | G41: 52.60689376 | H41: 52.60689376 | J41: =IF(MNP_VR!C66<INPUT!$F$38*1000,MNP_VR!C66,INPUT!$F$38*1000) -> 2300 | K41: =MNP_VR!Z66 -> 770.7008468 | L41: =(1.5/'FOGLIO DEPOSITO'!$F$391*MATERIALI!$J$78*(1+(ABS(K41)/(MNP_VR!$D$3*MNP_VR!$D$4*10^-6))/(1.5*MATERIALI!$J$78))^0.5)*(MNP_VR!$D$3*MNP_VR!$D$4*10^-6) -> 93.19516611 | M41: =IF(MNP_VR!C66>INPUT!$F$38*1000,INPUT!$F$38*1000,MNP_VR!C66) -> 2300 | N41: =IFERROR(('FOGLIO DEPOSITO'!$F$401+'FOGLIO DEPOSITO'!$F$399*'andamento taglio'!K41/('andamento taglio'!M41/1000*MNP_VR!$D$3*10^-3)/MATERIALI!$J$85)/'FOGLIO DEPOSITO'!$F$404*(M41/1000*MNP_VR!$D$3*10^-3),"") -> 181.2246292 | O41: =IFERROR((1/'FOGLIO DEPOSITO'!$F$391*MATERIALI!$J$83*0.1/2.3*(1+(ABS(K41)/(INPUT!$F$38*INPUT!$F$39))/(1*MATERIALI!$J$83*0.1))^0.5)*INPUT!$F$38*INPUT!$F$39,"") -> 392.4977137 | P41: 93.19516611 | Q41: 93.19516611
A42: =IF(MNP_V!C67<INPUT!$F$38*1000,MNP_V!C67,INPUT!$F$38*1000) -> 2300 | B42: =MNP_V!Z67 -> 448.9619853 | C42: =(1.5/'FOGLIO DEPOSITO'!$E$391*MATERIALI!$J$28*(1+(ABS(B42)/(INPUT!$F$38*INPUT!$F$39))/(1.5*MATERIALI!$J$28))^0.5)*INPUT!$F$38*INPUT!$F$39 -> 54.32779542 | D42: =IF(MNP_V!C67>INPUT!$F$38*1000,INPUT!$F$38*1000,MNP_V!C67) -> 2300 | E42: =IFERROR(('FOGLIO DEPOSITO'!$E$401+'FOGLIO DEPOSITO'!$E$399*'andamento taglio'!B42/('andamento taglio'!D42/1000*INPUT!$F$39)/MATERIALI!$J$35)/'FOGLIO DEPOSITO'!$E$404*(D42/1000*INPUT!$F$39),"") -> 52.79583266 | F42: =IFERROR((1/'FOGLIO DEPOSITO'!$E$391*MATERIALI!$J$33*0.1/2.3*(1+(ABS(B42)/(INPUT!$F$38*INPUT!$F$39))/(1*MATERIALI!$J$33*0.1))^0.5)*INPUT!$F$38*INPUT!$F$39,"") -> 354.2803046 | G42: 52.79583266 | H42: 52.79583266 | J42: =IF(MNP_VR!C67<INPUT!$F$38*1000,MNP_VR!C67,INPUT!$F$38*1000) -> 2300 | K42: =MNP_VR!Z67 -> 773.1595161 | L42: =(1.5/'FOGLIO DEPOSITO'!$F$391*MATERIALI!$J$78*(1+(ABS(K42)/(MNP_VR!$D$3*MNP_VR!$D$4*10^-6))/(1.5*MATERIALI!$J$78))^0.5)*(MNP_VR!$D$3*MNP_VR!$D$4*10^-6) -> 93.3394847 | M42: =IF(MNP_VR!C67>INPUT!$F$38*1000,INPUT!$F$38*1000,MNP_VR!C67) -> 2300 | N42: =IFERROR(('FOGLIO DEPOSITO'!$F$401+'FOGLIO DEPOSITO'!$F$399*'andamento taglio'!K42/('andamento taglio'!M42/1000*MNP_VR!$D$3*10^-3)/MATERIALI!$J$85)/'FOGLIO DEPOSITO'!$F$404*(M42/1000*MNP_VR!$D$3*10^-3),"") -> 181.7163631 | O42: =IFERROR((1/'FOGLIO DEPOSITO'!$F$391*MATERIALI!$J$83*0.1/2.3*(1+(ABS(K42)/(INPUT!$F$38*INPUT!$F$39))/(1*MATERIALI!$J$83*0.1))^0.5)*INPUT!$F$38*INPUT!$F$39,"") -> 392.7754474 | P42: 93.3394847 | Q42: 93.3394847
A43: =IF(MNP_V!C68<INPUT!$F$38*1000,MNP_V!C68,INPUT!$F$38*1000) -> 2300 | B43: =MNP_V!Z68 -> 450.2986912 | C43: =(1.5/'FOGLIO DEPOSITO'!$E$391*MATERIALI!$J$28*(1+(ABS(B43)/(INPUT!$F$38*INPUT!$F$39))/(1.5*MATERIALI!$J$28))^0.5)*INPUT!$F$38*INPUT!$F$39 -> 54.4063133 | D43: =IF(MNP_V!C68>INPUT!$F$38*1000,INPUT!$F$38*1000,MNP_V!C68) -> 2300 | E43: =IFERROR(('FOGLIO DEPOSITO'!$E$401+'FOGLIO DEPOSITO'!$E$399*'andamento taglio'!B43/('andamento taglio'!D43/1000*INPUT!$F$39)/MATERIALI!$J$35)/'FOGLIO DEPOSITO'!$E$404*(D43/1000*INPUT!$F$39),"") -> 52.92950324 | F43: =IFERROR((1/'FOGLIO DEPOSITO'!$E$391*MATERIALI!$J$33*0.1/2.3*(1+(ABS(B43)/(INPUT!$F$38*INPUT!$F$39))/(1*MATERIALI!$J$33*0.1))^0.5)*INPUT!$F$38*INPUT!$F$39,"") -> 354.4476083 | G43: 52.92950324 | H43: 52.92950324 | J43: =IF(MNP_VR!C68<INPUT!$F$38*1000,MNP_VR!C68,INPUT!$F$38*1000) -> 2300 | K43: =MNP_VR!Z68 -> 774.8578332 | L43: =(1.5/'FOGLIO DEPOSITO'!$F$391*MATERIALI!$J$78*(1+(ABS(K43)/(MNP_VR!$D$3*MNP_VR!$D$4*10^-6))/(1.5*MATERIALI!$J$78))^0.5)*(MNP_VR!$D$3*MNP_VR!$D$4*10^-6) -> 93.43904211 | M43: =IF(MNP_VR!C68>INPUT!$F$38*1000,INPUT!$F$38*1000,MNP_VR!C68) -> 2300 | N43: =IFERROR(('FOGLIO DEPOSITO'!$F$401+'FOGLIO DEPOSITO'!$F$399*'andamento taglio'!K43/('andamento taglio'!M43/1000*MNP_VR!$D$3*10^-3)/MATERIALI!$J$85)/'FOGLIO DEPOSITO'!$F$404*(M43/1000*MNP_VR!$D$3*10^-3),"") -> 182.0560265 | O43: =IFERROR((1/'FOGLIO DEPOSITO'!$F$391*MATERIALI!$J$83*0.1/2.3*(1+(ABS(K43)/(INPUT!$F$38*INPUT!$F$39))/(1*MATERIALI!$J$83*0.1))^0.5)*INPUT!$F$38*INPUT!$F$39,"") -> 392.9671764 | P43: 93.43904211 | Q43: 93.43904211
A44: =IF(MNP_V!C69<INPUT!$F$38*1000,MNP_V!C69,INPUT!$F$38*1000) -> 2300 | B44: =MNP_V!Z69 -> 451.2789974 | C44: =(1.5/'FOGLIO DEPOSITO'!$E$391*MATERIALI!$J$28*(1+(ABS(B44)/(INPUT!$F$38*INPUT!$F$39))/(1.5*MATERIALI!$J$28))^0.5)*INPUT!$F$38*INPUT!$F$39 -> 54.46382438 | D44: =IF(MNP_V!C69>INPUT!$F$38*1000,INPUT!$F$38*1000,MNP_V!C69) -> 2300 | E44: =IFERROR(('FOGLIO DEPOSITO'!$E$401+'FOGLIO DEPOSITO'!$E$399*'andamento taglio'!B44/('andamento taglio'!D44/1000*INPUT!$F$39)/MATERIALI!$J$35)/'FOGLIO DEPOSITO'!$E$404*(D44/1000*INPUT!$F$39),"") -> 53.02753387 | F44: =IFERROR((1/'FOGLIO DEPOSITO'!$E$391*MATERIALI!$J$33*0.1/2.3*(1+(ABS(B44)/(INPUT!$F$38*INPUT!$F$39))/(1*MATERIALI!$J$33*0.1))^0.5)*INPUT!$F$38*INPUT!$F$39,"") -> 354.5702544 | G44: 53.02753387 | H44: 53.02753387 | J44: =IF(MNP_VR!C69<INPUT!$F$38*1000,MNP_VR!C69,INPUT!$F$38*1000) -> 2300 | K44: =MNP_VR!Z69 -> 776.0798201 | L44: =(1.5/'FOGLIO DEPOSITO'!$F$391*MATERIALI!$J$78*(1+(ABS(K44)/(MNP_VR!$D$3*MNP_VR!$D$4*10^-6))/(1.5*MATERIALI!$J$78))^0.5)*(MNP_VR!$D$3*MNP_VR!$D$4*10^-6) -> 93.51061088 | M44: =IF(MNP_VR!C69>INPUT!$F$38*1000,INPUT!$F$38*1000,MNP_VR!C69) -> 2300 | N44: =IFERROR(('FOGLIO DEPOSITO'!$F$401+'FOGLIO DEPOSITO'!$F$399*'andamento taglio'!K44/('andamento taglio'!M44/1000*MNP_VR!$D$3*10^-3)/MATERIALI!$J$85)/'FOGLIO DEPOSITO'!$F$404*(M44/1000*MNP_VR!$D$3*10^-3),"") -> 182.3004239 | O44: =IFERROR((1/'FOGLIO DEPOSITO'!$F$391*MATERIALI!$J$83*0.1/2.3*(1+(ABS(K44)/(INPUT!$F$38*INPUT!$F$39))/(1*MATERIALI!$J$83*0.1))^0.5)*INPUT!$F$38*INPUT!$F$39,"") -> 393.1050729 | P44: 93.51061088 | Q44: 93.51061088
A45: =IF(MNP_V!C70<INPUT!$F$38*1000,MNP_V!C70,INPUT!$F$38*1000) -> 2300 | B45: =MNP_V!Z70 -> 452.0191995 | C45: =(1.5/'FOGLIO DEPOSITO'!$E$391*MATERIALI!$J$28*(1+(ABS(B45)/(INPUT!$F$38*INPUT!$F$39))/(1.5*MATERIALI!$J$28))^0.5)*INPUT!$F$38*INPUT!$F$39 -> 54.50720919 | D45: =IF(MNP_V!C70>INPUT!$F$38*1000,INPUT!$F$38*1000,MNP_V!C70) -> 2300 | E45: =IFERROR(('FOGLIO DEPOSITO'!$E$401+'FOGLIO DEPOSITO'!$E$399*'andamento taglio'!B45/('andamento taglio'!D45/1000*INPUT!$F$39)/MATERIALI!$J$35)/'FOGLIO DEPOSITO'!$E$404*(D45/1000*INPUT!$F$39),"") -> 53.10155408 | F45: =IFERROR((1/'FOGLIO DEPOSITO'!$E$391*MATERIALI!$J$33*0.1/2.3*(1+(ABS(B45)/(INPUT!$F$38*INPUT!$F$39))/(1*MATERIALI!$J$33*0.1))^0.5)*INPUT!$F$38*INPUT!$F$39,"") -> 354.662833 | G45: 53.10155408 | H45: 53.10155408 | J45: =IF(MNP_VR!C70<INPUT!$F$38*1000,MNP_VR!C70,INPUT!$F$38*1000) -> 2300 | K45: =MNP_VR!Z70 -> 776.9882798 | L45: =(1.5/'FOGLIO DEPOSITO'!$F$391*MATERIALI!$J$78*(1+(ABS(K45)/(MNP_VR!$D$3*MNP_VR!$D$4*10^-6))/(1.5*MATERIALI!$J$78))^0.5)*(MNP_VR!$D$3*MNP_VR!$D$4*10^-6) -> 93.56378166 | M45: =IF(MNP_VR!C70>INPUT!$F$38*1000,INPUT!$F$38*1000,MNP_VR!C70) -> 2300 | N45: =IFERROR(('FOGLIO DEPOSITO'!$F$401+'FOGLIO DEPOSITO'!$F$399*'andamento taglio'!K45/('andamento taglio'!M45/1000*MNP_VR!$D$3*10^-3)/MATERIALI!$J$85)/'FOGLIO DEPOSITO'!$F$404*(M45/1000*MNP_VR!$D$3*10^-3),"") -> 182.4821158 | O45: =IFERROR((1/'FOGLIO DEPOSITO'!$F$391*MATERIALI!$J$83*0.1/2.3*(1+(ABS(K45)/(INPUT!$F$38*INPUT!$F$39))/(1*MATERIALI!$J$83*0.1))^0.5)*INPUT!$F$38*INPUT!$F$39,"") -> 393.2075578 | P45: 93.56378166 | Q45: 93.56378166
A46: =IF(MNP_V!C71<INPUT!$F$38*1000,MNP_V!C71,INPUT!$F$38*1000) -> 2300 | B46: =MNP_V!Z71 -> 452.591756 | C46: =(1.5/'FOGLIO DEPOSITO'!$E$391*MATERIALI!$J$28*(1+(ABS(B46)/(INPUT!$F$38*INPUT!$F$39))/(1.5*MATERIALI!$J$28))^0.5)*INPUT!$F$38*INPUT!$F$39 -> 54.54074427 | D46: =IF(MNP_V!C71>INPUT!$F$38*1000,INPUT!$F$38*1000,MNP_V!C71) -> 2300 | E46: =IFERROR(('FOGLIO DEPOSITO'!$E$401+'FOGLIO DEPOSITO'!$E$399*'andamento taglio'!B46/('andamento taglio'!D46/1000*INPUT!$F$39)/MATERIALI!$J$35)/'FOGLIO DEPOSITO'!$E$404*(D46/1000*INPUT!$F$39),"") -> 53.15880973 | F46: =IFERROR((1/'FOGLIO DEPOSITO'!$E$391*MATERIALI!$J$33*0.1/2.3*(1+(ABS(B46)/(INPUT!$F$38*INPUT!$F$39))/(1*MATERIALI!$J$33*0.1))^0.5)*INPUT!$F$38*INPUT!$F$39,"") -> 354.7344273 | G46: 53.15880973 | H46: 53.15880973 | J46: =IF(MNP_VR!C71<INPUT!$F$38*1000,MNP_VR!C71,INPUT!$F$38*1000) -> 2300 | K46: =MNP_VR!Z71 -> 777.681968 | L46: =(1.5/'FOGLIO DEPOSITO'!$F$391*MATERIALI!$J$78*(1+(ABS(K46)/(MNP_VR!$D$3*MNP_VR!$D$4*10^-6))/(1.5*MATERIALI!$J$78))^0.5)*(MNP_VR!$D$3*MNP_VR!$D$4*10^-6) -> 93.60436185 | M46: =IF(MNP_VR!C71>INPUT!$F$38*1000,INPUT!$F$38*1000,MNP_VR!C71) -> 2300 | N46: =IFERROR(('FOGLIO DEPOSITO'!$F$401+'FOGLIO DEPOSITO'!$F$399*'andamento taglio'!K46/('andamento taglio'!M46/1000*MNP_VR!$D$3*10^-3)/MATERIALI!$J$85)/'FOGLIO DEPOSITO'!$F$404*(M46/1000*MNP_VR!$D$3*10^-3),"") -> 182.6208535 | O46: =IFERROR((1/'FOGLIO DEPOSITO'!$F$391*MATERIALI!$J$83*0.1/2.3*(1+(ABS(K46)/(INPUT!$F$38*INPUT!$F$39))/(1*MATERIALI!$J$83*0.1))^0.5)*INPUT!$F$38*INPUT!$F$39,"") -> 393.2857959 | P46: 93.60436185 | Q46: 93.60436185
A47: =IF(MNP_V!C72<INPUT!$F$38*1000,MNP_V!C72,INPUT!$F$38*1000) -> 2300 | B47: =MNP_V!Z72 -> 453.04372 | C47: =(1.5/'FOGLIO DEPOSITO'!$E$391*MATERIALI!$J$28*(1+(ABS(B47)/(INPUT!$F$38*INPUT!$F$39))/(1.5*MATERIALI!$J$28))^0.5)*INPUT!$F$38*INPUT!$F$39 -> 54.56720159 | D47: =IF(MNP_V!C72>INPUT!$F$38*1000,INPUT!$F$38*1000,MNP_V!C72) -> 2300 | E47: =IFERROR(('FOGLIO DEPOSITO'!$E$401+'FOGLIO DEPOSITO'!$E$399*'andamento taglio'!B47/('andamento taglio'!D47/1000*INPUT!$F$39)/MATERIALI!$J$35)/'FOGLIO DEPOSITO'!$E$404*(D47/1000*INPUT!$F$39),"") -> 53.20400613 | F47: =IFERROR((1/'FOGLIO DEPOSITO'!$E$391*MATERIALI!$J$33*0.1/2.3*(1+(ABS(B47)/(INPUT!$F$38*INPUT!$F$39))/(1*MATERIALI!$J$33*0.1))^0.5)*INPUT!$F$38*INPUT!$F$39,"") -> 354.7909321 | G47: 53.20400613 | H47: 53.20400613 | J47: =IF(MNP_VR!C72<INPUT!$F$38*1000,MNP_VR!C72,INPUT!$F$38*1000) -> 2300 | K47: =MNP_VR!Z72 -> 778.2236116 | L47: =(1.5/'FOGLIO DEPOSITO'!$F$391*MATERIALI!$J$78*(1+(ABS(K47)/(MNP_VR!$D$3*MNP_VR!$D$4*10^-6))/(1.5*MATERIALI!$J$78))^0.5)*(MNP_VR!$D$3*MNP_VR!$D$4*10^-6) -> 93.63603533 | M47: =IF(MNP_VR!C72>INPUT!$F$38*1000,INPUT!$F$38*1000,MNP_VR!C72) -> 2300 | N47: =IFERROR(('FOGLIO DEPOSITO'!$F$401+'FOGLIO DEPOSITO'!$F$399*'andamento taglio'!K47/('andamento taglio'!M47/1000*MNP_VR!$D$3*10^-3)/MATERIALI!$J$85)/'FOGLIO DEPOSITO'!$F$404*(M47/1000*MNP_VR!$D$3*10^-3),"") -> 182.7291822 | O47: =IFERROR((1/'FOGLIO DEPOSITO'!$F$391*MATERIALI!$J$83*0.1/2.3*(1+(ABS(K47)/(INPUT!$F$38*INPUT!$F$39))/(1*MATERIALI!$J$83*0.1))^0.5)*INPUT!$F$38*INPUT!$F$39,"") -> 393.3468748 | P47: 93.63603533 | Q47: 93.63603533
A48: =IF(MNP_V!C73<INPUT!$F$38*1000,MNP_V!C73,INPUT!$F$38*1000) -> 2300 | B48: =MNP_V!Z73 -> 453.4067245 | C48: =(1.5/'FOGLIO DEPOSITO'!$E$391*MATERIALI!$J$28*(1+(ABS(B48)/(INPUT!$F$38*INPUT!$F$39))/(1.5*MATERIALI!$J$28))^0.5)*INPUT!$F$38*INPUT!$F$39 -> 54.58844207 | D48: =IF(MNP_V!C73>INPUT!$F$38*1000,INPUT!$F$38*1000,MNP_V!C73) -> 2300 | E48: =IFERROR(('FOGLIO DEPOSITO'!$E$401+'FOGLIO DEPOSITO'!$E$399*'andamento taglio'!B48/('andamento taglio'!D48/1000*INPUT!$F$39)/MATERIALI!$J$35)/'FOGLIO DEPOSITO'!$E$404*(D48/1000*INPUT!$F$39),"") -> 53.24030657 | F48: =IFERROR((1/'FOGLIO DEPOSITO'!$E$391*MATERIALI!$J$33*0.1/2.3*(1+(ABS(B48)/(INPUT!$F$38*INPUT!$F$39))/(1*MATERIALI!$J$33*0.1))^0.5)*INPUT!$F$38*INPUT!$F$39,"") -> 354.8363085 | G48: 53.24030657 | H48: 53.24030657 | J48: =IF(MNP_VR!C73<INPUT!$F$38*1000,MNP_VR!C73,INPUT!$F$38*1000) -> 2300 | K48: =MNP_VR!Z73 -> 778.6546035 | L48: =(1.5/'FOGLIO DEPOSITO'!$F$391*MATERIALI!$J$78*(1+(ABS(K48)/(MNP_VR!$D$3*MNP_VR!$D$4*10^-6))/(1.5*MATERIALI!$J$78))^0.5)*(MNP_VR!$D$3*MNP_VR!$D$4*10^-6) -> 93.66123062 | M48: =IF(MNP_VR!C73>INPUT!$F$38*1000,INPUT!$F$38*1000,MNP_VR!C73) -> 2300 | N48: =IFERROR(('FOGLIO DEPOSITO'!$F$401+'FOGLIO DEPOSITO'!$F$399*'andamento taglio'!K48/('andamento taglio'!M48/1000*MNP_VR!$D$3*10^-3)/MATERIALI!$J$85)/'FOGLIO DEPOSITO'!$F$404*(M48/1000*MNP_VR!$D$3*10^-3),"") -> 182.8153806 | O48: =IFERROR((1/'FOGLIO DEPOSITO'!$F$391*MATERIALI!$J$83*0.1/2.3*(1+(ABS(K48)/(INPUT!$F$38*INPUT!$F$39))/(1*MATERIALI!$J$83*0.1))^0.5)*INPUT!$F$38*INPUT!$F$39,"") -> 393.3954691 | P48: 93.66123062 | Q48: 93.66123062
A49: =IF(MNP_V!C74<INPUT!$F$38*1000,MNP_V!C74,INPUT!$F$38*1000) -> 2300 | B49: =MNP_V!Z74 -> 453.7026714 | C49: =(1.5/'FOGLIO DEPOSITO'!$E$391*MATERIALI!$J$28*(1+(ABS(B49)/(INPUT!$F$38*INPUT!$F$39))/(1.5*MATERIALI!$J$28))^0.5)*INPUT!$F$38*INPUT!$F$39 -> 54.6057527 | D49: =IF(MNP_V!C74>INPUT!$F$38*1000,INPUT!$F$38*1000,MNP_V!C74) -> 2300 | E49: =IFERROR(('FOGLIO DEPOSITO'!$E$401+'FOGLIO DEPOSITO'!$E$399*'andamento taglio'!B49/('andamento taglio'!D49/1000*INPUT!$F$39)/MATERIALI!$J$35)/'FOGLIO DEPOSITO'!$E$404*(D49/1000*INPUT!$F$39),"") -> 53.26990127 | F49: =IFERROR((1/'FOGLIO DEPOSITO'!$E$391*MATERIALI!$J$33*0.1/2.3*(1+(ABS(B49)/(INPUT!$F$38*INPUT!$F$39))/(1*MATERIALI!$J$33*0.1))^0.5)*INPUT!$F$38*INPUT!$F$39,"") -> 354.8732984 | G49: 53.26990127 | H49: 53.26990127 | J49: =IF(MNP_VR!C74<INPUT!$F$38*1000,MNP_VR!C74,INPUT!$F$38*1000) -> 2300 | K49: =MNP_VR!Z74 -> 779.0031527 | L49: =(1.5/'FOGLIO DEPOSITO'!$F$391*MATERIALI!$J$78*(1+(ABS(K49)/(MNP_VR!$D$3*MNP_VR!$D$4*10^-6))/(1.5*MATERIALI!$J$78))^0.5)*(MNP_VR!$D$3*MNP_VR!$D$4*10^-6) -> 93.68160145 | M49: =IF(MNP_VR!C74>INPUT!$F$38*1000,INPUT!$F$38*1000,MNP_VR!C74) -> 2300 | N49: =IFERROR(('FOGLIO DEPOSITO'!$F$401+'FOGLIO DEPOSITO'!$F$399*'andamento taglio'!K49/('andamento taglio'!M49/1000*MNP_VR!$D$3*10^-3)/MATERIALI!$J$85)/'FOGLIO DEPOSITO'!$F$404*(M49/1000*MNP_VR!$D$3*10^-3),"") -> 182.8850904 | O49: =IFERROR((1/'FOGLIO DEPOSITO'!$F$391*MATERIALI!$J$83*0.1/2.3*(1+(ABS(K49)/(INPUT!$F$38*INPUT!$F$39))/(1*MATERIALI!$J$83*0.1))^0.5)*INPUT!$F$38*INPUT!$F$39,"") -> 393.4347637 | P49: 93.68160145 | Q49: 93.68160145
A50: =IF(MNP_V!C75<INPUT!$F$38*1000,MNP_V!C75,INPUT!$F$38*1000) -> 2300 | B50: =MNP_V!Z75 -> 453.9471152 | C50: =(1.5/'FOGLIO DEPOSITO'!$E$391*MATERIALI!$J$28*(1+(ABS(B50)/(INPUT!$F$38*INPUT!$F$39))/(1.5*MATERIALI!$J$28))^0.5)*INPUT!$F$38*INPUT!$F$39 -> 54.62004665 | D50: =IF(MNP_V!C75>INPUT!$F$38*1000,INPUT!$F$38*1000,MNP_V!C75) -> 2300 | E50: =IFERROR(('FOGLIO DEPOSITO'!$E$401+'FOGLIO DEPOSITO'!$E$399*'andamento taglio'!B50/('andamento taglio'!D50/1000*INPUT!$F$39)/MATERIALI!$J$35)/'FOGLIO DEPOSITO'!$E$404*(D50/1000*INPUT!$F$39),"") -> 53.29434564 | F50: =IFERROR((1/'FOGLIO DEPOSITO'!$E$391*MATERIALI!$J$33*0.1/2.3*(1+(ABS(B50)/(INPUT!$F$38*INPUT!$F$39))/(1*MATERIALI!$J$33*0.1))^0.5)*INPUT!$F$38*INPUT!$F$39,"") -> 354.903848 | G50: 53.29434564 | H50: 53.29434564 | J50: =IF(MNP_VR!C75<INPUT!$F$38*1000,MNP_VR!C75,INPUT!$F$38*1000) -> 2300 | K50: =MNP_VR!Z75 -> 779.2890196 | L50: =(1.5/'FOGLIO DEPOSITO'!$F$391*MATERIALI!$J$78*(1+(ABS(K50)/(MNP_VR!$D$3*MNP_VR!$D$4*10^-6))/(1.5*MATERIALI!$J$78))^0.5)*(MNP_VR!$D$3*MNP_VR!$D$4*10^-6) -> 93.69830553 | M50: =IF(MNP_VR!C75>INPUT!$F$38*1000,INPUT!$F$38*1000,MNP_VR!C75) -> 2300 | N50: =IFERROR(('FOGLIO DEPOSITO'!$F$401+'FOGLIO DEPOSITO'!$F$399*'andamento taglio'!K50/('andamento taglio'!M50/1000*MNP_VR!$D$3*10^-3)/MATERIALI!$J$85)/'FOGLIO DEPOSITO'!$F$404*(M50/1000*MNP_VR!$D$3*10^-3),"") -> 182.9422638 | O50: =IFERROR((1/'FOGLIO DEPOSITO'!$F$391*MATERIALI!$J$83*0.1/2.3*(1+(ABS(K50)/(INPUT!$F$38*INPUT!$F$39))/(1*MATERIALI!$J$83*0.1))^0.5)*INPUT!$F$38*INPUT!$F$39,"") -> 393.4669887 | P50: 93.69830553 | Q50: 93.69830553
A51: =IF(MNP_V!C76<INPUT!$F$38*1000,MNP_V!C76,INPUT!$F$38*1000) -> 2300 | B51: =MNP_V!Z76 -> 454.1513484 | C51: =(1.5/'FOGLIO DEPOSITO'!$E$391*MATERIALI!$J$28*(1+(ABS(B51)/(INPUT!$F$38*INPUT!$F$39))/(1.5*MATERIALI!$J$28))^0.5)*INPUT!$F$38*INPUT!$F$39 -> 54.6319864 | D51: =IF(MNP_V!C76>INPUT!$F$38*1000,INPUT!$F$38*1000,MNP_V!C76) -> 2300 | E51: =IFERROR(('FOGLIO DEPOSITO'!$E$401+'FOGLIO DEPOSITO'!$E$399*'andamento taglio'!B51/('andamento taglio'!D51/1000*INPUT!$F$39)/MATERIALI!$J$35)/'FOGLIO DEPOSITO'!$E$404*(D51/1000*INPUT!$F$39),"") -> 53.31476896 | F51: =IFERROR((1/'FOGLIO DEPOSITO'!$E$391*MATERIALI!$J$33*0.1/2.3*(1+(ABS(B51)/(INPUT!$F$38*INPUT!$F$39))/(1*MATERIALI!$J$33*0.1))^0.5)*INPUT!$F$38*INPUT!$F$39,"") -> 354.9293703 | G51: 53.31476896 | H51: 53.31476896 | J51: =IF(MNP_VR!C76<INPUT!$F$38*1000,MNP_VR!C76,INPUT!$F$38*1000) -> 2300 | K51: =MNP_VR!Z76 -> 779.5263808 | L51: =(1.5/'FOGLIO DEPOSITO'!$F$391*MATERIALI!$J$78*(1+(ABS(K51)/(MNP_VR!$D$3*MNP_VR!$D$4*10^-6))/(1.5*MATERIALI!$J$78))^0.5)*(MNP_VR!$D$3*MNP_VR!$D$4*10^-6) -> 93.71217301 | M51: =IF(MNP_VR!C76>INPUT!$F$38*1000,INPUT!$F$38*1000,MNP_VR!C76) -> 2300 | N51: =IFERROR(('FOGLIO DEPOSITO'!$F$401+'FOGLIO DEPOSITO'!$F$399*'andamento taglio'!K51/('andamento taglio'!M51/1000*MNP_VR!$D$3*10^-3)/MATERIALI!$J$85)/'FOGLIO DEPOSITO'!$F$404*(M51/1000*MNP_VR!$D$3*10^-3),"") -> 182.989736 | O51: =IFERROR((1/'FOGLIO DEPOSITO'!$F$391*MATERIALI!$J$83*0.1/2.3*(1+(ABS(K51)/(INPUT!$F$38*INPUT!$F$39))/(1*MATERIALI!$J$83*0.1))^0.5)*INPUT!$F$38*INPUT!$F$39,"") -> 393.4937437 | P51: 93.71217301 | Q51: 93.71217301
A52: =IF(MNP_V!C77<INPUT!$F$38*1000,MNP_V!C77,INPUT!$F$38*1000) -> 2300 | B52: =MNP_V!Z77 -> 454.3237302 | C52: =(1.5/'FOGLIO DEPOSITO'!$E$391*MATERIALI!$J$28*(1+(ABS(B52)/(INPUT!$F$38*INPUT!$F$39))/(1.5*MATERIALI!$J$28))^0.5)*INPUT!$F$38*INPUT!$F$39 -> 54.64206204 | D52: =IF(MNP_V!C77>INPUT!$F$38*1000,INPUT!$F$38*1000,MNP_V!C77) -> 2300 | E52: =IFERROR(('FOGLIO DEPOSITO'!$E$401+'FOGLIO DEPOSITO'!$E$399*'andamento taglio'!B52/('andamento taglio'!D52/1000*INPUT!$F$39)/MATERIALI!$J$35)/'FOGLIO DEPOSITO'!$E$404*(D52/1000*INPUT!$F$39),"") -> 53.33200714 | F52: =IFERROR((1/'FOGLIO DEPOSITO'!$E$391*MATERIALI!$J$33*0.1/2.3*(1+(ABS(B52)/(INPUT!$F$38*INPUT!$F$39))/(1*MATERIALI!$J$33*0.1))^0.5)*INPUT!$F$38*INPUT!$F$39,"") -> 354.9509108 | G52: 53.33200714 | H52: 53.33200714 | J52: =IF(MNP_VR!C77<INPUT!$F$38*1000,MNP_VR!C77,INPUT!$F$38*1000) -> 2300 | K52: =MNP_VR!Z77 -> 779.7256202 | L52: =(1.5/'FOGLIO DEPOSITO'!$F$391*MATERIALI!$J$78*(1+(ABS(K52)/(MNP_VR!$D$3*MNP_VR!$D$4*10^-6))/(1.5*MATERIALI!$J$78))^0.5)*(MNP_VR!$D$3*MNP_VR!$D$4*10^-6) -> 93.72381169 | M52: =IF(MNP_VR!C77>INPUT!$F$38*1000,INPUT!$F$38*1000,MNP_VR!C77) -> 2300 | N52: =IFERROR(('FOGLIO DEPOSITO'!$F$401+'FOGLIO DEPOSITO'!$F$399*'andamento taglio'!K52/('andamento taglio'!M52/1000*MNP_VR!$D$3*10^-3)/MATERIALI!$J$85)/'FOGLIO DEPOSITO'!$F$404*(M52/1000*MNP_VR!$D$3*10^-3),"") -> 183.0295839 | O52: =IFERROR((1/'FOGLIO DEPOSITO'!$F$391*MATERIALI!$J$83*0.1/2.3*(1+(ABS(K52)/(INPUT!$F$38*INPUT!$F$39))/(1*MATERIALI!$J$83*0.1))^0.5)*INPUT!$F$38*INPUT!$F$39,"") -> 393.5162003 | P52: 93.72381169 | Q52: 93.72381169
A53: =IF(MNP_V!C78<INPUT!$F$38*1000,MNP_V!C78,INPUT!$F$38*1000) -> 2300 | B53: =MNP_V!Z78 -> 454.4705551 | C53: =(1.5/'FOGLIO DEPOSITO'!$E$391*MATERIALI!$J$28*(1+(ABS(B53)/(INPUT!$F$38*INPUT!$F$39))/(1.5*MATERIALI!$J$28))^0.5)*INPUT!$F$38*INPUT!$F$39 -> 54.65064244 | D53: =IF(MNP_V!C78>INPUT!$F$38*1000,INPUT!$F$38*1000,MNP_V!C78) -> 2300 | E53: =IFERROR(('FOGLIO DEPOSITO'!$E$401+'FOGLIO DEPOSITO'!$E$399*'andamento taglio'!B53/('andamento taglio'!D53/1000*INPUT!$F$39)/MATERIALI!$J$35)/'FOGLIO DEPOSITO'!$E$404*(D53/1000*INPUT!$F$39),"") -> 53.34668964 | F53: =IFERROR((1/'FOGLIO DEPOSITO'!$E$391*MATERIALI!$J$33*0.1/2.3*(1+(ABS(B53)/(INPUT!$F$38*INPUT!$F$39))/(1*MATERIALI!$J$33*0.1))^0.5)*INPUT!$F$38*INPUT!$F$39,"") -> 354.9692567 | G53: 53.34668964 | H53: 53.34668964 | J53: =IF(MNP_VR!C78<INPUT!$F$38*1000,MNP_VR!C78,INPUT!$F$38*1000) -> 2300 | K53: =MNP_VR!Z78 -> 779.8944847 | L53: =(1.5/'FOGLIO DEPOSITO'!$F$391*MATERIALI!$J$78*(1+(ABS(K53)/(MNP_VR!$D$3*MNP_VR!$D$4*10^-6))/(1.5*MATERIALI!$J$78))^0.5)*(MNP_VR!$D$3*MNP_VR!$D$4*10^-6) -> 93.73367488 | M53: =IF(MNP_VR!C78>INPUT!$F$38*1000,INPUT!$F$38*1000,MNP_VR!C78) -> 2300 | N53: =IFERROR(('FOGLIO DEPOSITO'!$F$401+'FOGLIO DEPOSITO'!$F$399*'andamento taglio'!K53/('andamento taglio'!M53/1000*MNP_VR!$D$3*10^-3)/MATERIALI!$J$85)/'FOGLIO DEPOSITO'!$F$404*(M53/1000*MNP_VR!$D$3*10^-3),"") -> 183.0633568 | O53: =IFERROR((1/'FOGLIO DEPOSITO'!$F$391*MATERIALI!$J$83*0.1/2.3*(1+(ABS(K53)/(INPUT!$F$38*INPUT!$F$39))/(1*MATERIALI!$J$83*0.1))^0.5)*INPUT!$F$38*INPUT!$F$39,"") -> 393.5352323 | P53: 93.73367488 | Q53: 93.73367488
A54: =IF(MNP_V!C79<INPUT!$F$38*1000,MNP_V!C79,INPUT!$F$38*1000) -> 2300 | B54: =MNP_V!Z79 -> 454.5966365 | C54: =(1.5/'FOGLIO DEPOSITO'!$E$391*MATERIALI!$J$28*(1+(ABS(B54)/(INPUT!$F$38*INPUT!$F$39))/(1.5*MATERIALI!$J$28))^0.5)*INPUT!$F$38*INPUT!$F$39 -> 54.65800951 | D54: =IF(MNP_V!C79>INPUT!$F$38*1000,INPUT!$F$38*1000,MNP_V!C79) -> 2300 | E54: =IFERROR(('FOGLIO DEPOSITO'!$E$401+'FOGLIO DEPOSITO'!$E$399*'andamento taglio'!B54/('andamento taglio'!D54/1000*INPUT!$F$39)/MATERIALI!$J$35)/'FOGLIO DEPOSITO'!$E$404*(D54/1000*INPUT!$F$39),"") -> 53.35929777 | F54: =IFERROR((1/'FOGLIO DEPOSITO'!$E$391*MATERIALI!$J$33*0.1/2.3*(1+(ABS(B54)/(INPUT!$F$38*INPUT!$F$39))/(1*MATERIALI!$J$33*0.1))^0.5)*INPUT!$F$38*INPUT!$F$39,"") -> 354.9850099 | G54: 53.35929777 | H54: 53.35929777 | J54: =IF(MNP_VR!C79<INPUT!$F$38*1000,MNP_VR!C79,INPUT!$F$38*1000) -> 2300 | K54: =MNP_VR!Z79 -> 780.0388491 | L54: =(1.5/'FOGLIO DEPOSITO'!$F$391*MATERIALI!$J$78*(1+(ABS(K54)/(MNP_VR!$D$3*MNP_VR!$D$4*10^-6))/(1.5*MATERIALI!$J$78))^0.5)*(MNP_VR!$D$3*MNP_VR!$D$4*10^-6) -> 93.74210622 | M54: =IF(MNP_VR!C79>INPUT!$F$38*1000,INPUT!$F$38*1000,MNP_VR!C79) -> 2300 | N54: =IFERROR(('FOGLIO DEPOSITO'!$F$401+'FOGLIO DEPOSITO'!$F$399*'andamento taglio'!K54/('andamento taglio'!M54/1000*MNP_VR!$D$3*10^-3)/MATERIALI!$J$85)/'FOGLIO DEPOSITO'!$F$404*(M54/1000*MNP_VR!$D$3*10^-3),"") -> 183.0922297 | O54: =IFERROR((1/'FOGLIO DEPOSITO'!$F$391*MATERIALI!$J$83*0.1/2.3*(1+(ABS(K54)/(INPUT!$F$38*INPUT!$F$39))/(1*MATERIALI!$J$83*0.1))^0.5)*INPUT!$F$38*INPUT!$F$39,"") -> 393.5515023 | P54: 93.74210622 | Q54: 93.74210622
A55: =IF(MNP_V!C80<INPUT!$F$38*1000,MNP_V!C80,INPUT!$F$38*1000) -> 2300 | B55: =MNP_V!Z80 -> 454.7057054 | C55: =(1.5/'FOGLIO DEPOSITO'!$E$391*MATERIALI!$J$28*(1+(ABS(B55)/(INPUT!$F$38*INPUT!$F$39))/(1.5*MATERIALI!$J$28))^0.5)*INPUT!$F$38*INPUT!$F$39 -> 54.66438172 | D55: =IF(MNP_V!C80>INPUT!$F$38*1000,INPUT!$F$38*1000,MNP_V!C80) -> 2300 | E55: =IFERROR(('FOGLIO DEPOSITO'!$E$401+'FOGLIO DEPOSITO'!$E$399*'andamento taglio'!B55/('andamento taglio'!D55/1000*INPUT!$F$39)/MATERIALI!$J$35)/'FOGLIO DEPOSITO'!$E$404*(D55/1000*INPUT!$F$39),"") -> 53.37020467 | F55: =IFERROR((1/'FOGLIO DEPOSITO'!$E$391*MATERIALI!$J$33*0.1/2.3*(1+(ABS(B55)/(INPUT!$F$38*INPUT!$F$39))/(1*MATERIALI!$J$33*0.1))^0.5)*INPUT!$F$38*INPUT!$F$39,"") -> 354.998637 | G55: 53.37020467 | H55: 53.37020467 | J55: =IF(MNP_VR!C80<INPUT!$F$38*1000,MNP_VR!C80,INPUT!$F$38*1000) -> 2300 | K55: =MNP_VR!Z80 -> 780.1632334 | L55: =(1.5/'FOGLIO DEPOSITO'!$F$391*MATERIALI!$J$78*(1+(ABS(K55)/(MNP_VR!$D$3*MNP_VR!$D$4*10^-6))/(1.5*MATERIALI!$J$78))^0.5)*(MNP_VR!$D$3*MNP_VR!$D$4*10^-6) -> 93.74937006 | M55: =IF(MNP_VR!C80>INPUT!$F$38*1000,INPUT!$F$38*1000,MNP_VR!C80) -> 2300 | N55: =IFERROR(('FOGLIO DEPOSITO'!$F$401+'FOGLIO DEPOSITO'!$F$399*'andamento taglio'!K55/('andamento taglio'!M55/1000*MNP_VR!$D$3*10^-3)/MATERIALI!$J$85)/'FOGLIO DEPOSITO'!$F$404*(M55/1000*MNP_VR!$D$3*10^-3),"") -> 183.1171065 | O55: =IFERROR((1/'FOGLIO DEPOSITO'!$F$391*MATERIALI!$J$83*0.1/2.3*(1+(ABS(K55)/(INPUT!$F$38*INPUT!$F$39))/(1*MATERIALI!$J$83*0.1))^0.5)*INPUT!$F$38*INPUT!$F$39,"") -> 393.56552 | P55: 93.74937006 | Q55: 93.74937006
A56: =IF(MNP_V!C81<INPUT!$F$38*1000,MNP_V!C81,INPUT!$F$38*1000) -> 2300 | B56: =MNP_V!Z81 -> 454.8006905 | C56: =(1.5/'FOGLIO DEPOSITO'!$E$391*MATERIALI!$J$28*(1+(ABS(B56)/(INPUT!$F$38*INPUT!$F$39))/(1.5*MATERIALI!$J$28))^0.5)*INPUT!$F$38*INPUT!$F$39 -> 54.6699305 | D56: =IF(MNP_V!C81>INPUT!$F$38*1000,INPUT!$F$38*1000,MNP_V!C81) -> 2300 | E56: =IFERROR(('FOGLIO DEPOSITO'!$E$401+'FOGLIO DEPOSITO'!$E$399*'andamento taglio'!B56/('andamento taglio'!D56/1000*INPUT!$F$39)/MATERIALI!$J$35)/'FOGLIO DEPOSITO'!$E$404*(D56/1000*INPUT!$F$39),"") -> 53.37970317 | F56: =IFERROR((1/'FOGLIO DEPOSITO'!$E$391*MATERIALI!$J$33*0.1/2.3*(1+(ABS(B56)/(INPUT!$F$38*INPUT!$F$39))/(1*MATERIALI!$J$33*0.1))^0.5)*INPUT!$F$38*INPUT!$F$39,"") -> 355.010504 | G56: 53.37970317 | H56: 53.37970317 | J56: =IF(MNP_VR!C81<INPUT!$F$38*1000,MNP_VR!C81,INPUT!$F$38*1000) -> 2300 | K56: =MNP_VR!Z81 -> 780.2711615 | L56: =(1.5/'FOGLIO DEPOSITO'!$F$391*MATERIALI!$J$78*(1+(ABS(K56)/(MNP_VR!$D$3*MNP_VR!$D$4*10^-6))/(1.5*MATERIALI!$J$78))^0.5)*(MNP_VR!$D$3*MNP_VR!$D$4*10^-6) -> 93.75567242 | M56: =IF(MNP_VR!C81>INPUT!$F$38*1000,INPUT!$F$38*1000,MNP_VR!C81) -> 2300 | N56: =IFERROR(('FOGLIO DEPOSITO'!$F$401+'FOGLIO DEPOSITO'!$F$399*'andamento taglio'!K56/('andamento taglio'!M56/1000*MNP_VR!$D$3*10^-3)/MATERIALI!$J$85)/'FOGLIO DEPOSITO'!$F$404*(M56/1000*MNP_VR!$D$3*10^-3),"") -> 183.1386922 | O56: =IFERROR((1/'FOGLIO DEPOSITO'!$F$391*MATERIALI!$J$83*0.1/2.3*(1+(ABS(K56)/(INPUT!$F$38*INPUT!$F$39))/(1*MATERIALI!$J$83*0.1))^0.5)*INPUT!$F$38*INPUT!$F$39,"") -> 393.5776827 | P56: 93.75567242 | Q56: 93.75567242
A57: =IF(MNP_V!C82<INPUT!$F$38*1000,MNP_V!C82,INPUT!$F$38*1000) -> 2300 | B57: =MNP_V!Z82 -> 454.8839161 | C57: =(1.5/'FOGLIO DEPOSITO'!$E$391*MATERIALI!$J$28*(1+(ABS(B57)/(INPUT!$F$38*INPUT!$F$39))/(1.5*MATERIALI!$J$28))^0.5)*INPUT!$F$38*INPUT!$F$39 -> 54.67479186 | D57: =IF(MNP_V!C82>INPUT!$F$38*1000,INPUT!$F$38*1000,MNP_V!C82) -> 2300 | E57: =IFERROR(('FOGLIO DEPOSITO'!$E$401+'FOGLIO DEPOSITO'!$E$399*'andamento taglio'!B57/('andamento taglio'!D57/1000*INPUT!$F$39)/MATERIALI!$J$35)/'FOGLIO DEPOSITO'!$E$404*(D57/1000*INPUT!$F$39),"") -> 53.38802573 | F57: =IFERROR((1/'FOGLIO DEPOSITO'!$E$391*MATERIALI!$J$33*0.1/2.3*(1+(ABS(B57)/(INPUT!$F$38*INPUT!$F$39))/(1*MATERIALI!$J$33*0.1))^0.5)*INPUT!$F$38*INPUT!$F$39,"") -> 355.0209015 | G57: 53.38802573 | H57: 53.38802573 | J57: =IF(MNP_VR!C82<INPUT!$F$38*1000,MNP_VR!C82,INPUT!$F$38*1000) -> 2300 | K57: =MNP_VR!Z82 -> 780.3654133 | L57: =(1.5/'FOGLIO DEPOSITO'!$F$391*MATERIALI!$J$78*(1+(ABS(K57)/(MNP_VR!$D$3*MNP_VR!$D$4*10^-6))/(1.5*MATERIALI!$J$78))^0.5)*(MNP_VR!$D$3*MNP_VR!$D$4*10^-6) -> 93.76117582 | M57: =IF(MNP_VR!C82>INPUT!$F$38*1000,INPUT!$F$38*1000,MNP_VR!C82) -> 2300 | N57: =IFERROR(('FOGLIO DEPOSITO'!$F$401+'FOGLIO DEPOSITO'!$F$399*'andamento taglio'!K57/('andamento taglio'!M57/1000*MNP_VR!$D$3*10^-3)/MATERIALI!$J$85)/'FOGLIO DEPOSITO'!$F$404*(M57/1000*MNP_VR!$D$3*10^-3),"") -> 183.1575425 | O57: =IFERROR((1/'FOGLIO DEPOSITO'!$F$391*MATERIALI!$J$83*0.1/2.3*(1+(ABS(K57)/(INPUT!$F$38*INPUT!$F$39))/(1*MATERIALI!$J$83*0.1))^0.5)*INPUT!$F$38*INPUT!$F$39,"") -> 393.5883038 | P57: 93.76117582 | Q57: 93.76117582
A58: =IF(MNP_V!C83<INPUT!$F$38*1000,MNP_V!C83,INPUT!$F$38*1000) -> 2300 | B58: =MNP_V!Z83 -> 454.9572462 | C58: =(1.5/'FOGLIO DEPOSITO'!$E$391*MATERIALI!$J$28*(1+(ABS(B58)/(INPUT!$F$38*INPUT!$F$39))/(1.5*MATERIALI!$J$28))^0.5)*INPUT!$F$38*INPUT!$F$39 -> 54.67907484 | D58: =IF(MNP_V!C83>INPUT!$F$38*1000,INPUT!$F$38*1000,MNP_V!C83) -> 2300 | E58: =IFERROR(('FOGLIO DEPOSITO'!$E$401+'FOGLIO DEPOSITO'!$E$399*'andamento taglio'!B58/('andamento taglio'!D58/1000*INPUT!$F$39)/MATERIALI!$J$35)/'FOGLIO DEPOSITO'!$E$404*(D58/1000*INPUT!$F$39),"") -> 53.39535874 | F58: =IFERROR((1/'FOGLIO DEPOSITO'!$E$391*MATERIALI!$J$33*0.1/2.3*(1+(ABS(B58)/(INPUT!$F$38*INPUT!$F$39))/(1*MATERIALI!$J$33*0.1))^0.5)*INPUT!$F$38*INPUT!$F$39,"") -> 355.0300625 | G58: 53.39535874 | H58: 53.39535874 | J58: =IF(MNP_VR!C83<INPUT!$F$38*1000,MNP_VR!C83,INPUT!$F$38*1000) -> 2300 | K58: =MNP_VR!Z83 -> 780.4482055 | L58: =(1.5/'FOGLIO DEPOSITO'!$F$391*MATERIALI!$J$78*(1+(ABS(K58)/(MNP_VR!$D$3*MNP_VR!$D$4*10^-6))/(1.5*MATERIALI!$J$78))^0.5)*(MNP_VR!$D$3*MNP_VR!$D$4*10^-6) -> 93.76600982 | M58: =IF(MNP_VR!C83>INPUT!$F$38*1000,INPUT!$F$38*1000,MNP_VR!C83) -> 2300 | N58: =IFERROR(('FOGLIO DEPOSITO'!$F$401+'FOGLIO DEPOSITO'!$F$399*'andamento taglio'!K58/('andamento taglio'!M58/1000*MNP_VR!$D$3*10^-3)/MATERIALI!$J$85)/'FOGLIO DEPOSITO'!$F$404*(M58/1000*MNP_VR!$D$3*10^-3),"") -> 183.1741009 | O58: =IFERROR((1/'FOGLIO DEPOSITO'!$F$391*MATERIALI!$J$83*0.1/2.3*(1+(ABS(K58)/(INPUT!$F$38*INPUT!$F$39))/(1*MATERIALI!$J$83*0.1))^0.5)*INPUT!$F$38*INPUT!$F$39,"") -> 393.5976334 | P58: 93.76600982 | Q58: 93.76600982
A59: =IF(MNP_V!C84<INPUT!$F$38*1000,MNP_V!C84,INPUT!$F$38*1000) -> 2300 | B59: =MNP_V!Z84 -> 455.0221895 | C59: =(1.5/'FOGLIO DEPOSITO'!$E$391*MATERIALI!$J$28*(1+(ABS(B59)/(INPUT!$F$38*INPUT!$F$39))/(1.5*MATERIALI!$J$28))^0.5)*INPUT!$F$38*INPUT!$F$39 -> 54.68286771 | D59: =IF(MNP_V!C84>INPUT!$F$38*1000,INPUT!$F$38*1000,MNP_V!C84) -> 2300 | E59: =IFERROR(('FOGLIO DEPOSITO'!$E$401+'FOGLIO DEPOSITO'!$E$399*'andamento taglio'!B59/('andamento taglio'!D59/1000*INPUT!$F$39)/MATERIALI!$J$35)/'FOGLIO DEPOSITO'!$E$404*(D59/1000*INPUT!$F$39),"") -> 53.40185308 | F59: =IFERROR((1/'FOGLIO DEPOSITO'!$E$391*MATERIALI!$J$33*0.1/2.3*(1+(ABS(B59)/(INPUT!$F$38*INPUT!$F$39))/(1*MATERIALI!$J$33*0.1))^0.5)*INPUT!$F$38*INPUT!$F$39,"") -> 355.0381755 | G59: 53.40185308 | H59: 53.40185308 | J59: =IF(MNP_VR!C84<INPUT!$F$38*1000,MNP_VR!C84,INPUT!$F$38*1000) -> 2300 | K59: =MNP_VR!Z84 -> 780.5213232 | L59: =(1.5/'FOGLIO DEPOSITO'!$F$391*MATERIALI!$J$78*(1+(ABS(K59)/(MNP_VR!$D$3*MNP_VR!$D$4*10^-6))/(1.5*MATERIALI!$J$78))^0.5)*(MNP_VR!$D$3*MNP_VR!$D$4*10^-6) -> 93.77027875 | M59: =IF(MNP_VR!C84>INPUT!$F$38*1000,INPUT!$F$38*1000,MNP_VR!C84) -> 2300 | N59: =IFERROR(('FOGLIO DEPOSITO'!$F$401+'FOGLIO DEPOSITO'!$F$399*'andamento taglio'!K59/('andamento taglio'!M59/1000*MNP_VR!$D$3*10^-3)/MATERIALI!$J$85)/'FOGLIO DEPOSITO'!$F$404*(M59/1000*MNP_VR!$D$3*10^-3),"") -> 183.1887245 | O59: =IFERROR((1/'FOGLIO DEPOSITO'!$F$391*MATERIALI!$J$83*0.1/2.3*(1+(ABS(K59)/(INPUT!$F$38*INPUT!$F$39))/(1*MATERIALI!$J$83*0.1))^0.5)*INPUT!$F$38*INPUT!$F$39,"") -> 393.6058726 | P59: 93.77027875 | Q59: 93.77027875
A60: =IF(MNP_V!C85<INPUT!$F$38*1000,MNP_V!C85,INPUT!$F$38*1000) -> 2300 | B60: =MNP_V!Z85 -> 455.079978 | C60: =(1.5/'FOGLIO DEPOSITO'!$E$391*MATERIALI!$J$28*(1+(ABS(B60)/(INPUT!$F$38*INPUT!$F$39))/(1.5*MATERIALI!$J$28))^0.5)*INPUT!$F$38*INPUT!$F$39 -> 54.68624248 | D60: =IF(MNP_V!C85>INPUT!$F$38*1000,INPUT!$F$38*1000,MNP_V!C85) -> 2300 | E60: =IFERROR(('FOGLIO DEPOSITO'!$E$401+'FOGLIO DEPOSITO'!$E$399*'andamento taglio'!B60/('andamento taglio'!D60/1000*INPUT!$F$39)/MATERIALI!$J$35)/'FOGLIO DEPOSITO'!$E$404*(D60/1000*INPUT!$F$39),"") -> 53.40763193 | F60: =IFERROR((1/'FOGLIO DEPOSITO'!$E$391*MATERIALI!$J$33*0.1/2.3*(1+(ABS(B60)/(INPUT!$F$38*INPUT!$F$39))/(1*MATERIALI!$J$33*0.1))^0.5)*INPUT!$F$38*INPUT!$F$39,"") -> 355.0453946 | G60: 53.40763193 | H60: 53.40763193 | J60: =IF(MNP_VR!C85<INPUT!$F$38*1000,MNP_VR!C85,INPUT!$F$38*1000) -> 2300 | K60: =MNP_VR!Z85 -> 780.5862172 | L60: =(1.5/'FOGLIO DEPOSITO'!$F$391*MATERIALI!$J$78*(1+(ABS(K60)/(MNP_VR!$D$3*MNP_VR!$D$4*10^-6))/(1.5*MATERIALI!$J$78))^0.5)*(MNP_VR!$D$3*MNP_VR!$D$4*10^-6) -> 93.77406738 | M60: =IF(MNP_VR!C85>INPUT!$F$38*1000,INPUT!$F$38*1000,MNP_VR!C85) -> 2300 | N60: =IFERROR(('FOGLIO DEPOSITO'!$F$401+'FOGLIO DEPOSITO'!$F$399*'andamento taglio'!K60/('andamento taglio'!M60/1000*MNP_VR!$D$3*10^-3)/MATERIALI!$J$85)/'FOGLIO DEPOSITO'!$F$404*(M60/1000*MNP_VR!$D$3*10^-3),"") -> 183.2017033 | O60: =IFERROR((1/'FOGLIO DEPOSITO'!$F$391*MATERIALI!$J$83*0.1/2.3*(1+(ABS(K60)/(INPUT!$F$38*INPUT!$F$39))/(1*MATERIALI!$J$83*0.1))^0.5)*INPUT!$F$38*INPUT!$F$39,"") -> 393.613185 | P60: 93.77406738 | Q60: 93.77406738
A61: =IF(MNP_V!C86<INPUT!$F$38*1000,MNP_V!C86,INPUT!$F$38*1000) -> 2300 | B61: =MNP_V!Z86 -> 455.1316253 | C61: =(1.5/'FOGLIO DEPOSITO'!$E$391*MATERIALI!$J$28*(1+(ABS(B61)/(INPUT!$F$38*INPUT!$F$39))/(1.5*MATERIALI!$J$28))^0.5)*INPUT!$F$38*INPUT!$F$39 -> 54.68925845 | D61: =IF(MNP_V!C86>INPUT!$F$38*1000,INPUT!$F$38*1000,MNP_V!C86) -> 2300 | E61: =IFERROR(('FOGLIO DEPOSITO'!$E$401+'FOGLIO DEPOSITO'!$E$399*'andamento taglio'!B61/('andamento taglio'!D61/1000*INPUT!$F$39)/MATERIALI!$J$35)/'FOGLIO DEPOSITO'!$E$404*(D61/1000*INPUT!$F$39),"") -> 53.41279665 | F61: =IFERROR((1/'FOGLIO DEPOSITO'!$E$391*MATERIALI!$J$33*0.1/2.3*(1+(ABS(B61)/(INPUT!$F$38*INPUT!$F$39))/(1*MATERIALI!$J$33*0.1))^0.5)*INPUT!$F$38*INPUT!$F$39,"") -> 355.0518463 | G61: 53.41279665 | H61: 53.41279665 | J61: =IF(MNP_VR!C86<INPUT!$F$38*1000,MNP_VR!C86,INPUT!$F$38*1000) -> 2300 | K61: =MNP_VR!Z86 -> 780.6440759 | L61: =(1.5/'FOGLIO DEPOSITO'!$F$391*MATERIALI!$J$78*(1+(ABS(K61)/(MNP_VR!$D$3*MNP_VR!$D$4*10^-6))/(1.5*MATERIALI!$J$78))^0.5)*(MNP_VR!$D$3*MNP_VR!$D$4*10^-6) -> 93.77744515 | M61: =IF(MNP_VR!C86>INPUT!$F$38*1000,INPUT!$F$38*1000,MNP_VR!C86) -> 2300 | N61: =IFERROR(('FOGLIO DEPOSITO'!$F$401+'FOGLIO DEPOSITO'!$F$399*'andamento taglio'!K61/('andamento taglio'!M61/1000*MNP_VR!$D$3*10^-3)/MATERIALI!$J$85)/'FOGLIO DEPOSITO'!$F$404*(M61/1000*MNP_VR!$D$3*10^-3),"") -> 183.213275 | O61: =IFERROR((1/'FOGLIO DEPOSITO'!$F$391*MATERIALI!$J$83*0.1/2.3*(1+(ABS(K61)/(INPUT!$F$38*INPUT!$F$39))/(1*MATERIALI!$J$83*0.1))^0.5)*INPUT!$F$38*INPUT!$F$39,"") -> 393.6197045 | P61: 93.77744515 | Q61: 93.77744515
A62: =IF(MNP_V!C87<INPUT!$F$38*1000,MNP_V!C87,INPUT!$F$38*1000) -> 2300 | B62: =MNP_V!Z87 -> 455.1779717 | C62: =(1.5/'FOGLIO DEPOSITO'!$E$391*MATERIALI!$J$28*(1+(ABS(B62)/(INPUT!$F$38*INPUT!$F$39))/(1.5*MATERIALI!$J$28))^0.5)*INPUT!$F$38*INPUT!$F$39 -> 54.69196472 | D62: =IF(MNP_V!C87>INPUT!$F$38*1000,INPUT!$F$38*1000,MNP_V!C87) -> 2300 | E62: =IFERROR(('FOGLIO DEPOSITO'!$E$401+'FOGLIO DEPOSITO'!$E$399*'andamento taglio'!B62/('andamento taglio'!D62/1000*INPUT!$F$39)/MATERIALI!$J$35)/'FOGLIO DEPOSITO'!$E$404*(D62/1000*INPUT!$F$39),"") -> 53.41743129 | F62: =IFERROR((1/'FOGLIO DEPOSITO'!$E$391*MATERIALI!$J$33*0.1/2.3*(1+(ABS(B62)/(INPUT!$F$38*INPUT!$F$39))/(1*MATERIALI!$J$33*0.1))^0.5)*INPUT!$F$38*INPUT!$F$39,"") -> 355.0576358 | G62: 53.41743129 | H62: 53.41743129 | J62: =IF(MNP_VR!C87<INPUT!$F$38*1000,MNP_VR!C87,INPUT!$F$38*1000) -> 2300 | K62: =MNP_VR!Z87 -> 780.6958808 | L62: =(1.5/'FOGLIO DEPOSITO'!$F$391*MATERIALI!$J$78*(1+(ABS(K62)/(MNP_VR!$D$3*MNP_VR!$D$4*10^-6))/(1.5*MATERIALI!$J$78))^0.5)*(MNP_VR!$D$3*MNP_VR!$D$4*10^-6) -> 93.78046939 | M62: =IF(MNP_VR!C87>INPUT!$F$38*1000,INPUT!$F$38*1000,MNP_VR!C87) -> 2300 | N62: =IFERROR(('FOGLIO DEPOSITO'!$F$401+'FOGLIO DEPOSITO'!$F$399*'andamento taglio'!K62/('andamento taglio'!M62/1000*MNP_VR!$D$3*10^-3)/MATERIALI!$J$85)/'FOGLIO DEPOSITO'!$F$404*(M62/1000*MNP_VR!$D$3*10^-3),"") -> 183.223636 | O62: =IFERROR((1/'FOGLIO DEPOSITO'!$F$391*MATERIALI!$J$83*0.1/2.3*(1+(ABS(K62)/(INPUT!$F$38*INPUT!$F$39))/(1*MATERIALI!$J$83*0.1))^0.5)*INPUT!$F$38*INPUT!$F$39,"") -> 393.6255417 | P62: 93.78046939 | Q62: 93.78046939
A63: =IF(MNP_V!C88<INPUT!$F$38*1000,MNP_V!C88,INPUT!$F$38*1000) -> 2300 | B63: =MNP_V!Z88 -> 455.2197185 | C63: =(1.5/'FOGLIO DEPOSITO'!$E$391*MATERIALI!$J$28*(1+(ABS(B63)/(INPUT!$F$38*INPUT!$F$39))/(1.5*MATERIALI!$J$28))^0.5)*INPUT!$F$38*INPUT!$F$39 -> 54.6944023 | D63: =IF(MNP_V!C88>INPUT!$F$38*1000,INPUT!$F$38*1000,MNP_V!C88) -> 2300 | E63: =IFERROR(('FOGLIO DEPOSITO'!$E$401+'FOGLIO DEPOSITO'!$E$399*'andamento taglio'!B63/('andamento taglio'!D63/1000*INPUT!$F$39)/MATERIALI!$J$35)/'FOGLIO DEPOSITO'!$E$404*(D63/1000*INPUT!$F$39),"") -> 53.42160597 | F63: =IFERROR((1/'FOGLIO DEPOSITO'!$E$391*MATERIALI!$J$33*0.1/2.3*(1+(ABS(B63)/(INPUT!$F$38*INPUT!$F$39))/(1*MATERIALI!$J$33*0.1))^0.5)*INPUT!$F$38*INPUT!$F$39,"") -> 355.0628507 | G63: 53.42160597 | H63: 53.42160597 | J63: =IF(MNP_VR!C88<INPUT!$F$38*1000,MNP_VR!C88,INPUT!$F$38*1000) -> 2300 | K63: =MNP_VR!Z88 -> 780.7424478 | L63: =(1.5/'FOGLIO DEPOSITO'!$F$391*MATERIALI!$J$78*(1+(ABS(K63)/(MNP_VR!$D$3*MNP_VR!$D$4*10^-6))/(1.5*MATERIALI!$J$78))^0.5)*(MNP_VR!$D$3*MNP_VR!$D$4*10^-6) -> 93.78318778 | M63: =IF(MNP_VR!C88>INPUT!$F$38*1000,INPUT!$F$38*1000,MNP_VR!C88) -> 2300 | N63: =IFERROR(('FOGLIO DEPOSITO'!$F$401+'FOGLIO DEPOSITO'!$F$399*'andamento taglio'!K63/('andamento taglio'!M63/1000*MNP_VR!$D$3*10^-3)/MATERIALI!$J$85)/'FOGLIO DEPOSITO'!$F$404*(M63/1000*MNP_VR!$D$3*10^-3),"") -> 183.2329494 | O63: =IFERROR((1/'FOGLIO DEPOSITO'!$F$391*MATERIALI!$J$83*0.1/2.3*(1+(ABS(K63)/(INPUT!$F$38*INPUT!$F$39))/(1*MATERIALI!$J$83*0.1))^0.5)*INPUT!$F$38*INPUT!$F$39,"") -> 393.6307887 | P63: 93.78318778 | Q63: 93.78318778
A64: =IF(MNP_V!C89<INPUT!$F$38*1000,MNP_V!C89,INPUT!$F$38*1000) -> 2300 | B64: =MNP_V!Z89 -> 455.2574549 | C64: =(1.5/'FOGLIO DEPOSITO'!$E$391*MATERIALI!$J$28*(1+(ABS(B64)/(INPUT!$F$38*INPUT!$F$39))/(1.5*MATERIALI!$J$28))^0.5)*INPUT!$F$38*INPUT!$F$39 -> 54.69660561 | D64: =IF(MNP_V!C89>INPUT!$F$38*1000,INPUT!$F$38*1000,MNP_V!C89) -> 2300 | E64: =IFERROR(('FOGLIO DEPOSITO'!$E$401+'FOGLIO DEPOSITO'!$E$399*'andamento taglio'!B64/('andamento taglio'!D64/1000*INPUT!$F$39)/MATERIALI!$J$35)/'FOGLIO DEPOSITO'!$E$404*(D64/1000*INPUT!$F$39),"") -> 53.42537961 | F64: =IFERROR((1/'FOGLIO DEPOSITO'!$E$391*MATERIALI!$J$33*0.1/2.3*(1+(ABS(B64)/(INPUT!$F$38*INPUT!$F$39))/(1*MATERIALI!$J$33*0.1))^0.5)*INPUT!$F$38*INPUT!$F$39,"") -> 355.0675645 | G64: 53.42537961 | H64: 53.42537961 | J64: =IF(MNP_VR!C89<INPUT!$F$38*1000,MNP_VR!C89,INPUT!$F$38*1000) -> 2300 | K64: =MNP_VR!Z89 -> 780.7844601 | L64: =(1.5/'FOGLIO DEPOSITO'!$F$391*MATERIALI!$J$78*(1+(ABS(K64)/(MNP_VR!$D$3*MNP_VR!$D$4*10^-6))/(1.5*MATERIALI!$J$78))^0.5)*(MNP_VR!$D$3*MNP_VR!$D$4*10^-6) -> 93.78564021 | M64: =IF(MNP_VR!C89>INPUT!$F$38*1000,INPUT!$F$38*1000,MNP_VR!C89) -> 2300 | N64: =IFERROR(('FOGLIO DEPOSITO'!$F$401+'FOGLIO DEPOSITO'!$F$399*'andamento taglio'!K64/('andamento taglio'!M64/1000*MNP_VR!$D$3*10^-3)/MATERIALI!$J$85)/'FOGLIO DEPOSITO'!$F$404*(M64/1000*MNP_VR!$D$3*10^-3),"") -> 183.2413519 | O64: =IFERROR((1/'FOGLIO DEPOSITO'!$F$391*MATERIALI!$J$83*0.1/2.3*(1+(ABS(K64)/(INPUT!$F$38*INPUT!$F$39))/(1*MATERIALI!$J$83*0.1))^0.5)*INPUT!$F$38*INPUT!$F$39,"") -> 393.6355225 | P64: 93.78564021 | Q64: 93.78564021
A65: =IF(MNP_V!C90<INPUT!$F$38*1000,MNP_V!C90,INPUT!$F$38*1000) -> 2300 | B65: =MNP_V!Z90 -> 455.2916785 | C65: =(1.5/'FOGLIO DEPOSITO'!$E$391*MATERIALI!$J$28*(1+(ABS(B65)/(INPUT!$F$38*INPUT!$F$39))/(1.5*MATERIALI!$J$28))^0.5)*INPUT!$F$38*INPUT!$F$39 -> 54.69860376 | D65: =IF(MNP_V!C90>INPUT!$F$38*1000,INPUT!$F$38*1000,MNP_V!C90) -> 2300 | E65: =IFERROR(('FOGLIO DEPOSITO'!$E$401+'FOGLIO DEPOSITO'!$E$399*'andamento taglio'!B65/('andamento taglio'!D65/1000*INPUT!$F$39)/MATERIALI!$J$35)/'FOGLIO DEPOSITO'!$E$404*(D65/1000*INPUT!$F$39),"") -> 53.42880197 | F65: =IFERROR((1/'FOGLIO DEPOSITO'!$E$391*MATERIALI!$J$33*0.1/2.3*(1+(ABS(B65)/(INPUT!$F$38*INPUT!$F$39))/(1*MATERIALI!$J$33*0.1))^0.5)*INPUT!$F$38*INPUT!$F$39,"") -> 355.0718394 | G65: 53.42880197 | H65: 53.42880197 | J65: =IF(MNP_VR!C90<INPUT!$F$38*1000,MNP_VR!C90,INPUT!$F$38*1000) -> 2300 | K65: =MNP_VR!Z90 -> 780.8224927 | L65: =(1.5/'FOGLIO DEPOSITO'!$F$391*MATERIALI!$J$78*(1+(ABS(K65)/(MNP_VR!$D$3*MNP_VR!$D$4*10^-6))/(1.5*MATERIALI!$J$78))^0.5)*(MNP_VR!$D$3*MNP_VR!$D$4*10^-6) -> 93.78786028 | M65: =IF(MNP_VR!C90>INPUT!$F$38*1000,INPUT!$F$38*1000,MNP_VR!C90) -> 2300 | N65: =IFERROR(('FOGLIO DEPOSITO'!$F$401+'FOGLIO DEPOSITO'!$F$399*'andamento taglio'!K65/('andamento taglio'!M65/1000*MNP_VR!$D$3*10^-3)/MATERIALI!$J$85)/'FOGLIO DEPOSITO'!$F$404*(M65/1000*MNP_VR!$D$3*10^-3),"") -> 183.2489584 | O65: =IFERROR((1/'FOGLIO DEPOSITO'!$F$391*MATERIALI!$J$83*0.1/2.3*(1+(ABS(K65)/(INPUT!$F$38*INPUT!$F$39))/(1*MATERIALI!$J$83*0.1))^0.5)*INPUT!$F$38*INPUT!$F$39,"") -> 393.6398078 | P65: 93.78786028 | Q65: 93.78786028
A66: =IF(MNP_V!C91<INPUT!$F$38*1000,MNP_V!C91,INPUT!$F$38*1000) -> 2300 | B66: =MNP_V!Z91 -> 455.3228122 | C66: =(1.5/'FOGLIO DEPOSITO'!$E$391*MATERIALI!$J$28*(1+(ABS(B66)/(INPUT!$F$38*INPUT!$F$39))/(1.5*MATERIALI!$J$28))^0.5)*INPUT!$F$38*INPUT!$F$39 -> 54.70042143 | D66: =IF(MNP_V!C91>INPUT!$F$38*1000,INPUT!$F$38*1000,MNP_V!C91) -> 2300 | E66: =IFERROR(('FOGLIO DEPOSITO'!$E$401+'FOGLIO DEPOSITO'!$E$399*'andamento taglio'!B66/('andamento taglio'!D66/1000*INPUT!$F$39)/MATERIALI!$J$35)/'FOGLIO DEPOSITO'!$E$404*(D66/1000*INPUT!$F$39),"") -> 53.43191535 | F66: =IFERROR((1/'FOGLIO DEPOSITO'!$E$391*MATERIALI!$J$33*0.1/2.3*(1+(ABS(B66)/(INPUT!$F$38*INPUT!$F$39))/(1*MATERIALI!$J$33*0.1))^0.5)*INPUT!$F$38*INPUT!$F$39,"") -> 355.0757284 | G66: 53.43191535 | H66: 53.43191535 | J66: =IF(MNP_VR!C91<INPUT!$F$38*1000,MNP_VR!C91,INPUT!$F$38*1000) -> 2300 | K66: =MNP_VR!Z91 -> 780.857033 | L66: =(1.5/'FOGLIO DEPOSITO'!$F$391*MATERIALI!$J$78*(1+(ABS(K66)/(MNP_VR!$D$3*MNP_VR!$D$4*10^-6))/(1.5*MATERIALI!$J$78))^0.5)*(MNP_VR!$D$3*MNP_VR!$D$4*10^-6) -> 93.78987645 | M66: =IF(MNP_VR!C91>INPUT!$F$38*1000,INPUT!$F$38*1000,MNP_VR!C91) -> 2300 | N66: =IFERROR(('FOGLIO DEPOSITO'!$F$401+'FOGLIO DEPOSITO'!$F$399*'andamento taglio'!K66/('andamento taglio'!M66/1000*MNP_VR!$D$3*10^-3)/MATERIALI!$J$85)/'FOGLIO DEPOSITO'!$F$404*(M66/1000*MNP_VR!$D$3*10^-3),"") -> 183.2558664 | O66: =IFERROR((1/'FOGLIO DEPOSITO'!$F$391*MATERIALI!$J$83*0.1/2.3*(1+(ABS(K66)/(INPUT!$F$38*INPUT!$F$39))/(1*MATERIALI!$J$83*0.1))^0.5)*INPUT!$F$38*INPUT!$F$39,"") -> 393.6436995 | P66: 93.78987645 | Q66: 93.78987645
A67: =IF(MNP_V!C92<INPUT!$F$38*1000,MNP_V!C92,INPUT!$F$38*1000) -> 2300 | B67: =MNP_V!Z92 -> 455.3512171 | C67: =(1.5/'FOGLIO DEPOSITO'!$E$391*MATERIALI!$J$28*(1+(ABS(B67)/(INPUT!$F$38*INPUT!$F$39))/(1.5*MATERIALI!$J$28))^0.5)*INPUT!$F$38*INPUT!$F$39 -> 54.70207974 | D67: =IF(MNP_V!C92>INPUT!$F$38*1000,INPUT!$F$38*1000,MNP_V!C92) -> 2300 | E67: =IFERROR(('FOGLIO DEPOSITO'!$E$401+'FOGLIO DEPOSITO'!$E$399*'andamento taglio'!B67/('andamento taglio'!D67/1000*INPUT!$F$39)/MATERIALI!$J$35)/'FOGLIO DEPOSITO'!$E$404*(D67/1000*INPUT!$F$39),"") -> 53.43475584 | F67: =IFERROR((1/'FOGLIO DEPOSITO'!$E$391*MATERIALI!$J$33*0.1/2.3*(1+(ABS(B67)/(INPUT!$F$38*INPUT!$F$39))/(1*MATERIALI!$J$33*0.1))^0.5)*INPUT!$F$38*INPUT!$F$39,"") -> 355.0792764 | G67: 53.43475584 | H67: 53.43475584 | J67: =IF(MNP_VR!C92<INPUT!$F$38*1000,MNP_VR!C92,INPUT!$F$38*1000) -> 2300 | K67: =MNP_VR!Z92 -> 780.8884957 | L67: =(1.5/'FOGLIO DEPOSITO'!$F$391*MATERIALI!$J$78*(1+(ABS(K67)/(MNP_VR!$D$3*MNP_VR!$D$4*10^-6))/(1.5*MATERIALI!$J$78))^0.5)*(MNP_VR!$D$3*MNP_VR!$D$4*10^-6) -> 93.79171293 | M67: =IF(MNP_VR!C92>INPUT!$F$38*1000,INPUT!$F$38*1000,MNP_VR!C92) -> 2300 | N67: =IFERROR(('FOGLIO DEPOSITO'!$F$401+'FOGLIO DEPOSITO'!$F$399*'andamento taglio'!K67/('andamento taglio'!M67/1000*MNP_VR!$D$3*10^-3)/MATERIALI!$J$85)/'FOGLIO DEPOSITO'!$F$404*(M67/1000*MNP_VR!$D$3*10^-3),"") -> 183.262159 | O67: =IFERROR((1/'FOGLIO DEPOSITO'!$F$391*MATERIALI!$J$83*0.1/2.3*(1+(ABS(K67)/(INPUT!$F$38*INPUT!$F$39))/(1*MATERIALI!$J$83*0.1))^0.5)*INPUT!$F$38*INPUT!$F$39,"") -> 393.6472444 | P67: 93.79171293 | Q67: 93.79171293
A68: =IF(MNP_V!C93<INPUT!$F$38*1000,MNP_V!C93,INPUT!$F$38*1000) -> 2300 | B68: =MNP_V!Z93 -> 455.377203 | C68: =(1.5/'FOGLIO DEPOSITO'!$E$391*MATERIALI!$J$28*(1+(ABS(B68)/(INPUT!$F$38*INPUT!$F$39))/(1.5*MATERIALI!$J$28))^0.5)*INPUT!$F$38*INPUT!$F$39 -> 54.70359677 | D68: =IF(MNP_V!C93>INPUT!$F$38*1000,INPUT!$F$38*1000,MNP_V!C93) -> 2300 | E68: =IFERROR(('FOGLIO DEPOSITO'!$E$401+'FOGLIO DEPOSITO'!$E$399*'andamento taglio'!B68/('andamento taglio'!D68/1000*INPUT!$F$39)/MATERIALI!$J$35)/'FOGLIO DEPOSITO'!$E$404*(D68/1000*INPUT!$F$39),"") -> 53.43735443 | F68: =IFERROR((1/'FOGLIO DEPOSITO'!$E$391*MATERIALI!$J$33*0.1/2.3*(1+(ABS(B68)/(INPUT!$F$38*INPUT!$F$39))/(1*MATERIALI!$J$33*0.1))^0.5)*INPUT!$F$38*INPUT!$F$39,"") -> 355.0825223 | G68: 53.43735443 | H68: 53.43735443 | J68: =IF(MNP_VR!C93<INPUT!$F$38*1000,MNP_VR!C93,INPUT!$F$38*1000) -> 2300 | K68: =MNP_VR!Z93 -> 780.9172359 | L68: =(1.5/'FOGLIO DEPOSITO'!$F$391*MATERIALI!$J$78*(1+(ABS(K68)/(MNP_VR!$D$3*MNP_VR!$D$4*10^-6))/(1.5*MATERIALI!$J$78))^0.5)*(MNP_VR!$D$3*MNP_VR!$D$4*10^-6) -> 93.79339048 | M68: =IF(MNP_VR!C93>INPUT!$F$38*1000,INPUT!$F$38*1000,MNP_VR!C93) -> 2300 | N68: =IFERROR(('FOGLIO DEPOSITO'!$F$401+'FOGLIO DEPOSITO'!$F$399*'andamento taglio'!K68/('andamento taglio'!M68/1000*MNP_VR!$D$3*10^-3)/MATERIALI!$J$85)/'FOGLIO DEPOSITO'!$F$404*(M68/1000*MNP_VR!$D$3*10^-3),"") -> 183.267907 | O68: =IFERROR((1/'FOGLIO DEPOSITO'!$F$391*MATERIALI!$J$83*0.1/2.3*(1+(ABS(K68)/(INPUT!$F$38*INPUT!$F$39))/(1*MATERIALI!$J$83*0.1))^0.5)*INPUT!$F$38*INPUT!$F$39,"") -> 393.6504826 | P68: 93.79339048 | Q68: 93.79339048
A69: =IF(MNP_V!C94<INPUT!$F$38*1000,MNP_V!C94,INPUT!$F$38*1000) -> 2300 | B69: =MNP_V!Z94 -> 455.401037 | C69: =(1.5/'FOGLIO DEPOSITO'!$E$391*MATERIALI!$J$28*(1+(ABS(B69)/(INPUT!$F$38*INPUT!$F$39))/(1.5*MATERIALI!$J$28))^0.5)*INPUT!$F$38*INPUT!$F$39 -> 54.70498815 | D69: =IF(MNP_V!C94>INPUT!$F$38*1000,INPUT!$F$38*1000,MNP_V!C94) -> 2300 | E69: =IFERROR(('FOGLIO DEPOSITO'!$E$401+'FOGLIO DEPOSITO'!$E$399*'andamento taglio'!B69/('andamento taglio'!D69/1000*INPUT!$F$39)/MATERIALI!$J$35)/'FOGLIO DEPOSITO'!$E$404*(D69/1000*INPUT!$F$39),"") -> 53.43973782 | F69: =IFERROR((1/'FOGLIO DEPOSITO'!$E$391*MATERIALI!$J$33*0.1/2.3*(1+(ABS(B69)/(INPUT!$F$38*INPUT!$F$39))/(1*MATERIALI!$J$33*0.1))^0.5)*INPUT!$F$38*INPUT!$F$39,"") -> 355.0854993 | G69: =IF(E69="",C69,MINA(C69,E69,F69)) -> 53.43973782 | H69: =G69 -> 53.43973782 | J69: =IF(MNP_VR!C94<INPUT!$F$38*1000,MNP_VR!C94,INPUT!$F$38*1000) -> 2300 | K69: =MNP_VR!Z94 -> 780.9435589 | L69: =(1.5/'FOGLIO DEPOSITO'!$F$391*MATERIALI!$J$78*(1+(ABS(K69)/(MNP_VR!$D$3*MNP_VR!$D$4*10^-6))/(1.5*MATERIALI!$J$78))^0.5)*(MNP_VR!$D$3*MNP_VR!$D$4*10^-6) -> 93.7949269 | M69: =IF(MNP_VR!C94>INPUT!$F$38*1000,INPUT!$F$38*1000,MNP_VR!C94) -> 2300 | N69: =IFERROR(('FOGLIO DEPOSITO'!$F$401+'FOGLIO DEPOSITO'!$F$399*'andamento taglio'!K69/('andamento taglio'!M69/1000*MNP_VR!$D$3*10^-3)/MATERIALI!$J$85)/'FOGLIO DEPOSITO'!$F$404*(M69/1000*MNP_VR!$D$3*10^-3),"") -> 183.2731716 | O69: =IFERROR((1/'FOGLIO DEPOSITO'!$F$391*MATERIALI!$J$83*0.1/2.3*(1+(ABS(K69)/(INPUT!$F$38*INPUT!$F$39))/(1*MATERIALI!$J$83*0.1))^0.5)*INPUT!$F$38*INPUT!$F$39,"") -> 393.6534484 | P69: 93.7949269 | Q69: 93.7949269
A70: =IF(MNP_V!C95<INPUT!$F$38*1000,MNP_V!C95,INPUT!$F$38*1000) -> 2300 | B70: =MNP_V!Z95 -> 455.4229503 | C70: =(1.5/'FOGLIO DEPOSITO'!$E$391*MATERIALI!$J$28*(1+(ABS(B70)/(INPUT!$F$38*INPUT!$F$39))/(1.5*MATERIALI!$J$28))^0.5)*INPUT!$F$38*INPUT!$F$39 -> 54.70626736 | D70: =IF(MNP_V!C95>INPUT!$F$38*1000,INPUT!$F$38*1000,MNP_V!C95) -> 2300 | E70: =IFERROR(('FOGLIO DEPOSITO'!$E$401+'FOGLIO DEPOSITO'!$E$399*'andamento taglio'!B70/('andamento taglio'!D70/1000*INPUT!$F$39)/MATERIALI!$J$35)/'FOGLIO DEPOSITO'!$E$404*(D70/1000*INPUT!$F$39),"") -> 53.44192915 | F70: =IFERROR((1/'FOGLIO DEPOSITO'!$E$391*MATERIALI!$J$33*0.1/2.3*(1+(ABS(B70)/(INPUT!$F$38*INPUT!$F$39))/(1*MATERIALI!$J$33*0.1))^0.5)*INPUT!$F$38*INPUT!$F$39,"") -> 355.0882364 | G70: 53.44192915 | H70: 53.44192915 | J70: =IF(MNP_VR!C95<INPUT!$F$38*1000,MNP_VR!C95,INPUT!$F$38*1000) -> 2300 | K70: =MNP_VR!Z95 -> 780.9677284 | L70: =(1.5/'FOGLIO DEPOSITO'!$F$391*MATERIALI!$J$78*(1+(ABS(K70)/(MNP_VR!$D$3*MNP_VR!$D$4*10^-6))/(1.5*MATERIALI!$J$78))^0.5)*(MNP_VR!$D$3*MNP_VR!$D$4*10^-6) -> 93.79633761 | M70: =IF(MNP_VR!C95>INPUT!$F$38*1000,INPUT!$F$38*1000,MNP_VR!C95) -> 2300 | N70: =IFERROR(('FOGLIO DEPOSITO'!$F$401+'FOGLIO DEPOSITO'!$F$399*'andamento taglio'!K70/('andamento taglio'!M70/1000*MNP_VR!$D$3*10^-3)/MATERIALI!$J$85)/'FOGLIO DEPOSITO'!$F$404*(M70/1000*MNP_VR!$D$3*10^-3),"") -> 183.2780055 | O70: =IFERROR((1/'FOGLIO DEPOSITO'!$F$391*MATERIALI!$J$83*0.1/2.3*(1+(ABS(K70)/(INPUT!$F$38*INPUT!$F$39))/(1*MATERIALI!$J$83*0.1))^0.5)*INPUT!$F$38*INPUT!$F$39,"") -> 393.6561716 | P70: =IF(N70="",L70,MINA(L70,N70,O70)) -> 93.79633761 | Q70: 93.79633761
A71: =IF(MNP_V!C96<INPUT!$F$38*1000,MNP_V!C96,INPUT!$F$38*1000) -> 2300 | B71: =MNP_V!Z96 -> 455.4431438 | C71: =(1.5/'FOGLIO DEPOSITO'!$E$391*MATERIALI!$J$28*(1+(ABS(B71)/(INPUT!$F$38*INPUT!$F$39))/(1.5*MATERIALI!$J$28))^0.5)*INPUT!$F$38*INPUT!$F$39 -> 54.70744616 | D71: =IF(MNP_V!C96>INPUT!$F$38*1000,INPUT!$F$38*1000,MNP_V!C96) -> 2300 | E71: =IFERROR(('FOGLIO DEPOSITO'!$E$401+'FOGLIO DEPOSITO'!$E$399*'andamento taglio'!B71/('andamento taglio'!D71/1000*INPUT!$F$39)/MATERIALI!$J$35)/'FOGLIO DEPOSITO'!$E$404*(D71/1000*INPUT!$F$39),"") -> 53.4439485 | F71: =IFERROR((1/'FOGLIO DEPOSITO'!$E$391*MATERIALI!$J$33*0.1/2.3*(1+(ABS(B71)/(INPUT!$F$38*INPUT!$F$39))/(1*MATERIALI!$J$33*0.1))^0.5)*INPUT!$F$38*INPUT!$F$39,"") -> 355.0907587 | G71: 53.4439485 | H71: 53.4439485 | J71: =IF(MNP_VR!C96<INPUT!$F$38*1000,MNP_VR!C96,INPUT!$F$38*1000) -> 2300 | K71: =MNP_VR!Z96 -> 780.989973 | L71: =(1.5/'FOGLIO DEPOSITO'!$F$391*MATERIALI!$J$78*(1+(ABS(K71)/(MNP_VR!$D$3*MNP_VR!$D$4*10^-6))/(1.5*MATERIALI!$J$78))^0.5)*(MNP_VR!$D$3*MNP_VR!$D$4*10^-6) -> 93.79763594 | M71: =IF(MNP_VR!C96>INPUT!$F$38*1000,INPUT!$F$38*1000,MNP_VR!C96) -> 2300 | N71: =IFERROR(('FOGLIO DEPOSITO'!$F$401+'FOGLIO DEPOSITO'!$F$399*'andamento taglio'!K71/('andamento taglio'!M71/1000*MNP_VR!$D$3*10^-3)/MATERIALI!$J$85)/'FOGLIO DEPOSITO'!$F$404*(M71/1000*MNP_VR!$D$3*10^-3),"") -> 183.2824544 | O71: =IFERROR((1/'FOGLIO DEPOSITO'!$F$391*MATERIALI!$J$83*0.1/2.3*(1+(ABS(K71)/(INPUT!$F$38*INPUT!$F$39))/(1*MATERIALI!$J$83*0.1))^0.5)*INPUT!$F$38*INPUT!$F$39,"") -> 393.6586778 | P71: 93.79763594 | Q71: 93.79763594
A72: =IF(MNP_V!C97<INPUT!$F$38*1000,MNP_V!C97,INPUT!$F$38*1000) -> 2300 | B72: =MNP_V!Z97 -> 455.4617929 | C72: =(1.5/'FOGLIO DEPOSITO'!$E$391*MATERIALI!$J$28*(1+(ABS(B72)/(INPUT!$F$38*INPUT!$F$39))/(1.5*MATERIALI!$J$28))^0.5)*INPUT!$F$38*INPUT!$F$39 -> 54.70853478 | D72: =IF(MNP_V!C97>INPUT!$F$38*1000,INPUT!$F$38*1000,MNP_V!C97) -> 2300 | E72: =IFERROR(('FOGLIO DEPOSITO'!$E$401+'FOGLIO DEPOSITO'!$E$399*'andamento taglio'!B72/('andamento taglio'!D72/1000*INPUT!$F$39)/MATERIALI!$J$35)/'FOGLIO DEPOSITO'!$E$404*(D72/1000*INPUT!$F$39),"") -> 53.44581341 | F72: =IFERROR((1/'FOGLIO DEPOSITO'!$E$391*MATERIALI!$J$33*0.1/2.3*(1+(ABS(B72)/(INPUT!$F$38*INPUT!$F$39))/(1*MATERIALI!$J$33*0.1))^0.5)*INPUT!$F$38*INPUT!$F$39,"") -> 355.0930881 | G72: 53.44581341 | H72: 53.44581341 | J72: =IF(MNP_VR!C97<INPUT!$F$38*1000,MNP_VR!C97,INPUT!$F$38*1000) -> 2300 | K72: =MNP_VR!Z97 -> 781.0104918 | L72: =(1.5/'FOGLIO DEPOSITO'!$F$391*MATERIALI!$J$78*(1+(ABS(K72)/(MNP_VR!$D$3*MNP_VR!$D$4*10^-6))/(1.5*MATERIALI!$J$78))^0.5)*(MNP_VR!$D$3*MNP_VR!$D$4*10^-6) -> 93.79883354 | M72: =IF(MNP_VR!C97>INPUT!$F$38*1000,INPUT!$F$38*1000,MNP_VR!C97) -> 2300 | N72: =IFERROR(('FOGLIO DEPOSITO'!$F$401+'FOGLIO DEPOSITO'!$F$399*'andamento taglio'!K72/('andamento taglio'!M72/1000*MNP_VR!$D$3*10^-3)/MATERIALI!$J$85)/'FOGLIO DEPOSITO'!$F$404*(M72/1000*MNP_VR!$D$3*10^-3),"") -> 183.2865582 | O72: =IFERROR((1/'FOGLIO DEPOSITO'!$F$391*MATERIALI!$J$83*0.1/2.3*(1+(ABS(K72)/(INPUT!$F$38*INPUT!$F$39))/(1*MATERIALI!$J$83*0.1))^0.5)*INPUT!$F$38*INPUT!$F$39,"") -> 393.6609896 | P72: 93.79883354 | Q72: 93.79883354
A73: =IF(MNP_V!C98<INPUT!$F$38*1000,MNP_V!C98,INPUT!$F$38*1000) -> 2300 | B73: =MNP_V!Z98 -> 455.4790512 | C73: =(1.5/'FOGLIO DEPOSITO'!$E$391*MATERIALI!$J$28*(1+(ABS(B73)/(INPUT!$F$38*INPUT!$F$39))/(1.5*MATERIALI!$J$28))^0.5)*INPUT!$F$38*INPUT!$F$39 -> 54.70954219 | D73: =IF(MNP_V!C98>INPUT!$F$38*1000,INPUT!$F$38*1000,MNP_V!C98) -> 2300 | E73: =IFERROR(('FOGLIO DEPOSITO'!$E$401+'FOGLIO DEPOSITO'!$E$399*'andamento taglio'!B73/('andamento taglio'!D73/1000*INPUT!$F$39)/MATERIALI!$J$35)/'FOGLIO DEPOSITO'!$E$404*(D73/1000*INPUT!$F$39),"") -> 53.44753924 | F73: =IFERROR((1/'FOGLIO DEPOSITO'!$E$391*MATERIALI!$J$33*0.1/2.3*(1+(ABS(B73)/(INPUT!$F$38*INPUT!$F$39))/(1*MATERIALI!$J$33*0.1))^0.5)*INPUT!$F$38*INPUT!$F$39,"") -> 355.0952437 | G73: 53.44753924 | H73: 53.44753924 | J73: =IF(MNP_VR!C98<INPUT!$F$38*1000,MNP_VR!C98,INPUT!$F$38*1000) -> 2300 | K73: =MNP_VR!Z98 -> 781.0294588 | L73: =(1.5/'FOGLIO DEPOSITO'!$F$391*MATERIALI!$J$78*(1+(ABS(K73)/(MNP_VR!$D$3*MNP_VR!$D$4*10^-6))/(1.5*MATERIALI!$J$78))^0.5)*(MNP_VR!$D$3*MNP_VR!$D$4*10^-6) -> 93.79994054 | M73: =IF(MNP_VR!C98>INPUT!$F$38*1000,INPUT!$F$38*1000,MNP_VR!C98) -> 2300 | N73: =IFERROR(('FOGLIO DEPOSITO'!$F$401+'FOGLIO DEPOSITO'!$F$399*'andamento taglio'!K73/('andamento taglio'!M73/1000*MNP_VR!$D$3*10^-3)/MATERIALI!$J$85)/'FOGLIO DEPOSITO'!$F$404*(M73/1000*MNP_VR!$D$3*10^-3),"") -> 183.2903516 | O73: =IFERROR((1/'FOGLIO DEPOSITO'!$F$391*MATERIALI!$J$83*0.1/2.3*(1+(ABS(K73)/(INPUT!$F$38*INPUT!$F$39))/(1*MATERIALI!$J$83*0.1))^0.5)*INPUT!$F$38*INPUT!$F$39,"") -> 393.6631266 | P73: 93.79994054 | Q73: 93.79994054
A74: =IF(MNP_V!C99<INPUT!$F$38*1000,MNP_V!C99,INPUT!$F$38*1000) -> 2300 | B74: =MNP_V!Z99 -> 455.4950536 | C74: =(1.5/'FOGLIO DEPOSITO'!$E$391*MATERIALI!$J$28*(1+(ABS(B74)/(INPUT!$F$38*INPUT!$F$39))/(1.5*MATERIALI!$J$28))^0.5)*INPUT!$F$38*INPUT!$F$39 -> 54.71047627 | D74: =IF(MNP_V!C99>INPUT!$F$38*1000,INPUT!$F$38*1000,MNP_V!C99) -> 2300 | E74: =IFERROR(('FOGLIO DEPOSITO'!$E$401+'FOGLIO DEPOSITO'!$E$399*'andamento taglio'!B74/('andamento taglio'!D74/1000*INPUT!$F$39)/MATERIALI!$J$35)/'FOGLIO DEPOSITO'!$E$404*(D74/1000*INPUT!$F$39),"") -> 53.44913948 | F74: =IFERROR((1/'FOGLIO DEPOSITO'!$E$391*MATERIALI!$J$33*0.1/2.3*(1+(ABS(B74)/(INPUT!$F$38*INPUT!$F$39))/(1*MATERIALI!$J$33*0.1))^0.5)*INPUT!$F$38*INPUT!$F$39,"") -> 355.0972424 | G74: 53.44913948 | H74: 53.44913948 | J74: =IF(MNP_VR!C99<INPUT!$F$38*1000,MNP_VR!C99,INPUT!$F$38*1000) -> 2300 | K74: =MNP_VR!Z99 -> 781.0470267 | L74: =(1.5/'FOGLIO DEPOSITO'!$F$391*MATERIALI!$J$78*(1+(ABS(K74)/(MNP_VR!$D$3*MNP_VR!$D$4*10^-6))/(1.5*MATERIALI!$J$78))^0.5)*(MNP_VR!$D$3*MNP_VR!$D$4*10^-6) -> 93.80096588 | M74: =IF(MNP_VR!C99>INPUT!$F$38*1000,INPUT!$F$38*1000,MNP_VR!C99) -> 2300 | N74: =IFERROR(('FOGLIO DEPOSITO'!$F$401+'FOGLIO DEPOSITO'!$F$399*'andamento taglio'!K74/('andamento taglio'!M74/1000*MNP_VR!$D$3*10^-3)/MATERIALI!$J$85)/'FOGLIO DEPOSITO'!$F$404*(M74/1000*MNP_VR!$D$3*10^-3),"") -> 183.2938652 | O74: =IFERROR((1/'FOGLIO DEPOSITO'!$F$391*MATERIALI!$J$83*0.1/2.3*(1+(ABS(K74)/(INPUT!$F$38*INPUT!$F$39))/(1*MATERIALI!$J$83*0.1))^0.5)*INPUT!$F$38*INPUT!$F$39,"") -> 393.6651059 | P74: 93.80096588 | Q74: =P74 -> 93.80096588
A75: =IF(MNP_V!C100<INPUT!$F$38*1000,MNP_V!C100,INPUT!$F$38*1000) -> 2300 | B75: =MNP_V!Z100 -> 455.509919 | C75: =(1.5/'FOGLIO DEPOSITO'!$E$391*MATERIALI!$J$28*(1+(ABS(B75)/(INPUT!$F$38*INPUT!$F$39))/(1.5*MATERIALI!$J$28))^0.5)*INPUT!$F$38*INPUT!$F$39 -> 54.71134398 | D75: =IF(MNP_V!C100>INPUT!$F$38*1000,INPUT!$F$38*1000,MNP_V!C100) -> 2300 | E75: =IFERROR(('FOGLIO DEPOSITO'!$E$401+'FOGLIO DEPOSITO'!$E$399*'andamento taglio'!B75/('andamento taglio'!D75/1000*INPUT!$F$39)/MATERIALI!$J$35)/'FOGLIO DEPOSITO'!$E$404*(D75/1000*INPUT!$F$39),"") -> 53.45062603 | F75: =IFERROR((1/'FOGLIO DEPOSITO'!$E$391*MATERIALI!$J$33*0.1/2.3*(1+(ABS(B75)/(INPUT!$F$38*INPUT!$F$39))/(1*MATERIALI!$J$33*0.1))^0.5)*INPUT!$F$38*INPUT!$F$39,"") -> 355.0990992 | G75: 53.45062603 | H75: 53.45062603 | J75: =IF(MNP_VR!C100<INPUT!$F$38*1000,MNP_VR!C100,INPUT!$F$38*1000) -> 2300 | K75: =MNP_VR!Z100 -> 781.0633297 | L75: =(1.5/'FOGLIO DEPOSITO'!$F$391*MATERIALI!$J$78*(1+(ABS(K75)/(MNP_VR!$D$3*MNP_VR!$D$4*10^-6))/(1.5*MATERIALI!$J$78))^0.5)*(MNP_VR!$D$3*MNP_VR!$D$4*10^-6) -> 93.80191738 | M75: =IF(MNP_VR!C100>INPUT!$F$38*1000,INPUT!$F$38*1000,MNP_VR!C100) -> 2300 | N75: =IFERROR(('FOGLIO DEPOSITO'!$F$401+'FOGLIO DEPOSITO'!$F$399*'andamento taglio'!K75/('andamento taglio'!M75/1000*MNP_VR!$D$3*10^-3)/MATERIALI!$J$85)/'FOGLIO DEPOSITO'!$F$404*(M75/1000*MNP_VR!$D$3*10^-3),"") -> 183.2971258 | O75: =IFERROR((1/'FOGLIO DEPOSITO'!$F$391*MATERIALI!$J$83*0.1/2.3*(1+(ABS(K75)/(INPUT!$F$38*INPUT!$F$39))/(1*MATERIALI!$J$83*0.1))^0.5)*INPUT!$F$38*INPUT!$F$39,"") -> 393.6669427 | P75: 93.80191738 | Q75: 93.80191738
A76: =IF(MNP_V!C101<INPUT!$F$38*1000,MNP_V!C101,INPUT!$F$38*1000) -> 2300 | B76: =MNP_V!Z101 -> 455.5237528 | C76: =(1.5/'FOGLIO DEPOSITO'!$E$391*MATERIALI!$J$28*(1+(ABS(B76)/(INPUT!$F$38*INPUT!$F$39))/(1.5*MATERIALI!$J$28))^0.5)*INPUT!$F$38*INPUT!$F$39 -> 54.71215145 | D76: =IF(MNP_V!C101>INPUT!$F$38*1000,INPUT!$F$38*1000,MNP_V!C101) -> 2300 | E76: =IFERROR(('FOGLIO DEPOSITO'!$E$401+'FOGLIO DEPOSITO'!$E$399*'andamento taglio'!B76/('andamento taglio'!D76/1000*INPUT!$F$39)/MATERIALI!$J$35)/'FOGLIO DEPOSITO'!$E$404*(D76/1000*INPUT!$F$39),"") -> 53.4520094 | F76: =IFERROR((1/'FOGLIO DEPOSITO'!$E$391*MATERIALI!$J$33*0.1/2.3*(1+(ABS(B76)/(INPUT!$F$38*INPUT!$F$39))/(1*MATERIALI!$J$33*0.1))^0.5)*INPUT!$F$38*INPUT!$F$39,"") -> 355.100827 | G76: 53.4520094 | H76: 53.4520094 | J76: =IF(MNP_VR!C101<INPUT!$F$38*1000,MNP_VR!C101,INPUT!$F$38*1000) -> 2300 | K76: =MNP_VR!Z101 -> 781.0784865 | L76: =(1.5/'FOGLIO DEPOSITO'!$F$391*MATERIALI!$J$78*(1+(ABS(K76)/(MNP_VR!$D$3*MNP_VR!$D$4*10^-6))/(1.5*MATERIALI!$J$78))^0.5)*(MNP_VR!$D$3*MNP_VR!$D$4*10^-6) -> 93.80280198 | M76: =IF(MNP_VR!C101>INPUT!$F$38*1000,INPUT!$F$38*1000,MNP_VR!C101) -> 2300 | N76: =IFERROR(('FOGLIO DEPOSITO'!$F$401+'FOGLIO DEPOSITO'!$F$399*'andamento taglio'!K76/('andamento taglio'!M76/1000*MNP_VR!$D$3*10^-3)/MATERIALI!$J$85)/'FOGLIO DEPOSITO'!$F$404*(M76/1000*MNP_VR!$D$3*10^-3),"") -> 183.3001571 | O76: =IFERROR((1/'FOGLIO DEPOSITO'!$F$391*MATERIALI!$J$83*0.1/2.3*(1+(ABS(K76)/(INPUT!$F$38*INPUT!$F$39))/(1*MATERIALI!$J$83*0.1))^0.5)*INPUT!$F$38*INPUT!$F$39,"") -> 393.6686503 | P76: 93.80280198 | Q76: 93.80280198
A77: =IF(MNP_V!C102<INPUT!$F$38*1000,MNP_V!C102,INPUT!$F$38*1000) -> 2300 | B77: =MNP_V!Z102 -> 455.5366481 | C77: =(1.5/'FOGLIO DEPOSITO'!$E$391*MATERIALI!$J$28*(1+(ABS(B77)/(INPUT!$F$38*INPUT!$F$39))/(1.5*MATERIALI!$J$28))^0.5)*INPUT!$F$38*INPUT!$F$39 -> 54.71290414 | D77: =IF(MNP_V!C102>INPUT!$F$38*1000,INPUT!$F$38*1000,MNP_V!C102) -> 2300 | E77: =IFERROR(('FOGLIO DEPOSITO'!$E$401+'FOGLIO DEPOSITO'!$E$399*'andamento taglio'!B77/('andamento taglio'!D77/1000*INPUT!$F$39)/MATERIALI!$J$35)/'FOGLIO DEPOSITO'!$E$404*(D77/1000*INPUT!$F$39),"") -> 53.45329894 | F77: =IFERROR((1/'FOGLIO DEPOSITO'!$E$391*MATERIALI!$J$33*0.1/2.3*(1+(ABS(B77)/(INPUT!$F$38*INPUT!$F$39))/(1*MATERIALI!$J$33*0.1))^0.5)*INPUT!$F$38*INPUT!$F$39,"") -> 355.1024377 | G77: 53.45329894 | H77: 53.45329894 | J77: =IF(MNP_VR!C102<INPUT!$F$38*1000,MNP_VR!C102,INPUT!$F$38*1000) -> 2300 | K77: =MNP_VR!Z102 -> 781.092602 | L77: =(1.5/'FOGLIO DEPOSITO'!$F$391*MATERIALI!$J$78*(1+(ABS(K77)/(MNP_VR!$D$3*MNP_VR!$D$4*10^-6))/(1.5*MATERIALI!$J$78))^0.5)*(MNP_VR!$D$3*MNP_VR!$D$4*10^-6) -> 93.80362579 | M77: =IF(MNP_VR!C102>INPUT!$F$38*1000,INPUT!$F$38*1000,MNP_VR!C102) -> 2300 | N77: =IFERROR(('FOGLIO DEPOSITO'!$F$401+'FOGLIO DEPOSITO'!$F$399*'andamento taglio'!K77/('andamento taglio'!M77/1000*MNP_VR!$D$3*10^-3)/MATERIALI!$J$85)/'FOGLIO DEPOSITO'!$F$404*(M77/1000*MNP_VR!$D$3*10^-3),"") -> 183.3029802 | O77: =IFERROR((1/'FOGLIO DEPOSITO'!$F$391*MATERIALI!$J$83*0.1/2.3*(1+(ABS(K77)/(INPUT!$F$38*INPUT!$F$39))/(1*MATERIALI!$J$83*0.1))^0.5)*INPUT!$F$38*INPUT!$F$39,"") -> 393.6702406 | P77: 93.80362579 | Q77: 93.80362579
A78: =IF(MNP_V!C103<INPUT!$F$38*1000,MNP_V!C103,INPUT!$F$38*1000) -> 2300 | B78: =MNP_V!Z103 -> 455.5486881 | C78: =(1.5/'FOGLIO DEPOSITO'!$E$391*MATERIALI!$J$28*(1+(ABS(B78)/(INPUT!$F$38*INPUT!$F$39))/(1.5*MATERIALI!$J$28))^0.5)*INPUT!$F$38*INPUT!$F$39 -> 54.71360689 | D78: =IF(MNP_V!C103>INPUT!$F$38*1000,INPUT!$F$38*1000,MNP_V!C103) -> 2300 | E78: =IFERROR(('FOGLIO DEPOSITO'!$E$401+'FOGLIO DEPOSITO'!$E$399*'andamento taglio'!B78/('andamento taglio'!D78/1000*INPUT!$F$39)/MATERIALI!$J$35)/'FOGLIO DEPOSITO'!$E$404*(D78/1000*INPUT!$F$39),"") -> 53.45450293 | F78: =IFERROR((1/'FOGLIO DEPOSITO'!$E$391*MATERIALI!$J$33*0.1/2.3*(1+(ABS(B78)/(INPUT!$F$38*INPUT!$F$39))/(1*MATERIALI!$J$33*0.1))^0.5)*INPUT!$F$38*INPUT!$F$39,"") -> 355.1039415 | G78: 53.45450293 | H78: 53.45450293 | J78: =IF(MNP_VR!C103<INPUT!$F$38*1000,MNP_VR!C103,INPUT!$F$38*1000) -> 2300 | K78: =MNP_VR!Z103 -> 781.1057694 | L78: =(1.5/'FOGLIO DEPOSITO'!$F$391*MATERIALI!$J$78*(1+(ABS(K78)/(MNP_VR!$D$3*MNP_VR!$D$4*10^-6))/(1.5*MATERIALI!$J$78))^0.5)*(MNP_VR!$D$3*MNP_VR!$D$4*10^-6) -> 93.80439427 | M78: =IF(MNP_VR!C103>INPUT!$F$38*1000,INPUT!$F$38*1000,MNP_VR!C103) -> 2300 | N78: =IFERROR(('FOGLIO DEPOSITO'!$F$401+'FOGLIO DEPOSITO'!$F$399*'andamento taglio'!K78/('andamento taglio'!M78/1000*MNP_VR!$D$3*10^-3)/MATERIALI!$J$85)/'FOGLIO DEPOSITO'!$F$404*(M78/1000*MNP_VR!$D$3*10^-3),"") -> 183.3056137 | O78: =IFERROR((1/'FOGLIO DEPOSITO'!$F$391*MATERIALI!$J$83*0.1/2.3*(1+(ABS(K78)/(INPUT!$F$38*INPUT!$F$39))/(1*MATERIALI!$J$83*0.1))^0.5)*INPUT!$F$38*INPUT!$F$39,"") -> 393.6717241 | P78: 93.80439427 | Q78: 93.80439427
A79: =IF(MNP_V!C104<INPUT!$F$38*1000,MNP_V!C104,INPUT!$F$38*1000) -> 2300 | B79: =MNP_V!Z104 -> 455.5599466 | C79: =(1.5/'FOGLIO DEPOSITO'!$E$391*MATERIALI!$J$28*(1+(ABS(B79)/(INPUT!$F$38*INPUT!$F$39))/(1.5*MATERIALI!$J$28))^0.5)*INPUT!$F$38*INPUT!$F$39 -> 54.71426402 | D79: =IF(MNP_V!C104>INPUT!$F$38*1000,INPUT!$F$38*1000,MNP_V!C104) -> 2300 | E79: =IFERROR(('FOGLIO DEPOSITO'!$E$401+'FOGLIO DEPOSITO'!$E$399*'andamento taglio'!B79/('andamento taglio'!D79/1000*INPUT!$F$39)/MATERIALI!$J$35)/'FOGLIO DEPOSITO'!$E$404*(D79/1000*INPUT!$F$39),"") -> 53.45562878 | F79: =IFERROR((1/'FOGLIO DEPOSITO'!$E$391*MATERIALI!$J$33*0.1/2.3*(1+(ABS(B79)/(INPUT!$F$38*INPUT!$F$39))/(1*MATERIALI!$J$33*0.1))^0.5)*INPUT!$F$38*INPUT!$F$39,"") -> 355.1053477 | G79: 53.45562878 | H79: 53.45562878 | J79: =IF(MNP_VR!C104<INPUT!$F$38*1000,MNP_VR!C104,INPUT!$F$38*1000) -> 2300 | K79: =MNP_VR!Z104 -> 781.1180718 | L79: =(1.5/'FOGLIO DEPOSITO'!$F$391*MATERIALI!$J$78*(1+(ABS(K79)/(MNP_VR!$D$3*MNP_VR!$D$4*10^-6))/(1.5*MATERIALI!$J$78))^0.5)*(MNP_VR!$D$3*MNP_VR!$D$4*10^-6) -> 93.80511226 | M79: =IF(MNP_VR!C104>INPUT!$F$38*1000,INPUT!$F$38*1000,MNP_VR!C104) -> 2300 | N79: =IFERROR(('FOGLIO DEPOSITO'!$F$401+'FOGLIO DEPOSITO'!$F$399*'andamento taglio'!K79/('andamento taglio'!M79/1000*MNP_VR!$D$3*10^-3)/MATERIALI!$J$85)/'FOGLIO DEPOSITO'!$F$404*(M79/1000*MNP_VR!$D$3*10^-3),"") -> 183.3080742 | O79: =IFERROR((1/'FOGLIO DEPOSITO'!$F$391*MATERIALI!$J$83*0.1/2.3*(1+(ABS(K79)/(INPUT!$F$38*INPUT!$F$39))/(1*MATERIALI!$J$83*0.1))^0.5)*INPUT!$F$38*INPUT!$F$39,"") -> 393.6731102 | P79: 93.80511226 | Q79: 93.80511226
A80: =IF(MNP_V!C105<INPUT!$F$38*1000,MNP_V!C105,INPUT!$F$38*1000) -> 2300 | B80: =MNP_V!Z105 -> 455.5704899 | C80: =(1.5/'FOGLIO DEPOSITO'!$E$391*MATERIALI!$J$28*(1+(ABS(B80)/(INPUT!$F$38*INPUT!$F$39))/(1.5*MATERIALI!$J$28))^0.5)*INPUT!$F$38*INPUT!$F$39 -> 54.7148794 | D80: =IF(MNP_V!C105>INPUT!$F$38*1000,INPUT!$F$38*1000,MNP_V!C105) -> 2300 | E80: =IFERROR(('FOGLIO DEPOSITO'!$E$401+'FOGLIO DEPOSITO'!$E$399*'andamento taglio'!B80/('andamento taglio'!D80/1000*INPUT!$F$39)/MATERIALI!$J$35)/'FOGLIO DEPOSITO'!$E$404*(D80/1000*INPUT!$F$39),"") -> 53.45668312 | F80: =IFERROR((1/'FOGLIO DEPOSITO'!$E$391*MATERIALI!$J$33*0.1/2.3*(1+(ABS(B80)/(INPUT!$F$38*INPUT!$F$39))/(1*MATERIALI!$J$33*0.1))^0.5)*INPUT!$F$38*INPUT!$F$39,"") -> 355.1066645 | G80: 53.45668312 | H80: 53.45668312 | J80: =IF(MNP_VR!C105<INPUT!$F$38*1000,MNP_VR!C105,INPUT!$F$38*1000) -> 2300 | K80: =MNP_VR!Z105 -> 781.1295834 | L80: =(1.5/'FOGLIO DEPOSITO'!$F$391*MATERIALI!$J$78*(1+(ABS(K80)/(MNP_VR!$D$3*MNP_VR!$D$4*10^-6))/(1.5*MATERIALI!$J$78))^0.5)*(MNP_VR!$D$3*MNP_VR!$D$4*10^-6) -> 93.80578409 | M80: =IF(MNP_VR!C105>INPUT!$F$38*1000,INPUT!$F$38*1000,MNP_VR!C105) -> 2300 | N80: =IFERROR(('FOGLIO DEPOSITO'!$F$401+'FOGLIO DEPOSITO'!$F$399*'andamento taglio'!K80/('andamento taglio'!M80/1000*MNP_VR!$D$3*10^-3)/MATERIALI!$J$85)/'FOGLIO DEPOSITO'!$F$404*(M80/1000*MNP_VR!$D$3*10^-3),"") -> 183.3103765 | O80: =IFERROR((1/'FOGLIO DEPOSITO'!$F$391*MATERIALI!$J$83*0.1/2.3*(1+(ABS(K80)/(INPUT!$F$38*INPUT!$F$39))/(1*MATERIALI!$J$83*0.1))^0.5)*INPUT!$F$38*INPUT!$F$39,"") -> 393.6744071 | P80: 93.80578409 | Q80: 93.80578409
A81: =IF(MNP_V!C106<INPUT!$F$38*1000,MNP_V!C106,INPUT!$F$38*1000) -> 2300 | B81: =MNP_V!Z106 -> 455.5803774 | C81: =(1.5/'FOGLIO DEPOSITO'!$E$391*MATERIALI!$J$28*(1+(ABS(B81)/(INPUT!$F$38*INPUT!$F$39))/(1.5*MATERIALI!$J$28))^0.5)*INPUT!$F$38*INPUT!$F$39 -> 54.71545649 | D81: =IF(MNP_V!C106>INPUT!$F$38*1000,INPUT!$F$38*1000,MNP_V!C106) -> 2300 | E81: =IFERROR(('FOGLIO DEPOSITO'!$E$401+'FOGLIO DEPOSITO'!$E$399*'andamento taglio'!B81/('andamento taglio'!D81/1000*INPUT!$F$39)/MATERIALI!$J$35)/'FOGLIO DEPOSITO'!$E$404*(D81/1000*INPUT!$F$39),"") -> 53.45767186 | F81: =IFERROR((1/'FOGLIO DEPOSITO'!$E$391*MATERIALI!$J$33*0.1/2.3*(1+(ABS(B81)/(INPUT!$F$38*INPUT!$F$39))/(1*MATERIALI!$J$33*0.1))^0.5)*INPUT!$F$38*INPUT!$F$39,"") -> 355.1078994 | G81: 53.45767186 | H81: 53.45767186 | J81: =IF(MNP_VR!C106<INPUT!$F$38*1000,MNP_VR!C106,INPUT!$F$38*1000) -> 2300 | K81: =MNP_VR!Z106 -> 781.1403705 | L81: =(1.5/'FOGLIO DEPOSITO'!$F$391*MATERIALI!$J$78*(1+(ABS(K81)/(MNP_VR!$D$3*MNP_VR!$D$4*10^-6))/(1.5*MATERIALI!$J$78))^0.5)*(MNP_VR!$D$3*MNP_VR!$D$4*10^-6) -> 93.80641363 | M81: =IF(MNP_VR!C106>INPUT!$F$38*1000,INPUT!$F$38*1000,MNP_VR!C106) -> 2300 | N81: =IFERROR(('FOGLIO DEPOSITO'!$F$401+'FOGLIO DEPOSITO'!$F$399*'andamento taglio'!K81/('andamento taglio'!M81/1000*MNP_VR!$D$3*10^-3)/MATERIALI!$J$85)/'FOGLIO DEPOSITO'!$F$404*(M81/1000*MNP_VR!$D$3*10^-3),"") -> 183.3125339 | O81: =IFERROR((1/'FOGLIO DEPOSITO'!$F$391*MATERIALI!$J$83*0.1/2.3*(1+(ABS(K81)/(INPUT!$F$38*INPUT!$F$39))/(1*MATERIALI!$J$83*0.1))^0.5)*INPUT!$F$38*INPUT!$F$39,"") -> 393.6756224 | P81: 93.80641363 | Q81: 93.80641363
A82: =IF(MNP_V!C107<INPUT!$F$38*1000,MNP_V!C107,INPUT!$F$38*1000) -> 2300 | B82: =MNP_V!Z107 -> 455.5896622 | C82: =(1.5/'FOGLIO DEPOSITO'!$E$391*MATERIALI!$J$28*(1+(ABS(B82)/(INPUT!$F$38*INPUT!$F$39))/(1.5*MATERIALI!$J$28))^0.5)*INPUT!$F$38*INPUT!$F$39 -> 54.71599841 | D82: =IF(MNP_V!C107>INPUT!$F$38*1000,INPUT!$F$38*1000,MNP_V!C107) -> 2300 | E82: =IFERROR(('FOGLIO DEPOSITO'!$E$401+'FOGLIO DEPOSITO'!$E$399*'andamento taglio'!B82/('andamento taglio'!D82/1000*INPUT!$F$39)/MATERIALI!$J$35)/'FOGLIO DEPOSITO'!$E$404*(D82/1000*INPUT!$F$39),"") -> 53.45860034 | F82: =IFERROR((1/'FOGLIO DEPOSITO'!$E$391*MATERIALI!$J$33*0.1/2.3*(1+(ABS(B82)/(INPUT!$F$38*INPUT!$F$39))/(1*MATERIALI!$J$33*0.1))^0.5)*INPUT!$F$38*INPUT!$F$39,"") -> 355.1090591 | G82: 53.45860034 | H82: 53.45860034 | J82: =IF(MNP_VR!C107<INPUT!$F$38*1000,MNP_VR!C107,INPUT!$F$38*1000) -> 2300 | K82: =MNP_VR!Z107 -> 781.1504926 | L82: =(1.5/'FOGLIO DEPOSITO'!$F$391*MATERIALI!$J$78*(1+(ABS(K82)/(MNP_VR!$D$3*MNP_VR!$D$4*10^-6))/(1.5*MATERIALI!$J$78))^0.5)*(MNP_VR!$D$3*MNP_VR!$D$4*10^-6) -> 93.80700436 | M82: =IF(MNP_VR!C107>INPUT!$F$38*1000,INPUT!$F$38*1000,MNP_VR!C107) -> 2300 | N82: =IFERROR(('FOGLIO DEPOSITO'!$F$401+'FOGLIO DEPOSITO'!$F$399*'andamento taglio'!K82/('andamento taglio'!M82/1000*MNP_VR!$D$3*10^-3)/MATERIALI!$J$85)/'FOGLIO DEPOSITO'!$F$404*(M82/1000*MNP_VR!$D$3*10^-3),"") -> 183.3145584 | O82: =IFERROR((1/'FOGLIO DEPOSITO'!$F$391*MATERIALI!$J$83*0.1/2.3*(1+(ABS(K82)/(INPUT!$F$38*INPUT!$F$39))/(1*MATERIALI!$J$83*0.1))^0.5)*INPUT!$F$38*INPUT!$F$39,"") -> 393.6767628 | P82: 93.80700436 | Q82: 93.80700436
A83: =IF(MNP_V!C107<INPUT!$F$38*1000,MNP_V!C107,INPUT!$F$38*1000) -> 2300 | B83: =MNP_V!Z107 -> 455.5896622 | C83: =(1.5/'FOGLIO DEPOSITO'!$E$391*MATERIALI!$J$28*(1+(ABS(B83)/(INPUT!$F$38*INPUT!$F$39))/(1.5*MATERIALI!$J$28))^0.5)*INPUT!$F$38*INPUT!$F$39 -> 54.71599841 | D83: =IF(MNP_V!C108>INPUT!$F$38*1000,INPUT!$F$38*1000,MNP_V!C108) -> 2300 | E83: =IFERROR(('FOGLIO DEPOSITO'!$E$401+'FOGLIO DEPOSITO'!$E$399*'andamento taglio'!B83/('andamento taglio'!D83/1000*INPUT!$F$39)/MATERIALI!$J$35)/'FOGLIO DEPOSITO'!$E$404*(D83/1000*INPUT!$F$39),"") -> 53.45860034 | F83: =IFERROR((1/'FOGLIO DEPOSITO'!$E$391*MATERIALI!$J$33*0.1/2.3*(1+(ABS(B83)/(INPUT!$F$38*INPUT!$F$39))/(1*MATERIALI!$J$33*0.1))^0.5)*INPUT!$F$38*INPUT!$F$39,"") -> 355.1090591 | G83: =IF(E83="",C83,MINA(C83,E83,F83)) -> 53.45860034 | H83: =G83 -> 53.45860034 | J83: =IF(MNP_VR!C107<INPUT!$F$38*1000,MNP_VR!C107,INPUT!$F$38*1000) -> 2300 | K83: =MNP_VR!Z107 -> 781.1504926 | L83: =(1.5/'FOGLIO DEPOSITO'!$F$391*MATERIALI!$J$78*(1+(ABS(K83)/(MNP_VR!$D$3*MNP_VR!$D$4*10^-6))/(1.5*MATERIALI!$J$78))^0.5)*(MNP_VR!$D$3*MNP_VR!$D$4*10^-6) -> 93.80700436 | M83: =IF(MNP_VR!C108>INPUT!$F$38*1000,INPUT!$F$38*1000,MNP_VR!C108) -> 2300 | N83: =IFERROR(('FOGLIO DEPOSITO'!$F$401+'FOGLIO DEPOSITO'!$F$399*'andamento taglio'!K83/('andamento taglio'!M83/1000*MNP_VR!$D$3*10^-3)/MATERIALI!$J$85)/'FOGLIO DEPOSITO'!$F$404*(M83/1000*MNP_VR!$D$3*10^-3),"") -> 183.3145584 | O83: =IFERROR((1/'FOGLIO DEPOSITO'!$F$391*MATERIALI!$J$83*0.1/2.3*(1+(ABS(K83)/(INPUT!$F$38*INPUT!$F$39))/(1*MATERIALI!$J$83*0.1))^0.5)*INPUT!$F$38*INPUT!$F$39,"") -> 393.6767628 | P83: =IF(N83="",L83,MINA(L83,N83,O83)) -> 93.80700436 | Q83: =P83 -> 93.80700436
A84: =IF(MNP_V!C108<INPUT!$F$38*1000,MNP_V!C108,INPUT!$F$38*1000) -> 2300 | B84: =MNP_V!Z108 -> 455.8088889 | C84: =(1.5/'FOGLIO DEPOSITO'!$E$391*MATERIALI!$J$28*(1+(ABS(B84)/(INPUT!$F$38*INPUT!$F$39))/(1.5*MATERIALI!$J$28))^0.5)*INPUT!$F$38*INPUT!$F$39 -> 54.72879213 | D84: =IF(MNP_V!C109>INPUT!$F$38*1000,INPUT!$F$38*1000,MNP_V!C109) -> 0 | E84: =IFERROR(('FOGLIO DEPOSITO'!$E$401+'FOGLIO DEPOSITO'!$E$399*'andamento taglio'!B84/('andamento taglio'!D84/1000*INPUT!$F$39)/MATERIALI!$J$85)/'FOGLIO DEPOSITO'!$E$404*(D84/1000*INPUT!$F$39),"") ->  | F84: =IFERROR((1/'FOGLIO DEPOSITO'!$E$391*MATERIALI!$J$33*0.1/2.3*(1+(ABS(B84)/(INPUT!$F$38*INPUT!$F$39))/(1*MATERIALI!$J$33*0.1))^0.5)*INPUT!$F$38*INPUT!$F$39,"") -> 355.1364392 | G84: 54.72879213 | H84: 0 | J84: =IF(MNP_VR!C108<INPUT!$F$38*1000,MNP_VR!C108,INPUT!$F$38*1000) -> 2300 | K84: =MNP_VR!Z108 -> 781.3866667 | L84: =(1.5/'FOGLIO DEPOSITO'!$F$391*MATERIALI!$J$78*(1+(ABS(K84)/(MNP_VR!$D$3*MNP_VR!$D$4*10^-6))/(1.5*MATERIALI!$J$78))^0.5)*(MNP_VR!$D$3*MNP_VR!$D$4*10^-6) -> 93.8207865 | M84: =IF(MNP_VR!C109>INPUT!$F$38*1000,INPUT!$F$38*1000,MNP_VR!C109) -> 0 | N84: =IFERROR(('FOGLIO DEPOSITO'!$F$401+'FOGLIO DEPOSITO'!$F$399*'andamento taglio'!K84/('andamento taglio'!M84/1000*MNP_VR!$D$3*10^-3)/MATERIALI!$J$85)/'FOGLIO DEPOSITO'!$F$404*(M84/1000*MNP_VR!$D$3*10^-3),"") ->  | O84: =IFERROR((1/'FOGLIO DEPOSITO'!$F$391*MATERIALI!$J$83*0.1/2.3*(1+(ABS(K84)/(INPUT!$F$38*INPUT!$F$39))/(1*MATERIALI!$J$83*0.1))^0.5)*INPUT!$F$38*INPUT!$F$39,"") -> 393.7033699 | P84: =IF(N84="",L84,MINA(L84,N84,O84)) -> 93.8207865 | Q84: 0

Sheet NEL PIANO
B2: Verifiche nel Piano
I4: Developed by Ing. Davide Cicchini
B5: =INPUT!B5 -> Versione 2.03 | I5: data: | J5: =NOW() -> 2025-03-02T20:19:24.680
B7: VERIFICHE EX-ANTE NEL PIANO | G7: VERIFICHE EX-POST NEL PIANO
B9: VERIFICA A FLESSIONE NEL PIANO EX-ANTE | G9: VERIFICA A FLESSIONE NEL PIANO EX-POST
B11: Dati di calcolo | G11: Dati di calcolo
B12: Lunghezza del pannello murario | D12: l | E12: =INPUT!$F$38*1000 -> 2300 | G12: Lunghezza del pannello murario | I12: l | J12: =INPUT!$F$38*1000 -> 2300
B13: Spessore del pannello murario | D13: t | E13: =INPUT!$F$39*1000 -> 420 | G13: Spessore del pannello murario | I13: t | J13: =MNPR!D3 -> 480
B14: Resistenza di calcolo a compressione della muratura | D14: fmd | E14: ='RELAZIONE TECNICA'!E166 -> 0.4718518519 | G14: Resistenza di calcolo a compressione della muratura | I14: fmd | J14: ='RELAZIONE TECNICA'!E200 -> 0.7077777778
B15: Valore di calcolo del modulo di elasticità normale di calcolo | D15: Ed | E15: ='RELAZIONE TECNICA'!E172 -> 816 | G15: Valore di calcolo del modulo di elasticità normale di calcolo | I15: Ed | J15: ='RELAZIONE TECNICA'!E206 -> 1440
B16: Deformazione al limite elastico della muratura | D16: εm1 | E16: ='RELAZIONE TECNICA'!E176 -> -0.0005782498184 | G16: Deformazione al limite elastico della muratura | I16: εm1 | J16: ='RELAZIONE TECNICA'!E210 -> -0.0004915123457
B17: Deformazione ultima della muratura | D17: εmu | E17: =MATERIALI!$J$88 -> -0.0035 | G17: Deformazione ultima della muratura | I17: εmu | J17: =MATERIALI!$J$88 -> -0.0035
B19: In-Plane Masonry bending capacity | G19: In-Plane Masonry bending capacity
B38: Stress and strain plane section Masonry | G38: =B38 -> Stress and strain plane section Masonry
B59: Campo di rottura: | D59: =VLOOKUP('FOGLIO DEPOSITO'!B462,'FOGLIO DEPOSITO'!B465:C470,2,FALSE) -> CAMPO 3 | G59: Campo di rottura: | I59: =VLOOKUP('FOGLIO DEPOSITO'!B472,'FOGLIO DEPOSITO'!B465:C470,2,FALSE) -> CAMPO 2B
B60: Posizione asse neutro | D60: L' | E60: =IF($E$133<1,"",IFERROR(INPUT!$F$38*1000-'FOGLIO DEPOSITO'!F298,"")) -> 1089.938963 | G60: Posizione asse neutro | I60: L' | J60: =IF($J$133<1,"",IFERROR(INPUT!$F$38*1000-'FOGLIO DEPOSITO'!F299,"")) -> 1589.053158
B61: Def. Muratura lembo superiore (zona compressa) | D61: εm_sup | E61: =IF($E$133<1,"",IFERROR(IF(MNP!E261=0,"",MNP!E261),"")) -> -0.0035 | G61: Def. Muratura lembo superiore (zona compressa) | I61: εm_sup | J61: =IF($J$133<1,"",IFERROR(IF(MNPR!E261=0,"",MNPR!E261),"")) -> -0.003436053549
B62: Def. Muratura lembo inferiore | D62: εm_inf | E62: =IF(E60="","",IF('FOGLIO DEPOSITO'!E288="",0,'FOGLIO DEPOSITO'!E288)) -> 0 | G62: Def. Muratura lembo inferiore | I62: εm_inf | J62: =IF(J60="","",IF('FOGLIO DEPOSITO'!E289="",0,'FOGLIO DEPOSITO'!E289)) -> 0
B63: Sforzo normale sollecitante | D63: Ned | E63: ='FOGLIO DEPOSITO'!F304 -> 220 | G63: Sforzo normale sollecitante | I63: Ned | J63: ='FOGLIO DEPOSITO'!F304 -> 220
B64: Momento sollecitante | D64: Med | E64: =INPUT!F86 -> 165 | G64: Momento sollecitante | I64: Med | J64: =INPUT!F86 -> 165
B65: Momento Resistente sezione non rinforzata | D65: MRd | E65: =IF($E$133<1,"",IFERROR(MNP!U261,"")) -> 130.5572862 | G65: Momento Resistente sezione rinforzata | I65: MRd | J65: =IF($J$133<1,"",IFERROR(MNPR!U261,"")) -> 180.3766894
B66: Verifica a flessione nel piano per la senzione non rinforzata | D66: ver NM pl | E66: =IF('NEL PIANO'!$E$133<1,"",IF('FOGLIO DEPOSITO'!B462="fuori dominio asse N","NON VERIFICATO ROTTURA A COMPRESSIONE",IF('NEL PIANO'!E65>='NEL PIANO'!E64, "verificato", "NON VERIFICATO ex-ante"))) -> NON VERIFICATO ex-ante | G66: Verifica a flessione nel piano per la senzione rinforzata | I66: ver NM pl-reinf | J66: =IF('NEL PIANO'!$J$133<1,"",IF('FOGLIO DEPOSITO'!B472="fuori dominio asse N","NON VERIFICATO ROTTURA A COMPRESSIONE",IF('NEL PIANO'!J65>='NEL PIANO'!J64, "verificato", "NON VERIFICATO ex-post"))) -> verificato
B67: Coeff. Di Sicurezza | D67: R/E | E67: =IF($E$133<1,"",IFERROR(IF(E65/E64>10,">10",E65/E64),">10")) -> 0.7912562798 | G67: Coeff. Di Sicurezza | I67: R/E | J67: =IF($J$133<1,"",IFERROR(IF(J65/J64>10,">10",J65/J64),">10")) -> 1.093192057
B69: VERIFICA A TAGLIO NEL PIANO EX-ANTE | G69: VERIFICA A TAGLIO NEL PIANO EX-POST
B71: RESISTENZA A TAGLIO DIAGONALE EX-ANTE C8.7.1.16 | G71: RESISTENZA A TAGLIO DIAGONALE EX-POST C8.7.1.16
B72: RESISTENZA A TAGLIO DIAGONALE EX-ANTE C8.7.1.16 | G72: RESISTENZA A TAGLIO DIAGONALE EX-POST C8.7.1.16
B73: Coeff. Correttivo legato alla distribuzione degli sforzi | D73: b | E73: ='FOGLIO DEPOSITO'!E391 -> 1.434782609 | G73: Coeff. Correttivo legato alla distribuzione degli sforzi | I73: b | J73: ='FOGLIO DEPOSITO'!F391 -> 1.434782609
B74: Resistenza media a taglio della muratura | D74: τ0d | E74: ='FOGLIO DEPOSITO'!E392/1000 -> 0.009074074074 | G74: Resistenza media a taglio della muratura | I74: τ0d | J74: ='FOGLIO DEPOSITO'!F392/1000 -> 0.01361111111
B75: Resistenza di calcolo per fessurazione diagonale | D75: ftd | E75: ='FOGLIO DEPOSITO'!E393/1000 -> 0.01361111111 | G75: Resistenza di calcolo per fessurazione diagonale | I75: ftd | J75: ='FOGLIO DEPOSITO'!F393/1000 -> 0.02041666667
B76: Tensione media di compressione (su tutto il pannello) | D76: σmed,tot | E76: ='FOGLIO DEPOSITO'!E394/1000 -> 0.2277432712 | G76: Tensione media di compressione (su tutto il pannello) | I76: σmed,tot | J76: ='FOGLIO DEPOSITO'!F394/1000 -> 0.1992753623
B77: Tensione resistente a taglio per fessurazione diagonale | D77: τdiag,d | E77: ='FOGLIO DEPOSITO'!E395/1000 -> 0.0399473781 | G77: Tensione resistente a taglio per fessurazione diagonale | I77: τdiag,d | J77: ='FOGLIO DEPOSITO'!F395/1000 -> 0.04667813172
B78: Sezione pannello | D78: A | E78: ='FOGLIO DEPOSITO'!E396 -> 0.966 | G78: Sezione pannello | I78: A | J78: ='FOGLIO DEPOSITO'!F396 -> 1.104
B79: Resistenza a taglio per fessurazione diagonale C8.7.1.16 | D79: Vrd,diag | E79: ='FOGLIO DEPOSITO'!E397 -> 38.58916725 | G79: Resistenza a taglio per fessurazione diagonale C8.7.1.16 | I79: Vrd,diag | J79: ='FOGLIO DEPOSITO'!F397 -> 51.53265742
B81: RESISTENZA A TAGLIO SCORRIMENTO EX-ANTE C8.7.1.17 E C8.7.1.18 | G81: RESISTENZA A TAGLIO SCORRIMENTO EX-POST C8.7.1.17 E C8.7.1.18
B82: Per muratura con tessitura regolare | G82: Per muratura con tessitura regolare
B83: Coeff. Di attrito equivalente della muratura | E83: ='FOGLIO DEPOSITO'!E399 -> 0.2 | G83: Coeff. Di attrito equivalente della muratura | J83: ='FOGLIO DEPOSITO'!F399 -> 0.4
B84: Coeff. Di attrito della muratura ( corr. Angolo di attrito di 30°) | E84: ='FOGLIO DEPOSITO'!E400 -> 0.577 | G84: Coeff. Di attrito della muratura ( corr. Angolo di attrito di 30°) | J84: ='FOGLIO DEPOSITO'!F400 -> 0.577
B85: Resistenza a taglio equivalente della muratura in assenza di tensioni normali | E85: =IFERROR('FOGLIO DEPOSITO'!E401/1000,"") -> 0.008177675075 | G85: Resistenza a taglio equivalente della muratura in assenza di tensioni normali | J85: =IFERROR('FOGLIO DEPOSITO'!F401/1000,"") -> 0.02453302523
B86: Tensione media di compressione (solo su parte compressa: L') | D86: σmed,comp | E86: =IFERROR('FOGLIO DEPOSITO'!E402/1000,"") -> 0.4328785967 | G86: Tensione media di compressione (solo su parte compressa: L') | I86: σmed,comp | J86: =IFERROR('FOGLIO DEPOSITO'!F402/1000,"") -> 0.6446801737
B87: Resistenza a taglio equivalente della muratura in presenza di tensioni normali | E87: =IFERROR('FOGLIO DEPOSITO'!E403/1000,"") -> 0.05146553475 | G87: Resistenza a taglio equivalente della muratura in presenza di tensioni normali | J87: =IFERROR('FOGLIO DEPOSITO'!F403/1000,"") -> 0.15346906
B88: Coeff. Correttivo legato alla distribuzione degli sforzi | D88: b | E88: ='FOGLIO DEPOSITO'!E404 -> 1 | G88: Coeff. Correttivo legato alla distribuzione degli sforzi | I88: b | J88: ='FOGLIO DEPOSITO'!F404 -> 1
B89: Resistenza a taglio scorrimento | E89: =IFERROR('FOGLIO DEPOSITO'!E405/1000,"") -> 0.05146553475 | G89: Resistenza a taglio scorrimento | J89: =IFERROR('FOGLIO DEPOSITO'!F405/1000,"") -> 0.15346906
B90: Lunghezza del lembo compresso di muratura | D90: L' | E90: ='FOGLIO DEPOSITO'!E406 -> 1210.061037 | G90: Lunghezza del lembo compresso di muratura | I90: L' | J90: ='FOGLIO DEPOSITO'!F406 -> 710.9468416
B91: Sezione compressa pannello murario | D91: Acomp | E91: ='FOGLIO DEPOSITO'!E407 -> 0.5082256357 | G91: Sezione compressa pannello murario | I91: Acomp | J91: ='FOGLIO DEPOSITO'!F407 -> 0.341254484
B92: Resistenza a taglio scorrimento C8.7.1.17 (*) | D92: Vrd,scor | E92: ='FOGLIO DEPOSITO'!E408 -> 26.15610411 | G92: Resistenza a taglio scorrimento C8.7.1.17 (*) | I92: Vrd,scor | J92: ='FOGLIO DEPOSITO'!F408 -> 52.37200486
B93: Resistenza a trazione dei blocchi | D93: fbtd | E93: =IFERROR('FOGLIO DEPOSITO'!E409/1000,"") -> 1 | G93: Resistenza a trazione dei blocchi | I93: fbtd | J93: =IFERROR('FOGLIO DEPOSITO'!F409/1000,"") -> 1
B94: Resistenza limite rottura a trazione dei blocchi | D94: τbloc,d | E94: =IFERROR('FOGLIO DEPOSITO'!E410/1000,"") -> 0.3357684156 | G94: Resistenza limite rottura a trazione dei blocchi | I94: τbloc,d | J94: =IFERROR('FOGLIO DEPOSITO'!F410/1000,"") -> 0.3318528226
B95: Resistenza a taglio per rottura a trazione dei blocchi C8.7.1.18 | D95: Vrd,lim,scor | E95: ='FOGLIO DEPOSITO'!E411 -> 324.3522895 | G95: Resistenza a taglio per rottura a trazione dei blocchi C8.7.1.18 | I95: Vrd,lim,scor | J95: ='FOGLIO DEPOSITO'!F411 -> 366.3655162
B96: * Nel calcolo viene utilizzato L' (lunghezza porzione compressa del pannello murario) seguendo l'approccio della formula 7.8.3 NTC18; in luogo di L (lunghezza del pannello murario) indicato nella formula C8.7.1.17 | G96: * Nel calcolo viene utilizzato L' (lunghezza porzione compressa del pannello murario) seguendo l'approccio della formula 7.8.3 NTC18; in luogo di L (lunghezza del pannello murario) indicato nella formula C8.7.1.17
B98: VERIFICA A TAGLIO EX-ANTE C.8.7.1.16/C.8.7.1.17/C.8.7.1.18 | G98: VERIFICA A TAGLIO EX-POST C.8.7.1.16/C.8.7.1.17/C.8.7.1.18
B99: Taglio sollecitante | D99: Ved | E99: =INPUT!F89 -> 48 | G99: Taglio sollecitante | I99: Ved | J99: =INPUT!F89 -> 48
B100: RESISTENZA A TAGLIO DELLA MURATURA MIN(C8.7.1.16;C8.7.1.17;C8.7.1.18) | D100: Vrd | E100: =IF('FOGLIO DEPOSITO'!E408="",'FOGLIO DEPOSITO'!E397,MINA('FOGLIO DEPOSITO'!E397,'FOGLIO DEPOSITO'!E411,'FOGLIO DEPOSITO'!E408)) -> 26.15610411 | G100: RESISTENZA A TAGLIO DELLA MURATURA MIN(C8.7.1.16;C8.7.1.17;C8.7.1.18) | I100: Vrd | J100: =IF('FOGLIO DEPOSITO'!F408="",'FOGLIO DEPOSITO'!F397,MINA('FOGLIO DEPOSITO'!F397,'FOGLIO DEPOSITO'!F411,'FOGLIO DEPOSITO'!F408)) -> 51.53265742
B101: Verifica capacità tagliante ex-ante | D101: verifica | E101: =IF(E100>=E99, "verificato","NON Verificato Ex-Ante") -> NON Verificato Ex-Ante | G101: Verifica capacità tagliante ex-ante | I101: verifica | J101: =IF(J100>=J99, "verificato","NON Verificato Ex-Post") -> verificato
B102: Coeff. Di Sicurezza | D102: R/E | E102: =IFERROR(IF(E100/E99>10,">10",E100/E99),">10") -> 0.5449188357 | G102: Coeff. Di Sicurezza | I102: R/E | J102: =IFERROR(IF(J100/J99>10,">10",J100/J99),">10") -> 1.07359703
B104: In-Plane Masonry shear capacity | G104: In-Plane Masonry shear capacity
B126: VERIFICA A COMPRESSIONE SEMPLICE EX-ANTE | G126: VERIFICA A COMPRESSIONE SEMPLICE EX-POST
B127: Peso Pannello murario | D127: W | E127: =MNP!D3/1000*MNP!D4/1000*INPUT!F40*MATERIALI!L17 -> 57.3804 | G127: Peso Pannello murario | I127: W | J127: =MNPR!D3/1000*MNPR!D4/1000*INPUT!F40*MATERIALI!L67 -> 65.5776
B128: Tensione media di compressione | D128: σmed | E128: =-ABS(INPUT!F82*1000)/(MNP!D3*MNP!D4) -> -0.2277432712 | G128: Tensione media di compressione | I128: σmed | J128: =-ABS(INPUT!F82*1000)/(MNPR!D3*MNPR!D4) -> -0.1992753623
B129: Resistenza di calcolo, a compressione della muratura | D129: fmd | E129: =MATERIALI!K27 -> 0.4718518519 | G129: Resistenza di calcolo, a compressione della muratura | I129: fmd | J129: =MATERIALI!K77 -> 0.7077777778
B130: Sforzo normale sollecitante | D130: Ned | E130: =ABS(INPUT!F82) -> 220 | G130: Sforzo normale sollecitante | I130: Ned | J130: =ABS(INPUT!F82) -> 220
B131: Capacità assiale (da dominio M-N) | D131: NRd | E131: =ABS(MNP!T108) -> 455.8088889 | G131: Capacità assiale (da dominio M-N) | I131: NRd | J131: =ABS(MNPR!T108) -> 781.3866667
B132: Verifica di capacità assiale | D132: verifica | E132: =IF(E131>E130, "verificato", "NON verificato ex-ante") -> verificato | G132: Verifica di capacità assiale | I132: verifica | J132: =IF(J131>J130, "verificato", "NON verificato ex-POST") -> verificato
B133: Coeff. Di Sicurezza | D133: R/E | E133: =IFERROR(IF(E131/E130>10,">10",E131/E130),">10") -> 2.071858586 | G133: Coeff. Di Sicurezza | I133: R/E | J133: =IFERROR(IF(J131/J130>10,">10",J131/J130),">10") -> 3.551757576

Sheet FUORI PIANO
B2: Verifiche Fuori del Piano
I4: Developed by Ing. Davide Cicchini
B5: =INPUT!B5 -> Versione 2.03 | I5: data: | J5: =NOW() -> 2025-03-02T20:19:24.680
B7: VERIFICHE EX-ANTE FUORI PIANO | G7: VERIFICHE EX-POST FUORI PIANO
B9: VERIFICA A FLESSIONE FUORI DEL PIANO EX-ANTE | G9: VERIFICA A FLESSIONE FUORI DEL PIANO EX-POST
B11: Dati di calcolo | G11: Dati di calcolo
B12: Lunghezza del pannello murario | D12: l | E12: ='NEL PIANO'!E12 -> 2300 | G12: Lunghezza del pannello murario | I12: l | J12: ='NEL PIANO'!J12 -> 2300
B13: Spessore del pannello murario | D13: t | E13: ='NEL PIANO'!E13 -> 420 | G13: Spessore del pannello murario | I13: t | J13: ='NEL PIANO'!J13 -> 480
B14: Resistenza di calcolo a compressione della muratura | D14: fmd | E14: ='NEL PIANO'!E14 -> 0.4718518519 | G14: Resistenza di calcolo a compressione della muratura | I14: fmd | J14: ='NEL PIANO'!J14 -> 0.7077777778
B15: Valore di calcolo del modulo di elasticità normale di calcolo | D15: Ed | E15: ='NEL PIANO'!E15 -> 816 | G15: Valore di calcolo del modulo di elasticità normale di calcolo | I15: Ed | J15: ='NEL PIANO'!J15 -> 1440
B16: Deformazione al limite elastico della muratura | D16: εm1 | E16: ='NEL PIANO'!E16 -> -0.0005782498184 | G16: Deformazione al limite elastico della muratura | I16: εm1 | J16: ='NEL PIANO'!J16 -> -0.0004915123457
B17: Deformazione ultima della muratura | D17: εmu | E17: ='NEL PIANO'!E17 -> -0.0035 | G17: Deformazione ultima della muratura | I17: εmu | J17: ='NEL PIANO'!J17 -> -0.0035
B19: Out of Plane Masonry capacity | G19: Out of Plane Masonry capacity
B38: Stress and strain plane section Masonry | G38: Stress and strain plane section Masonry
B59: Campo di rottura: | D59: =VLOOKUP('FOGLIO DEPOSITO'!B492,'FOGLIO DEPOSITO'!B495:C500,2,FALSE) -> CAMPO 3 | G59: Campo di rottura: | I59: =VLOOKUP('FOGLIO DEPOSITO'!B511,'FOGLIO DEPOSITO'!B514:C519,2,FALSE) -> CAMPO 2B
B60: Posizione asse neutro | D60: L' | E60: =IF('NEL PIANO'!E133<1,"",IFERROR(INPUT!$F$39*1000-'FOGLIO DEPOSITO'!F300,"")) -> 199.0323323 | G60: discesa asse neutro | I60: L' | J60: =IF('NEL PIANO'!J133<1,"",IFERROR(MNFPR!D3-'FOGLIO DEPOSITO'!F301,"")) -> 331.6284852
B61: Def. Muratura lembo superiore (zona compressa) | D61: εm_sup | E61: =IF('NEL PIANO'!E133<1,"",IFERROR(IF(MNFP!E261=0,"",MNFP!E261),"")) -> -0.0035 | G61: Def. Muratura lembo superiore (zona compressa) | I61: εm_sup | J61: =IF('NEL PIANO'!J133<1,"",IFERROR(IF(MNFPR!E261=0,"",MNFPR!E261),"")) -> -0.003436053549
B62: Def. Muratura lembo inferiore | D62: εm_inf | E62: =IF('NEL PIANO'!E133<1,"",IF(E60="","",IF('FOGLIO DEPOSITO'!E292="",0,'FOGLIO DEPOSITO'!E292))) -> 0 | G62: Def. Muratura lembo inferiore | I62: εm_inf | J62: =IF('NEL PIANO'!J133<1,"",IF(J60="","",IF('FOGLIO DEPOSITO'!E293="",0,'FOGLIO DEPOSITO'!E293))) -> 0
B63: Sforzo normale sollecitante | D63: Ned | E63: ='FOGLIO DEPOSITO'!F304 -> 220 | G63: Sforzo normale sollecitante | I63: Ned | J63: ='FOGLIO DEPOSITO'!F304 -> 220
B64: Momento sollecitante | D64: Med | E64: =INPUT!F87 -> 32 | G64: Momento sollecitante | I64: Med | J64: =INPUT!F87 -> 32
B65: Momento Resistente sezione non rinforzata | D65: MRd | E65: =IF('NEL PIANO'!E133<1,"",IFERROR(MNFP!V261,"")) -> 23.84089574 | G65: Momento Resistente sezione rinforzata | I65: MRd | J65: =IF('NEL PIANO'!J133<1,"",IFERROR(MNFPR!V261,"")) -> 37.64383084
B66: Verifica a flessione fuori del piano per la senzione non rinforzata | D66: ver NM out-pl | E66: =IFERROR(VLOOKUP('FOGLIO DEPOSITO'!B502,'FOGLIO DEPOSITO'!B505:C509,2,FALSE),"") -> NON verificato EX-ANTE | G66: Verifica a flessione fuori del piano per la senzione rinforzata | I66: ver NM out-pl-reinf | J66: =IFERROR(VLOOKUP('FOGLIO DEPOSITO'!B521,'FOGLIO DEPOSITO'!B524:C528,2,FALSE),"") -> verificato
B67: Coeff. Di Sicurezza | D67: R/E | E67: =IF('NEL PIANO'!E133<1,"",IFERROR(IF(E65/E64>10,">10",E65/E64),">10")) -> 0.7450279918 | G67: Coeff. Di Sicurezza | I67: R/E | J67: =IF('NEL PIANO'!J133<1,"",IFERROR(IF(J65/J64>10,">10",J65/J64),">10")) -> 1.176369714
B69: VERIFICA A TAGLIO SCORRIMENTO FUORI PIANO EX-ANTE | G69: VERIFICA A TAGLIO SCORRIMENTO FUORI PIANO EX-POST
B70: Coeff. Di attrito della muratura | E70: =IF('FOGLIO DEPOSITO'!E401="",0.2,MATERIALI!$J$32) -> 0.2 | G70: Coeff. Di attrito della muratura | J70: =IF('FOGLIO DEPOSITO'!E401="",0.2,MATERIALI!$J$82) -> 0.4
B71: Coeff. Di attrito della muratura ( corr. Angolo di attrito di 30°) | E71: 0.577 | G71: Coeff. Di attrito della muratura ( corr. Angolo di attrito di 30°) | J71: 0.577
B72: Tensione media di compressione (solo su parte compressa: L') | D72: σmed,comp | E72: =IF(E60="","",'FOGLIO DEPOSITO'!E572/1000) -> 0.4328785967 | G72: Tensione media di compressione (solo su parte compressa: L') | I72: σmed,comp | J72: =IF(J60="","",'FOGLIO DEPOSITO'!E575/1000) -> 0.6446801737
B73: tensione tangenziale resistente della muratura in presenza di compressione | D73: ='FOGLIO DEPOSITO'!D573 -> fvd | E73: =IF(E60="","",'FOGLIO DEPOSITO'!E573/1000) -> 0.05146553475 | G73: tensione tangenziale resistente della muratura in presenza di compressione | I73: ='FOGLIO DEPOSITO'!D576 -> fvd | J73: =IF(J60="","",'FOGLIO DEPOSITO'!E576/1000) -> 0.15346906
B74: Lunghezza del lembo compresso di muratura | D74: L' | E74: =IF(E60="","",IF(E60<0,INPUT!F39*1000,'FOGLIO DEPOSITO'!F300)) -> 220.9676677 | G74: Lunghezza del lembo compresso di muratura | I74: L' | J74: =IF(J60="","",IF(J60<0,MNFPR!D3,'FOGLIO DEPOSITO'!F301)) -> 148.3715148
B75: Taglio sollecitante fuori del piano | D75: Ved | E75: =INPUT!F90 -> 25 | G75: Taglio sollecitante fuori del piano | I75: Ved | J75: =INPUT!F90 -> 25
B76: Resistenza a taglio scorrimento C8.7.1.17 | D76: Vrd | E76: =IFERROR(E74*'FOGLIO DEPOSITO'!E573/1000*INPUT!F38,"") -> 26.15610411 | G76: Resistenza a taglio scorrimento C8.7.1.17 | I76: Vrd | J76: =IFERROR(J74*'FOGLIO DEPOSITO'!E576/1000*INPUT!F38,"") -> 52.37200486
B77: Verifica capacità tagliante ex-ante | D77: verifica | E77: =IF('NEL PIANO'!E133<1,"",IF(E76>=E75,"verificato","NON verificato")) -> verificato | G77: Verifica capacità tagliante ex-ante | I77: verifica | J77: =IF('NEL PIANO'!J133<1,"",IF(J76>=J75,"verificato","NON verificato")) -> verificato
B78: Coeff. Di Sicurezza | D78: R/E | E78: =IF('NEL PIANO'!E133<1,"",IFERROR(IF(E76/E75>10,">10",E76/E75),">10")) -> 1.046244165 | G78: Coeff. Di Sicurezza | I78: R/E | J78: =IF('NEL PIANO'!J133<1,"",IFERROR(IF(J76/J75>10,">10",J76/J75),">10")) -> 2.094880195

Sheet RELAZIONE TECNICA
B16: REPORT Rinforzo muratura esistente
B18: =INPUT!E5 -> Data: | C18: =NOW() -> 2025-03-02T20:19:24.680
B20: =INPUT!B9 -> Oggetto dei lavori: | C20: =B84 -> Oggetto dei lavori
B22: =INPUT!B14 -> Indirizzo Cantiere: | C22: =B87 -> Indirizzo cantiere
B24: =INPUT!B10 -> Committente: | C24: =D90 -> Committente
B26: =INPUT!B11 -> Progettista: | C26: =D91 -> Progettista
B28: =INPUT!B12 -> Direttore dei Lavori: | C28: =D92 -> Direttore dei lavori
B30: =INPUT!B13 -> Impresa: | C30: =D93 -> Impresa
D46: Developed by Ing. Davide Cicchini | E46: =B80 -> Versione 2.03
B49: SOMMARIO
B51: =B82 -> RIFERIMENTO CANTIERE | E51: Pag. 3
B52: =B95 -> NORMATIVA DI RIFERIMENTO | E52: Pag. 3
B53: =B103 -> GEOMETRIA PARETE | E53: Pag. 3
B54: =B123 -> LIVELLO DI CONOSCENZA §8.5.4 NTC18 | E54: Pag. 4
B55: =B136 -> TIPOLOGIA MURARIA Tab. C8.5.I Circolare 21/01/2019 n.7 | E55: Pag. 4
B56: =B151 -> CARATTERISTICHE MECCANICHE DELLA MURATURA CORRETTA DAI COEFFICIENTI: EX ANTE | E56: Pag. 5
B57: =B184 -> CARATTERISTICHE MECCANICHE DELLA MURATURA CORRETTA DAI COEFFICIENTI: EX POST | E57: Pag. 6
B58: =B218 -> SOLLECITAZIONI AGENTI | E58: Pag. 6
B59: =B225 -> VERIFICHE A FLESSIONE | E59: Pag. 7
C60: =B228 -> VERIFICA A FLESSIONE NEL PIANO EX-ANTE | E60: Pag. 7
C61: =B276 -> VERIFICA A FLESSIONE NEL PIANO EX-POST | E61: Pag. 8
C62: =B327 -> VERIFICA A FLESSIONE FUORI DEL PIANO EX-ANTE | E62: Pag. 9
C63: =B375 -> VERIFICA A FLESSIONE FUORI DEL PIANO EX-POST | E63: Pag. 10
B64: =B425 -> VERIFICHE A TAGLIO | E64: Pag. 11
C65: =B428 -> VERIFICA A TAGLIO NEL PIANO EX-ANTE | E65: Pag. 11
C66: =B489 -> VERIFICA A TAGLIO NEL PIANO EX-POST | E66: Pag. 13
C67: =B550 -> VERIFICA A TAGLIO SCORRIMENTO FUORI PIANO EX-ANTE | E67: Pag. 14
C68: =B562 -> VERIFICA A TAGLIO SCORRIMENTO FUORI PIANO EX-POST | E68: Pag. 15
B69: =B574 -> VERIFICHE A COMPRESSIONE SEMPLICE | E69: Pag. 15
C70: =B577 -> VERIFICA A COMPRESSIONE SEMPLICE EX-ANTE | E70: Pag. 15
C71: =B586 -> VERIFICA A COMPRESSIONE SEMPLICE EX-POST | E71: Pag. 15
C77: =B16 -> REPORT Rinforzo muratura esistente
B80: =INPUT!B5 -> Versione 2.03 | C80: data: | D80: =NOW() -> 2025-03-02T20:19:24.680
B82: RIFERIMENTO CANTIERE
B83: =B20 -> Oggetto dei lavori:
B84: =INPUT!$D$9 -> Oggetto dei lavori
B86: =B22 -> Indirizzo Cantiere:
B87: =INPUT!$D$14 -> Indirizzo cantiere
B90: =INPUT!B10 -> Committente: | D90: =INPUT!$D$10 -> Committente
B91: =INPUT!B11 -> Progettista: | D91: =INPUT!$D$11 -> Progettista
B92: =INPUT!B12 -> Direttore dei Lavori: | D92: =INPUT!$D$12 -> Direttore dei lavori
B93: =INPUT!B13 -> Impresa: | D93: =INPUT!$D$13 -> Impresa
B95: NORMATIVA DI RIFERIMENTO
B96: Le verifiche sono eseguite in conformità a: • Aggiornamento delle Norme Tecniche per le Costruzioni di cui al Decreto 17 gennaio 2018 e successive Istruzioni per l’applicazione dell’Aggiornamento delle Norme Tecniche per le Costruzioni di cui alla Circolare n. 7 del 21 gennaio 2019; • Istruzioni per la Progettazione, l’Esecuzione ed il Controllo di Interventi di Consolidamento Statico mediante l’utilizzo di Compositi Fibrorinforzati a Matrice Inorganica di cui al CNR DT 215/2018.
B103: GEOMETRIA PARETE
B119: Lunghezza del pannello murario | D119: l | E119: =INPUT!$F$38 -> 2.3
B120: Spessore del pannello murario | D120: t | E120: =INPUT!$F$39 -> 0.42
B121: =INPUT!B40 -> Altezza del pannello murario | D121: H | E121: =INPUT!$F$40 -> 3.3
B123: LIVELLO DI CONOSCENZA §8.5.4 NTC18
B124: Livello di conoscenza §8.5.4 NTC18 | D124: LC | E124: =INPUT!$F$47 -> LC1
B125: Fattore di confidenza §8.5.4 NTC18 | D125: FC | E125: =INPUT!$F$48 -> 1.35
B126: =VLOOKUP(E124,'FOGLIO DEPOSITO'!$B$43:$E$45,4,FALSE) -> Resistenze:i valori minimi degli intervalli riportati in Tabella C8.5.I; Moduli elastici: I valori medi degli intervalli riportati nella tabella suddetta.
B128: Livello di conoscenza | C128: GEOMETRIA | D128: DETTAGLI COSTRUTTIVI | E128: METODI DI ANALISI CONSENTITI
B129: LC1 → FC=1,35 | C129: Rilievo strutturale completo | D129: Limitate verifiche in situ | E129: tutti
B130: LC2 → FC=1,20 | D130: Estese ed esaustive verifiche in situ | E130: tutti
B131: LC3 → FC=1,00 | D131: METODI DI ANALISI CONSENTITI | E131: tutti
B133: Tipo di analisi utilizzata per il calcolo delle sollecitazioni: | E133: ='FOGLIO DEPOSITO'!B422 -> lineare
B134: Coefficiente di sicurezza del materale muratura | D134: γm | E134: =MATERIALI!$J$85 -> 2
B136: TIPOLOGIA MURARIA Tab. C8.5.I Circolare 21/01/2019 n.7
B137: =MATERIALI!B7 -> Muratura in mattoni pieni e malta di calce
B138: Resistenza media a compressione della muratura | D138: fm | E138: =MATERIALI!K23 -> 1.274
B140: Resistenza a taglio della muratura | D140: τ0 | E140: =MATERIALI!K24 -> 0.0245
B142: Resistenza a taglio in assenza di tensioni normali | D142: fv0 | E142: =MATERIALI!K25 -> 0.0637
B144: Valore del modulo di elasticità normale | D144: E | E144: =MATERIALI!J9 -> 1500
B146: Valore del modulo di elasticità tangenziale | D146: G | E146: =MATERIALI!K9 -> 500
B148: Peso specifico della muratura | D148: w | E148: =MATERIALI!L9 -> 18
B151: CARATTERISTICHE MECCANICHE DELLA MURATURA CORRETTA DAI COEFFICIENTI: EX ANTE
B152: Rigidezza fessurata EX-ANTE (100% = "non fessurato") | E152: =INPUT!F55 -> 0.85
B153: Malta buona (solo se è >2MPa, validata da prove in situ) / scadente | E153: =INPUT!F57 -> scadente
B154: Giunto di malta >13mm | E154: =INPUT!F58 -> si
B155: Ricorsi o listature | E155: =INPUT!F59 -> no
B156: Connessione trasversale (ovvero apparecchiata secondo la regola dell'arte) | E156: =INPUT!F60 -> no
B158: Coefficiente massimo applicabile | D158: Cmax | E158: =MATERIALI!F16 -> 1.8
B159: Coeff. correttivo della resistenza a compressione della muratura | D159: Cfm | E159: =MATERIALI!$G$16 -> 0.49
B160: Coeff. correttivo della resistenza a taglio della muratura | D160: Cτ0d | E160: =MATERIALI!H16 -> 0.49
B161: Coeff. correttivo della resistenza a taglio in assenza di tensioni normali | D161: Cfv0,d | E161: =MATERIALI!I16 -> 0.49
B162: Coeff. correttivo del modulo di elasticità normale | D162: CEd | E162: =MATERIALI!J16 -> 0.544
B163: Coeff. correttivo del modulo di elasticità tangenziale | D163: CGd | E163: =MATERIALI!K16 -> 0.544
B164: Coefficiente di sicurezza del materale muratura | D164: γm | E164: =MATERIALI!J$85 -> 2
B165: Resistenze di progetto | D165: Rd=R/(γm*FC)
B166: Resistenza di calcolo a compressione della muratura | D166: fmd | E166: =MATERIALI!K27 -> 0.4718518519
B168: Resistenza di calcolo a taglio della muratura | D168: τ0d | E168: =MATERIALI!K28 -> 0.009074074074
B170: Resistenza di calcolo a taglio in assenza di tensioni normali | D170: fv0,d | E170: =MATERIALI!K29 -> 0.02359259259
B172: Valore di calcolo del modulo di elasticità normale di calcolo | D172: Ed | E172: =MATERIALI!J30 -> 816
B174: Valore di calcolo del modulo di elasticità tangenziale di calcolo | D174: Gd | E174: =MATERIALI!J31 -> 272
B176: Deformazione al limite elastico della muratura | D176: εm1 | E176: =MATERIALI!J37 -> -0.0005782498184
B177: Deformazione ultima della muratura | D177: εmu | E177: =MATERIALI!$J$88 -> -0.0035
B178: Stima resistenza di calcolo a compressione blocco muratura regolare | D178: fbd | E178: =MATERIALI!K33 -> 10
B180: Caratteristiche tessitura muratura: | C180: =MATERIALI!H32 -> regolare | E180: =MATERIALI!J32 -> 0.2
B181: Legame costitutivo di calcolo
B184: CARATTERISTICHE MECCANICHE DELLA MURATURA CORRETTA DAI COEFFICIENTI: EX POST
B185: Rigidezza fessurata EX-POST (100% = "non fessurato") | E185: =INPUT!F62 -> 1
B186: Iniezioni di miscele leganti (rinforzo consigliato per murature fortemente incoerenti con cavità e/o con nucleo scadente) | E186: =INPUT!F64 -> no
B187: Ristilatura armata con connessione dei paramenti | E187: =INPUT!F65 -> no
B188: Diatoni artificiali o tirantini antiespulsivi | E188: =INPUT!F66 -> no
B189: Intonaco Armato | E189: =INPUT!E67 -> CRM doppia faccia + connettori
B190: Spessore del rinforzo (per incremento sezione resistente solo CRM) | E190: 3
B192: Coefficiente massimo applicabile | D192: Cmax | E192: =MATERIALI!$F$66 -> 1.8
B193: Coeff. correttivo della resistenza a compressione della muratura | D193: Cfm | E193: =MATERIALI!$G$66 -> 0.735
B194: Coeff. correttivo della resistenza a taglio della muratura | D194: Cτ0d | E194: =MATERIALI!$H$65 -> 0.735
B195: Coeff. correttivo della resistenza a taglio in assenza di tensioni normali | D195: Cfv0,d | E195: =MATERIALI!$I$65 -> 0.735
B196: Coeff. correttivo del modulo di elasticità normale | D196: CEd | E196: =MATERIALI!$J$65 -> 0.96
B197: Coeff. correttivo del modulo di elasticità tangenziale | D197: CGd | E197: =MATERIALI!$K$65 -> 0.96
B198: Coefficiente di sicurezza del materale muratura | D198: γm | E198: =MATERIALI!J$85 -> 2
B199: Resistenze di progetto | D199: Rd=R/(γm*FC)
B200: Resistenza di calcolo a compressione della muratura | D200: fmd | E200: =MATERIALI!$K$77 -> 0.7077777778
B202: Resistenza di calcolo a taglio della muratura | D202: τ0d | E202: =MATERIALI!$K$78 -> 0.01361111111
B204: Resistenza di calcolo a taglio in assenza di tensioni normali | D204: fv0,d | E204: =MATERIALI!$K$79 -> 0.03538888889
B206: Valore di calcolo del modulo di elasticità normale di calcolo | D206: Ed | E206: =MATERIALI!$J$80 -> 1440
B208: Valore di calcolo del modulo di elasticità tangenziale di calcolo | D208: Gd | E208: =MATERIALI!$J$81 -> 480
B210: Deformazione al limite elastico della muratura | D210: εm1 | E210: =MATERIALI!J87 -> -0.0004915123457
B211: Deformazione ultima della muratura | D211: εmu | E211: =MATERIALI!J88 -> -0.0035
B212: Stima resistenza di calcolo a compressione blocco muratura regolare | D212: fbd | E212: =MATERIALI!K83 -> 10
B214: Caratteristiche tessitura muratura: | C214: =MATERIALI!H82 -> regolare | E214: =MATERIALI!J82 -> 0.4
B215: Legame costitutivo di calcolo
B218: SOLLECITAZIONI AGENTI
B219: Sforzo normale agente (Compressione) | D219: Ned | E219: =INPUT!$F$82 -> 220
B220: Momento flettente agente nel piano | D220: Med,pl | E220: =INPUT!$F$86 -> 165
B221: Momento flettente agente fuori del piano | D221: Med,out-pl | E221: =INPUT!$F$87 -> 32
B222: Sforzo di taglio agente nel piano del pannello | D222: Ved | E222: =INPUT!$F$89 -> 48
B223: Sforzo di taglio agente nel piano del pannello | D223: Ved,out-pl | E223: =INPUT!$F$90 -> 25
B225: VERIFICHE A FLESSIONE
B228: ='NEL PIANO'!B9 -> VERIFICA A FLESSIONE NEL PIANO EX-ANTE
B229: ='NEL PIANO'!B19 -> In-Plane Masonry bending capacity
B248: ='NEL PIANO'!B38 -> Stress and strain plane section Masonry
B266: ='NEL PIANO'!B59 -> Campo di rottura: | D266: ='NEL PIANO'!D59 -> CAMPO 3
B267: ='NEL PIANO'!B60 -> Posizione asse neutro | D267: Y | E267: ='NEL PIANO'!$E$60 -> 1089.938963
B268: ='NEL PIANO'!B61 -> Def. Muratura lembo superiore (zona compressa) | D268: εm_sup | E268: ='NEL PIANO'!$E$61 -> -0.0035
B269: ='NEL PIANO'!B62 -> Def. Muratura lembo inferiore | D269: εm_inf | E269: ='NEL PIANO'!$E$62 -> 0
B270: ='NEL PIANO'!B63 -> Sforzo normale sollecitante | D270: Ned | E270: ='NEL PIANO'!$E$63 -> 220
B271: ='NEL PIANO'!B64 -> Momento sollecitante | D271: Med | E271: ='NEL PIANO'!$E$64 -> 165
B272: ='NEL PIANO'!B65 -> Momento Resistente sezione non rinforzata | D272: MRd | E272: ='NEL PIANO'!$E$65 -> 130.5572862
B273: ='NEL PIANO'!B66 -> Verifica a flessione nel piano per la senzione non rinforzata | D273: ='NEL PIANO'!D66 -> ver NM pl | E273: ='NEL PIANO'!E66 -> NON VERIFICATO ex-ante
B274: ='NEL PIANO'!B67 -> Coeff. Di Sicurezza | D274: ='NEL PIANO'!D67 -> R/E | E274: ='NEL PIANO'!E67 -> 0.7912562798
B276: ='NEL PIANO'!G9 -> VERIFICA A FLESSIONE NEL PIANO EX-POST
B277: ='NEL PIANO'!G19 -> In-Plane Masonry bending capacity
B291: ='FOGLIO DEPOSITO'!B539 -> ULTERIORI COPPIE DI VERIFICHE GRAFICHE A SCELTA DELL'UTENTE
D292: NED | E292: MED-PL
B293: ='FOGLIO DEPOSITO'!B542 -> COMBINAZIONE PRINCIPALE PER LA VERIFICA ANALITICA | C293: 1 | D293: ='FOGLIO DEPOSITO'!$D$542 -> 220 | E293: ='FOGLIO DEPOSITO'!$E$542 -> 165
B294: ='FOGLIO DEPOSITO'!B543 -> COMBINAZIONI A SCELTA DELL'UTENTE | C294: 2 | D294: ='FOGLIO DEPOSITO'!$D$543 -> 210 | E294: ='FOGLIO DEPOSITO'!$E$543 -> 115
B295: ='FOGLIO DEPOSITO'!B544 -> COMBINAZIONI A SCELTA DELL'UTENTE | C295: 3 | D295: ='FOGLIO DEPOSITO'!$D$544 -> 215 | E295: ='FOGLIO DEPOSITO'!$E$544 -> 132
B296: ='FOGLIO DEPOSITO'!B545 -> COMBINAZIONI A SCELTA DELL'UTENTE | C296: 4 | D296: ='FOGLIO DEPOSITO'!$D$545 -> 230 | E296: ='FOGLIO DEPOSITO'!$E$545 -> 161
B297: ='FOGLIO DEPOSITO'!B546 -> COMBINAZIONI A SCELTA DELL'UTENTE | C297: 5 | D297: ='FOGLIO DEPOSITO'!$D$546 -> 285 | E297: ='FOGLIO DEPOSITO'!$E$546 -> 155
B299: ='NEL PIANO'!G59 -> Campo di rottura: | D299: ='NEL PIANO'!I59 -> CAMPO 2B
B300: ='NEL PIANO'!G60 -> Posizione asse neutro | D300: Y | E300: ='NEL PIANO'!J60 -> 1589.053158
B301: ='NEL PIANO'!G61 -> Def. Muratura lembo superiore (zona compressa) | D301: εm_sup | E301: ='NEL PIANO'!$J$61 -> -0.003436053549
B302: ='NEL PIANO'!G62 -> Def. Muratura lembo inferiore | D302: εm_inf | E302: ='NEL PIANO'!$J$62 -> 0
B303: ='NEL PIANO'!G63 -> Sforzo normale sollecitante | D303: Ned | E303: ='NEL PIANO'!$J$63 -> 220
B304: ='NEL PIANO'!G64 -> Momento sollecitante | D304: Med | E304: ='NEL PIANO'!$J$64 -> 165
B305: ='NEL PIANO'!G65 -> Momento Resistente sezione rinforzata | D305: MRd | E305: ='NEL PIANO'!$J$65 -> 180.3766894
B306: ='NEL PIANO'!G66 -> Verifica a flessione nel piano per la senzione rinforzata | D306: ='NEL PIANO'!I66 -> ver NM pl-reinf | E306: ='NEL PIANO'!J66 -> verificato
B307: ='NEL PIANO'!G67 -> Coeff. Di Sicurezza | D307: ='NEL PIANO'!I67 -> R/E | E307: ='NEL PIANO'!J67 -> 1.093192057
B308: ='NEL PIANO'!G38 -> Stress and strain plane section Masonry
B327: ='FUORI PIANO'!B9 -> VERIFICA A FLESSIONE FUORI DEL PIANO EX-ANTE
B328: ='FUORI PIANO'!B19 -> Out of Plane Masonry capacity
B345: ='FUORI PIANO'!B59 -> Campo di rottura: | D345: ='FUORI PIANO'!D59 -> CAMPO 3
B346: ='FUORI PIANO'!B60 -> Posizione asse neutro | D346: Y | E346: ='FUORI PIANO'!$E$60 -> 199.0323323
B347: ='FUORI PIANO'!B61 -> Def. Muratura lembo superiore (zona compressa) | D347: εm_sup | E347: ='FUORI PIANO'!$E$61 -> -0.0035
B348: ='FUORI PIANO'!B62 -> Def. Muratura lembo inferiore | D348: εm_inf | E348: ='FUORI PIANO'!$E$62 -> 0
B349: ='FUORI PIANO'!B63 -> Sforzo normale sollecitante | D349: Ned | E349: ='FUORI PIANO'!$E$63 -> 220
B350: ='FUORI PIANO'!B64 -> Momento sollecitante | D350: Med | E350: ='FUORI PIANO'!$E$64 -> 32
B351: ='FUORI PIANO'!B65 -> Momento Resistente sezione non rinforzata | D351: MRd | E351: ='FUORI PIANO'!$E$65 -> 23.84089574
B352: ='FUORI PIANO'!B66 -> Verifica a flessione fuori del piano per la senzione non rinforzata | D352: ='FUORI PIANO'!D66 -> ver NM out-pl | E352: ='FUORI PIANO'!E66 -> NON verificato EX-ANTE
B353: ='FUORI PIANO'!B67 -> Coeff. Di Sicurezza | D353: ='FUORI PIANO'!D67 -> R/E | E353: ='FUORI PIANO'!E67 -> 0.7450279918
B355: ='FUORI PIANO'!B38 -> Stress and strain plane section Masonry
B375: ='FUORI PIANO'!G9 -> VERIFICA A FLESSIONE FUORI DEL PIANO EX-POST
B376: ='FUORI PIANO'!G19 -> Out of Plane Masonry capacity
B391: ='FOGLIO DEPOSITO'!B549 -> ULTERIORI COPPIE DI VERIFICHE GRAFICHE A SCELTA DELL'UTENTE
D392: NED | E392: MED-OUT-PL
B393: ='FOGLIO DEPOSITO'!B552 -> COMBINAZIONE PRINCIPALE PER LA VERIFICA ANALITICA | C393: 1 | D393: ='FOGLIO DEPOSITO'!$D$552 -> 220 | E393: ='FOGLIO DEPOSITO'!$E$552 -> 32
B394: ='FOGLIO DEPOSITO'!B553 -> COMBINAZIONI A SCELTA DELL'UTENTE | C394: 2 | D394: ='FOGLIO DEPOSITO'!$D$553 -> 210 | E394: ='FOGLIO DEPOSITO'!$E$553 -> 21.5
B395: ='FOGLIO DEPOSITO'!B554 -> COMBINAZIONI A SCELTA DELL'UTENTE | C395: 3 | D395: ='FOGLIO DEPOSITO'!$D$554 -> 215 | E395: ='FOGLIO DEPOSITO'!$E$554 -> 18
B396: ='FOGLIO DEPOSITO'!B555 -> COMBINAZIONI A SCELTA DELL'UTENTE | C396: 4 | D396: ='FOGLIO DEPOSITO'!$D$555 -> 230 | E396: ='FOGLIO DEPOSITO'!$E$555 -> 17
B397: ='FOGLIO DEPOSITO'!B556 -> COMBINAZIONI A SCELTA DELL'UTENTE | C397: 5 | D397: ='FOGLIO DEPOSITO'!$D$556 -> 285 | E397: ='FOGLIO DEPOSITO'!$E$556 -> 23
B398: ='FUORI PIANO'!G38 -> Stress and strain plane section Masonry
B415: ='FUORI PIANO'!G59 -> Campo di rottura: | D415: ='FUORI PIANO'!I59 -> CAMPO 2B
B416: ='FUORI PIANO'!G60 -> discesa asse neutro | D416: Y | E416: ='FUORI PIANO'!$J$60 -> 331.6284852
B417: ='FUORI PIANO'!G61 -> Def. Muratura lembo superiore (zona compressa) | D417: εm_sup | E417: ='FUORI PIANO'!$J$61 -> -0.003436053549
B418: ='FUORI PIANO'!G62 -> Def. Muratura lembo inferiore | D418: εm_inf | E418: ='FUORI PIANO'!$J$62 -> 0
B419: ='FUORI PIANO'!G63 -> Sforzo normale sollecitante | D419: Ned | E419: ='FUORI PIANO'!$J$63 -> 220
B420: ='FUORI PIANO'!G64 -> Momento sollecitante | D420: Med | E420: ='FUORI PIANO'!$J$64 -> 32
B421: ='FUORI PIANO'!G65 -> Momento Resistente sezione rinforzata | D421: MRd | E421: ='FUORI PIANO'!$J$65 -> 37.64383084
B422: ='FUORI PIANO'!G66 -> Verifica a flessione fuori del piano per la senzione rinforzata | D422: ='FUORI PIANO'!I66 -> ver NM out-pl-reinf | E422: ='FUORI PIANO'!J66 -> verificato
B423: ='FUORI PIANO'!G67 -> Coeff. Di Sicurezza | D423: ='FUORI PIANO'!I67 -> R/E | E423: ='FUORI PIANO'!J67 -> 1.176369714
B425: VERIFICHE A TAGLIO
B428: VERIFICA A TAGLIO NEL PIANO EX-ANTE
B429: ='NEL PIANO'!B71 -> RESISTENZA A TAGLIO DIAGONALE EX-ANTE C8.7.1.16
B434: ='NEL PIANO'!B72 -> RESISTENZA A TAGLIO DIAGONALE EX-ANTE C8.7.1.16
B435: ='NEL PIANO'!B73 -> Coeff. Correttivo legato alla distribuzione degli sforzi | C435: ='NEL PIANO'!C73 -> 0 | D435: b | E435: ='NEL PIANO'!E73 -> 1.434782609
B436: ='NEL PIANO'!B74 -> Resistenza media a taglio della muratura | C436: ='NEL PIANO'!C74 -> 0 | D436: τ0d | E436: ='NEL PIANO'!E74 -> 0.009074074074
B437: ='NEL PIANO'!B75 -> Resistenza di calcolo per fessurazione diagonale | C437: ='NEL PIANO'!C75 -> 0 | D437: ftd | E437: ='NEL PIANO'!E75 -> 0.01361111111
B438: ='NEL PIANO'!B76 -> Tensione media di compressione (su tutto il pannello) | C438: ='NEL PIANO'!C76 -> 0 | D438: σmed,tot | E438: ='NEL PIANO'!E76 -> 0.2277432712
B439: ='NEL PIANO'!B77 -> Tensione resistente a taglio per fessurazione diagonale | C439: ='NEL PIANO'!C77 -> 0 | D439: τdiag,d | E439: ='NEL PIANO'!E77 -> 0.0399473781
B440: ='NEL PIANO'!B78 -> Sezione pannello | C440: ='NEL PIANO'!C78 -> 0 | D440: A | E440: ='NEL PIANO'!E78 -> 0.966
B441: ='NEL PIANO'!B79 -> Resistenza a taglio per fessurazione diagonale C8.7.1.16 | C441: ='NEL PIANO'!C79 -> 0 | D441: Vrd,diag | E441: ='NEL PIANO'!E79 -> 38.58916725
B443: ='NEL PIANO'!B81 -> RESISTENZA A TAGLIO SCORRIMENTO EX-ANTE C8.7.1.17 E C8.7.1.18
B447: ='NEL PIANO'!B82 -> Per muratura con tessitura regolare
B448: ='NEL PIANO'!B83 -> Coeff. Di attrito equivalente della muratura | C448: ='NEL PIANO'!C83 -> 0 | E448: ='NEL PIANO'!E83 -> 0.2
B449: ='NEL PIANO'!B84 -> Coeff. Di attrito della muratura ( corr. Angolo di attrito di 30°) | C449: ='NEL PIANO'!C84 -> 0 | E449: ='NEL PIANO'!E84 -> 0.577
B450: ='NEL PIANO'!B85 -> Resistenza a taglio equivalente della muratura in assenza di tensioni normali | C450: ='NEL PIANO'!C85 -> 0 | E450: ='NEL PIANO'!E85 -> 0.008177675075
... 84 more rows

Sheet MNP (hidden)
C3: t parete=S | D3: =INPUT!F39*1000 -> 420 | E3: mm
C4: B parete=H | D4: =INPUT!F38*1000 -> 2300 | E4: mm | K4: fmd | L4: =MATERIALI!K27 -> 0.4718518519 | M4: N/mm2 | S4: εmu | T4: =MATERIALI!J38 -> -0.0035 | U4: [‰]
C5: facce | D5: =10^-9 -> 1e-09 | E5: - | F5: FRCM non operativo sulla muratura non rinforzata | K5: Ed | L5: =MATERIALI!J30 -> 816 | M5: N/mm2 | S5: εm1 | T5: =MATERIALI!J37 -> -0.0005782498184 | U5: [‰]
C6: nf | D6: 1 | E6: - | K6: Ef | L6: 52000 | M6: N/mm2
C7: tVf | D7: 0.063 | E7: mm | K7: ffd | L7: =+D5*D6*D7*D9*D8*L6*T7/D10 -> 1.5095808e-08 | M7: N/mm2 | S7: εfd | T7: 0.00768 | U7: [‰]
C8: a | D8: 1 | E8: - | K8: Seq | L8: =+D5*D6*D8 -> 1e-09 | Z8: =IF(ABS('FOGLIO DEPOSITO'!F304)<AC9,AC9,ABS('FOGLIO DEPOSITO'!F304)) -> 220
C9: η | D9: 0.9 | E9: - | K9: RO | L9: =$T$5/$T$4*$D$4 -> 379.9927378 | Z9: Ned [kN] | AA9: MRd [kNm] | AC9: =MINA(AE13:AE108) -> 0.002312021258
C10: γmFRCM | D10: 1.5 | E10: - | Z10: =VLOOKUP(AA10,AA13:AB108,2,) -> 217.0819714 | AA10: =VLOOKUP(Z8,Z13:AA108,2,TRUE) -> 130.4282079 | AB10: =VLOOKUP(Z8,Z13:AF108,7,TRUE) -> CAMPO 3
H11: muratura | J11: FRCM | Z11: COPPIA DI VERIFICA | AC11: y | AD11: =AC13 -> -100000000000
C12: Y[mm] | D12: εm_inf [-] | E12: εm_sup [-] | F12: εf_inf [-] | G12: εf_sup [-] | H12: A(σ-ε) | I12: Sy(σ-ε) | J12: A(σ-ε) | K12: Sy(σ-ε) | L12: β1 | M12: β2 | N12: k1 | O12: k2 | P12: C [N] | Q12: T [N] | R12: Ned [N] | S12: MRd [Nmm] | T12: Ned [kN] | U12: MRd [kNm] | V12: -MRd [kNm] | Z12: Ned [kN] | AA12: MRd [kNm] | AC12: -100000000000 | AD12: -5000
A13: CAMPO 1 | B13: =+B14+1 -> 14 | C13: -100000000000 | F13: =$T$7 -> 0.00768 | G13: =+$T$7*(ABS(C13)/(ABS(C13)+$D$4)) -> 0.007679999823 | J13: =(G13+F13)/2*$L$7 -> 1.159358041e-10 | K13: =1/6*(2*G13+$T$7)*$L$7 -> 5.796790183e-11 | N13: =+J13/($T$7*$L$7) -> 0.9999999885 | O13: =+K13/J13 -> 0.4999999981 | P13: 0 | Q13: =$L$8*$D$4*$L$6*$T$7*N13 -> 0.0009185279894 | R13: =Q13+P13 -> 0.0009185279894 | S13: =+Q13*($D$4/2-O13*$D$4) -> 4.049177337e-09 | T13: =+R13/1000 -> 9.185279894e-07 | U13: =+S13/1000000 -> 4.049177337e-15 | V13: =-U13 -> -4.049177337e-15 | Z13: =IF(T13>0,0,ABS(T13)) -> 0 | AA13: =IF(T13>0,0,U13) -> 0 | AB13: =Z13 -> 0 | AC13: =C13 -> -100000000000 | AD13: -4615.384615 | AE13: =IF(Z13=0,10^7,Z13) -> 10000000 | AF13: CAMPO 1
B14: 13 | C14: -5000 | F14: 0.00768 | G14: 0.005260273973 | J14: =(G14+F14)/2*$L$7 -> 9.767194568e-11 | K14: 4.579199621e-11 | N14: 0.8424657534 | O14: =+K14/J14 -> 0.4688346883 | P14: 0 | Q14: 0.0007738283836 | R14: =Q14+P14 -> 0.0007738283836 | S14: =+Q14*($D$4/2-O14*$D$4) -> 0.0554681863 | T14: =+R14/1000 -> 7.738283836e-07 | U14: =+S14/1000000 -> 5.54681863e-08 | V14: =-U14 -> -5.54681863e-08 | Z14: =IF(T14>0,0,ABS(T14)) -> 0 | AA14: =IF(T14>0,0,U14) -> 0 | AB14: =Z14 -> 0 | AC14: =C14 -> -5000 | AD14: -4230.769231 | AE14: =IF(Z14=0,10^7,Z14) -> 10000000 | AF14: CAMPO 1
B15: 12 | C15: =+$C$14/$B$14*B15 -> -4615.384615 | F15: 0.00768 | G15: 0.005125695217 | J15: 9.665615815e-11 | K15: 4.511480453e-11 | N15: 0.8337041157 | O15: 0.4667556149 | P15: 0 | Q15: 0.000765780574 | R15: 0.000765780574 | S15: 0.05855317998 | T15: =+R15/1000 -> 7.65780574e-07 | U15: =+S15/1000000 -> 5.855317998e-08 | V15: -5.855317998e-08 | Z15: 0 | AA15: 0 | AB15: =Z15 -> 0 | AC15: -4615.384615 | AD15: -4230.769231 | AE15: 10000000 | AF15: CAMPO 1
B16: =+B18+1 -> 11 | C16: -4230.769231 | F16: 0.00768 | G16: 0.004975265018 | J16: 9.552072545e-11 | K16: 4.435784939e-11 | N16: 0.8239104829 | O16: 0.4643793186 | P16: 0 | Q16: 0.0007567848481 | R16: 0.0007567848481 | S16: 0.06200154158 | T16: 7.567848481e-07 | U16: 6.200154158e-08 | V16: -6.200154158e-08 | Z16: 0 | AA16: 0 | AB16: 0 | AC16: -4230.769231 | AD16: -3846.153846 | AE16: 10000000 | AF16: CAMPO 1
B17: 11 | C17: -4230.769231 | F17: 0.00768 | G17: 0.004975265018 | J17: 9.552072545e-11 | K17: 4.435784939e-11 | N17: 0.8239104829 | O17: 0.4643793186 | P17: 0 | Q17: 0.0007567848481 | R17: 0.0007567848481 | S17: 0.06200154158 | T17: 7.567848481e-07 | U17: 6.200154158e-08 | V17: -6.200154158e-08 | Z17: 0 | AA17: 0 | AB17: 0 | AC17: -4230.769231 | AD17: -3461.538462 | AE17: 10000000 | AF17: CAMPO 1
B18: 10 | C18: =+$C$14/$B$14*B18 -> -3846.153846 | F18: 0.00768 | G18: 0.004806007509 | J18: 9.424318602e-11 | K18: 4.350615644e-11 | N18: 0.8128911139 | O18: 0.4616371568 | P18: 0 | Q18: 0.0007466632491 | R18: 0.0007466632491 | S18: 0.06588148786 | T18: 7.466632491e-07 | U18: 6.588148786e-08 | V18: -6.588148786e-08 | Z18: 0 | AA18: 0 | AB18: 0 | AC18: -3846.153846 | AD18: -3076.923077 | AE18: 10000000 | AF18: CAMPO 1
B19: 9 | C19: -3461.538462 | F19: 0.00768 | G19: 0.004614152203 | J19: 9.279508059e-11 | K19: 4.254075282e-11 | N19: 0.800400534 | O19: 0.4584375869 | P19: 0 | Q19: 0.0007351903017 | R19: 0.0007351903017 | S19: 0.070279451 | T19: 7.351903017e-07 | U19: 7.0279451e-08 | V19: -7.0279451e-08 | Z19: 0 | AA19: 0 | AB19: 0 | AC19: -3461.538462 | AD19: -2692.307692 | AE19: 10000000 | AF19: CAMPO 1
B20: 8 | C20: -3076.923077 | F20: 0.00768 | G20: 0.004394849785 | J20: 9.113980699e-11 | K20: 4.143723709e-11 | N20: 0.7861230329 | O20: 0.4546557476 | P20: 0 | Q20: 0.0007220760172 | R20: 0.0007220760172 | S20: 0.07530659342 | T20: 7.220760172e-07 | U20: 7.530659342e-08 | V20: -7.530659342e-08 | Z20: 0 | AA20: 0 | AB20: 0 | AC20: -3076.923077 | AD20: -2307.692308 | AE20: 10000000 | AF20: CAMPO 1
B21: 7 | C21: -2692.307692 | F21: 0.00768 | G21: 0.004141756549 | J21: 8.922948354e-11 | K21: 4.016368812e-11 | N21: 0.7696456086 | O21: 0.4501167835 | P21: 0 | Q21: 0.0007069410416 | R21: 0.0007069410416 | S21: 0.08110833405 | T21: 7.069410416e-07 | U21: 8.110833405e-08 | V21: -8.110833405e-08 | Z21: 0 | AA21: 0 | AB21: 0 | AC21: -2692.307692 | AD21: -1923.076923 | AE21: 10000000 | AF21: CAMPO 1
B22: 6 | C22: -2307.692308 | F22: 0.00768 | G22: 0.003846410684 | J22: 8.700024131e-11 | K22: 3.867752663e-11 | N22: 0.7504173623 | O22: 0.4445680386 | P22: 0 | Q22: 0.0006892793589 | R22: 0.0006892793589 | S22: 0.08787864574 | T22: 6.892793589e-07 | U22: 8.787864574e-08 | V22: -8.787864574e-08 | Z22: 0 | AA22: 0 | AB22: 0 | AC22: -2307.692308 | AD22: -1538.461538 | AE22: 10000000 | AF22: CAMPO 1
B23: 5 | C23: -1923.076923 | F23: 0.00768 | G23: 0.00349726776 | J23: 8.436494403e-11 | K23: 3.692066178e-11 | N23: 0.7276867031 | O23: 0.4376303713 | P23: 0 | Q23: 0.000668400612 | R23: 0.000668400612 | S23: 0.09588216539 | T23: 6.68400612e-07 | U23: 9.588216539e-08 | V23: -9.588216539e-08 | Z23: 0 | AA23: 0 | AB23: 0 | AC23: -1923.076923 | AD23: -1153.846154 | AE23: 10000000 | AF23: CAMPO 1
B24: 4 | C24: -1538.461538 | F24: 0.00768 | G24: 0.003078156313 | J24: 8.120153106e-11 | K24: 3.48117198e-11 | N24: 0.7004008016 | O24: 0.4287076776 | P24: 0 | Q24: 0.0006433377475 | R24: 0.0006433377475 | S24: 0.1054895968 | T24: 6.433377475e-07 | U24: 1.054895968e-07 | V24: -1.054895968e-07 | Z24: 0 | AA24: 0 | AB24: 0 | AC24: -1538.461538 | AD24: -769.2307692 | AE24: 10000000 | AF24: CAMPO 1
B25: 3 | C25: -1153.846154 | F25: 0.00768 | G25: 0.002565701559 | J25: 7.733357178e-11 | K25: 3.223308028e-11 | N25: 0.6670378619 | O25: 0.4168057874 | P25: 0 | Q25: 0.0006126929532 | R25: 0.0006126929532 | S25: 0.1172367679 | T25: 6.126929532e-07 | U25: 1.172367679e-07 | V25: -1.172367679e-07 | Z25: 0 | AA25: 0 | AB25: 0 | AC25: -1153.846154 | AD25: -384.6153846 | AE25: 10000000 | AF25: CAMPO 1
B26: 2 | C26: -769.2307692 | F26: 0.00768 | G26: 0.00192481203 | J26: 7.249619914e-11 | K26: 2.900816519e-11 | N26: 0.6253132832 | O26: 0.4001336005 | P26: 0 | Q26: 0.0005743677594 | R26: 0.0005743677594 | S26: 0.1319280922 | T26: 5.743677594e-07 | U26: 1.319280922e-07 | V26: -1.319280922e-07 | Z26: 0 | AA26: 0 | AB26: 0 | AC26: -769.2307692 | AD26: 0 | AE26: 10000000 | AF26: CAMPO 1
B27: =+B28+1 -> 1 | C27: -384.6153846 | F27: 0.00768 | G27: 0.001100286533 | J27: 6.627275984e-11 | K27: 2.485920566e-11 | N27: 0.5716332378 | O27: 0.3751044277 | P27: 0 | Q27: 0.0005250611347 | R27: 0.0005250611347 | S27: 0.150828965 | T27: 5.250611347e-07 | U27: 1.50828965e-07 | V27: -1.50828965e-07 | Z27: 0 | AA27: 0 | AB27: 0 | AC27: =C27 -> -384.6153846 | AD27: 0 | AE27: 10000000 | AF27: CAMPO 1
B28: 0 | C28: =+$C$14/$B$14*B28 -> 0 | F28: 0.00768 | G28: 0 | J28: 5.796790272e-11 | K28: 1.932263424e-11 | N28: 0.5 | O28: 0.3333333333 | P28: 0 | Q28: 0.000459264 | R28: 0.000459264 | S28: 0.1760512 | T28: 4.59264e-07 | U28: 1.760512e-07 | V28: -1.760512e-07 | Z28: 0 | AA28: 0 | AB28: 0 | AC28: 0 | AD28: 16.10479958 | AE28: 10000000 | AF28: CAMPO 1
A29: CAMPO 2A | B29: 0 | C29: =+$C$39/$B$39*B29 -> 0 | E29: =-$T$7*C29/($D$4-C29) -> 0 | F29: 0.00768 | H29: =$L$4/ABS($T$5)*ABS(E29)^2/2 -> 0 | I29: =+$L$4/(ABS($T$5))*ABS(E29)^3/3 -> 0 | L29: =H29/($L$4*ABS($T$4)) -> 0 | M29: 0.333 | P29: =-$L$4*$D$3*C29*L29 -> 0 | Q29: =$L$8*($D$4-C29)*$L$6*F29*0.5 -> 0.000459264 | R29: 0.000459264 | S29: =-P29*($D$4/2-M29*C29)+Q29*($D$4/6+C29/3) -> 0.1760512 | T29: =+R29/1000 -> 4.59264e-07 | U29: 1.760512e-07 | V29: -1.760512e-07 | Z29: 0 | AA29: 0 | AB29: 0 | AC29: =C29 -> 0 | AD29: 32.20959917 | AE29: 10000000 | AF29: CAMPO 2A
B30: =+B29+1 -> 1 | C30: 16.10479958 | E30: -5.415522603e-05 | F30: 0.00768 | H30: =$L$4/ABS($T$5)*ABS(E30)^2/2 -> 1.196577711e-06 | I30: =+$L$4/(ABS($T$5))*ABS(E30)^3/3 -> 4.320062425e-11 | L30: =H30/($L$4*ABS($T$4)) -> 0.0007245480643 | M30: =1-I30/H30/ABS(E30) -> 0.3333333333 | P30: =-$L$4*$D$3*C30*L30 -> -2.312477306 | Q30: =$L$8*($D$4-C30)*$L$6*F30*0.5 -> 0.0004560481936 | R30: -2.312021258 | S30: =-P30*($D$4/2-M30*C30)+Q30*($D$4/6+C30/3) -> 2647.112174 | T30: =+R30/1000 -> -0.002312021258 | U30: =+S30/1000000 -> 0.002647112174 | V30: -0.002647112174 | Z30: 0.002312021258 | AA30: 0.002647112174 | AB30: 0.002312021258 | AC30: 16.10479958 | AD30: 48.31439875 | AE30: 0.002312021258 | AF30: CAMPO 2A
B31: =+B30+1 -> 2 | C31: 32.20959917 | E31: -0.0001090796228 | F31: 0.00768 | H31: 4.854532561e-06 | I31: 3.530203872e-10 | L31: 0.002939501663 | M31: =1-I31/H31/ABS(E31) -> 0.3333333333 | P31: -18.76350575 | Q31: 0.0004528323872 | R31: -18.76305292 | S31: 21376.75506 | T31: =+R31/1000 -> -0.01876305292 | U31: =+S31/1000000 -> 0.02137675506 | V31: -0.02137675506 | Z31: 0.01876305292 | AA31: 0.02137675506 | AB31: 0.01876305292 | AC31: 32.20959917 | AD31: 64.41919834 | AE31: 0.01876305292 | AF31: CAMPO 2A
B32: 3 | C32: =+$C$39/$B$39*B32 -> 48.31439875 | E32: -0.0001647896945 | F32: 0.00768 | H32: 1.107950252e-05 | I32: 1.21719189e-09 | L32: 0.006708826373 | M32: =1-I32/H32/ABS(E32) -> 0.3333333333 | P32: =-$L$4*$D$3*C32*L32 -> -64.23594031 | Q32: 0.0004496165809 | R32: -64.2354907 | S32: 72837.00401 | T32: -0.0642354907 | U32: 0.07283700401 | V32: -0.07283700401 | Z32: 0.0642354907 | AA32: 0.07283700401 | AB32: 0.0642354907 | AC32: 48.31439875 | AD32: 80.52399792 | AE32: 0.0642354907 | AF32: CAMPO 2A
B33: 4 | C33: 64.41919834 | E33: -0.0002213024208 | F33: 0.00768 | H33: 1.998170267e-05 | I33: 2.947999447e-09 | L33: 0.0120992593 | M33: =1-I33/H33/ABS(E33) -> 0.3333333333 | P33: -154.4646321 | Q33: 0.0004464007745 | R33: -154.4641857 | S33: 174317.6783 | T33: -0.1544641857 | U33: 0.1743176783 | V33: -0.1743176783 | Z33: 0.1544641857 | AA33: 0.1743176783 | AB33: 0.1544641857 | AC33: 64.41919834 | AD33: 96.62879751 | AE33: 0.1544641857 | AF33: CAMPO 2A
B34: 5 | C34: 80.52399792 | E34: -0.000278635274 | F34: 0.00768 | H34: 3.16761473e-05 | I34: 5.884061322e-09 | L34: 0.01918044353 | M34: 0.3333333333 | P34: -306.0828023 | Q34: 0.0004431849681 | R34: -306.0823591 | S34: 343779.7341 | T34: -0.3060823591 | U34: 0.3437797341 | V34: -0.3437797341 | Z34: 0.3060823591 | AA34: 0.3437797341 | AB34: 0.3060823591 | AC34: 80.52399792 | AD34: 112.7335971 | AE34: 0.3060823591 | AF34: CAMPO 2A
B35: 6 | C35: 96.62879751 | E35: -0.0003368062376 | F35: 0.00768 | H35: 4.628288422e-05 | I35: =+$L$4/(ABS($T$5))*ABS(E35)^3/3 -> 1.039224273e-08 | L35: 0.02802507006 | M35: 0.3333333333 | P35: =-$L$4*$D$3*C35*L35 -> -536.6711337 | Q35: 0.0004399691617 | R35: -536.6706937 | S35: 599886.0244 | T35: -0.5366706937 | U35: 0.5998860244 | V35: -0.5998860244 | Z35: 0.5366706937 | AA35: 0.5998860244 | AB35: 0.5366706937 | AC35: 96.62879751 | AD35: 128.8383967 | AE35: 0.5366706937 | AF35: CAMPO 2A
B36: 7 | C36: 112.7335971 | E36: -0.0003958338246 | F36: 0.00768 | H36: 6.392724201e-05 | I36: 1.68697098e-08 | L36: 0.03870902745 | M36: 0.3333333333 | P36: -864.8097532 | Q36: 0.0004367533553 | R36: -864.8093165 | S36: 962033.6953 | T36: -0.8648093165 | U36: 0.9620336953 | V36: -0.9620336953 | Z36: 0.8648093165 | AA36: 0.9620336953 | AB36: 0.8648093165 | AC36: 112.7335971 | AD36: 144.9431963 | AE36: 0.8648093165 | AF36: CAMPO 2A
B37: 8 | C37: 128.8383967 | E37: -0.0004557370971 | F37: 0.00768 | H37: 8.474009109e-05 | I37: 2.574613541e-08 | L37: 0.05131155998 | M37: 0.3333333333 | P37: -1310.133296 | Q37: 0.000433537549 | R37: -1310.132863 | S37: 1450388.318 | T37: -1.310132863 | U37: 1.450388318 | V37: -1.450388318 | Z37: 1.310132863 | AA37: 1.450388318 | AB37: 1.310132863 | AC37: 128.8383967 | AD37: 161.0479958 | AE37: 1.310132863 | AF37: CAMPO 2A
B38: 9 | C38: 144.9431963 | E38: -0.0005165356873 | F38: 0.00768 | H38: 0.0001088581194 | I38: =+$L$4/(ABS($T$5))*ABS(E38)^3/3 -> 3.748606902e-08 | L38: 0.0659154345 | M38: 0.3333333333 | P38: -1893.389252 | Q38: 0.0004303217426 | R38: -1893.388822 | S38: 2085919.862 | T38: -1.893388822 | U38: 2.085919862 | V38: -2.085919862 | Z38: 1.893388822 | AA38: 2.085919862 | AB38: 1.893388822 | AC38: 144.9431963 | AD38: 161.0479958 | AE38: 1.893388822 | AF38: CAMPO 2A
B39: 10 | C39: =ABS($T$5)*ABS($D$4)/(ABS($T$7)+ABS($T$5)) -> 161.0479958 | E39: -0.0005782498184 | F39: 0.00768 | H39: 0.0001364241238 | I39: 5.259148323e-08 | L39: 0.08260711692 | M39: 0.3333333333 | P39: -2636.499807 | Q39: 0.0004271059362 | R39: -2636.49938 | S39: 2890440.628 | T39: -2.63649938 | U39: 2.890440628 | V39: -2.890440628 | Z39: 2.63649938 | AA39: 2.890440628 | AB39: 2.63649938 | AC39: 161.0479958 | AD39: 216.9467741 | AE39: 2.63649938 | AF39: CAMPO 2A
A40: CAMPO 2B | B40: 0 | C40: =+($C$50-$C$39)/$B$50*B40+$C$39 -> 161.0479958 | E40: -0.0005782498184 | F40: 0.00768 | H40: =$L$4*(ABS(E40)-ABS($T$5)/2) -> 0.0001364241238 | I40: =$I$39+$L$4*(ABS(E40)^2-ABS($T$5)^2)/2 -> 5.259148323e-08 | L40: 0.08260711692 | M40: =1-I40/H40/ABS(E40) -> 0.3333333333 | P40: -2636.499807 | Q40: 0.0004271059362 | R40: -2636.49938 | S40: 2890440.628 | T40: -2.63649938 | U40: 2.890440628 | V40: -2.890440628 | Z40: 2.63649938 | AA40: 2.890440628 | AB40: 2.63649938 | AC40: =C40 -> 161.0479958 | AD40: 272.8455523 | AE40: 2.63649938 | AF40: CAMPO 2B
B41: =+B40+1 -> 1 | C41: 216.9467741 | E41: -0.0007998601304 | F41: 0.00768 | H41: =$L$4*(ABS(E41)-ABS($T$5)/2) -> 0.0002409913599 | I41: 1.246440574e-07 | L41: 0.1459243489 | M41: 0.3533696931 | P41: -6273.875774 | Q41: 0.0004159440682 | R41: -6273.875358 | S41: 6733986.861 | T41: -6.273875358 | U41: 6.733986861 | V41: -6.733986861 | Z41: 6.273875358 | AA41: 6.733986861 | AB41: 6.273875358 | AC41: 216.9467741 | AD41: 328.7443305 | AE41: 6.273875358 | AF41: CAMPO 2B
B42: =+B41+1 -> 2 | C42: 272.8455523 | E42: -0.00103369225 | F42: 0.00768 | H42: 0.0003513254785 | I42: 2.257957503e-07 | L42: 0.2127335259 | M42: 0.3782513411 | P42: -11502.91131 | Q42: 0.0004047822001 | R42: -11502.9109 | S42: 12041199.48 | T42: -11.5029109 | U42: 12.04119948 | V42: -12.04119948 | Z42: 11.5029109 | AA42: 12.04119948 | AB42: 11.5029109 | AC42: 272.8455523 | AD42: 384.6431088 | AE42: 11.5029109 | AF42: CAMPO 2B
B43: 3 | C43: 328.7443305 | E43: -0.001280785896 | F43: 0.00768 | H43: 0.000467917073 | I43: 3.607200989e-07 | L43: 0.2833317105 | M43: 0.39809921 | P43: -18459.01019 | Q43: 0.0003936203321 | R43: -18459.00979 | S43: 18812078.49 | T43: -18.45900979 | U43: 18.81207849 | V43: -18.81207849 | Z43: 18.45900979 | AA43: 18.81207849 | AB43: 18.45900979 | AC43: 328.7443305 | AD43: 440.541887 | AE43: 18.45900979 | AF43: CAMPO 2B
B44: 4 | C44: =+($C$50-$C$39)/$B$50*B44+$C$39 -> 384.6431088 | E44: -0.001542302163 | F44: 0.00768 | H44: 0.0005913140077 | I44: 5.349003054e-07 | L44: 0.3580506438 | M44: 0.4134767787 | P44: -27293.38298 | Q44: 0.000382458464 | R44: -27293.3826 | S44: 27046623.88 | T44: -27.2933826 | U44: 27.04662388 | V44: -27.04662388 | Z44: 27.2933826 | AA44: 27.04662388 | AB44: 27.2933826 | AC44: 384.6431088 | AD44: 496.4406652 | AE44: 27.2933826 | AF44: CAMPO 2B
B45: 5 | C45: 440.541887 | E45: -0.001819541763 | F45: 0.00768 | H45: 0.0007221300263 | I45: 7.547918242e-07 | L45: 0.4372619581 | M45: 0.4255532777 | P45: -38175.42294 | Q45: 0.000371296596 | R45: -38175.42256 | S45: 36744835.66 | T45: -38.17542256 | U45: 36.74483566 | V45: -36.74483566 | Z45: 38.17542256 | AA45: 36.74483566 | AB45: 38.17542256 | AC45: 440.541887 | AD45: 552.3394435 | AE45: 38.17542256 | AF45: CAMPO 2B
B46: 6 | C46: 496.4406652 | E46: -0.002113966663 | F46: 0.00768 | H46: 0.000861054961 | I46: 1.028023025e-06 | L46: 0.5213833583 | M46: 0.4352271199 | P46: -51295.52372 | Q46: 0.000360134728 | R46: -51295.52336 | S46: 47906713.82 | T46: -51.29552336 | U46: 47.90671382 | V46: -47.90671382 | Z46: 51.29552336 | AA46: 47.90671382 | AB46: 51.29552336 | AC46: 496.4406652 | AD46: 608.2382217 | AE46: 51.29552336 | AF46: CAMPO 2B
B47: 7 | C47: 552.3394435 | E47: -0.002427225876 | F47: 0.00768 | H47: 0.001008866901 | I47: 1.363644264e-06 | L47: 0.6108859906 | M47: 0.4431258958 | P47: -66868.4379 | Q47: 0.0003489728599 | R47: -66868.43755 | S47: 60532258.37 | T47: -66.86843755 | U47: 60.53225837 | V47: -60.53225837 | Z47: 66.86843755 | AA47: 60.53225837 | AB47: 66.86843755 | AC47: 552.3394435 | AD47: 664.1369999 | AE47: 66.86843755 | AF47: CAMPO 2B
B48: 8 | C48: 608.2382217 | E48: -0.002761186358 | F48: 0.00768 | H48: 0.001166446772 | I48: 1.772438931e-06 | L48: 0.706303271 | M48: 0.4496859058 | P48: -85137.30126 | Q48: 0.0003378109919 | R48: -85137.30093 | S48: 74621469.31 | T48: -85.13730093 | U48: 74.62146931 | V48: -74.62146931 | Z48: 85.13730093 | AA48: 74.62146931 | AB48: 85.13730093 | AC48: 608.2382217 | AD48: 720.0357782 | AE48: 85.13730093 | AF48: CAMPO 2B
B49: 9 | C49: =+($C$50-$C$39)/$B$50*B49+$C$39 -> 664.1369999 | E49: -0.003117970245 | F49: 0.00768 | H49: 0.00133479591 | I49: 2.267314404e-06 | L49: 0.8082415246 | M49: 0.4552152861 | P49: -106378.4822 | Q49: =$L$8*($D$4-C49)*$L$6*F49*0.5 -> 0.0003266491239 | R49: -106378.4819 | S49: 90174346.63 | T49: -106.3784819 | U49: 90.17434663 | V49: -90.17434663 | Z49: 106.3784819 | AA49: 90.17434663 | AB49: 106.3784819 | AC49: 664.1369999 | AD49: 720.0357782 | AE49: 106.3784819 | AF49: CAMPO 2B
B50: 10 | C50: =ABS($T$4)*ABS($D$4)/(ABS($T$7)+ABS($T$4)) -> 720.0357782 | E50: -0.0035 | F50: 0.00768 | H50: =$L$4*(ABS(E50)-ABS($T$5)/2) -> 0.001515057358 | I50: 2.863796851e-06 | L50: 0.9173928831 | M50: 0.459936175 | P50: -130907.4604 | Q50: =$L$8*($D$4-C50)*$L$6*F50*0.5 -> 0.0003154872558 | R50: -130907.4601 | S50: 107190890.3 | T50: -130.9074601 | U50: 107.1908903 | V50: -107.1908903 | Z50: 130.9074601 | AA50: 107.1908903 | AB50: 130.9074601 | AC50: 720.0357782 | AD50: 878.0322004 | AE50: 130.9074601 | AF50: CAMPO 2B
A51: CAMPO 3 | B51: 0 | C51: =+($C$61-$C$50)/$B$61*B51+$C$50 -> 720.0357782 | E51: -0.0035 | F51: =ABS($T$4)*($D$4-C51)/C51 -> 0.00768 | H51: =$H$50 -> 0.001515057358 | I51: =$I$50 -> 2.863796851e-06 | J51: =+$L$7*(F51-F51^2/(2*$T$7)) -> 5.796790272e-11 | L51: 0.9173928831 | M51: 0.459936175 | N51: =+J51/($T$7*$L$7) -> 0.5 | O51: 0.333 | P51: -130907.4604 | Q51: =$L$8*($D$4-C51)*$L$6*F51*N51 -> 0.0003154872558 | R51: -130907.4601 | S51: 107190890.3 | T51: -130.9074601 | U51: 107.1908903 | V51: -107.1908903 | Z51: 130.9074601 | AA51: 107.1908903 | AB51: 130.9074601 | AC51: =C51 -> 720.0357782 | AD51: 1036.028623 | AE51: 130.9074601 | AF51: CAMPO 3
B52: =+B51+1 -> 1 | C52: 878.0322004 | E52: -0.0035 | F52: =ABS($T$4)*($D$4-C52)/C52 -> 0.005668228679 | H52: =$H$50 -> 0.001515057358 | I52: =$I$50 -> 2.863796851e-06 | J52: 5.399029112e-11 | L52: 0.9173928831 | M52: 0.459936175 | N52: 0.4656912583 | O52: 0.333 | P52: -159632.2974 | Q52: =$L$8*($D$4-C52)*$L$6*F52*N52 -> 0.0001951814564 | R52: -159632.2973 | S52: 119111431.3 | T52: -159.6322973 | U52: 119.1114313 | V52: -119.1114313 | Z52: 159.6322973 | AA52: 119.1114313 | AB52: 159.6322973 | AC52: 878.0322004 | AD52: 1194.025045 | AE52: 159.6322973 | AF52: CAMPO 3
B53: =+B52+1 -> 2 | C53: 1036.028623 | E53: -0.0035 | F53: =ABS($T$4)*($D$4-C53)/C53 -> 0.0042700556 | H53: 0.001515057358 | I53: 2.863796851e-06 | J53: 4.65401787e-11 | L53: 0.9173928831 | M53: 0.459936175 | N53: 0.4014305894 | O53: 0.333 | P53: -188357.1345 | Q53: 0.0001126638469 | R53: -188357.1344 | S53: 126857203.8 | T53: -188.3571344 | U53: 126.8572038 | V53: -126.8572038 | Z53: 188.3571344 | AA53: 126.8572038 | AB53: 188.3571344 | AC53: 1036.028623 | AD53: 1352.021467 | AE53: 188.3571344 | AF53: CAMPO 3
B54: 3 | C54: 1194.025045 | E54: -0.0035 | F54: 0.003241902136 | H54: 0.001515057358 | I54: 2.863796851e-06 | J54: 3.860997353e-11 | L54: 0.9173928831 | M54: 0.459936175 | N54: 0.3330288981 | O54: 0.333 | P54: -217081.9715 | Q54: 6.209125774e-05 | R54: -217081.9714 | S54: 130428207.9 | T54: -217.0819714 | U54: 130.4282079 | V54: -130.4282079 | Z54: 217.0819714 | AA54: 130.4282079 | AB54: 217.0819714 | AC54: 1194.025045 | AD54: 1510.017889 | AE54: 217.0819714 | AF54: CAMPO 3
B55: 4 | C55: 1352.021467 | E55: -0.0035 | F55: 0.002454047474 | H55: 0.001515057358 | I55: 2.863796851e-06 | J55: 3.112706489e-11 | L55: 0.9173928831 | M55: 0.459936175 | N55: 0.2684853465 | O55: 0.333 | P55: -245806.8085 | Q55: 3.247920527e-05 | R55: -245806.8085 | S55: 129824443.6 | T55: -245.8068085 | U55: 129.8244436 | V55: -129.8244436 | Z55: 245.8068085 | AA55: 129.8244436 | AB55: 245.8068085 | AC55: 1352.021467 | AD55: 1668.014311 | AE55: 245.8068085 | AF55: CAMPO 3
B56: 5 | C56: 1510.017889 | E56: -0.0035 | F56: 0.00183106267 | H56: 0.001515057358 | I56: 2.863796851e-06 | J56: 2.4346248e-11 | L56: 0.9173928831 | M56: 0.459936175 | N56: 0.2099976613 | O56: 0.333 | P56: -274531.6456 | Q56: 1.579567783e-05 | R56: -274531.6455 | S56: 125045910.8 | T56: -274.5316455 | U56: 125.0459108 | V56: -125.0459108 | Z56: 274.5316455 | AA56: 125.0459108 | AB56: 274.5316455 | AC56: 1510.017889 | AD56: 1826.010733 | AE56: 274.5316455 | AF56: CAMPO 3
B57: 6 | C57: 1668.014311 | E57: -0.0035 | F57: 0.001326097681 | H57: 0.001515057358 | I57: 2.863796851e-06 | J57: 1.829022773e-11 | L57: 0.9173928831 | M57: =1-I57/H57/ABS(E57) -> 0.459936175 | N57: 0.1577616825 | O57: 0.333 | P57: -303256.4826 | Q57: =$L$8*($D$4-C57)*$L$6*F57*N57 -> 6.875236349e-06 | R57: -303256.4826 | S57: 116092609.6 | T57: -303.2564826 | U57: 116.0926096 | V57: -116.0926096 | Z57: 303.2564826 | AA57: 116.0926096 | AB57: 303.2564826 | AC57: 1668.014311 | AD57: 1984.007156 | AE57: 303.2564826 | AF57: CAMPO 3
B58: 7 | C58: 1826.010733 | E58: -0.0035 | F58: 0.0009085173502 | H58: 0.001515057358 | I58: 2.863796851e-06 | J58: 1.290359665e-11 | L58: 0.9173928831 | M58: 0.459936175 | N58: 0.1112994955 | O58: 0.333 | P58: -331981.3196 | Q58: 2.492288262e-06 | R58: -331981.3196 | S58: 102964540 | T58: -331.9813196 | U58: 102.96454 | V58: -102.96454 | Z58: 331.9813196 | AA58: 102.96454 | AB58: 331.9813196 | AC58: 1826.010733 | AD58: 2142.003578 | AE58: 331.9813196 | AF58: CAMPO 3
B59: 8 | C59: 1984.007156 | E59: -0.0035 | F59: 0.0005574450436 | H59: 0.001515057358 | I59: 2.863796851e-06 | J59: 8.109683185e-12 | L59: 0.9173928831 | M59: 0.459936175 | N59: 0.06994977224 | O59: 0.333 | P59: -360706.1567 | Q59: 6.407209947e-07 | R59: -360706.1567 | S59: 85661702.02 | T59: -360.7061567 | U59: 85.66170202 | V59: -85.66170202 | Z59: 360.7061567 | AA59: 85.66170202 | AB59: 360.7061567 | AC59: 1984.007156 | AD59: 2300 | AE59: 360.7061567 | AF59: CAMPO 3
B60: 9 | C60: =+($C$61-$C$50)/$B$61*B60+$C$50 -> 2142.003578 | E60: -0.0035 | F60: 0.0002581636573 | H60: 0.001515057358 | I60: 2.863796851e-06 | J60: 3.831686883e-12 | L60: 0.9173928831 | M60: 0.459936175 | N60: 0.03305007343 | O60: 0.333 | P60: -389430.9937 | Q60: 7.010001806e-08 | R60: -389430.9937 | S60: 64184095.57 | T60: -389.4309937 | U60: 64.18409557 | V60: -64.18409557 | Z60: 389.4309937 | AA60: 64.18409557 | AB60: 389.4309937 | AC60: 2142.003578 | AD60: 2300 | AE60: 389.4309937 | AF60: CAMPO 3
B61: 10 | C61: =D4 -> 2300 | E61: -0.0035 | F61: 0 | H61: 0.001515057358 | I61: 2.863796851e-06 | J61: 0 | L61: 0.9173928831 | M61: 0.459936175 | N61: 0 | O61: 0.333 | P61: -418155.8307 | Q61: =$L$8*($D$4-C61)*$L$6*F61*N61 -> 0 | R61: -418155.8307 | S61: 38531720.68 | T61: -418.1558307 | U61: 38.53172068 | V61: -38.53172068 | Z61: 418.1558307 | AA61: 38.53172068 | AB61: 418.1558307 | AC61: 2300 | AD61: 2402.222222 | AE61: 418.1558307 | AF61: CAMPO 3
A62: CAMPO 4 | B62: 0 | C62: =+($C$107-$C$61)/$B$107*B62+$C$61 -> 2300 | D62: =-(ABS($T$5)-ABS($T$5)*$L$9/(C62-($D$4-$L$9))) -> 2.168404345e-19 | E62: =-(ABS($T$4)-($D$4-$L$9)*ABS(D62)/$L$9) -> -0.0035 | H62: =$H$61-$L$4/ABS($T$5)*D62^2/2+$L$4*ABS(D62) -> 0.001515057358 | I62: =+$I$61-$L$4/ABS($T$5)*ABS(D62)^3/3+$L$4*(ABS(D62)^2)/2 -> 2.863796851e-06 | L62: 0.9173928831 | M62: =1-I62/H62/ABS($T$4) -> 0.459936175 | P62: =-$L$4*$D$3*$D$4*L62 -> -418155.8307 | R62: -418155.8307 | S62: =-P62*($D$4/2-M62*$D$4) -> 38531720.68 | T62: -418.1558307 | U62: 38.53172068 | V62: -38.53172068 | Z62: 418.1558307 | AA62: 38.53172068 | AB62: 418.1558307 | AC62: =C62 -> 2300 | AD62: 2504.444444 | AE62: 418.1558307 | AF62: CAMPO 4
B63: =+B62+1 -> 1 | C63: =+($C$107-$C$61)/$B$107*B63+$C$61 -> 2402.222222 | D63: =-(ABS($T$5)-ABS($T$5)*$L$9/(C63-($D$4-$L$9))) -> -0.0001225801486 | E63: =-(ABS($T$4)-($D$4-$L$9)*ABS(D63)/$L$9) -> -0.002880633491 | H63: =$H$61-$L$4/ABS($T$5)*D63^2/2+$L$4*ABS(D63) -> 0.001566766463 | I63: =+$I$61-$L$4/ABS($T$5)*ABS(D63)^3/3+$L$4*(ABS(D63)^2)/2 -> 2.866840858e-06 | L63: 0.9487036222 | M63: =1-I63/H63/ABS($T$4) -> 0.477205182 | P63: =-$L$4*$D$3*$D$4*L63 -> -432427.5439 | R63: -432427.5439 | S63: =-P63*($D$4/2-M63*$D$4) -> 22671346.46 | T63: -432.4275439 | U63: 22.67134646 | V63: -22.67134646 | Z63: 432.4275439 | AA63: 22.67134646 | AB63: 432.4275439 | AC63: 2402.222222 | AD63: 2606.666667 | AE63: 432.4275439 | AF63: CAMPO 4
B64: =+B63+1 -> 2 | C64: =+($C$107-$C$61)/$B$107*B64+$C$61 -> 2504.444444 | D64: =-(ABS($T$5)-ABS($T$5)*$L$9/(C64-($D$4-$L$9))) -> -0.0002022800165 | E64: =-(ABS($T$4)-($D$4-$L$9)*ABS(D64)/$L$9) -> -0.002477930202 | H64: =$H$61-$L$4/ABS($T$5)*D64^2/2+$L$4*ABS(D64) -> 0.001593809338 | I64: =+$I$61-$L$4/ABS($T$5)*ABS(D64)^3/3+$L$4*(ABS(D64)^2)/2 -> 2.871199009e-06 | L64: 0.9650785408 | M64: 0.4852944111 | P64: -439891.3774 | R64: -439891.3774 | S64: 14878382 | T64: -439.8913774 | U64: 14.878382 | V64: -14.878382 | Z64: 439.8913774 | AA64: 14.878382 | AB64: 439.8913774 | AC64: 2504.444444 | AD64: 2708.888889 | AE64: 439.8913774 | AF64: CAMPO 4
B65: 3 | C65: 2606.666667 | D65: =-(ABS($T$5)-ABS($T$5)*$L$9/(C65-($D$4-$L$9))) -> -0.000258250223 | E65: -0.002195126895 | H65: 0.001609702387 | I65: 2.874846701e-06 | L65: 0.974702051 | M65: 0.4897287981 | P65: -444277.8588 | R65: -444277.8588 | S65: 10495515.42 | T65: -444.2778588 | U65: 10.49551542 | V65: -10.49551542 | Z65: 444.2778588 | AA65: 10.49551542 | AB65: 444.2778588 | AC65: 2606.666667 | AD65: 2811.111111 | AE65: 444.2778588 | AF65: CAMPO 4
B66: 4 | C66: 2708.888889 | D66: -0.000299715341 | E66: -0.001985614134 | H66: 0.001619828248 | I66: 2.877666794e-06 | L66: 0.980833431 | M66: 0.4924211788 | P66: -447072.5964 | R66: -447072.5964 | S66: 7793051.512 | T66: -447.0725964 | U66: 7.793051512 | V66: -7.793051512 | Z66: 447.0725964 | AA66: 7.793051512 | AB66: 447.0725964 | AC66: 2708.888889 | AD66: 2913.333333 | AE66: 447.0725964 | AF66: CAMPO 4
B67: 5 | C67: 2811.111111 | D67: -0.0003316671873 | E67: -0.00182416953 | H67: 0.00162667386 | I67: 2.879825676e-06 | L67: 0.9849785651 | M67: 0.4941780549 | P67: -448961.9853 | R67: -448961.9853 | S67: 6011813.687 | T67: -448.9619853 | U67: 6.011813687 | V67: -6.011813687 | Z67: 448.9619853 | AA67: 6.011813687 | AB67: 448.9619853 | AC67: 2811.111111 | AD67: 3015.555556 | AE67: 448.9619853 | AF67: CAMPO 4
B68: 6 | C68: 2913.333333 | D68: -0.0003570427667 | E68: -0.001695953142 | H68: 0.001631516997 | I68: 2.881492323e-06 | L68: 0.9879111667 | M68: 0.4953877144 | P68: -450298.6912 | R68: -450298.6912 | S68: 4776884.15 | T68: -450.2986912 | U68: 4.77688415 | V68: -4.77688415 | Z68: 450.2986912 | AA68: 4.77688415 | AB68: 450.2986912 | AC68: 2913.333333 | AD68: 3117.777778 | AE68: 450.2986912 | AF68: CAMPO 4
B69: 7 | C69: 3015.555556 | D69: -0.0003776829124 | E69: -0.001591663702 | H69: 0.001635068831 | I69: 2.882796537e-06 | L69: 0.9900618624 | M69: 0.4962559755 | P69: -451278.9974 | R69: -451278.9974 | S69: 3886079.13 | T69: -451.2789974 | U69: 3.88607913 | V69: -3.88607913 | Z69: 451.2789974 | AA69: 3.88607913 | AB69: 451.2789974 | AC69: 3015.555556 | AD69: 3220 | AE69: 451.2789974 | AF69: CAMPO 4
B70: 8 | C70: 3117.777778 | D70: -0.0003948000434 | E70: -0.001505175165 | H70: 0.001637750723 | I70: 2.883832054e-06 | L70: 0.9916857932 | M70: 0.496900228 | P70: -452019.1995 | R70: -452019.1995 | S70: 3222659.874 | T70: -452.0191995 | U70: 3.222659874 | V70: -3.222659874 | Z70: 452.0191995 | AA70: 3.222659874 | AB70: 452.0191995 | AC70: 3117.777778 | AD70: 3322.222222 | AE70: 452.0191995 | AF70: CAMPO 4
B71: 9 | C71: 3220 | D71: -0.0004092252345 | E71: -0.001432288321 | H71: 0.001639825203 | I71: 2.884665817e-06 | L71: 0.992941926 | M71: 0.4973914099 | P71: -452591.756 | R71: -452591.756 | S71: 2715440.702 | T71: -452.591756 | U71: 2.715440702 | V71: -2.715440702 | Z71: 452.591756 | AA71: 2.715440702 | AB71: 452.591756 | AC71: 3220 | AD71: 3424.444444 | AE71: 452.591756 | AF71: CAMPO 4
B72: 10 | C72: 3322.222222 | D72: -0.0004215472173 | E72: -0.001370028456 | H72: 0.001641462754 | I72: 2.885345906e-06 | L72: 0.9939334907 | M72: 0.4977744438 | P72: -453043.72 | R72: -453043.72 | S72: 2319030.774 | T72: -453.04372 | U72: 2.319030774 | V72: -2.319030774 | Z72: 453.04372 | AA72: 2.319030774 | AB72: 453.04372 | AC72: 3322.222222 | AD72: 3526.666667 | AE72: 453.04372 | AF72: CAMPO 4
B73: 11 | C73: 3424.444444 | D73: -0.0004321947128 | E73: -0.001316229352 | H73: 0.001642777987 | I73: 2.885907258e-06 | L73: 0.9947298868 | M73: 0.4980789021 | P73: -453406.7245 | R73: -453406.7245 | S73: 2003389.06 | T73: -453.4067245 | U73: 2.00338906 | V73: -2.00338906 | Z73: 453.4067245 | AA73: 2.00338906 | AB73: 453.4067245 | AC73: 3424.444444 | AD73: 3628.888889 | AE73: 453.4067245 | AF73: CAMPO 4
B74: 12 | C74: 3526.666667 | D74: -0.0004414873341 | E74: -0.001269276086 | H74: 0.001643850259 | I74: 2.886375616e-06 | L74: 0.9953791655 | M74: 0.4983248973 | P74: -453702.6714 | R74: -453702.6714 | S74: 1747996.741 | T74: -453.7026714 | U74: 1.747996741 | V74: -1.747996741 | Z74: 453.7026714 | AA74: 1.747996741 | AB74: 453.7026714 | AC74: 3526.666667 | AD74: 3731.111111 | AE74: 453.7026714 | AF74: CAMPO 4
B75: 13 | C75: 3628.888889 | D75: -0.0004496682197 | E75: -0.001227940138 | H75: 0.001644735925 | I75: 2.886770212e-06 | L75: 0.9959154511 | M75: 0.4985264949 | P75: -453947.1152 | R75: -453947.1152 | S75: 1538454.807 | T75: -453.9471152 | U75: 1.538454807 | V75: -1.538454807 | Z75: 453.9471152 | AA75: 1.538454807 | AB75: 453.9471152 | AC75: 3628.888889 | AD75: =AC77 -> 3833.333333 | AE75: 453.9471152 | AF75: CAMPO 4
B76: 14 | C76: 3731.111111 | D76: -0.0004569256151 | E76: -0.001191270354 | H76: 0.0016454759 | I76: 2.887105614e-06 | L76: 0.9963635188 | M76: 0.498693771 | P76: -454151.3484 | R76: -454151.3484 | S76: 1364419.057 | T76: -454.1513484 | U76: 1.364419057 | V76: -1.364419057 | Z76: 454.1513484 | AA76: 1.364419057 | AB76: 454.1513484 | AC76: 3731.111111 | AD76: 3935.555556 | AE76: 454.1513484 | AF76: CAMPO 4
B77: 15 | C77: 3833.333333 | D77: -0.0004634075367 | E77: -0.001158518842 | H77: 0.001646100472 | I77: 2.887393003e-06 | L77: 0.9967417074 | M77: 0.4988340969 | P77: -454323.7302 | R77: -454323.7302 | S77: 1218304.095 | T77: -454.3237302 | U77: 1.218304095 | V77: -1.218304095 | Z77: 454.3237302 | AA77: 1.218304095 | AB77: 454.3237302 | AC77: 3833.333333 | AD77: 4037.777778 | AE77: 454.3237302 | AF77: CAMPO 4
B78: 16 | C78: 3935.555556 | D78: -0.0004692319733 | E78: -0.001129089436 | H78: 0.001646632446 | I78: 2.88764106e-06 | L78: 0.997063827 | M78: 0.4989529663 | P78: -454470.5551 | R78: =Q78+P78 -> -454470.5551 | S78: 1094445.797 | T78: -454.4705551 | U78: 1.094445797 | V78: =-U78 -> -1.094445797 | Z78: =IF(T78>0,0,ABS(T78)) -> 454.4705551 | AA78: =IF(T78>0,0,U78) -> 1.094445797 | AB78: =Z78 -> 454.4705551 | AC78: =C78 -> 3935.555556 | AD78: 4140 | AE78: =IF(Z78=0,10^7,Z78) -> 454.4705551 | AF78: CAMPO 4
B79: 17 | C79: 4037.777778 | D79: -0.0004744941329 | E79: -0.001102501074 | H79: 0.001647089263 | I79: 2.887856605e-06 | L79: 0.9973404371 | M79: 0.4990545408 | P79: -454596.6365 | R79: -454596.6365 | S79: 988545.9313 | T79: -454.5966365 | U79: 0.9885459313 | V79: -0.9885459313 | Z79: 454.5966365 | AA79: 0.9885459313 | AB79: 454.5966365 | AC79: 4037.777778 | AD79: 4242.222222 | AE79: 454.5966365 | AF79: CAMPO 4
B80: 18 | C80: 4140 | D80: -0.0004792716876 | E80: -0.001078361297 | H80: 0.00164748444 | I80: 2.888045051e-06 | L80: 0.9975797237 | M80: 0.49914202 | P80: -454705.7054 | R80: -454705.7054 | S80: 897295.3479 | T80: -454.7057054 | U80: 0.8972953479 | V80: -0.8972953479 | Z80: 454.7057054 | AA80: 0.8972953479 | AB80: 454.7057054 | AC80: 4140 | AD80: 4344.444444 | AE80: 454.7057054 | AF80: CAMPO 4
B81: 19 | C81: 4242.222222 | D81: -0.0004836286333 | E81: -0.001056346752 | H81: 0.001647828589 | I81: 2.888210735e-06 | L81: 0.9977881115 | M81: 0.4992178963 | P81: -454800.6905 | R81: -454800.6905 | S81: 818113.0442 | T81: -454.8006905 | U81: 0.8181130442 | V81: -0.8181130442 | Z81: 454.8006905 | AA81: 0.8181130442 | AB81: 454.8006905 | AC81: 4242.222222 | AD81: 4446.666667 | AE81: 454.8006905 | AF81: CAMPO 4
B82: 20 | C82: 4344.444444 | D82: -0.0004876181728 | E82: -0.001036188617 | H82: 0.001648130131 | I82: 2.888357167e-06 | L82: 0.9979707003 | M82: 0.4992841345 | P82: -454883.9161 | R82: -454883.9161 | S82: 748962.1147 | T82: -454.8839161 | U82: 0.7489621147 | V82: -0.7489621147 | Z82: 454.8839161 | AA82: 0.7489621147 | AB82: 454.8839161 | AC82: 4344.444444 | AD82: 4548.888889 | AE82: 454.8839161 | AF82: CAMPO 4
B83: 21 | C83: 4446.666667 | D83: -0.000491284899 | E83: -0.001017661576 | H83: 0.001648395819 | I83: 2.888487205e-06 | L83: 0.9981315794 | M83: 0.4993423006 | P83: -454957.2462 | R83: -454957.2462 | S83: 688217.7528 | T83: -454.9572462 | U83: 0.6882177528 | V83: -0.6882177528 | Z83: 454.9572462 | AA83: 0.6882177528 | AB83: 454.9572462 | AC83: 4446.666667 | AD83: 4651.111111 | AE83: 454.9572462 | AF83: CAMPO 4
B84: 22 | C84: 4548.888889 | D84: -0.000494666469 | E84: -0.001000575358 | H84: 0.001648631122 | I84: 2.888603201e-06 | L84: 0.9982740588 | M84: 0.4993936549 | P84: -455022.1895 | R84: -455022.1895 | S84: 634571.1434 | T84: -455.0221895 | U84: 0.6345711434 | V84: -0.6345711434 | Z84: 455.0221895 | AA84: 0.6345711434 | AB84: 455.0221895 | AC84: 4548.888889 | AD84: 4753.333333 | AE84: 455.0221895 | AF84: CAMPO 4
B85: 23 | C85: 4651.111111 | D85: -0.0004977949021 | E85: -0.0009847681759 | H85: 0.0016488405 | I85: 2.888707099e-06 | L85: 0.9984008411 | M85: 0.4994392209 | P85: -455079.978 | R85: -455079.978 | S85: 586958.5146 | T85: -455.079978 | U85: 0.5869585146 | V85: -0.5869585146 | Z85: 455.079978 | AA85: 0.5869585146 | AB85: 455.079978 | AC85: 4651.111111 | AD85: 4855.555556 | AE85: 455.079978 | AF85: CAMPO 4
B86: 24 | C86: 4753.333333 | D86: -0.0005006975967 | E86: -0.0009701015937 | H86: 0.001649027628 | I86: 2.88880052e-06 | L86: 0.9985141501 | M86: 0.499479837 | P86: -455131.6253 | R86: -455131.6253 | S86: 544508.0946 | T86: -455.1316253 | U86: 0.5445080946 | V86: -0.5445080946 | Z86: 455.1316253 | AA86: 0.5445080946 | AB86: 455.1316253 | AC86: 4753.333333 | AD86: 4957.777778 | AE86: 455.1316253 | AF86: CAMPO 4
B87: 25 | C87: 4855.555556 | D87: -0.000503398135 | E87: -0.0009564564565 | H87: 0.001649195549 | I87: 2.888884823e-06 | L87: 0.9986158295 | M87: 0.499516195 | P87: -455177.9717 | R87: -455177.9717 | S87: 506499.9939 | T87: -455.1779717 | U87: 0.5064999939 | V87: -0.5064999939 | Z87: 455.1779717 | AA87: 0.5064999939 | AB87: 455.1779717 | AC87: 4855.555556 | AD87: 5060 | AE87: 455.1779717 | AF87: CAMPO 4
B88: 26 | C88: 4957.777778 | D88: -0.0005059169248 | E88: -0.0009437296482 | H88: 0.001649346806 | I88: 2.888961155e-06 | L88: 0.9987074179 | M88: 0.49954887 | P88: -455219.7185 | R88: -455219.7185 | S88: 472335.5329 | T88: -455.2197185 | U88: 0.4723355329 | V88: -0.4723355329 | Z88: 455.2197185 | AA88: 0.4723355329 | AB88: 455.2197185 | AC88: 4957.777778 | AD88: 5162.222222 | AE88: 455.2197185 | AF88: CAMPO 4
B89: 27 | C89: 5060 | D89: -0.0005082717166 | E89: -0.0009318314804 | H89: 0.001649483532 | I89: 2.889030487e-06 | L89: 0.9987902078 | M89: 0.4995783432 | P89: -455257.4549 | R89: -455257.4549 | S89: 441513.5589 | T89: -455.2574549 | U89: 0.4415135589 | V89: -0.4415135589 | Z89: 455.2574549 | AA89: 0.4415135589 | AB89: 455.2574549 | AC89: 5060 | AD89: 5264.444444 | AE89: 455.2574549 | AF89: CAMPO 4
B90: 28 | C90: 5162.222222 | D90: -0.0005104780222 | E90: -0.0009206835758 | H90: 0.001649607531 | I90: 2.889093648e-06 | L90: 0.9988652911 | M90: 0.4996050196 | P90: -455291.6785 | R90: -455291.6785 | S90: 413611.9897 | T90: -455.2916785 | U90: 0.4136119897 | V90: -0.4136119897 | Z90: 455.2916785 | AA90: 0.4136119897 | AB90: 455.2916785 | AC90: 5162.222222 | AD90: 5366.666667 | AE90: 455.2916785 | AF90: CAMPO 4
B91: 29 | C91: 5264.444444 | D91: -0.000512549457 | E91: -0.0009102171392 | H91: =$H$61-$L$4/ABS($T$5)*D91^2/2+$L$4*ABS(D91) -> 0.001649720334 | I91: =+$I$61-$L$4/ABS($T$5)*ABS(D91)^3/3+$L$4*(ABS(D91)^2)/2 -> 2.889151348e-06 | L91: 0.9989335955 | M91: 0.4996292422 | P91: -455322.8122 | R91: -455322.8122 | S91: 388273.3054 | T91: -455.3228122 | U91: 0.3882733054 | V91: -0.3882733054 | Z91: 455.3228122 | AA91: 0.3882733054 | AB91: 455.3228122 | AC91: 5264.444444 | AD91: 5468.888889 | AE91: 455.3228122 | AF91: CAMPO 4
B92: 30 | C92: 5366.666667 | D92: -0.0005144980212 | E92: -0.000900371537 | H92: 0.00164982325 | I92: 2.889204198e-06 | L92: =H92/($L$4*ABS($T$4)) -> 0.9989959131 | M92: 0.499651303 | P92: -455351.2171 | R92: -455351.2171 | S92: 365193.0536 | T92: -455.3512171 | U92: 0.3651930536 | V92: -0.3651930536 | Z92: 455.3512171 | AA92: 0.3651930536 | AB92: 455.3512171 | AC92: 5366.666667 | AD92: 5571.111111 | AE92: 455.3512171 | AF92: CAMPO 4
B93: 31 | C93: 5468.888889 | D93: -0.0005163343322 | E93: -0.0008910931216 | H93: 0.001649917402 | I93: 2.889252725e-06 | L93: 0.9990529236 | M93: 0.4996714519 | P93: -455377.203 | R93: -455377.203 | S93: 344110.6727 | T93: -455.377203 | U93: 0.3441106727 | V93: -0.3441106727 | Z93: 455.377203 | AA93: 0.3441106727 | AB93: 455.377203 | AC93: 5468.888889 | AD93: 5673.333333 | AE93: 455.377203 | AF93: CAMPO 4
B94: 32 | C94: =+($C$107-$C$61)/$B$107*B94+$C$61 -> 5571.111111 | D94: -0.0005180678185 | E94: -0.0008823342534 | H94: 0.001650003757 | I94: 2.889297387e-06 | L94: =H94/($L$4*ABS($T$4)) -> 0.999105213 | M94: 0.4996899034 | P94: -455401.037 | R94: -455401.037 | S94: 324802.1133 | T94: -455.401037 | U94: 0.3248021133 | V94: -0.3248021133 | Z94: 455.401037 | AA94: 0.3248021133 | AB94: 455.401037 | AC94: 5571.111111 | AD94: 5775.555556 | AE94: 455.401037 | AF94: CAMPO 4
B95: 33 | C95: 5673.333333 | D95: -0.0005197068815 | E95: -0.0008740524825 | H95: 0.001650083153 | I95: 2.889338584e-06 | L95: 0.9991532885 | M95: =1-I95/H95/ABS($T$4) -> 0.4997068431 | P95: -455422.9503 | R95: -455422.9503 | S95: 307073.8682 | T95: -455.4229503 | U95: 0.3070738682 | V95: -0.3070738682 | Z95: 455.4229503 | AA95: 0.3070738682 | AB95: 455.4229503 | AC95: 5673.333333 | AD95: 5877.777778 | AE95: 455.4229503 | AF95: CAMPO 4
B96: 34 | C96: 5775.555556 | D96: -0.0005212590314 | E96: -0.000866209861 | H96: 0.001650156318 | I96: 2.889376665e-06 | L96: 0.9991975911 | M96: 0.4997224317 | P96: -455443.1438 | R96: -455443.1438 | S96: 290758.1098 | T96: -455.4431438 | U96: 0.2907581098 | V96: -0.2907581098 | Z96: 455.4431438 | AA96: 0.2907581098 | AB96: 455.4431438 | AC96: 5775.555556 | AD96: 5980 | AE96: 455.4431438 | AF96: CAMPO 4
B97: 35 | C97: 5877.777778 | D97: -0.0005227310028 | E97: -0.0008587723617 | H97: 0.001650223887 | I97: 2.889411936e-06 | L97: 0.9992385054 | M97: 0.4997368092 | P97: -455461.7929 | R97: -455461.7929 | S97: 275708.7074 | T97: -455.4617929 | U97: 0.2757087074 | V97: -0.2757087074 | Z97: 455.4617929 | AA97: 0.2757087074 | AB97: 455.4617929 | AC97: 5877.777778 | AD97: 6082.222222 | AE97: 455.4617929 | AF97: CAMPO 4
B98: 36 | C98: 5980 | D98: -0.0005241288518 | E98: -0.0008517093841 | H98: 0.001650286417 | I98: 2.889444666e-06 | L98: 0.9992763684 | M98: 0.4997500978 | P98: -455479.0512 | R98: -455479.0512 | S98: 261797.9469 | T98: -455.4790512 | U98: 0.2617979469 | V98: -0.2617979469 | Z98: 455.4790512 | AA98: 0.2617979469 | AB98: 455.4790512 | AC98: 5980 | AD98: 6184.444444 | AE98: 455.4790512 | AF98: CAMPO 4
B99: 37 | C99: 6082.222222 | D99: -0.0005254580396 | E99: -0.000844993334 | H99: 0.001650344397 | I99: 2.889475093e-06 | L99: 0.9993114761 | M99: 0.4997624049 | P99: -455495.0536 | R99: -455495.0536 | S99: 248913.815 | T99: -455.4950536 | U99: 0.248913815 | V99: -0.248913815 | Z99: 455.4950536 | AA99: 0.248913815 | AB99: 455.4950536 | AC99: 6082.222222 | AD99: 6286.666667 | AE99: 455.4950536 | AF99: CAMPO 4
B100: 38 | C100: 6184.444444 | D100: -0.0005267235039 | E100: -0.0008385992628 | H100: 0.001650398257 | I100: 2.889503428e-06 | L100: 0.9993440895 | M100: 0.4997738247 | P100: -455509.919 | R100: -455509.919 | S100: 236957.7384 | T100: -455.509919 | U100: 0.2369577384 | V100: -0.2369577384 | Z100: 455.509919 | AA100: 0.2369577384 | AB100: 455.509919 | AC100: 6184.444444 | AD100: 6388.888889 | AE100: 455.509919 | AF100: CAMPO 4
B101: =+B100+1 -> 39 | C101: =+($C$107-$C$61)/$B$107*B101+$C$61 -> 6286.666667 | D101: -0.0005279297199 | E101: -0.0008325045583 | H101: =$H$61-$L$4/ABS($T$5)*D101^2/2+$L$4*ABS(D101) -> 0.00165044838 | I101: =+$I$61-$L$4/ABS($T$5)*ABS(D101)^3/3+$L$4*(ABS(D101)^2)/2 -> 2.889529859e-06 | L101: 0.9993744394 | M101: 0.4997844405 | P101: -455523.7528 | R101: -455523.7528 | S101: 225842.6951 | T101: -455.5237528 | U101: 0.2258426951 | V101: -0.2258426951 | Z101: 455.5237528 | AA101: 0.2258426951 | AB101: 455.5237528 | AC101: 6286.666667 | AD101: 6491.111111 | AE101: 455.5237528 | AF101: CAMPO 4
B102: =+B101+1 -> 40 | C102: 6388.888889 | D102: -0.0005290807533 | E102: -0.0008266886771 | H102: 0.001650495102 | I102: 2.889554552e-06 | L102: 0.9994027305 | M102: =1-I102/H102/ABS($T$4) -> 0.4997943261 | P102: -455536.6481 | R102: -455536.6481 | S102: 215491.627 | T102: -455.5366481 | U102: 0.215491627 | V102: -0.215491627 | Z102: 455.5366481 | AA102: 0.215491627 | AB102: 455.5366481 | AC102: 6388.888889 | AD102: 6593.333333 | AE102: 455.5366481 | AF102: CAMPO 4
B103: 41 | C103: 6491.111111 | D103: -0.0005301803064 | E103: -0.0008211329135 | H103: 0.001650538725 | I103: 2.889577656e-06 | L103: 0.9994291449 | M103: 0.4998035469 | P103: -455548.6881 | R103: -455548.6881 | S103: 205836.1021 | T103: -455.5486881 | U103: 0.2058361021 | V103: -0.2058361021 | Z103: 455.5486881 | AA103: 0.2058361021 | AB103: 455.5486881 | AC103: 6491.111111 | AD103: 6695.555556 | AE103: 455.5486881 | AF103: CAMPO 4
B104: 42 | C104: 6593.333333 | D104: -0.0005312317572 | E104: -0.0008158201985 | H104: 0.001650579517 | I104: 2.889599304e-06 | L104: 0.999453845 | M104: 0.4998121612 | P104: -455559.9466 | R104: -455559.9466 | S104: 196815.1815 | T104: -455.5599466 | U104: 0.1968151815 | V104: -0.1968151815 | Z104: 455.5599466 | AA104: 0.1968151815 | AB104: 455.5599466 | AC104: 6593.333333 | AD104: 6797.777778 | AE104: 455.5599466 | AF104: CAMPO 4
B105: 43 | C105: 6695.555556 | D105: -0.0005322381946 | E105: -0.0008107349244 | H105: 0.001650617717 | I105: 2.889619616e-06 | L105: 0.9994769761 | M105: 0.4998202212 | P105: -455570.4899 | R105: -455570.4899 | S105: 188374.4554 | T105: -455.5704899 | U105: 0.1883744554 | V105: -0.1883744554 | Z105: 455.5704899 | AA105: 0.1883744554 | AB105: 455.5704899 | AC105: 6695.555556 | AD105: 6900 | AE105: 455.5704899 | AF105: CAMPO 4
B106: 44 | C106: 6797.777778 | D106: -0.0005332024488 | E106: -0.0008058627919 | H106: 0.001650653541 | I106: 2.889638701e-06 | L106: 0.9994986681 | M106: 0.4998277732 | P106: -455580.3774 | R106: -455580.3774 | S106: 180465.2223 | T106: -455.5803774 | U106: 0.1804652223 | V106: -0.1804652223 | Z106: 455.5803774 | AA106: 0.1804652223 | AB106: 455.5803774 | AC106: 6797.777778 | AD106: 100000000000 | AE106: 455.5803774 | AF106: CAMPO 4
B107: 45 | C107: =C61*3 -> 6900 | D107: -0.0005341271172 | E107: -0.0008011906758 | H107: 0.001650687182 | I107: 2.889656653e-06 | L107: 0.9995190381 | M107: 0.4998348592 | P107: -455589.6622 | R107: -455589.6622 | S107: 173043.7846 | T107: -455.5896622 | U107: 0.1730437846 | V107: -0.1730437846 | Z107: 455.5896622 | AA107: 0.1730437846 | AB107: 455.5896622 | AC107: 6900 | AD107: 100000000000 | AE107: 455.5896622 | AF107: CAMPO 4
B108: 46 | C108: 100000000000 | D108: -0.0005782498162 | E108: -0.0005782498295 | H108: 0.001651481481 | I108: =+L4*ABS($T$4)^2/2 -> 2.890092593e-06 | L108: 1 | M108: 0.5 | P108: -455808.8889 | R108: -455808.8889 | S108: 0 | T108: -455.8088889 | U108: 0 | V108: 0 | Z108: 455.8088889 | AA108: 0 | AB108: 455.8088889 | AC108: 100000000000 | AE108: 455.8088889 | AF108: CAMPO 4
C110: Calcolo Mrd | F110: Ned | G110: =Z8 -> 220
A112: check | C112: Y[mm] | D112: Y[mm]checked | E112: εm_inf [-] | F112: εm_sup [-] | G112: εf_inf [-] | H112: εf_sup [-] | I112: A(σ-ε) | J112: Sy(σ-ε) | K112: A(σ-ε) | L112: Sy(σ-ε) | M112: β1 | N112: β2 | O112: k1 | P112: k2 | Q112: C [N] | R112: T [N] | S112: Ned [N] | T112: MRd [Nmm] | U112: Ned [kN] | V112: MRd [kNm] | AA112: Y
B113: CAMPO 1 | C113: =VLOOKUP($Z$10,$Z$13:$AC$108,4,FALSE) -> 1194.025045 | D113: =IF(A113=0,0,C113) -> 0 | K113: =(H113+G113)/2*$L$7 -> 0 | L113: =1/6*(2*H113+$T$7)*$L$7 -> 1.932263424e-11 | O113: =+K113/($T$7*$L$7) -> 0 | P113: =+L113/K113 ->  | Q113: 0 | R113: =$L$8*$D$4*$L$6*$T$7*O113 -> 0 | S113: =R113+Q113 -> 0 | T113: =+R113*($D$4/2-P113*$D$4) ->  | U113: =+S113/1000 -> 0 | V113: =+T113/1000000 ->  | W113: 1 | X113: =B113 -> CAMPO 1 | Y113: =ABS(S113)/($G$110*1000) -> 0 | Z113: =IF(A113=0,10^8,ABS(1*10^5-ABS(Y113)*10^5)) -> 100000000 | AA113: =C113 -> 1194.025045
A114: =IF($AB$10=B114,IF(ABS((ROUND(ABS(U114/100),1))-(ROUND(ABS($G$110/100),1)))=0,1,0),0) -> 0 | B114: CAMPO 2A | C114: =VLOOKUP($Z$10,$Z$13:$AC$108,4,FALSE) -> 1194.025045 | D114: =IF(A114=0,0,C114) -> 0 | F114: =-$T$7*C114/($D$4-C114) -> -0.008291428571 | I114: =$L$4/ABS($T$5)*ABS(F114)^2/2 -> 0.0280490974 | J114: =+$L$4/(ABS($T$5))*ABS(F114)^3/3 -> 0.0001550447251 | M114: =I114/($L$4*ABS($T$4)) -> 16.98420341 | N114: =1-J114/I114/ABS(F114) -> 0.3333333333 | Q114: =-$L$4*$D$3*C114*M114 -> -4018958.974 | R114: =$L$8*($D$4-C114)*$L$6*G114*0.5 -> 0 | S114: =R114+Q114 -> -4018958.974 | T114: =-Q114*($D$4/2-N114*C114)+R114*($D$4/6+C114/3) -> 3022223597 | U114: =+S114/1000 -> -4018.958974 | V114: =+T114/1000000 -> 3022.223597 | W114: 1 | X114: CAMPO 2A | Y114: 18.26799534 | Z114: 100000000 | AA114: 1194.025045
A115: 0 | B115: CAMPO 2A | C115: =VLOOKUP(C$144,$AC$12:$AD$108,2,FALSE) -> 1510.017889 | D115: 0 | F115: -0.01468 | I115: =$L$4/ABS($T$5)*ABS(F115)^2/2 -> 0.0879249792 | J115: =+$L$4/(ABS($T$5))*ABS(F115)^3/3 -> 0.0008604924631 | M115: =I115/($L$4*ABS($T$4)) -> 53.24006366 | N115: =1-J115/I115/ABS(F115) -> 0.3333333333 | Q115: -15932194.98 | R115: 0 | S115: =R115+Q115 -> -15932194.98 | T115: 1.030272442e+10 | U115: =+S115/1000 -> -15932.19498 | V115: =+T115/1000000 -> 10302.72442 | W115: =+W114+1 -> 2 | X115: CAMPO 2A | Y115: 72.41906809 | Z115: 100000000 | AA115: 1510.017889
A116: 0 | B116: CAMPO 2A | C116: =+(C115-C114)/2+C114 -> 1352.021467 | D116: 0 | F116: -0.01095333333 | I116: 0.04895000853 | J116: 0.0003574438401 | M116: 29.64005899 | N116: 0.3333333333 | Q116: -7941775.481 | R116: 0 | S116: -7941775.481 | T116: 5553891491 | U116: -7941.775481 | V116: 5553.891491 | W116: =+W115+1 -> 3 | X116: CAMPO 2A | Y116: 36.09897946 | Z116: 100000000 | AA116: 1352.021467
A117: 0 | B117: CAMPO 2A | C117: =IF(ABS(U116)>$G$110,C116-(C116-$C$144)/2,C116+(C116-$C$144)/2) -> 1273.023256 | D117: 0 | F117: -0.00952 | I117: 0.0369772032 | J117: 0.000234681983 | M117: 22.39032264 | N117: 0.3333333333 | Q117: -5648740.753 | R117: 0 | S117: -5648740.753 | T117: 4099059084 | U117: -5648.740753 | V117: 4099.059084 | W117: 4 | X117: CAMPO 2A | Y117: 25.67609433 | Z117: 100000000 | AA117: 1273.023256
A118: 0 | B118: CAMPO 2A | C118: =IF(ABS(U117)>$G$110,C117-(C117-$C$144)/2,C117+(C117-$C$144)/2) -> 1233.52415 | D118: 0 | F118: -0.008882962963 | I118: 0.03219406865 | J118: 0.0001906524796 | M118: 19.49405368 | N118: 0.3333333333 | Q118: -4765459.341 | R118: 0 | S118: -4765459.341 | T118: 3520841847 | U118: -4765.459341 | V118: 3520.841847 | W118: 5 | X118: CAMPO 2A | Y118: 21.66117882 | Z118: 100000000 | AA118: 1233.52415
A119: 0 | B119: CAMPO 2A | C119: =IF(ABS(U118)>$G$110,C118-(C118-$C$144)/2,C118+(C118-$C$144)/2) -> 1213.774597 | D119: 0 | F119: -0.008581818182 | I119: 0.03004822215 | J119: 0.0001719122528 | M119: 18.19470729 | N119: 0.3333333333 | Q119: -4376612.249 | R119: 0 | S119: -4376612.249 | T119: 3262363830 | U119: -4376.612249 | V119: 3262.36383 | W119: 6 | X119: CAMPO 2A | Y119: 19.89369204 | Z119: 100000000 | AA119: 1213.774597
A120: 0 | B120: CAMPO 2A | C120: =IF(ABS(U119)>$G$110,C119-(C119-$C$144)/2,C119+(C119-$C$144)/2) -> 1203.899821 | D120: 0 | F120: -0.008435315315 | I120: 0.02903105414 | J120: 0.0001632573971 | M120: 17.57879484 | N120: 0.3333333333 | Q120: -4194057.707 | R120: 0 | S120: -4194057.707 | T120: 3140091255 | U120: -4194.057707 | V120: 3140.091255 | W120: 7 | X120: CAMPO 2A | Y120: 19.06389867 | Z120: 100000000 | AA120: 1203.899821
A121: 0 | B121: CAMPO 2A | C121: =IF(ABS(U120)>$G$110,C120-(C120-$C$144)/2,C120+(C120-$C$144)/2) -> 1198.962433 | D121: 0 | F121: -0.008363049327 | I121: 0.02853576237 | J121: 0.0001590973255 | M121: 17.27888729 | N121: 0.3333333333 | Q121: -4105596.85 | R121: 0 | S121: -4105596.85 | T121: 3080617581 | U121: -4105.59685 | V121: 3080.617581 | W121: 8 | X121: CAMPO 2A | Y121: 18.66180386 | Z121: 100000000 | AA121: 1198.962433
A122: 0 | B122: CAMPO 2A | C122: =IF(ABS(U121)>$G$110,C121-(C121-$C$144)/3,C121+(C121-$C$144)/3) -> 1197.316637 | D122: 0 | F122: -0.008339104478 | I122: 0.0283725907 | J122: 0.0001577346655 | M122: 17.18008408 | N122: 0.3333333333 | Q122: -4076516.986 | R122: 0 | S122: -4076516.986 | T122: 3061033998 | U122: -4076.516986 | V122: 3061.033998 | W122: 9 | X122: CAMPO 2A | Y122: 18.52962266 | Z122: 100000000 | AA122: 1197.316637
A123: 0 | B123: CAMPO 2A | C123: 1196.219439 | D123: 0 | F123: -0.008323180915 | I123: 0.02826433894 | J123: 0.0001568328043 | M123: 17.1145358 | N123: 0.3333333333 | Q123: -4057242.202 | R123: 0 | S123: -4057242.202 | T123: 3048044535 | U123: -4057.242202 | V123: 3048.044535 | W123: 10 | X123: CAMPO 2A | Y123: 18.44201001 | Z123: 100000000 | AA123: 1196.219439
A124: 0 | B124: CAMPO 2A | C124: 1195.487975 | D124: 0 | F124: -0.008312582781 | I124: 0.02819240526 | J124: 0.0001562344684 | M124: 17.07097874 | N124: 0.3333333333 | Q124: -4044441.775 | R124: 0 | S124: -4044441.775 | T124: 3039414206 | U124: -4044.441775 | V124: 3039.414206 | W124: 11 | X124: CAMPO 2A | Y124: 18.38382625 | Z124: 100000000 | AA124: 1195.487975
A125: 0 | B125: CAMPO 2A | C125: 1195.000331 | D125: 0 | F125: -0.008305525154 | I125: 0.02814455322 | J125: 0.0001558368632 | M125: 17.04200352 | N125: 0.3333333333 | Q125: -4035930.051 | R125: 0 | S125: -4035930.051 | T125: 3033673642 | U125: -4035.930051 | V125: 3033.673642 | W125: 12 | X125: CAMPO 2A | Y125: 18.34513659 | Z125: 100000000 | AA125: 1195.000331
A126: 0 | B126: CAMPO 2A | C126: 1194.675236 | D126: 0 | F126: -0.008300823529 | I126: 0.02811269788 | J126: 0.0001555723627 | M126: 17.02271457 | N126: 0.3333333333 | Q126: -4030265.276 | R126: 0 | S126: -4030265.276 | T126: 3029852361 | U126: -4030.265276 | V126: 3029.852361 | W126: 13 | X126: CAMPO 2A | Y126: 18.31938762 | Z126: 100000000 | AA126: 1194.675236
A127: 0 | B127: CAMPO 2A | C127: 1194.458505 | D127: 0 | F127: -0.008297690649 | I127: 0.0280914814 | J127: 0.0001553962817 | M127: 17.00986764 | N127: 0.3333333333 | Q127: -4026493.067 | R127: 0 | S127: -4026493.067 | T127: 3027307397 | U127: -4026.493067 | V127: 3027.307397 | W127: 14 | X127: CAMPO 2A | Y127: 18.30224121 | Z127: 100000000 | AA127: 1194.458505
A128: 0 | B128: CAMPO 2A | C128: 1194.314019 | D128: 0 | F128: -0.008295602744 | I128: 0.02807734615 | J128: 0.0001552790065 | M128: 17.0013085 | N128: 0.3333333333 | Q128: -4023980.174 | R128: 0 | S128: -4023980.174 | T128: 3025611889 | U128: -4023.980174 | V128: 3025.611889 | W128: 15 | X128: CAMPO 2A | Y128: 18.29081897 | Z128: 100000000 | AA128: 1194.314019
A129: 0 | B129: CAMPO 2A | C129: 1194.217694 | D129: 0 | F129: -0.008294211111 | I129: 0.02806792668 | J129: 0.0001552008729 | M129: 16.99560485 | N129: 0.3333333333 | Q129: -4022305.761 | R129: 0 | S129: -4022305.761 | T129: 3024482055 | U129: -4022.305761 | V129: 3024.482055 | W129: 16 | X129: CAMPO 2A | Y129: 18.28320801 | Z129: 100000000 | AA129: 1194.217694
A130: 0 | B130: CAMPO 2A | C130: 1194.153478 | D130: 0 | F130: -0.00829328349 | I130: 0.02806164883 | J130: 0.0001551488059 | M130: 16.99180351 | N130: 0.3333333333 | Q130: -4021189.864 | R130: 0 | S130: -4021189.864 | T130: 3023729057 | U130: -4021.189864 | V130: 3023.729057 | W130: 17 | X130: CAMPO 2A | Y130: 18.27813574 | Z130: 100000000 | AA130: 1194.153478
A131: 0 | B131: CAMPO 2A | C131: 1194.110667 | D131: 0 | F131: -0.008292665136 | I131: 0.02805746438 | J131: 0.0001551141045 | M131: 16.98926975 | N131: 0.3333333333 | Q131: -4020446.1 | R131: 0 | S131: -4020446.1 | T131: 3023227157 | U131: -4020.4461 | V131: 3023.227157 | W131: 18 | X131: CAMPO 2A | Y131: 18.274755 | Z131: 100000000 | AA131: 1194.110667
A132: 0 | B132: CAMPO 2A | C132: 1194.082126 | D132: 0 | F132: -0.008292252926 | I132: 0.02805467511 | J132: 0.0001550909745 | M132: 16.9875808 | N132: 0.3333333333 | Q132: -4019950.331 | R132: 0 | S132: -4019950.331 | T132: 3022892602 | U132: -4019.950331 | V132: 3022.892602 | W132: 19 | X132: CAMPO 2A | Y132: 18.27250151 | Z132: 100000000 | AA132: 1194.082126
A133: 0 | B133: CAMPO 2A | C133: 1194.063099 | D133: 0 | F133: -0.008291978132 | I133: 0.02805281575 | J133: 0.0001550755565 | M133: 16.98645493 | N133: 0.3333333333 | Q133: -4019619.852 | R133: 0 | S133: -4019619.852 | T133: 3022669585 | U133: -4019.619852 | V133: 3022.669585 | W133: 20 | X133: CAMPO 2A | Y133: 18.27099933 | Z133: 100000000 | AA133: 1194.063099
A134: 0 | B134: CAMPO 2A | C134: 1194.050414 | D134: 0 | F134: -0.008291794941 | I134: 0.02805157624 | J134: 0.0001550652787 | M134: 16.98570439 | N134: 0.3333333333 | Q134: -4019399.548 | R134: 0 | S134: -4019399.548 | T134: 3022520915 | U134: -4019.399548 | V134: 3022.520915 | W134: 21 | X134: CAMPO 2A | Y134: 18.26999794 | Z134: 100000000 | AA134: 1194.050414
A135: 0 | B135: CAMPO 2A | C135: =IF(ABS(U134)>$G$110,C134-(C134-$C$144)/4,C134+(C134-$C$144)/4) -> 1194.044072 | D135: 0 | F135: -0.008291703347 | I135: 0.02805095651 | J135: 0.00015506014 | M135: 16.98532913 | N135: 0.3333333333 | Q135: -4019289.4 | R135: 0 | S135: -4019289.4 | T135: 3022446583 | U135: -4019.2894 | V135: 3022.446583 | W135: 22 | X135: CAMPO 2A | Y135: 18.26949727 | Z135: 100000000 | AA135: 1194.044072
A136: 0 | B136: CAMPO 2A | C136: 1194.039315 | D136: 0 | F136: -0.008291634652 | I136: 0.02805049172 | J136: 0.0001550562861 | M136: 16.98504769 | N136: 0.3333333333 | Q136: -4019206.791 | R136: 0 | S136: -4019206.791 | T136: 3022390835 | U136: -4019.206791 | V136: 3022.390835 | W136: 23 | X136: CAMPO 2A | Y136: 18.26912178 | Z136: 100000000 | AA136: 1194.039315
A137: 0 | B137: CAMPO 2A | C137: 1194.035747 | D137: 0 | F137: -0.008291583132 | I137: 0.02805014314 | J137: 0.0001550533958 | M137: 16.98483662 | N137: 0.3333333333 | Q137: -4019144.835 | R137: 0 | S137: -4019144.835 | T137: 3022349025 | U137: -4019.144835 | V137: 3022.349025 | W137: 24 | X137: CAMPO 2A | Y137: 18.26884016 | Z137: 100000000 | AA137: 1194.035747
A138: 0 | B138: CAMPO 2A | C138: 1194.033072 | D138: 0 | F138: -0.008291544491 | I138: 0.0280498817 | J138: 0.0001550512281 | M138: 16.98467831 | N138: 0.3333333333 | Q138: -4019098.369 | R138: 0 | S138: -4019098.369 | T138: 3022317667 | U138: -4019.098369 | V138: 3022.317667 | W138: 25 | X138: CAMPO 2A | Y138: 18.26862895 | Z138: 100000000 | AA138: 1194.033072
A139: 0 | B139: CAMPO 2A | C139: 1194.031065 | D139: 0 | F139: -0.008291515511 | I139: 0.02804968562 | J139: 0.0001550496023 | M139: 16.98455958 | N139: 0.3333333333 | Q139: -4019063.52 | R139: 0 | S139: -4019063.52 | T139: 3022294150 | U139: -4019.06352 | V139: 3022.29415 | W139: 26 | X139: CAMPO 2A | Y139: 18.26847054 | Z139: 100000000 | AA139: 1194.031065
A140: 0 | B140: CAMPO 2A | C140: 1194.02956 | D140: 0 | F140: -0.008291493776 | I140: 0.02804953857 | J140: 0.000155048383 | M140: 16.98447054 | N140: 0.3333333333 | Q140: -4019037.383 | R140: 0 | S140: -4019037.383 | T140: 3022276511 | U140: -4019.037383 | V140: 3022.276511 | W140: 27 | X140: CAMPO 2A | Y140: 18.26835174 | Z140: 100000000 | AA140: 1194.02956
A141: 0 | B141: CAMPO 2A | C141: 1194.028431 | D141: 0 | F141: -0.008291477475 | I141: 0.02804942828 | J141: 0.0001550474685 | M141: 16.98440376 | N141: 0.3333333333 | Q141: -4019017.781 | R141: 0 | S141: -4019017.781 | T141: 3022263283 | U141: -4019.017781 | V141: 3022.263283 | W141: 28 | X141: CAMPO 2A | Y141: 18.26826264 | Z141: 100000000 | AA141: 1194.028431
A142: 0 | B142: CAMPO 2A | C142: 1194.027585 | D142: 0 | F142: -0.008291465249 | I142: 0.02804934556 | J142: 0.0001550467826 | M142: 16.98435367 | N142: 0.3333333333 | Q142: -4019003.079 | R142: 0 | S142: -4019003.079 | T142: 3022253361 | U142: -4019.003079 | V142: 3022.253361 | W142: 29 | X142: CAMPO 2A | Y142: 18.26819581 | Z142: 100000000 | AA142: 1194.027585
A143: 0 | B143: CAMPO 2A | C143: 1194.02695 | D143: 0 | F143: -0.00829145608 | I143: 0.02804928352 | J143: 0.0001550462682 | M143: 16.9843161 | N143: 0.3333333333 | Q143: -4018992.053 | R143: 0 | S143: -4018992.053 | T143: 3022245920 | U143: -4018.992053 | V143: 3022.24592 | W143: 30 | X143: CAMPO 2A | Y143: 18.26814569 | Z143: 100000000 | AA143: 1194.02695
A144: 0 | B144: CAMPO 2B | C144: =VLOOKUP($Z$10,$Z$13:$AC$108,4,FALSE) -> 1194.025045 | D144: 0 | F144: -0.008291428571 | I144: =$L$4*(ABS(F144)-ABS($T$5)/2) -> 0.003775901802 | J144: =$I$39+$L$4*(ABS(F144)^2-ABS($T$5)^2)/2 -> 1.619308974e-05 | M144: 2.286372475 | N144: 0.4827748102 | Q144: -541022.5582 | R144: 0 | S144: -541022.5582 | T144: 310306077.4 | U144: -541.0225582 | V144: 310.3060774 | W144: 1 | X144: CAMPO 2B | Y144: 2.459193446 | Z144: 100000000 | AA144: 1194.025045
A145: 0 | B145: CAMPO 2B | C145: =VLOOKUP(C$144,$AC$12:$AD$108,2,FALSE) -> 1510.017889 | D145: 0 | F145: -0.01468 | I145: 0.006790361061 | J145: 5.081630752e-05 | M145: 4.111678597 | N145: 0.4902183701 | Q145: -1230428.001 | R145: 0 | S145: -1230428.001 | T145: 504182013.1 | U145: -1230.428001 | V145: 504.1820131 | W145: =+W144+1 -> 2 | X145: =B145 -> CAMPO 2B | Y145: =ABS(S145)/($G$110*1000) -> 5.592854551 | Z145: =IF(A145=0,10^8,ABS(1*10^5-ABS(Y145)*10^5)) -> 100000000 | AA145: =C145 -> 1510.017889
A146: =IF($AB$10=B146,IF(ABS((ROUND(ABS(U146/100),1))-(ROUND(ABS($G$110/100),1)))=0,1,0),0) -> 0 | B146: CAMPO 2B | C146: =+(C145-C144)/2+C144 -> 1352.021467 | D146: 0 | F146: =-$T$7*C146/($D$4-C146) -> -0.01095333333 | I146: 0.005031926493 | J146: 2.827903781e-05 | M146: 3.046916693 | N146: 0.4869212408 | Q146: =-$L$4*$D$3*C146*M146 -> -816392.7167 | R146: =$L$8*($D$4-C146)*$L$6*G146*0.5 -> 0 | S146: -816392.7167 | T146: =-Q146*($D$4/2-N146*C146)+R146*($D$4/6+C146/3) -> 401397464.1 | U146: -816.3927167 | V146: 401.3974641 | W146: =+W145+1 -> 3 | X146: CAMPO 2B | Y146: 3.710875985 | Z146: 100000000 | AA146: 1352.021467
A147: 0 | B147: CAMPO 2B | C147: =IF(ABS(U146)>$G$110,C146-(C146-$C$144)/2,C146+(C146-$C$144)/2) -> 1273.023256 | D147: 0 | F147: -0.00952 | I147: 0.004355605506 | J147: 2.13557653e-05 | M147: 2.637392883 | N147: 0.4849734086 | Q147: -665374.4522 | R147: 0 | S147: -665374.4522 | T147: 354390125.5 | U147: -665.3744522 | V147: 354.3901255 | W147: 4 | X147: CAMPO 2B | Y147: 3.024429328 | Z147: 100000000 | AA147: 1273.023256
A148: 0 | B148: CAMPO 2B | C148: 1233.52415 | D148: 0 | F148: -0.008882962963 | I148: 0.0040550184 | J148: 1.858991861e-05 | M148: 2.455382301 | N148: 0.4839083794 | Q148: -600235.5752 | R148: 0 | S148: -600235.5752 | T148: 331982690.1 | U148: -600.2355752 | V148: 331.9826901 | W148: 5 | X148: CAMPO 2B | Y148: 2.728343523 | Z148: 100000000 | AA148: 1233.52415
A149: 0 | B149: CAMPO 2B | C149: 1213.774597 | D149: 0 | F149: -0.008581818182 | I149: 0.003912922678 | J149: 1.734908326e-05 | M149: 2.369340935 | N149: 0.4833505681 | Q149: -569928.7378 | R149: 0 | S149: -569928.7378 | T149: 321053030.9 | U149: -569.9287378 | V149: 321.0530309 | W149: 6 | X149: CAMPO 2B | Y149: 2.590585172 | Z149: 100000000 | AA149: 1213.774597
A150: 0 | B150: CAMPO 2B | C150: 1203.899821 | D150: 0 | F150: -0.008435315315 | I150: 0.003843795029 | J150: 1.676090605e-05 | M150: 2.327482973 | N150: 0.4830649861 | Q150: -555305.2977 | R150: 0 | S150: -555305.2977 | T150: 315656715.9 | U150: -555.3052977 | V150: 315.6567159 | W150: 7 | X150: CAMPO 2B | Y150: 2.524114989 | Z150: 100000000 | AA150: 1203.899821
A151: 0 | B151: CAMPO 2B | C151: 1198.962433 | D151: 0 | F151: -0.008363049327 | I151: 0.003809696188 | J151: 1.647450367e-05 | M151: 2.306835548 | N151: 0.4829204792 | Q151: -548121.9133 | R151: 0 | S151: -548121.9133 | T151: 312975687.1 | U151: -548.1219133 | V151: 312.9756871 | W151: 8 | X151: CAMPO 2B | Y151: 2.491463242 | Z151: 100000000 | AA151: 1198.962433
A152: 0 | B152: CAMPO 2B | C152: 1196.493739 | D152: 0 | F152: -0.008327158837 | I152: 0.003792761194 | J152: 1.633317938e-05 | M152: 2.296581122 | N152: 0.4828477909 | Q152: -544561.8026 | R152: 0 | S152: -544561.8026 | T152: 311639454.9 | U152: -544.5618026 | V152: 311.6394549 | W152: 9 | X152: CAMPO 2B | Y152: 2.475280921 | Z152: 100000000 | AA152: 1196.493739
A153: 0 | B153: CAMPO 2B | C153: 1195.259392 | D153: 0 | F153: -0.008309273743 | I153: 0.003784322079 | J153: 1.6262981e-05 | M153: 2.291471095 | N153: 0.4828113372 | Q153: -542789.5808 | R153: 0 | S153: -542789.5808 | T153: 310972409.3 | U153: -542.7895808 | V153: 310.9724093 | W153: 10 | X153: CAMPO 2B | Y153: 2.467225367 | Z153: 100000000 | AA153: 1195.259392
A154: 0 | B154: CAMPO 2B | C154: 1194.642218 | D154: 0 | F154: -0.008300346175 | I154: 0.00378010959 | J154: 1.622799707e-05 | M154: 2.288920362 | N154: 0.4827930829 | Q154: -541905.4207 | R154: 0 | S154: -541905.4207 | T154: 310639154.1 | U154: -541.9054207 | V154: 310.6391541 | W154: 11 | X154: CAMPO 2B | Y154: 2.463206458 | Z154: 100000000 | AA154: 1194.642218
A155: 0 | B155: CAMPO 2B | C155: 1194.333631 | D155: 0 | F155: -0.008295886129 | I155: 0.003778005109 | J155: 1.621053385e-05 | M155: 2.287646063 | N155: 0.4827839488 | Q155: -541463.8274 | R155: 0 | S155: -541463.8274 | T155: 310472593.4 | U155: -541.4638274 | V155: 310.4725934 | W155: 12 | X155: CAMPO 2B | Y155: 2.461199215 | Z155: 100000000 | AA155: 1194.333631
A156: 0 | B156: CAMPO 2B | C156: =IF(ABS(U155)>$G$110,C155-(C155-$C$144)/3,C155+(C155-$C$144)/3) -> 1194.230769 | D156: 0 | F156: -0.0082944 | I156: 0.003777303876 | J156: 1.620471702e-05 | M156: 2.287221455 | N156: 0.4827809031 | Q156: -541316.7016 | R156: 0 | S156: -541316.7016 | T156: 310417083.1 | U156: -541.3167016 | V156: 310.4170831 | W156: 13 | X156: CAMPO 2B | Y156: 2.460530462 | Z156: 100000000 | AA156: 1194.230769
A157: 0 | B157: CAMPO 2B | C157: 1194.162194 | D157: 0 | F157: -0.008293409401 | I157: 0.00377683646 | J157: 1.620084032e-05 | M157: 2.286938426 | N157: 0.4827788724 | Q157: -541218.6378 | R157: 0 | S157: -541218.6378 | T157: 310380079 | U157: -541.2186378 | V157: 310.380079 | W157: 14 | X157: CAMPO 2B | Y157: 2.460084717 | Z157: 100000000 | AA157: 1194.162194
A158: 0 | B158: CAMPO 2B | C158: 1194.116478 | D158: 0 | F158: -0.00829274907 | I158: 0.003776524882 | J158: 1.619825637e-05 | M158: 2.28674976 | N158: 0.4827775184 | Q158: -541153.2708 | R158: 0 | S158: -541153.2708 | T158: 310355410.8 | U158: -541.1532708 | V158: 310.3554108 | W158: 15 | X158: CAMPO 2B | Y158: 2.459787595 | Z158: 100000000 | AA158: 1194.116478
A159: 0 | B159: CAMPO 2B | C159: 1194.086 | D159: 0 | F159: -0.008292308879 | I159: 0.003776317177 | J159: 1.619653397e-05 | M159: 2.286623991 | N159: 0.4827766157 | Q159: -541109.6968 | R159: 0 | S159: -541109.6968 | T159: 310338965.9 | U159: -541.1096968 | V159: 310.3389659 | W159: 16 | X159: CAMPO 2B | Y159: 2.459589531 | Z159: 100000000 | AA159: 1194.086
A160: 0 | B160: CAMPO 2B | C160: 1194.065682 | D160: 0 | F160: -0.008292015433 | I160: 0.003776178714 | J160: 1.619538581e-05 | M160: 2.28654015 | N160: 0.4827760139 | Q160: -541080.6492 | R160: 0 | S160: -541080.6492 | T160: 310328002.9 | U160: -541.0806492 | V160: 310.3280029 | W160: 17 | X160: CAMPO 2B | Y160: 2.459457496 | Z160: 100000000 | AA160: 1194.065682
A161: 0 | B161: CAMPO 2B | C161: 1194.052136 | D161: 0 | F161: -0.008291819807 | I161: 0.003776086408 | J161: 1.619462042e-05 | M161: 2.286484257 | N161: 0.4827756127 | Q161: -541061.2849 | R161: 0 | S161: -541061.2849 | T161: 310320694.3 | U161: -541.0612849 | V161: 310.3206943 | W161: 18 | X161: CAMPO 2B | Y161: 2.459369477 | Z161: 100000000 | AA161: 1194.052136
A162: 0 | B162: CAMPO 2B | C162: 1194.043106 | D162: 0 | F162: -0.008291689393 | I162: 0.003776024871 | J162: 1.619411018e-05 | M162: 2.286446995 | N162: 0.4827753452 | Q162: -541048.3757 | R162: 0 | S162: -541048.3757 | T162: 310315821.9 | U162: -541.0483757 | V162: 310.3158219 | W162: 19 | X162: CAMPO 2B | Y162: 2.459310799 | Z162: 100000000 | AA162: 1194.043106
A163: 0 | B163: CAMPO 2B | C163: 1194.037085 | D163: 0 | F163: -0.008291602452 | I163: 0.003775983848 | J163: 1.619377002e-05 | M163: 2.286422155 | N163: 0.4827751669 | Q163: -541039.7697 | R163: 0 | S163: -541039.7697 | T163: 310312573.7 | U163: -541.0397697 | V163: 310.3125737 | W163: 20 | X163: CAMPO 2B | Y163: 2.459271681 | Z163: 100000000 | AA163: 1194.037085
A164: 0 | B164: CAMPO 2B | C164: 1194.033072 | D164: 0 | F164: -0.008291544491 | I164: 0.003775956499 | J164: 1.619354326e-05 | M164: 2.286405595 | N164: 0.482775048 | Q164: -541034.0325 | R164: 0 | S164: -541034.0325 | T164: 310310408.3 | U164: -541.0340325 | V164: 310.3104083 | W164: 21 | X164: CAMPO 2B | Y164: 2.459245602 | Z164: 100000000 | AA164: 1194.033072
A165: 0 | B165: CAMPO 2B | C165: 1194.030396 | D165: 0 | F165: -0.008291505851 | I165: 0.003775938267 | J165: 1.619339208e-05 | M165: 2.286394555 | N165: 0.4827749687 | Q165: -541030.2077 | R165: 0 | S165: -541030.2077 | T165: 310308964.6 | U165: -541.0302077 | V165: 310.3089646 | W165: 22 | X165: CAMPO 2B | Y165: 2.459228217 | Z165: 100000000 | AA165: 1194.030396
A166: 0 | B166: CAMPO 2B | C166: 1194.028612 | D166: 0 | F166: -0.008291480091 | I166: 0.003775926112 | J166: 1.61932913e-05 | M166: 2.286387195 | N166: 0.4827749159 | Q166: -541027.6578 | R166: 0 | S166: -541027.6578 | T166: 310308002.2 | U166: -541.0276578 | V166: 310.3080022 | W166: 23 | X166: CAMPO 2B | Y166: 2.459216627 | Z166: 100000000 | AA166: 1194.028612
A167: 0 | B167: CAMPO 2B | C167: =IF(ABS(U166)>$G$110,C166-(C166-$C$144)/4,C166+(C166-$C$144)/4) -> 1194.02772 | D167: 0 | F167: -0.008291467211 | I167: 0.003775920034 | J167: 1.619324091e-05 | M167: 2.286383515 | N167: 0.4827748895 | Q167: -541026.3829 | R167: 0 | S167: -541026.3829 | T167: 310307521 | U167: -541.0263829 | V167: 310.307521 | W167: 24 | X167: CAMPO 2B | Y167: 2.459210831 | Z167: 100000000 | AA167: 1194.02772
A168: 0 | B168: CAMPO 2B | C168: 1194.027051 | D168: 0 | F168: -0.008291457551 | I168: 0.003775915476 | J168: 1.619320312e-05 | M168: 2.286380755 | N168: 0.4827748697 | Q168: -541025.4267 | R168: 0 | S168: -541025.4267 | T168: 310307160.1 | U168: -541.0254267 | V168: 310.3071601 | W168: 25 | X168: CAMPO 2B | Y168: 2.459206485 | Z168: 100000000 | AA168: 1194.027051
A169: 0 | B169: CAMPO 2B | C169: 1194.02655 | D169: 0 | F169: -0.008291450306 | I169: 0.003775912058 | J169: 1.619317477e-05 | M169: 2.286378685 | N169: 0.4827748548 | Q169: -541024.7096 | R169: 0 | S169: -541024.7096 | T169: 310306889.4 | U169: -541.0247096 | V169: 310.3068894 | W169: 26 | X169: CAMPO 2B | Y169: 2.459203225 | Z169: 100000000 | AA169: 1194.02655
A170: 0 | B170: CAMPO 2B | C170: 1194.026174 | D170: 0 | F170: -0.008291444873 | I170: 0.003775909494 | J170: 1.619315352e-05 | M170: 2.286377132 | N170: 0.4827748437 | Q170: -541024.1717 | R170: 0 | S170: -541024.1717 | T170: 310306686.4 | U170: -541.0241717 | V170: 310.3066864 | W170: 27 | X170: CAMPO 2B | Y170: 2.459200781 | Z170: 100000000 | AA170: 1194.026174
A171: 0 | B171: CAMPO 2B | C171: 1194.025891 | D171: 0 | F171: -0.008291440797 | I171: 0.003775907571 | J171: 1.619313757e-05 | M171: 2.286375968 | N171: 0.4827748353 | Q171: -541023.7683 | R171: 0 | S171: -541023.7683 | T171: 310306534.1 | U171: -541.0237683 | V171: 310.3065341 | W171: 28 | X171: CAMPO 2B | Y171: 2.459198947 | Z171: 100000000 | AA171: 1194.025891
A172: 0 | B172: CAMPO 2B | C172: 1194.02568 | D172: 0 | F172: -0.008291437741 | I172: 0.003775906129 | J172: 1.619312561e-05 | M172: 2.286375095 | N172: 0.482774829 | Q172: -541023.4658 | R172: 0 | S172: -541023.4658 | T172: 310306420 | U172: -541.0234658 | V172: 310.30642 | W172: 29 | X172: CAMPO 2B | Y172: 2.459197572 | Z172: 100000000 | AA172: 1194.02568
A173: 0 | B173: CAMPO 2B | C173: 1194.025521 | D173: 0 | F173: -0.008291435448 | I173: 0.003775905047 | J173: 1.619311665e-05 | M173: 2.28637444 | N173: 0.4827748243 | Q173: -541023.2389 | R173: 0 | S173: -541023.2389 | T173: 310306334.3 | U173: -541.0232389 | V173: 310.3063343 | W173: 30 | X173: CAMPO 2B | Y173: 2.45919654 | Z173: 100000000 | AA173: 1194.025521
A174: 1 | B174: CAMPO 3 | C174: =VLOOKUP($Z$10,$Z$13:$AC$108,4,FALSE) -> 1194.025045 | D174: 1194.025045 | F174: -0.0035 | I174: =$H$50 -> 0.001515057358 | J174: =$I$50 -> 2.863796851e-06 | K174: =+$L$7*(G174-G174^2/(2*$T$7)) -> 0 | M174: 0.9173928831 | N174: 0.459936175 | O174: =+K174/($T$7*$L$7) -> 0 | P174: 0.333 | Q174: -217081.9715 | R174: =$L$8*($D$4-C174)*$L$6*G174*O174 -> 0 | S174: -217081.9715 | T174: 130428207.8 | U174: -217.0819715 | V174: 130.4282078 | W174: 1 | X174: CAMPO 3 | Y174: 0.9867362341 | Z174: 1326.376588 | AA174: 1194.025045
A175: 0 | B175: CAMPO 3 | C175: =VLOOKUP(C$144,$AC$12:$AD$108,2,FALSE) -> 1510.017889 | D175: 0 | F175: -0.0035 | I175: 0.001515057358 | J175: 2.863796851e-06 | K175: 0 | M175: =I175/($L$4*ABS($T$4)) -> 0.9173928831 | N175: 0.459936175 | O175: 0 | P175: 0.333 | Q175: -274531.6456 | R175: 0 | S175: -274531.6456 | T175: 125045910.8 | U175: -274.5316456 | V175: 125.0459108 | W175: =+W174+1 -> 2 | X175: CAMPO 3 | Y175: 1.247871116 | Z175: 100000000 | AA175: 1510.017889
A176: 0 | B176: CAMPO 3 | C176: =+(C175-C174)/2+C174 -> 1352.021467 | D176: 0 | F176: -0.0035 | I176: 0.001515057358 | J176: 2.863796851e-06 | K176: 0 | M176: 0.9173928831 | N176: 0.459936175 | O176: 0 | P176: 0.333 | Q176: -245806.8085 | R176: 0 | S176: -245806.8085 | T176: 129824443.5 | U176: -245.8068085 | V176: 129.8244435 | W176: =+W175+1 -> 3 | X176: CAMPO 3 | Y176: 1.117303675 | Z176: 100000000 | AA176: 1352.021467
A177: 0 | B177: CAMPO 3 | C177: =IF(ABS(U176)>$G$110,C176-(C176-$C$144)/2,C176+(C176-$C$144)/2) -> 1273.023256 | D177: 0 | F177: -0.0035 | I177: 0.001515057358 | J177: 2.863796851e-06 | K177: 0 | M177: 0.9173928831 | N177: 0.459936175 | O177: 0 | P177: 0.333 | Q177: -231444.39 | R177: 0 | S177: -231444.39 | T177: 130648171.7 | U177: -231.44439 | V177: 130.6481717 | W177: 4 | X177: =B177 -> CAMPO 3 | Y177: =ABS(S177)/($G$110*1000) -> 1.052019955 | Z177: =IF(A177=0,10^8,ABS(1*10^5-ABS(Y177)*10^5)) -> 100000000 | AA177: =C177 -> 1273.023256
A178: =IF($AB$10=B178,IF(ABS((ROUND(ABS(U178/100),1))-(ROUND(ABS($G$110/100),1)))=0,1,0),0) -> 1 | B178: CAMPO 3 | C178: =IF(ABS(U177)>$G$110,C177-(C177-$C$144)/2,C177+(C177-$C$144)/2) -> 1233.52415 | D178: =IF(A178=0,0,C178) -> 1233.52415 | F178: -0.0035 | I178: 0.001515057358 | J178: 2.863796851e-06 | K178: 0 | M178: 0.9173928831 | N178: 0.459936175 | O178: 0 | P178: 0.333 | Q178: =-$L$4*$D$3*C178*M178 -> -224263.1808 | R178: 0 | S178: -224263.1808 | T178: =-Q178*($D$4/2-N178*C178)+R178*($D$4/6+C178/3) -> 130668651.3 | U178: -224.2631808 | V178: 130.6686513 | W178: 5 | X178: CAMPO 3 | Y178: 1.019378094 | Z178: 1937.809438 | AA178: 1233.52415
A179: 1 | B179: CAMPO 3 | C179: =IF(ABS(U178)>$G$110,C178-(C178-$C$144)/2,C178+(C178-$C$144)/2) -> 1213.774597 | D179: 1213.774597 | F179: -0.0035 | I179: 0.001515057358 | J179: 2.863796851e-06 | K179: 0 | M179: =I179/($L$4*ABS($T$4)) -> 0.9173928831 | N179: =1-J179/I179/ABS(F179) -> 0.459936175 | O179: 0 | P179: 0.333 | Q179: -220672.5761 | R179: 0 | S179: =R179+Q179 -> -220672.5761 | T179: 130581044.9 | U179: =+S179/1000 -> -220.6725761 | V179: =+T179/1000000 -> 130.5810449 | W179: 6 | X179: CAMPO 3 | Y179: 1.003057164 | Z179: 305.7164252 | AA179: 1213.774597
A180: 1 | B180: CAMPO 3 | C180: =IF(ABS(U179)>$G$110,C179-(C179-$C$144)/2,C179+(C179-$C$144)/2) -> 1203.899821 | D180: 1203.899821 | F180: -0.0035 | I180: 0.001515057358 | J180: 2.863796851e-06 | K180: 0 | M180: 0.9173928831 | N180: 0.459936175 | O180: 0 | P180: 0.333 | Q180: -218877.2738 | R180: 0 | S180: -218877.2738 | T180: 130512780.2 | U180: -218.8772738 | V180: 130.5127802 | W180: 7 | X180: CAMPO 3 | Y180: 0.9948966992 | Z180: 510.3300813 | AA180: 1203.899821
A181: 1 | B181: CAMPO 3 | C181: =IF(ABS(U180)>$G$110,C180-(C180-$C$144)/3,C180+(C180-$C$144)/3) -> 1207.191413 | D181: 1207.191413 | F181: -0.0035 | I181: 0.001515057358 | J181: 2.863796851e-06 | K181: 0 | M181: 0.9173928831 | N181: 0.459936175 | O181: 0 | P181: 0.333 | Q181: -219475.7079 | R181: 0 | S181: -219475.7079 | T181: 130537347.1 | U181: -219.4757079 | V181: 130.5373471 | W181: 8 | X181: CAMPO 3 | Y181: 0.9976168542 | Z181: 238.3145791 | AA181: 1207.191413
A182: 1 | B182: CAMPO 3 | C182: 1211.580203 | D182: 1211.580203 | F182: -0.0035 | I182: 0.001515057358 | J182: 2.863796851e-06 | K182: 0 | M182: 0.9173928831 | N182: 0.459936175 | O182: 0 | P182: 0.333 | Q182: -220273.6201 | R182: 0 | S182: -220273.6201 | T182: 130567284.3 | U182: -220.2736201 | V182: 130.5672843 | W182: 9 | X182: CAMPO 3 | Y182: 1.001243728 | Z182: 124.3727571 | AA182: 1211.580203
A183: 1 | B183: CAMPO 3 | C183: 1205.728483 | D183: 1205.728483 | F183: -0.0035 | I183: 0.001515057358 | J183: 2.863796851e-06 | K183: 0 | M183: 0.9173928831 | N183: 0.459936175 | O183: 0 | P183: 0.333 | Q183: -219209.7372 | R183: 0 | S183: -219209.7372 | T183: 130526652.2 | U183: -219.2097372 | V183: 130.5266522 | W183: 10 | X183: CAMPO 3 | Y183: 0.9964078964 | Z183: 359.2103579 | AA183: 1205.728483
A184: 1 | B184: CAMPO 3 | C184: 1209.62963 | D184: 1209.62963 | F184: -0.0035 | I184: 0.001515057358 | J184: 2.863796851e-06 | K184: 0 | M184: 0.9173928831 | N184: 0.459936175 | O184: 0 | P184: 0.333 | Q184: -219918.9924 | R184: 0 | S184: -219918.9924 | T184: 130554376.6 | U184: -219.9189924 | V184: 130.5543766 | W184: 11 | X184: CAMPO 3 | Y184: 0.9996317839 | Z184: 36.82161457 | AA184: 1209.62963
A185: 1 | B185: CAMPO 3 | C185: 1214.831158 | D185: 1214.831158 | F185: -0.0035 | I185: 0.001515057358 | J185: 2.863796851e-06 | K185: 0 | M185: 0.9173928831 | N185: 0.459936175 | O185: 0 | P185: 0.333 | Q185: -220864.6661 | R185: 0 | S185: -220864.6661 | T185: 130587383.2 | U185: -220.8646661 | V185: 130.5873832 | W185: 12 | X185: CAMPO 3 | Y185: 1.0039303 | Z185: 393.0300432 | AA185: 1214.831158
A186: 1 | B186: CAMPO 3 | C186: 1207.895787 | D186: 1207.895787 | F186: -0.0035 | I186: 0.001515057358 | J186: 2.863796851e-06 | K186: 0 | M186: 0.9173928831 | N186: 0.459936175 | O186: 0 | P186: 0.333 | Q186: -219603.7679 | R186: 0 | S186: -219603.7679 | T186: 130542368.8 | U186: -219.6037679 | V186: 130.5423688 | W186: 13 | X186: CAMPO 3 | Y186: 0.998198945 | Z186: 180.1055005 | AA186: 1207.895787
A187: 1 | B187: CAMPO 3 | C187: 1212.519368 | D187: 1212.519368 | F187: -0.0035 | I187: 0.001515057358 | J187: 2.863796851e-06 | K187: 0 | M187: 0.9173928831 | N187: 0.459936175 | O187: 0 | P187: 0.333 | Q187: -220444.3667 | R187: 0 | S187: -220444.3667 | T187: 130573272.2 | U187: -220.4443667 | V187: 130.5732722 | W187: 14 | X187: CAMPO 3 | Y187: 1.002019849 | Z187: 201.984862 | AA187: 1212.519368
A188: 1 | B188: CAMPO 3 | C188: 1206.354593 | D188: 1206.354593 | F188: -0.0035 | I188: 0.001515057358 | J188: 2.863796851e-06 | K188: 0 | M188: 0.9173928831 | N188: 0.459936175 | O188: 0 | P188: 0.333 | Q188: -219323.5683 | R188: 0 | S188: -219323.5683 | T188: 130531273.2 | U188: -219.3235683 | V188: 130.5312732 | W188: 15 | X188: CAMPO 3 | Y188: 0.9969253105 | Z188: 307.4689546 | AA188: 1206.354593
A189: 1 | B189: CAMPO 3 | C189: 1210.464443 | D189: 1210.464443 | F189: -0.0035 | I189: 0.001515057358 | J189: 2.863796851e-06 | K189: 0 | M189: 0.9173928831 | N189: 0.459936175 | O189: 0 | P189: 0.333 | Q189: -220070.7672 | R189: 0 | S189: -220070.7672 | T189: 130559978.8 | U189: -220.0707672 | V189: 130.5599788 | W189: 16 | X189: CAMPO 3 | Y189: 1.000321669 | Z189: 32.16692309 | AA189: 1210.464443
A190: 1 | B190: CAMPO 3 | C190: 1204.984643 | D190: 1204.984643 | F190: -0.0035 | I190: 0.001515057358 | J190: 2.863796851e-06 | K190: 0 | M190: 0.9173928831 | N190: 0.459936175 | O190: 0 | P190: 0.333 | Q190: -219074.502 | R190: 0 | S190: -219074.502 | T190: 130521077 | U190: -219.074502 | V190: 130.521077 | W190: 17 | X190: CAMPO 3 | Y190: 0.9957931909 | Z190: 420.6809139 | AA190: 1204.984643
A191: 1 | B191: CAMPO 3 | C191: 1208.637843 | D191: 1208.637843 | F191: -0.0035 | I191: 0.001515057358 | J191: 2.863796851e-06 | K191: 0 | M191: 0.9173928831 | N191: 0.459936175 | O191: 0 | P191: 0.333 | Q191: -219738.6788 | R191: 0 | S191: -219738.6788 | T191: 130547569.5 | U191: =+S191/1000 -> -219.7386788 | V191: 130.5475695 | W191: 18 | X191: CAMPO 3 | Y191: 0.9988121764 | Z191: 118.7823559 | AA191: 1208.637843
A192: 1 | B192: CAMPO 3 | C192: 1213.508776 | D192: 1213.508776 | F192: -0.0035 | I192: 0.001515057358 | J192: 2.863796851e-06 | K192: 0 | M192: 0.9173928831 | N192: 0.459936175 | O192: 0 | P192: 0.333 | Q192: -220624.2479 | R192: 0 | S192: -220624.2479 | T192: 130579420.9 | U192: -220.6242479 | V192: 130.5794209 | W192: 19 | X192: CAMPO 3 | Y192: 1.002837491 | Z192: 283.7490547 | AA192: 1213.508776
A193: 1 | B193: CAMPO 3 | C193: 1207.014199 | D193: 1207.014199 | F193: -0.0035 | I193: 0.001515057358 | J193: 2.863796851e-06 | K193: 0 | M193: 0.9173928831 | N193: 0.459936175 | O193: 0 | P193: 0.333 | Q193: -219443.4891 | R193: 0 | S193: -219443.4891 | T193: 130536070.6 | U193: -219.4434891 | V193: 130.5360706 | W193: 20 | X193: CAMPO 3 | Y193: 0.9974704051 | Z193: 252.9594928 | AA193: 1207.014199
A194: 1 | B194: CAMPO 3 | C194: 1211.343917 | D194: 1211.343917 | F194: -0.0035 | I194: 0.001515057358 | J194: 2.863796851e-06 | K194: 0 | M194: 0.9173928831 | N194: 0.459936175 | O194: 0 | P194: 0.333 | Q194: -220230.6617 | R194: 0 | S194: -220230.6617 | T194: 130565754.6 | U194: -220.2306617 | V194: 130.5657546 | W194: 21 | X194: CAMPO 3 | Y194: 1.001048462 | Z194: 104.8462056 | AA194: 1211.343917
A195: 1 | B195: CAMPO 3 | C195: 1205.570959 | D195: 1205.570959 | F195: -0.0035 | I195: 0.001515057358 | J195: 2.863796851e-06 | K195: 0 | M195: 0.9173928831 | N195: 0.459936175 | O195: 0 | P195: 0.333 | Q195: -219181.0983 | R195: 0 | S195: -219181.0983 | T195: 130525479.2 | U195: -219.1810983 | V195: 130.5254792 | W195: 22 | X195: CAMPO 3 | Y195: 0.9962777194 | Z195: 372.2280589 | AA195: 1205.570959
A196: 1 | B196: CAMPO 3 | C196: 1209.419598 | D196: 1209.419598 | F196: -0.0035 | I196: 0.001515057358 | J196: 2.863796851e-06 | K196: 0 | M196: 0.9173928831 | N196: 0.459936175 | O196: 0 | P196: 0.333 | Q196: -219880.8072 | R196: 0 | S196: -219880.8072 | T196: 130552948.8 | U196: -219.8808072 | V196: 130.5529488 | W196: 23 | X196: CAMPO 3 | Y196: 0.9994582145 | Z196: 54.17854925 | AA196: 1209.419598
A197: 1 | B197: CAMPO 3 | C197: 1214.551115 | D197: 1214.551115 | F197: -0.0035 | I197: 0.001515057358 | J197: 2.863796851e-06 | K197: 0 | M197: 0.9173928831 | N197: 0.459936175 | O197: 0 | P197: 0.333 | Q197: -220813.7524 | R197: 0 | S197: -220813.7524 | T197: 130585721.4 | U197: -220.8137524 | V197: 130.5857214 | W197: 24 | X197: CAMPO 3 | Y197: 1.003698875 | Z197: 369.8874636 | AA197: 1214.551115
A198: 1 | B198: CAMPO 3 | C198: 1207.709092 | D198: 1207.709092 | F198: -0.0035 | I198: 0.001515057358 | J198: 2.863796851e-06 | K198: 0 | M198: 0.9173928831 | N198: 0.459936175 | O198: 0 | P198: 0.333 | Q198: -219569.8254 | R198: 0 | S198: -219569.8254 | T198: 130541045.9 | U198: -219.5698254 | V198: 130.5410459 | W198: 25 | X198: CAMPO 3 | Y198: 0.9980446611 | Z198: 195.5338869 | AA198: 1207.709092
A199: 1 | B199: CAMPO 3 | C199: =IF(ABS(U198)>$G$110,C198-(C198-$C$144)/4,C198+(C198-$C$144)/4) -> 1211.130104 | D199: 1211.130104 | F199: -0.0035 | I199: 0.001515057358 | J199: 2.863796851e-06 | K199: 0 | M199: 0.9173928831 | N199: 0.459936175 | O199: 0 | P199: 0.333 | Q199: -220191.7889 | R199: 0 | S199: -220191.7889 | T199: 130564362.3 | U199: -220.1917889 | V199: 130.5643623 | W199: 26 | X199: CAMPO 3 | Y199: 1.000871768 | Z199: 87.17678837 | AA199: 1211.130104
A200: 1 | B200: CAMPO 3 | C200: 1206.853839 | D200: 1206.853839 | F200: -0.0035 | I200: 0.001515057358 | J200: 2.863796851e-06 | K200: 0 | M200: 0.9173928831 | N200: 0.459936175 | O200: 0 | P200: 0.333 | Q200: -219414.3346 | R200: 0 | S200: -219414.3346 | T200: 130534911 | U200: -219.4143346 | V200: 130.534911 | W200: 27 | X200: CAMPO 3 | Y200: 0.9973378844 | Z200: 266.2115557 | AA200: 1206.853839
A201: 1 | B201: CAMPO 3 | C201: 1210.061037 | D201: 1210.061037 | F201: -0.0035 | I201: 0.001515057358 | J201: 2.863796851e-06 | K201: 0 | M201: 0.9173928831 | N201: 0.459936175 | O201: 0 | P201: 0.333 | Q201: -219997.4253 | R201: 0 | S201: -219997.4253 | T201: 130557286.2 | U201: -219.9974253 | V201: 130.5572862 | W201: 28 | X201: CAMPO 3 | Y201: 0.999988297 | Z201: 1.170297643 | AA201: 1210.061037
A202: 1 | B202: CAMPO 3 | C202: 1214.070036 | D202: 1214.070036 | F202: -0.0035 | I202: 0.001515057358 | J202: 2.863796851e-06 | K202: 0 | M202: 0.9173928831 | N202: 0.459936175 | O202: 0 | P202: 0.333 | Q202: -220726.2888 | R202: 0 | S202: -220726.2888 | T202: 130582836.1 | U202: -220.7262888 | V202: 130.5828361 | W202: 29 | X202: CAMPO 3 | Y202: 1.003301313 | Z202: 330.1312749 | AA202: 1214.070036
A203: 1 | B203: CAMPO 3 | C203: 1209.058788 | D203: 1209.058788 | F203: -0.0035 | I203: 0.001515057358 | J203: 2.863796851e-06 | K203: 0 | M203: 0.9173928831 | N203: 0.459936175 | O203: 0 | P203: 0.333 | Q203: -219815.2095 | R203: 0 | S203: -219815.2095 | T203: 130550478.7 | U203: -219.8152095 | V203: 130.5504787 | W203: 30 | X203: CAMPO 3 | Y203: 0.9991600431 | Z203: 83.99569078 | AA203: 1209.058788
A204: 1 | B204: CAMPO 3 | C204: 1212.817224 | D204: 1212.817224 | F204: -0.0035 | I204: 0.001515057358 | J204: 2.863796851e-06 | K204: 0 | M204: 0.9173928831 | N204: 0.459936175 | O204: 0 | P204: 0.333 | Q204: -220498.519 | R204: 0 | S204: -220498.519 | T204: 130575140.5 | U204: -220.498519 | V204: 130.5751405 | W204: 31 | X204: CAMPO 3 | Y204: 1.002265995 | Z204: 226.5995335 | AA204: 1212.817224
... 60 more rows

Sheet MNPR (hidden)
C3: t parete=S | D3: =INPUT!F39*1000+IF('FOGLIO DEPOSITO'!M94=0,0,INPUT!F69*2*10) -> 480 | E3: mm | K3: fmd | L3: =MATERIALI!K77 -> 0.7077777778 | M3: N/mm2
C4: B parete=H | D4: =INPUT!F38*1000 -> 2300 | E4: mm | K4: Ed | L4: =MATERIALI!J80 -> 1440 | M4: N/mm2 | S4: εmu | T4: =MATERIALI!J88 -> -0.0035 | U4: [‰]
C5: facce | D5: 1e-09 | E5: - | S5: εm1 | T5: =MATERIALI!J87 -> -0.0004915123457 | U5: [‰]
C6: nf | D6: 1 | E6: - | K6: Ef | L6: 52000 | M6: N/mm2
C7: tVf | D7: 0.063 | E7: mm | K7: ffd | L7: =+D5*D6*D7*D9*D8*L6*T7/D10 -> 1.5095808e-08 | M7: N/mm2 | S7: εfd | T7: 0.00768 | U7: [‰]
C8: a | D8: 1 | E8: - | K8: Seq | L8: =+D5*D6*D7 -> 6.3e-11 | Z8: =IF(ABS('FOGLIO DEPOSITO'!F304)<AC9,AC9,ABS('FOGLIO DEPOSITO'!F304)) -> 220
